Workbook

Sheet CAPA
B12: PROPOSTA DE PREÇOS
B13: Desconto ofertado: | D13: 0.04
B14: BDI - FORNECIMENTO | D14: =BDI!H28 -> 0.15 | E14: ---->Para propostas de BDI, alterar na guia 'BDI'
B15: BDI - SERVIÇOS | D15: =BDI!C28 -> 0.2648 | E15: ---->Para propostas de BDI, alterar na guia 'BDI'
B16: Observações:
B17: 1. Preencher apenas a coluna em amarelo com os dados da proposta de preços da licitante.
B22: Contratação de serviços técnicos para retrofit de componentes da infraestruturas de uso comum do Projeto Público de Irrigação Tabuleiro de São Bernardo (PITSB).

Sheet ORC_GERAL
A1: 22627.68 | D1: MINISTÉRIO DA INTEGRAÇÃO E DO DESENVOLVIMENTO REGIONAL | E1: SINAPI: | F1: 2025-08-01
D2: COMPANHIA DE DESENVOLVIMENTO DOS VALES DO SÃO FRANCISCO E PARNAÍBA | E2: SICRO: | F2: 2025-04-01
D3: 8ª SUPERINTENDÊNCIA REGIONAL - MARANHÃO | E3: ORSE: | F3: 2025-07-01
A4: Objeto: Contratação de serviços técnicos para retrofit de componentes da infraestruturas de uso comum do Projeto Público de Irrigação Tabuleiro de São Bernardo (PITSB). | E4: Cotações: | F4: 2025-10-01
A5: Local: Magalhães de Almeida - MA | E5: BDI-F: | F5: =CAPA!D14 -> 0.15
A6: Preço Global sem Desconto: | C6: =E12 -> 6767689.67 | E6: BDI-S: | F6: =CAPA!D15 -> 0.2648
A7: PLANILHA ORÇAMENTÁRIA | G7: PROPOSTA DA EMPRESA LICITANTE
A8: Item | B8: Código | C8: Fonte | D8: Descrição | E8: Subtotal (R$) | F8: Peso (%) | G8: DESCONTO | H8: PREÇO COM DESCONTO
A9: 1 | D9: ORÇAMENTO CIVIL | E9: =ORC_Civil!C6 -> 954815.46 | F9: =E9/$E$12 -> 0.1410844035 | G9: =CAPA!$D$13 -> 0.04 | H9: =E9*(1-G9) -> 916622.8416
A10: 2 | D10: ORÇAMENTO ELÉTRICA | E10: =ORC_Elet!C6 -> 3549752.37 | F10: =E10/$E$12 -> 0.5245146487 | G10: =CAPA!$D$13 -> 0.04 | H10: =E10*(1-G10) -> 3407762.275
A11: 3 | D11: ORÇAMENTO MECÂNICA | E11: =ORC_Mec!C6 -> 2263121.84 | F11: 0.3344009478 | G11: =CAPA!$D$13 -> 0.04 | H11: 2172596.966
D12: VALOR GLOBAL DOS SERVIÇOS: | E12: =SUM(E9:E11) -> 6767689.67 | H12: =SUM(H9:H11) -> 6496982.083

Sheet ORC_Elet
A1: 22627.68 | D1: MINISTÉRIO DA INTEGRAÇÃO E DO DESENVOLVIMENTO REGIONAL | I1: SINAPI: | J1: 2025-08-01 | K1: PREÇO GLOBAL COM DESCONTO
D2: COMPANHIA DE DESENVOLVIMENTO DOS VALES DO SÃO FRANCISCO E PARNAÍBA | I2: SICRO: | J2: 2025-04-01
D3: 8ª SUPERINTENDÊNCIA REGIONAL - MARANHÃO | I3: ORSE: | J3: 2025-07-01
A4: Objeto: Contratação de serviços técnicos para retrofit de componentes da infraestruturas de uso comum do Projeto Público de Irrigação Tabuleiro de São Bernardo (PITSB). | I4: Cotações: | J4: 2025-09-01
A5: Local: Magalhães de Almeida - MA | I5: BDI-F: | J5: =CAPA!D14 -> 0.15
A6: Preço Global sem Desconto: | C6: =SUM(I10+I70+I92+I120+I172+I185+I202+I219+I276+I299+I323+I376+I416+I428+I434+I457+I501+I544+I561+I578+I594+I635+I659+I703+I706) -> 3549752.37 | I6: BDI-S: | J6: =CAPA!D15 -> 0.2648
A7: ORÇAMENTO - ELÉTRICA | K7: =SUM(L10+L70+L92+L120+L172+L185+L202+L219+L276+L299+L323+L376+L416+L428+L434+L457+L501+L544+L561+L578+L594+L635+L659+L703+L706) -> 3407762.275
A8: Item | B8: Código | C8: Fonte | D8: Descrição | E8: Unid. | F8: Quant. | G8: Custo Unit. (R$) | H8: Preço Unit. (R$) | I8: Subtotal (R$) | J8: Peso (%) | K8: PROPOSTA DA EMPRESA LICITANTE
A9: 1 | D9: ESTAÇÃO DE BOMBEAMENTO PRINCIPAL - EBP | K9: DESCONTO | L9: PREÇO COM BDI APÓS DESCONTO
A10: 1.1 | B10: ***** | C10: ***** | D10: FORNECIMENTO DO CENTRO DE CONTROLE DE MOTORES 4,2KV - (CCM 4,2KV) - EBP | I10: =SUM(I11:I69) -> 1292948.47 | K10: =CAPA!$D$13 -> 0.04 | L10: =SUM(L11:L69) -> 1241230.531
A11: 1.1.1 | B11: COT-E01 | C11: PROPRIA | D11: ABRACADEIRA PLASTICA 100X2,5MM (100) PT | E11: CT | F11: 1 | G11: =VLOOKUP(B11,COT_Elet!$B$10:$R$888,17,0) -> 5.051116451 | H11: =TRUNC(G11*(1+$J$5),2) -> 5.8 | I11: =TRUNC(F11*H11,2) -> 5.8 | K11: =CAPA!$D$13 -> 0.04 | L11: =I11*(1-K11) -> 5.568
A12: 1.1.2 | B12: COT-E02 | C12: PROPRIA | D12: ABRACADEIRA PLASTICA 202X3,7MM (100) PT | E12: CT | F12: 1 | G12: =VLOOKUP(B12,COT_Elet!$B$10:$R$888,17,0) -> 14.42372442 | H12: =TRUNC(G12*(1+$J$5),2) -> 16.58 | I12: 16.58 | K12: =CAPA!$D$13 -> 0.04 | L12: 15.9168
A13: 1.1.3 | B13: COT-E03 | C13: PROPRIA | D13: BARRAM NEUTRO 8F BRN01 8 AZUL | E13: PC | F13: 5 | G13: =VLOOKUP(B13,COT_Elet!$B$10:$R$888,17,0) -> 14.74165451 | H13: 16.95 | I13: 84.75 | K13: =CAPA!$D$13 -> 0.04 | L13: 81.36
A14: 1.1.4 | B14: COT-E04 | C14: PROPRIA | D14: BARRAM TERRA 8F BRT01 8 VERDE | E14: PC | F14: 5 | G14: =VLOOKUP(B14,COT_Elet!$B$10:$R$888,17,0) -> 14.74165451 | H14: 16.95 | I14: 84.75 | K14: =CAPA!$D$13 -> 0.04 | L14: 81.36
A15: 1.1.5 | B15: COT-E05 | C15: PROPRIA | D15: BASE FUSIVEL TP (MARROM) | E15: PC | F15: 1 | G15: =VLOOKUP(B15,COT_Elet!$B$10:$R$888,17,0) -> 323.8210338 | H15: 372.39 | I15: 372.39 | K15: =CAPA!$D$13 -> 0.04 | L15: 357.4944
A16: 1.1.6 | B16: COT-E06 | C16: PROPRIA | D16: BORNE MOLA PUSH IN 2,5MM CP2,5 CZ | E16: PC | F16: 30 | G16: =VLOOKUP(B16,COT_Elet!$B$10:$R$888,17,0) -> 3.415574166 | H16: 3.92 | I16: 117.6 | K16: =CAPA!$D$13 -> 0.04 | L16: 112.896
A17: 1.1.7 | B17: COT-E07 | C17: PROPRIA | D17: BORNE SINDAL 4MM2 | E17: PC | F17: 3 | G17: =VLOOKUP(B17,COT_Elet!$B$10:$R$888,17,0) -> 18.2429263 | H17: 20.97 | I17: 62.91 | K17: =CAPA!$D$13 -> 0.04 | L17: 60.3936
A18: 1.1.8 | B18: COT-E08 | C18: PROPRIA | D18: BOTAO COMANDO 22MM2 VD 1NA XA2EA31 | E18: PC | F18: 8 | G18: =VLOOKUP(B18,COT_Elet!$B$10:$R$888,17,0) -> 21.26315692 | H18: 24.45 | I18: 195.6 | K18: =CAPA!$D$13 -> 0.04 | L18: 187.776
A19: 1.1.9 | B19: COT-E09 | C19: PROPRIA | D19: CABO FLEXIVEL 750V 1,0MM2 AZ | E19: M | F19: 50 | G19: =VLOOKUP(B19,COT_Elet!$B$10:$R$888,17,0) -> 1.281917423 | H19: 1.47 | I19: 73.5 | K19: =CAPA!$D$13 -> 0.04 | L19: 70.56
A20: 1.1.10 | B20: COT-E10 | C20: PROPRIA | D20: CABO FLEXIVEL 750V 1,0MM2 CZ | E20: M | F20: 50 | G20: =VLOOKUP(B20,COT_Elet!$B$10:$R$888,17,0) -> 1.281917423 | H20: 1.47 | I20: 73.5 | K20: =CAPA!$D$13 -> 0.04 | L20: 70.56
A21: 1.1.11 | B21: COT-E11 | C21: PROPRIA | D21: CABO FLEXIVEL 750V 1,0MM2 VD | E21: M | F21: 50 | G21: =VLOOKUP(B21,COT_Elet!$B$10:$R$888,17,0) -> 1.281917423 | H21: 1.47 | I21: 73.5 | K21: =CAPA!$D$13 -> 0.04 | L21: 70.56
A22: 1.1.12 | B22: COT-E12 | C22: PROPRIA | D22: CABO FLEXIVEL 750V 1,5MM2 AZ | E22: M | F22: 50 | G22: =VLOOKUP(B22,COT_Elet!$B$10:$R$888,17,0) -> 1.472479134 | H22: 1.69 | I22: 84.5 | K22: =CAPA!$D$13 -> 0.04 | L22: 81.12
A23: 1.1.13 | B23: COT-E13 | C23: PROPRIA | D23: CABO FLEXIVEL 750V 1,5MM2 CZ | E23: M | F23: 50 | G23: =VLOOKUP(B23,COT_Elet!$B$10:$R$888,17,0) -> 1.472479134 | H23: 1.69 | I23: 84.5 | K23: =CAPA!$D$13 -> 0.04 | L23: 81.12
A24: 1.1.14 | B24: COT-E14 | C24: PROPRIA | D24: CABO FLEXIVEL 750V 2,5MM2 VD | E24: M | F24: 50 | G24: =VLOOKUP(B24,COT_Elet!$B$10:$R$888,17,0) -> 2.305107934 | H24: 2.65 | I24: 132.5 | K24: =CAPA!$D$13 -> 0.04 | L24: 127.2
A25: 1.1.15 | B25: COT-E15 | C25: PROPRIA | D25: CANALETA PVC 50X50MM VENTIL CZ 2M HELLE | E25: BR | F25: 1 | G25: =VLOOKUP(B25,COT_Elet!$B$10:$R$888,17,0) -> 62.66122439 | H25: 72.06 | I25: 72.06 | K25: =CAPA!$D$13 -> 0.04 | L25: 69.1776
A26: 1.1.16 | B26: COT-E16 | C26: PROPRIA | D26: CHAVE DE AFERICAO DE SOB 3P+N 20A 600V | E26: PC | F26: 1 | G26: =VLOOKUP(B26,COT_Elet!$B$10:$R$888,17,0) -> 442.0249237 | H26: 508.32 | I26: 508.32 | K26: =CAPA!$D$13 -> 0.04 | L26: 487.9872
A27: 1.1.17 | B27: COT-E17 | C27: PROPRIA | D27: CHAVE SECC TRIP 15KV 400A C/CARGA C/BASE | E27: PC | F27: 4 | G27: =VLOOKUP(B27,COT_Elet!$B$10:$R$888,17,0) -> 3460.794967 | H27: 3979.91 | I27: 15919.64 | K27: =CAPA!$D$13 -> 0.04 | L27: 15282.8544
A28: 1.1.18 | B28: COT-E18 | C28: PROPRIA | D28: CHAVE SECC. TRIP 400A/15KV SA15 COMPLETO | E28: PC | F28: 1 | G28: =VLOOKUP(B28,COT_Elet!$B$10:$R$888,17,0) -> 5803.979458 | H28: 6674.57 | I28: 6674.57 | K28: =CAPA!$D$13 -> 0.04 | L28: 6407.5872
A29: 1.1.19 | B29: COT-E19 | C29: PROPRIA | D29: COBRE EM BARRA 3/4"X1/8" 146A 0,537KG/M | E29: M | F29: 3 | G29: =VLOOKUP(B29,COT_Elet!$B$10:$R$888,17,0) -> 73.23642053 | H29: 84.22 | I29: 252.66 | K29: =CAPA!$D$13 -> 0.04 | L29: 242.5536
A30: 1.1.20 | B30: COT-E20 | C30: PROPRIA | D30: COBRE EM BARRA 1 1/4"X3/8" 645A 2,69KG/M | E30: M | F30: 108 | G30: =VLOOKUP(B30,COT_Elet!$B$10:$R$888,17,0) -> 366.8683465 | H30: 421.89 | I30: 45564.12 | K30: =CAPA!$D$13 -> 0.04 | L30: 43741.5552
A31: 1.1.21 | B31: COT-E21 | C31: PROPRIA | D31: CORDOALHA DE COBRE FLEXIVEL 300MM PRT595 | E31: PC | F31: 2 | G31: =VLOOKUP(B31,COT_Elet!$B$10:$R$888,17,0) -> 48.55943098 | H31: 55.84 | I31: 111.68 | K31: =CAPA!$D$13 -> 0.04 | L31: 107.2128
A32: 1.1.22 | B32: COT-E22 | C32: PROPRIA | D32: CORDOALHA DE COBRE FLEXIVEL 500MM PRT596 | E32: PC | F32: 1 | G32: =VLOOKUP(B32,COT_Elet!$B$10:$R$888,17,0) -> 70.44069734 | H32: 81 | I32: 81 | K32: =CAPA!$D$13 -> 0.04 | L32: 77.76
A33: 1.1.23 | B33: COT-E23 | C33: PROPRIA | D33: DISJ. BIP. 10A SJ202T-C10 3KA | E33: PC | F33: 4 | G33: =VLOOKUP(B33,COT_Elet!$B$10:$R$888,17,0) -> 48.24502395 | H33: 55.48 | I33: 221.92 | K33: =CAPA!$D$13 -> 0.04 | L33: 213.0432
A34: 1.1.24 | B34: COT-E24 | C34: PROPRIA | D34: DISJ. UNIP 10A SJ201T-C10 3KA | E34: PC | F34: 12 | G34: =VLOOKUP(B34,COT_Elet!$B$10:$R$888,17,0) -> 11.35943945 | H34: 13.06 | I34: 156.72 | K34: =CAPA!$D$13 -> 0.04 | L34: 150.4512
A35: 1.1.25 | B35: COT-E25 | C35: PROPRIA | D35: DISJ. VACUO 17,5KV 1250A 25KA EXTR 3AE5 | E35: PC | F35: 1 | G35: =VLOOKUP(B35,COT_Elet!$B$10:$R$888,17,0) -> 63306.0724 | H35: 72801.98 | I35: 72801.98 | K35: =CAPA!$D$13 -> 0.04 | L35: 69889.9008
A36: 1.1.26 | B36: COT-E26 | C36: PROPRIA | D36: FUSIVEL LIMITADOR HH 15KV 50A 325MM | E36: PC | F36: 9 | G36: =VLOOKUP(B36,COT_Elet!$B$10:$R$888,17,0) -> 317.3714342 | H36: 364.97 | I36: 3284.73 | K36: =CAPA!$D$13 -> 0.04 | L36: 3153.3408
A37: 1.1.27 | B37: COT-E27 | C37: PROPRIA | D37: FUSIVEL LIMITADOR HH 15KV 80A 325MM | E37: PC | F37: 9 | G37: =VLOOKUP(B37,COT_Elet!$B$10:$R$888,17,0) -> 623.43788 | H37: 716.95 | I37: 6452.55 | K37: =CAPA!$D$13 -> 0.04 | L37: 6194.448
A38: 1.1.28 | B38: COT-E28 | C38: PROPRIA | D38: FUSIVEL PARA TP 15KV 0,5A FI27X230 | E38: PC | F38: 1 | G38: =VLOOKUP(B38,COT_Elet!$B$10:$R$888,17,0) -> 142.2279147 | H38: 163.56 | I38: 163.56 | K38: =CAPA!$D$13 -> 0.04 | L38: 157.0176
A39: 1.1.29 | B39: COT-E29 | C39: PROPRIA | D39: ISOLADOR EM RESINA 17,5KV 110KV BASE M12 | E39: PC | F39: 18 | G39: =VLOOKUP(B39,COT_Elet!$B$10:$R$888,17,0) -> 180.9995143 | H39: 208.14 | I39: 3746.52 | K39: =CAPA!$D$13 -> 0.04 | L39: 3596.6592
A40: 1.1.30 | B40: COT-E30 | C40: PROPRIA | D40: MODULO DUALE UP/BRAVA BR TOM 2P+T 10A | E40: PC | F40: 1 | G40: =VLOOKUP(B40,COT_Elet!$B$10:$R$888,17,0) -> 4.72137027 | H40: 5.42 | I40: 5.42 | K40: =CAPA!$D$13 -> 0.04 | L40: 5.2032
A41: 1.1.31 | B41: COT-E31 | C41: PROPRIA | D41: NO BREAK 1500VA E-BIV./S-BIV. OFF SENOID | E41: PC | F41: 1 | G41: =VLOOKUP(B41,COT_Elet!$B$10:$R$888,17,0) -> 3641.059855 | H41: 4187.21 | I41: 4187.21 | K41: =CAPA!$D$13 -> 0.04 | L41: 4019.7216
A42: 1.1.32 | B42: COT-E32 | C42: PROPRIA | D42: PARA RAIOS POLIMERICO 12KV-10KA EQUATORI | E42: PC | F42: 3 | G42: =VLOOKUP(B42,COT_Elet!$B$10:$R$888,17,0) -> 275.2190094 | H42: 316.5 | I42: 949.5 | K42: =CAPA!$D$13 -> 0.04 | L42: 911.52
A43: 1.1.33 | B43: COT-E33 | C43: PROPRIA | D43: PLAQUETA DE EMERG P/BOTAO 22MM | E43: PC | F43: 1 | G43: =VLOOKUP(B43,COT_Elet!$B$10:$R$888,17,0) -> 11.47996043 | H43: 13.2 | I43: 13.2 | K43: =CAPA!$D$13 -> 0.04 | L43: 12.672
A44: 1.1.34 | B44: COT-E34 | C44: PROPRIA | D44: PLUGUE PINO 2P+T 10A AXIAL PT PLD1-3 | E44: PC | F44: 1 | G44: =VLOOKUP(B44,COT_Elet!$B$10:$R$888,17,0) -> 3.923671978 | H44: 4.51 | I44: 4.51 | K44: =CAPA!$D$13 -> 0.04 | L44: 4.3296
A45: 1.1.35 | B45: COT-E35 | C45: PROPRIA | D45: PORTA PLAQUETA APP30T 30X50 | E45: PC | F45: 5 | G45: =VLOOKUP(B45,COT_Elet!$B$10:$R$888,17,0) -> 5.729914368 | H45: 6.58 | I45: 32.9 | K45: =CAPA!$D$13 -> 0.04 | L45: 31.584
A46: 1.1.36 | B46: COT-E36 | C46: PROPRIA | D46: POSTE EXTREMIDADE E UK-PHOENIX CONTACT | E46: PC | F46: 5 | G46: =VLOOKUP(B46,COT_Elet!$B$10:$R$888,17,0) -> 7.400774024 | H46: 8.51 | I46: 42.55 | K46: =CAPA!$D$13 -> 0.04 | L46: 40.848
A47: 1.1.37 | B47: COT-E37 | C47: PROPRIA | D47: RELE PROTEÇAO 7SR51111AA110AA0 | E47: PC | F47: 4 | G47: =VLOOKUP(B47,COT_Elet!$B$10:$R$888,17,0) -> 21015.98437 | H47: 24168.38 | I47: 96673.52 | K47: =CAPA!$D$13 -> 0.04 | L47: 92806.5792
A48: 1.1.38 | B48: COT-E38 | C48: PROPRIA | D48: SINALEIRO LED 22MM 220VCA AM WEG | E48: PC | F48: 5 | G48: =VLOOKUP(B48,COT_Elet!$B$10:$R$888,17,0) -> 22.43292154 | H48: 25.79 | I48: 128.95 | K48: =CAPA!$D$13 -> 0.04 | L48: 123.792
A49: 1.1.39 | B49: COT-E39 | C49: PROPRIA | D49: SINALEIRO LED 22MM 220VCA VD WEG | E49: PC | F49: 5 | G49: =VLOOKUP(B49,COT_Elet!$B$10:$R$888,17,0) -> 22.43292154 | H49: 25.79 | I49: 128.95 | K49: =CAPA!$D$13 -> 0.04 | L49: 123.792
A50: 1.1.40 | B50: COT-E40 | C50: PROPRIA | D50: SINALEIRO LED 22MM 220VCA VM WEG | E50: PC | F50: 5 | G50: =VLOOKUP(B50,COT_Elet!$B$10:$R$888,17,0) -> 22.43292154 | H50: 25.79 | I50: 128.95 | K50: =CAPA!$D$13 -> 0.04 | L50: 123.792
A51: 1.1.41 | B51: COT-E41 | C51: PROPRIA | D51: SIST IRIEL BRAVA BR CAIXA+PLACA 1 MOD | E51: PC | F51: 1 | G51: =VLOOKUP(B51,COT_Elet!$B$10:$R$888,17,0) -> 5.695000486 | H51: 6.54 | I51: 6.54 | K51: =CAPA!$D$13 -> 0.04 | L51: 6.2784
A52: 1.1.42 | B52: COT-E42 | C52: PROPRIA | D52: SUPORTE ADESIVO BAS 2507 | E52: PC | F52: 50 | G52: =VLOOKUP(B52,COT_Elet!$B$10:$R$888,17,0) -> 0.9730839446 | H52: 1.11 | I52: 55.5 | K52: =CAPA!$D$13 -> 0.04 | L52: 53.28
A53: 1.1.43 | B53: COT-E43 | C53: PROPRIA | D53: TERMINAL GARFO 0,5-1,5MM2 VM TPF21-4 | E53: PC | F53: 30 | G53: =VLOOKUP(B53,COT_Elet!$B$10:$R$888,17,0) -> 0.2332342346 | H53: 0.26 | I53: 7.8 | K53: =CAPA!$D$13 -> 0.04 | L53: 7.488
A54: 1.1.44 | B54: COT-E44 | C54: PROPRIA | D54: TERMINAL GARFO 1,0-2,5MM2 AZ TPF22-4 | E54: PC | F54: 30 | G54: =VLOOKUP(B54,COT_Elet!$B$10:$R$888,17,0) -> 0.2843779262 | H54: 0.32 | I54: 9.6 | K54: =CAPA!$D$13 -> 0.04 | L54: 9.216
A55: 1.1.45 | B55: COT-E45 | C55: PROPRIA | D55: TERMINAL ISOL TUB 1,0MM2 DUPLO VM | E55: PC | F55: 100 | G55: =VLOOKUP(B55,COT_Elet!$B$10:$R$888,17,0) -> 0.1278592291 | H55: 0.14 | I55: 14 | K55: =CAPA!$D$13 -> 0.04 | L55: 13.44
A56: 1.1.46 | B56: COT-E46 | C56: PROPRIA | D56: TERMINAL ISOLADO TUBOLAR 1,0MM2 VM | E56: PC | F56: 100 | G56: =VLOOKUP(B56,COT_Elet!$B$10:$R$888,17,0) -> 0.0551813515 | H56: 0.06 | I56: 6 | K56: =CAPA!$D$13 -> 0.04 | L56: 5.76
A57: 1.1.47 | B57: COT-E47 | C57: PROPRIA | D57: TERMINAL OLHAL 1,5-2,5MM2 AZ 5MM TP225 | E57: PC | F57: 100 | G57: =VLOOKUP(B57,COT_Elet!$B$10:$R$888,17,0) -> 0.3541265212 | H57: 0.4 | I57: 40 | K57: =CAPA!$D$13 -> 0.04 | L57: 38.4
A58: 1.1.48 | B58: COT-E48 | C58: PROPRIA | D58: TERMINAL PRE-ISOLADO FEMEA 0,5-1,0MM2 VM | E58: PC | F58: 100 | G58: =VLOOKUP(B58,COT_Elet!$B$10:$R$888,17,0) -> 0.365368633 | H58: 0.42 | I58: 42 | K58: =CAPA!$D$13 -> 0.04 | L58: 40.32
A59: 1.1.49 | B59: COT-E49 | C59: PROPRIA | D59: TERMINAL PRE-ISOLADO FEMEA 1,5-2,5MM2 AZ | E59: PC | F59: 100 | G59: =VLOOKUP(B59,COT_Elet!$B$10:$R$888,17,0) -> 0.3202418462 | H59: 0.36 | I59: 36 | K59: =CAPA!$D$13 -> 0.04 | L59: 34.56
A60: 1.1.50 | B60: COT-E50 | C60: PROPRIA | D60: TERMO ENCOLHIVEL 36KV 40MM 1.1/2" VM | E60: M | F60: 100 | G60: =VLOOKUP(B60,COT_Elet!$B$10:$R$888,17,0) -> 72.6744337 | H60: 83.57 | I60: 8357 | K60: =CAPA!$D$13 -> 0.04 | L60: 8022.72
A61: 1.1.51 | B61: COT-E51 | C61: PROPRIA | D61: TRANSF. CORRENTE JANELA 250/5A 60HZ | E61: PC | F61: 3 | G61: =VLOOKUP(B61,COT_Elet!$B$10:$R$888,17,0) -> 4863.939723 | H61: 5593.53 | I61: 16780.59 | K61: =CAPA!$D$13 -> 0.04 | L61: 16109.3664
A62: 1.1.52 | B62: COT-E52 | C62: PROPRIA | D62: TRANSF. CORRENTE 7.2KV 150/5 1P15B1 150-5 | E62: PC | F62: 12 | G62: =VLOOKUP(B62,COT_Elet!$B$10:$R$888,17,0) -> 2665.036335 | H62: 3064.79 | I62: 36777.48 | K62: =CAPA!$D$13 -> 0.04 | L62: 35306.3808
A63: 1.1.53 | B63: COT-E53 | C63: PROPRIA | D63: TRANSF. POTENC. 7.2KV 115V 1KVA 0,3P75 | E63: PC | F63: 4 | G63: =VLOOKUP(B63,COT_Elet!$B$10:$R$888,17,0) -> 3846.415156 | H63: 4423.37 | I63: 17693.48 | K63: =CAPA!$D$13 -> 0.04 | L63: 16985.7408
A64: 1.1.54 | B64: COT-E54 | C64: PROPRIA | D64: CARRINHO PARA EXTRAÇÃO DE DISJUNTOR E CONTATOR EXTRAÍVEL 15kV, COM ALTURA REGULÁVEL DE 800 MM. (CONFORME ESPECIFICAÇÃO TÉCNICA E DIAGRAMA UNIFILAR) - MONTADO, TESTADO E COMISSIONADO EM FÁBRICA | E64: PC | F64: 1 | G64: =VLOOKUP(B64,COT_Elet!$B$10:$R$888,17,0) -> 27136.28267 | H64: 31206.72 | I64: 31206.72 | K64: =CAPA!$D$13 -> 0.04 | L64: 29958.4512
A65: 1.1.55 | B65: COT-E55 | C65: PROPRIA | D65: CONJUNTO CHAPARIA DE ENTRADA COM BERÇO PARA DISJUNTOR EXTRAÍVEL 25 kA COM BASE. | E65: UND | F65: 1 | G65: =VLOOKUP(B65,COT_Elet!$B$10:$R$888,17,0) -> 79070.08101 | H65: 90930.59 | I65: 90930.59 | K65: =CAPA!$D$13 -> 0.04 | L65: 87293.3664
A66: 1.1.56 | B66: COT-E56 | C66: PROPRIA | D66: CONJUNTO CHAPARIA DE SAIDA COM BERÇO PARA CONTATOR EXTRAÍVEL 25 kA COM BASE. (CONFORME ESPECIFICAÇÃO TÉCNICA E DIAGRAMA UNIFILAR) - MONTADO, TESTADO E COMISSIONADO EM FÁBRICA | E66: UND | F66: 3 | G66: =VLOOKUP(B66,COT_Elet!$B$10:$R$888,17,0) -> 62267.50198 | H66: 71607.62 | I66: 214822.86 | K66: =CAPA!$D$13 -> 0.04 | L66: 206229.9456
A67: 1.1.57 | B67: COT-E57 | C67: PROPRIA | D67: CONJUNTO CHAPARIA BANCO DE CAPACITORES 25 kA COM BASE. (CONFORME ESPECIFICAÇÃO TÉCNICA E DIAGRAMA UNIFILAR) - MONTADO, TESTADO E COMISSIONADO EM FÁBRICA | E67: UND | F67: 3 | G67: =VLOOKUP(B67,COT_Elet!$B$10:$R$888,17,0) -> 45208.27029 | H67: 51989.51 | I67: 155968.53 | K67: =CAPA!$D$13 -> 0.04 | L67: 149729.7888
A68: 1.1.58 | B68: COT-E58 | C68: PROPRIA | D68: Contator a Vácuo Extraível (Manual) com Subcubículo, Classe Tensão: 7,2kV, Corrente Nominal 400A, Tensão de Comando 125Vcc, 60Hz, Contatos Auxiliares 5NA + 5NF. Modelo SL-D-04S5U-220-NES-WPIC + fusíveis | E68: PC | F68: 3 | G68: =VLOOKUP(B68,COT_Elet!$B$10:$R$888,17,0) -> 82011.99716 | H68: 94313.79 | I68: 282941.37 | K68: =CAPA!$D$13 -> 0.04 | L68: 271623.7152
A69: 1.1.59 | B69: COT-E59 | C69: PROPRIA | D69: BANCO CAPACITOR 200KVAR MONOFÁSICO 7,2kV | E69: PC | F69: 9 | G69: =VLOOKUP(B69,COT_Elet!$B$10:$R$888,17,0) -> 17148.05229 | H69: 19720.26 | I69: 177482.34 | K69: =CAPA!$D$13 -> 0.04 | L69: 170383.0464
A70: 1.2 | B70: ***** | C70: ***** | D70: FORNECIMENTO DE QUADRO DE TRANSFERÊNCIA AUTOMÁTICA - (QTA) - EBP | G70: =VLOOKUP(B70,COT_Elet!$B$10:$R$888,17,0) -> 0 | I70: =SUM(I71:I91) -> 46192.64 | K70: =CAPA!$D$13 -> 0.04 | L70: =SUM(L71:L91) -> 44344.9344
A71: 1.2.1 | B71: COT-E60 | C71: PROPRIA | D71: CABO FLEXIVEL 750V 1,0MM2 CZ | E71: M | F71: 100 | G71: =VLOOKUP(B71,COT_Elet!$B$10:$R$888,17,0) -> 1.35988512 | H71: 1.56 | I71: 156 | K71: =CAPA!$D$13 -> 0.04 | L71: 149.76
A72: 1.2.2 | B72: COT-E61 | C72: PROPRIA | D72: CANALETA PVC 50X80MM VENTIL CZ 2M HELLE | E72: BR | F72: 2 | G72: =VLOOKUP(B72,COT_Elet!$B$10:$R$888,17,0) -> 93.0878161 | H72: 107.05 | I72: 214.1 | K72: =CAPA!$D$13 -> 0.04 | L72: 205.536
A73: 1.2.3 | B73: COT-E62 | C73: PROPRIA | D73: CHAPA DE POLICARB. 3.00X2,050X3MM CRISTA | E73: M2 | F73: 1 | G73: =VLOOKUP(B73,COT_Elet!$B$10:$R$888,17,0) -> 344.5814686 | H73: 396.26 | I73: 396.26 | K73: =CAPA!$D$13 -> 0.04 | L73: 380.4096
A74: 1.2.4 | B74: COT-E63 | C74: PROPRIA | D74: CHAVE TRANSF. MAN/AUTOM 4P 250A S/CARGA | E74: PC | F74: 1 | G74: =VLOOKUP(B74,COT_Elet!$B$10:$R$888,17,0) -> 4321.385865 | H74: 4969.59 | I74: 4969.59 | K74: =CAPA!$D$13 -> 0.04 | L74: 4770.8064
A75: 1.2.5 | B75: COT-E64 | C75: PROPRIA | D75: COBRE EM BARRA 3/4"X1/4" 269A 1,08KG/M | E75: M | F75: 8 | G75: =VLOOKUP(B75,COT_Elet!$B$10:$R$888,17,0) -> 156.2554363 | H75: 179.69 | I75: 1437.52 | K75: =CAPA!$D$13 -> 0.04 | L75: =I75*(1-K75) -> 1380.0192
A76: 1.2.6 | B76: COT-E65 | C76: PROPRIA | D76: CONTATOR AUX. CWCAO-22 2NA+2NF 220V | E76: PC | F76: 2 | G76: =VLOOKUP(B76,COT_Elet!$B$10:$R$888,17,0) -> 78.58316878 | H76: =TRUNC(G76*(1+$J$5),2) -> 90.37 | I76: =TRUNC(F76*H76,2) -> 180.74 | K76: =CAPA!$D$13 -> 0.04 | L76: 173.5104
A77: 1.2.7 | B77: COT-E66 | C77: PROPRIA | D77: DISJ. TRIP CX MOLD 160-200A 80KA DWB | E77: PC | F77: 3 | G77: =VLOOKUP(B77,COT_Elet!$B$10:$R$888,17,0) -> 1055.457048 | H77: 1213.77 | I77: 3641.31 | K77: =CAPA!$D$13 -> 0.04 | L77: 3495.6576
A78: 1.2.8 | B78: COT-E67 | C78: PROPRIA | D78: DISJ. UNIP 10A MDWH-C10 10KA | E78: PC | F78: 9 | G78: =VLOOKUP(B78,COT_Elet!$B$10:$R$888,17,0) -> 33.31626161 | H78: 38.31 | I78: 344.79 | K78: =CAPA!$D$13 -> 0.04 | L78: 330.9984
A79: 1.2.9 | B79: COT-E68 | C79: PROPRIA | D79: FIM DE CURSO T2L2 ALAV CURTA REG IRRIGAC | E79: PC | F79: 1 | G79: =VLOOKUP(B79,COT_Elet!$B$10:$R$888,17,0) -> 122.0612795 | H79: 140.37 | I79: 140.37 | K79: =CAPA!$D$13 -> 0.04 | L79: 134.7552
A80: 1.2.10 | B80: COT-E69 | C80: PROPRIA | D80: GRELHA FILTRO PLAST. EMB. 255X255MM JNG | E80: PC | F80: 2 | G80: =VLOOKUP(B80,COT_Elet!$B$10:$R$888,17,0) -> 177.4617642 | H80: 204.08 | I80: 408.16 | K80: =CAPA!$D$13 -> 0.04 | L80: 391.8336
A81: 1.2.11 | B81: COT-E70 | C81: PROPRIA | D81: PAINEL TTA 3B 1900X800X800MM TTW - MONTADO, TESTADO E COMISSIONADO EM FÁBRICA | E81: PC | F81: 1 | G81: =VLOOKUP(B81,COT_Elet!$B$10:$R$888,17,0) -> 28453.96395 | H81: 32722.05 | I81: 32722.05 | K81: =CAPA!$D$13 -> 0.04 | L81: 31413.168
A82: 1.2.12 | B82: COT-E71 | C82: PROPRIA | D82: LUMINARIA LINEAR P/PAINEL 60CM 7W 6,5K | E82: PC | F82: 1 | G82: =VLOOKUP(B82,COT_Elet!$B$10:$R$888,17,0) -> 57.40842118 | H82: 66.01 | I82: 66.01 | K82: =CAPA!$D$13 -> 0.04 | L82: 63.3696
A83: 1.2.13 | B83: COT-E72 | C83: PROPRIA | D83: MICROVENTIL 18X18X6,0CM 220VAC RMC | E83: PC | F83: 2 | G83: =VLOOKUP(B83,COT_Elet!$B$10:$R$888,17,0) -> 348.1485635 | H83: 400.37 | I83: 800.74 | K83: =CAPA!$D$13 -> 0.04 | L83: 768.7104
A84: 1.2.14 | B84: COT-E73 | C84: PROPRIA | D84: RELE FALTA DE FASE 380V C/NEUTRO RMW17FF | E84: PC | F84: 1 | G84: =VLOOKUP(B84,COT_Elet!$B$10:$R$888,17,0) -> 207.9371177 | H84: 239.12 | I84: 239.12 | K84: =CAPA!$D$13 -> 0.04 | L84: 229.5552
A85: 1.2.15 | B85: COT-E74 | C85: PROPRIA | D85: SELETOR CURTO 3 POS 45G FIXAS 2NA COMP | E85: PC | F85: 1 | G85: =VLOOKUP(B85,COT_Elet!$B$10:$R$888,17,0) -> 91.40448686 | H85: 105.11 | I85: 105.11 | K85: =CAPA!$D$13 -> 0.04 | L85: 100.9056
A86: 1.2.16 | B86: COT-E75 | C86: PROPRIA | D86: SELETOR LONGO 2 POS 45G FIXAS 1NA COMP | E86: PC | F86: 1 | G86: =VLOOKUP(B86,COT_Elet!$B$10:$R$888,17,0) -> 61.21700244 | H86: 70.39 | I86: 70.39 | K86: =CAPA!$D$13 -> 0.04 | L86: 67.5744
A87: 1.2.17 | B87: COT-E76 | C87: PROPRIA | D87: SINALEIRO LED 22MM 220VCA AM WEG | E87: PC | F87: 1 | G87: =VLOOKUP(B87,COT_Elet!$B$10:$R$888,17,0) -> 23.79731772 | H87: 27.36 | I87: 27.36 | K87: =CAPA!$D$13 -> 0.04 | L87: 26.2656
A88: 1.2.18 | B88: COT-E77 | C88: PROPRIA | D88: SINALEIRO LED 22MM 220VCA VD WEG | E88: PC | F88: 1 | G88: =VLOOKUP(B88,COT_Elet!$B$10:$R$888,17,0) -> 23.79731772 | H88: 27.36 | I88: 27.36 | K88: =CAPA!$D$13 -> 0.04 | L88: 26.2656
A89: 1.2.19 | B89: COT-E78 | C89: PROPRIA | D89: SINALEIRO LED 22MM 220VCA VM WEG | E89: PC | F89: 1 | G89: =VLOOKUP(B89,COT_Elet!$B$10:$R$888,17,0) -> 23.79731772 | H89: 27.36 | I89: 27.36 | K89: =CAPA!$D$13 -> 0.04 | L89: 26.2656
A90: 1.2.20 | B90: COT-E79 | C90: PROPRIA | D90: TERMOSTATO CALORIA 0-60G TLZ-530-NA | E90: PC | F90: 1 | G90: =VLOOKUP(B90,COT_Elet!$B$10:$R$888,17,0) -> 160.153852 | H90: 184.17 | I90: 184.17 | K90: =CAPA!$D$13 -> 0.04 | L90: 176.8032
A91: 1.2.21 | B91: COT-E80 | C91: PROPRIA | D91: TRILHO 35X7,5MM 2M LISO PHOENIX | E91: BR | F91: 1 | G91: =VLOOKUP(B91,COT_Elet!$B$10:$R$888,17,0) -> 29.68001429 | H91: 34.13 | I91: 34.13 | K91: =CAPA!$D$13 -> 0.04 | L91: 32.7648
A92: 1.3 | B92: ***** | C92: ***** | D92: FORNECIMENTO DE QUADRO DE FORÇA 01 - (QF-01) - EBP | G92: =VLOOKUP(B92,COT_Elet!$B$10:$R$888,17,0) -> 0 | I92: =SUM(I93:I119) -> 43484.5 | K92: =CAPA!$D$13 -> 0.04 | L92: =SUM(L93:L119) -> 41745.12
A93: 1.3.1 | B93: COT-E81 | C93: PROPRIA | D93: BARRAMENTO FASE TRIP 54P 80A 1M WEG | E93: PC | F93: 2 | G93: =VLOOKUP(B93,COT_Elet!$B$10:$R$888,17,0) -> 135.6802031 | H93: 156.03 | I93: 312.06 | K93: =CAPA!$D$13 -> 0.04 | L93: 299.5776
A94: 1.3.2 | B94: COT-E82 | C94: PROPRIA | D94: BLOCO DE AFERICAO 3TC´S ST6 C416143 | E94: PC | F94: 1 | G94: =VLOOKUP(B94,COT_Elet!$B$10:$R$888,17,0) -> 137.567178 | H94: 158.2 | I94: 158.2 | K94: =CAPA!$D$13 -> 0.04 | L94: 151.872
A95: 1.3.3 | B95: COT-E83 | C95: PROPRIA | D95: CABO FLEXIVEL 750V 6MM2 PT | E95: M | F95: 15 | G95: =VLOOKUP(B95,COT_Elet!$B$10:$R$888,17,0) -> 6.08353746 | H95: 6.99 | I95: 104.85 | K95: =CAPA!$D$13 -> 0.04 | L95: 100.656
A96: 1.3.4 | B96: COT-E84 | C96: PROPRIA | D96: CABO FLEXIVEL 750V 10MM2 PT | E96: M | F96: 100 | G96: =VLOOKUP(B96,COT_Elet!$B$10:$R$888,17,0) -> 10.47158574 | H96: 12.04 | I96: 1204 | K96: =CAPA!$D$13 -> 0.04 | L96: 1155.84
A97: 1.3.5 | B97: COT-E85 | C97: PROPRIA | D97: CANALETA PVC 50X80MM VENTIL CZ 2M HELLE | E97: BR | F97: 3 | G97: =VLOOKUP(B97,COT_Elet!$B$10:$R$888,17,0) -> 93.0878161 | H97: 107.05 | I97: 321.15 | K97: =CAPA!$D$13 -> 0.04 | L97: 308.304
A98: 1.3.6 | B98: COT-E86 | C98: PROPRIA | D98: CHAPA DE POLICARB. 3.00X2,050X3MM CRISTA | E98: M2 | F98: 0.5 | G98: =VLOOKUP(B98,COT_Elet!$B$10:$R$888,17,0) -> 344.5814686 | H98: 396.26 | I98: 198.13 | K98: =CAPA!$D$13 -> 0.04 | L98: 190.2048
A99: 1.3.7 | B99: COT-E87 | C99: PROPRIA | D99: COBRE EM BARRA 3/4"X1/4" 269A 1,08KG/M | E99: M | F99: 5 | G99: =VLOOKUP(B99,COT_Elet!$B$10:$R$888,17,0) -> 156.2554363 | H99: 179.69 | I99: 898.45 | K99: =CAPA!$D$13 -> 0.04 | L99: 862.512
A100: 1.3.8 | B100: COT-E88 | C100: PROPRIA | D100: CONECTOR EXTERNO PINO CURTO 25MM2 | E100: PC | F100: 10 | G100: =VLOOKUP(B100,COT_Elet!$B$10:$R$888,17,0) -> 5.701773396 | H100: 6.55 | I100: 65.5 | K100: =CAPA!$D$13 -> 0.04 | L100: 62.88
A101: 1.3.9 | B101: COT-E89 | C101: PROPRIA | D101: DISJ. BIP 32A MDW-C32-2 3KA | E101: PC | F101: 1 | G101: =VLOOKUP(B101,COT_Elet!$B$10:$R$888,17,0) -> 47.99289231 | H101: 55.19 | I101: 55.19 | K101: =CAPA!$D$13 -> 0.04 | L101: 52.9824
A102: 1.3.10 | B102: COT-E90 | C102: PROPRIA | D102: DISJ. TRIP 10A MDW-C10-3 3KA | E102: PC | F102: 3 | G102: =VLOOKUP(B102,COT_Elet!$B$10:$R$888,17,0) -> 54.44100865 | H102: 62.6 | I102: 187.8 | K102: =CAPA!$D$13 -> 0.04 | L102: 180.288
A103: 1.3.11 | B103: COT-E91 | C103: PROPRIA | D103: DISJ. TRIP 16A MDW-C16-3 3KA | E103: PC | F103: 3 | G103: =VLOOKUP(B103,COT_Elet!$B$10:$R$888,17,0) -> 59.22487824 | H103: 68.1 | I103: 204.3 | K103: =CAPA!$D$13 -> 0.04 | L103: 196.128
A104: 1.3.12 | B104: COT-E92 | C104: PROPRIA | D104: DISJ. TRIP 20A MDW-C20-3 3KA | E104: PC | F104: 5 | G104: =VLOOKUP(B104,COT_Elet!$B$10:$R$888,17,0) -> 54.44100865 | H104: 62.6 | I104: 313 | K104: =CAPA!$D$13 -> 0.04 | L104: 300.48
A105: 1.3.13 | B105: COT-E93 | C105: PROPRIA | D105: DISJ. TRIP 32A MDW-C-32-3 3KA | E105: PC | F105: 1 | G105: =VLOOKUP(B105,COT_Elet!$B$10:$R$888,17,0) -> 54.44100865 | H105: 62.6 | I105: 62.6 | K105: =CAPA!$D$13 -> 0.04 | L105: 60.096
A106: 1.3.14 | B106: COT-E94 | C106: PROPRIA | D106: DISJ. TRIP 40A MDW-C40-3 3KA | E106: PC | F106: 5 | G106: =VLOOKUP(B106,COT_Elet!$B$10:$R$888,17,0) -> 54.44100865 | H106: 62.6 | I106: 313 | K106: =CAPA!$D$13 -> 0.04 | L106: 300.48
A107: 1.3.15 | B107: COT-E95 | C107: PROPRIA | D107: DISJ. TRIP 63A MDW-C63-3 3KA | E107: PC | F107: 4 | G107: =VLOOKUP(B107,COT_Elet!$B$10:$R$888,17,0) -> 78.95841377 | H107: 90.8 | I107: 363.2 | K107: =CAPA!$D$13 -> 0.04 | L107: 348.672
A108: 1.3.16 | B108: COT-E96 | C108: PROPRIA | D108: DISJ. TRIP CX MOLD 128-160A 80KA DWB | E108: PC | F108: 1 | G108: =VLOOKUP(B108,COT_Elet!$B$10:$R$888,17,0) -> 696.2423688 | H108: 800.67 | I108: 800.67 | K108: =CAPA!$D$13 -> 0.04 | L108: 768.6432
A109: 1.3.17 | B109: COT-E97 | C109: PROPRIA | D109: DISJ. UNIP 10A MDWP-C10 3KA | E109: PC | F109: 8 | G109: =VLOOKUP(B109,COT_Elet!$B$10:$R$888,17,0) -> 8.234309325 | H109: 9.46 | I109: 75.68 | K109: =CAPA!$D$13 -> 0.04 | L109: 72.6528
A110: 1.3.18 | B110: COT-E98 | C110: PROPRIA | D110: DISJ. UNIP 16A MDW-C16 3KA | E110: PC | F110: 4 | G110: =VLOOKUP(B110,COT_Elet!$B$10:$R$888,17,0) -> 10.14135672 | H110: 11.66 | I110: 46.64 | K110: =CAPA!$D$13 -> 0.04 | L110: 44.7744
A111: 1.3.19 | B111: COT-E99 | C111: PROPRIA | D111: DISJ. UNIP 32A MDW-C32 3KA | E111: PC | F111: 4 | G111: =VLOOKUP(B111,COT_Elet!$B$10:$R$888,17,0) -> 10.14135672 | H111: 11.66 | I111: 46.64 | K111: =CAPA!$D$13 -> 0.04 | L111: 44.7744
A112: 1.3.20 | B112: COT-E100 | C112: PROPRIA | D112: ISOLADOR EPOXI PARALELO 16X25MM 6MM | E112: PC | F112: 10 | G112: =VLOOKUP(B112,COT_Elet!$B$10:$R$888,17,0) -> 7.044306543 | H112: 8.1 | I112: 81 | K112: =CAPA!$D$13 -> 0.04 | L112: 77.76
A113: 1.3.21 | B113: COT-E101 | C113: PROPRIA | D113: PAINEL TTA 3B 1900X800X800MM TTW - MONTADO, TESTADO E COMISSIONADO EM FÁBRICA | E113: PC | F113: 1 | G113: =VLOOKUP(B113,COT_Elet!$B$10:$R$888,17,0) -> 27889.32484 | H113: 32072.72 | I113: 32072.72 | K113: =CAPA!$D$13 -> 0.04 | L113: 30789.8112
A114: 1.3.22 | B114: COT-E102 | C114: PROPRIA | D114: LIQUIDO PARA PRATEAR 1 LITRO | E114: LT | F114: 1 | G114: =VLOOKUP(B114,COT_Elet!$B$10:$R$888,17,0) -> 249.3472657 | H114: 286.74 | I114: 286.74 | K114: =CAPA!$D$13 -> 0.04 | L114: 275.2704
A115: 1.3.23 | B115: COT-E103 | C115: PROPRIA | D115: MULTIMEDIDOR TRIF. GRANDEZA C/M ETHERNET | E115: PC | F115: 1 | G115: =VLOOKUP(B115,COT_Elet!$B$10:$R$888,17,0) -> 3526.958138 | H115: 4056 | I115: 4056 | K115: =CAPA!$D$13 -> 0.04 | L115: 3893.76
A116: 1.3.24 | B116: COT-E104 | C116: PROPRIA | D116: PORTA DOCUMENTOS P/PAINEL GRANDE BRPD01 | E116: PC | F116: 1 | G116: =VLOOKUP(B116,COT_Elet!$B$10:$R$888,17,0) -> 54.8515836 | H116: 63.07 | I116: 63.07 | K116: =CAPA!$D$13 -> 0.04 | L116: 60.5472
A117: 1.3.25 | B117: COT-E105 | C117: PROPRIA | D117: PROTETOR DE SURTO 275V 60KA CL-I/II | E117: PC | F117: 4 | G117: =VLOOKUP(B117,COT_Elet!$B$10:$R$888,17,0) -> 122.3386651 | H117: 140.68 | I117: 562.72 | K117: =CAPA!$D$13 -> 0.04 | L117: 540.2112
A118: 1.3.26 | B118: COT-E106 | C118: PROPRIA | D118: TRANSFORMADOR TC 200/5 ST-42 | E118: PC | F118: 3 | G118: =VLOOKUP(B118,COT_Elet!$B$10:$R$888,17,0) -> 173.0663778 | H118: 199.02 | I118: 597.06 | K118: =CAPA!$D$13 -> 0.04 | L118: 573.1776
A119: 1.3.27 | B119: COT-E107 | C119: PROPRIA | D119: TRILHO 35X7,5MM 2M LISO PHOENIX | E119: BR | F119: 1 | G119: =VLOOKUP(B119,COT_Elet!$B$10:$R$888,17,0) -> 29.68001429 | H119: 34.13 | I119: 34.13 | K119: =CAPA!$D$13 -> 0.04 | L119: 32.7648
A120: 1.4 | B120: ***** | C120: ***** | D120: FORNECIMENTO DE QUADRO DE AUTOMAÇÃO - (QA) - EBP | G120: =VLOOKUP(B120,COT_Elet!$B$10:$R$888,17,0) -> 0 | I120: =SUM(I121:I171) -> 85407.29 | K120: =CAPA!$D$13 -> 0.04 | L120: =SUM(L121:L171) -> 81990.9984
A121: 1.4.1 | B121: COT-E108 | C121: PROPRIA | D121: BLOCO DISTRIB 4X11 LIG 6-16MM2 125A CONN | E121: PC | F121: 1 | G121: =VLOOKUP(B121,COT_Elet!$B$10:$R$888,17,0) -> 133.6924279 | H121: 153.74 | I121: 153.74 | K121: =CAPA!$D$13 -> 0.04 | L121: 147.5904
A122: 1.4.2 | B122: COT-E109 | C122: PROPRIA | D122: BORNE MOLA PUSH IN 2,5MM CP2,5 CZ | E122: PC | F122: 50 | G122: =VLOOKUP(B122,COT_Elet!$B$10:$R$888,17,0) -> 3.62331333 | H122: 4.16 | I122: 208 | K122: =CAPA!$D$13 -> 0.04 | L122: 199.68
A123: 1.4.3 | B123: COT-E110 | C123: PROPRIA | D123: BORNE PORTA FUSIVEL LED CF4UL6-60V CZ | E123: PC | F123: 30 | G123: =VLOOKUP(B123,COT_Elet!$B$10:$R$888,17,0) -> 19.12839468 | H123: 21.99 | I123: 659.7 | K123: =CAPA!$D$13 -> 0.04 | L123: 633.312
A124: 1.4.4 | B124: COT-E111 | C124: PROPRIA | D124: BORNE RELE SLIM 1REV 24VCC PARAFUSO | E124: PC | F124: 30 | G124: =VLOOKUP(B124,COT_Elet!$B$10:$R$888,17,0) -> 52.09367619 | H124: 59.9 | I124: 1797 | K124: =CAPA!$D$13 -> 0.04 | L124: 1725.12
A125: 1.4.5 | B125: COT-E112 | C125: PROPRIA | D125: BOTAO DUPLO C/ ILUM 1NA+1NF XB5AW 220V | E125: PC | F125: 8 | G125: =VLOOKUP(B125,COT_Elet!$B$10:$R$888,17,0) -> 59.79427953 | H125: 68.76 | I125: 550.08 | K125: =CAPA!$D$13 -> 0.04 | L125: 528.0768
A126: 1.4.6 | B126: COT-E113 | C126: PROPRIA | D126: CABO FLEXIVEL 750V 1,0MM2 AZ | E126: M | F126: 100 | G126: =VLOOKUP(B126,COT_Elet!$B$10:$R$888,17,0) -> 1.35988512 | H126: 1.56 | I126: 156 | K126: =CAPA!$D$13 -> 0.04 | L126: 149.76
A127: 1.4.7 | B127: COT-E114 | C127: PROPRIA | D127: CABO FLEXIVEL 750V 1,0MM2 CZ | E127: M | F127: 100 | G127: =VLOOKUP(B127,COT_Elet!$B$10:$R$888,17,0) -> 1.35988512 | H127: 1.56 | I127: 156 | K127: =CAPA!$D$13 -> 0.04 | L127: 149.76
A128: 1.4.8 | B128: COT-E115 | C128: PROPRIA | D128: CABO FLEXIVEL 750V 1,0MM2 PT | E128: M | F128: 200 | G128: =VLOOKUP(B128,COT_Elet!$B$10:$R$888,17,0) -> 1.35988512 | H128: 1.56 | I128: 312 | K128: =CAPA!$D$13 -> 0.04 | L128: 299.52
A129: 1.4.9 | B129: COT-E116 | C129: PROPRIA | D129: CABO FLEXIVEL 750V 1,0MM2 VM | E129: M | F129: 200 | G129: =VLOOKUP(B129,COT_Elet!$B$10:$R$888,17,0) -> 1.35988512 | H129: 1.56 | I129: 312 | K129: =CAPA!$D$13 -> 0.04 | L129: 299.52
A130: 1.4.10 | B130: COT-E117 | C130: PROPRIA | D130: CANALETA PVC 50X80MM VENTIL CZ 2M HELLE | E130: BR | F130: 1 | G130: =VLOOKUP(B130,COT_Elet!$B$10:$R$888,17,0) -> 93.0878161 | H130: 107.05 | I130: 107.05 | K130: =CAPA!$D$13 -> 0.04 | L130: 102.768
A131: 1.4.11 | B131: COT-E118 | C131: PROPRIA | D131: CONTATOR CWB 9.11 24VCA CWB9-11-3NA | E131: PC | F131: 8 | G131: =VLOOKUP(B131,COT_Elet!$B$10:$R$888,17,0) -> 140.5652746 | H131: 161.65 | I131: 1293.2 | K131: =CAPA!$D$13 -> 0.04 | L131: 1241.472
A132: 1.4.12 | B132: COT-E119 | C132: PROPRIA | D132: DISJ. BIP. 10A SJ202T-C10 3KA | E132: PC | F132: 1 | G132: =VLOOKUP(B132,COT_Elet!$B$10:$R$888,17,0) -> 51.179342 | H132: 58.85 | I132: 58.85 | K132: =CAPA!$D$13 -> 0.04 | L132: 56.496
A133: 1.4.13 | B133: COT-E120 | C133: PROPRIA | D133: DISJ. MOTOR WEG MPW 0,4-0,63A MPW18-3- | E133: PC | F133: 4 | G133: =VLOOKUP(B133,COT_Elet!$B$10:$R$888,17,0) -> 289.0290025 | H133: 332.38 | I133: 1329.52 | K133: =CAPA!$D$13 -> 0.04 | L133: 1276.3392
A134: 1.4.14 | B134: COT-E121 | C134: PROPRIA | D134: DISJ. TRIP CX MOLD 40A 80KA 380V DWB | E134: PC | F134: 1 | G134: =VLOOKUP(B134,COT_Elet!$B$10:$R$888,17,0) -> 466.6427481 | H134: 536.63 | I134: 536.63 | K134: =CAPA!$D$13 -> 0.04 | L134: 515.1648
A135: 1.4.15 | B135: COT-E122 | C135: PROPRIA | D135: DISJ. UNIP 10A SJ201T-C10 3KA | E135: PC | F135: 2 | G135: =VLOOKUP(B135,COT_Elet!$B$10:$R$888,17,0) -> 12.05033367 | H135: 13.85 | I135: 27.7 | K135: =CAPA!$D$13 -> 0.04 | L135: 26.592
A136: 1.4.16 | B136: COT-E123 | C136: PROPRIA | D136: DISJ. UNIP 20A SJ201 T-C20 3KA | E136: PC | F136: 3 | G136: =VLOOKUP(B136,COT_Elet!$B$10:$R$888,17,0) -> 12.05033367 | H136: 13.85 | I136: 41.55 | K136: =CAPA!$D$13 -> 0.04 | L136: 39.888
A137: 1.4.17 | B137: COT-E124 | C137: PROPRIA | D137: FIM DE CURSO T2R ALAV FLEX C/ROLD | E137: PC | F137: 1 | G137: =VLOOKUP(B137,COT_Elet!$B$10:$R$888,17,0) -> 54.69094801 | H137: 62.89 | I137: 62.89 | K137: =CAPA!$D$13 -> 0.04 | L137: 60.3744
A138: 1.4.18 | B138: COT-E125 | C138: PROPRIA | D138: FONTE ALIM. CP-E 24/10.0 10A 24VCC ABB | E138: PC | F138: 1 | G138: =VLOOKUP(B138,COT_Elet!$B$10:$R$888,17,0) -> 1295.912377 | H138: 1490.29 | I138: 1490.29 | K138: =CAPA!$D$13 -> 0.04 | L138: 1430.6784
A139: 1.4.19 | B139: COT-E126 | C139: PROPRIA | D139: GRELHA FILTRO PLAST. EMB. 255X255MM RMC | E139: PC | F139: 2 | G139: =VLOOKUP(B139,COT_Elet!$B$10:$R$888,17,0) -> 178.9334019 | H139: 205.77 | I139: 411.54 | K139: =CAPA!$D$13 -> 0.04 | L139: =I139*(1-K139) -> 395.0784
A140: 1.4.20 | B140: COT-E127 | C140: PROPRIA | D140: PAINEL TTA 3B 1900X800X800MM TTW - MONTADO, TESTADO E COMISSIONADO EM FÁBRICA | E140: PC | F140: 1 | G140: =VLOOKUP(B140,COT_Elet!$B$10:$R$888,17,0) -> 36460.36638 | H140: =TRUNC(G140*(1+$J$5),2) -> 41929.42 | I140: =TRUNC(F140*H140,2) -> 41929.42 | K140: =CAPA!$D$13 -> 0.04 | L140: 40252.2432
A141: 1.4.21 | B141: COT-E128 | C141: PROPRIA | D141: LUMINARIA LINEAR P/PAINEL 60CM 7W 6,5K | E141: PC | F141: 1 | G141: =VLOOKUP(B141,COT_Elet!$B$10:$R$888,17,0) -> 57.40842118 | H141: 66.01 | I141: 66.01 | K141: =CAPA!$D$13 -> 0.04 | L141: 63.3696
A142: 1.4.22 | B142: COT-E129 | C142: PROPRIA | D142: MICROVENTIL 18X18CM 220V FZY JNG | E142: PC | F142: 1 | G142: =VLOOKUP(B142,COT_Elet!$B$10:$R$888,17,0) -> 315.5071799 | H142: 362.83 | I142: 362.83 | K142: =CAPA!$D$13 -> 0.04 | L142: 348.3168
A143: 1.4.23 | B143: COT-E130 | C143: PROPRIA | D143: PLAQUETA DE EMERG P/BOTAO 22MM | E143: PC | F143: 1 | G143: =VLOOKUP(B143,COT_Elet!$B$10:$R$888,17,0) -> 12.17818488 | H143: 14 | I143: 14 | K143: =CAPA!$D$13 -> 0.04 | L143: 13.44
A144: 1.4.24 | B144: COT-E131 | C144: PROPRIA | D144: PORTA PLAQUETA APP30T 30X50 | E144: PC | F144: 3 | G144: =VLOOKUP(B144,COT_Elet!$B$10:$R$888,17,0) -> 6.078414375 | H144: 6.99 | I144: 20.97 | K144: =CAPA!$D$13 -> 0.04 | L144: 20.1312
A145: 1.4.25 | B145: COT-E132 | C145: PROPRIA | D145: POSTE EXTREMIDADE DIN35 CA802 CZ | E145: PC | F145: 6 | G145: =VLOOKUP(B145,COT_Elet!$B$10:$R$888,17,0) -> 2.338380926 | H145: 2.68 | I145: 16.08 | K145: =CAPA!$D$13 -> 0.04 | L145: 15.4368
A146: 1.4.26 | B146: COT-E133 | C146: PROPRIA | D146: PROTETOR DE SURTO 275V 45KA CL-II | E146: PC | F146: 2 | G146: =VLOOKUP(B146,COT_Elet!$B$10:$R$888,17,0) -> 44.26634684 | H146: 50.9 | I146: 101.8 | K146: =CAPA!$D$13 -> 0.04 | L146: 97.728
A147: 1.4.27 | B147: COT-E134 | C147: PROPRIA | D147: PROTETOR DE SURTO 922.B.010.220 FASTER | E147: PC | F147: 1 | G147: =VLOOKUP(B147,COT_Elet!$B$10:$R$888,17,0) -> 183.0596992 | H147: 210.51 | I147: 210.51 | K147: =CAPA!$D$13 -> 0.04 | L147: 202.0896
A148: 1.4.28 | B148: COT-E135 | C148: PROPRIA | D148: PROTETOR DE SURTO 922.B.010.24VCC FASTER | E148: PC | F148: 1 | G148: =VLOOKUP(B148,COT_Elet!$B$10:$R$888,17,0) -> 165.3587854 | H148: 190.16 | I148: 190.16 | K148: =CAPA!$D$13 -> 0.04 | L148: 182.5536
A149: 1.4.29 | B149: COT-E136 | C149: PROPRIA | D149: SELETOR 3 POS. FIXAS CURTO 2NA XA2ED33 | E149: PC | F149: 3 | G149: =VLOOKUP(B149,COT_Elet!$B$10:$R$888,17,0) -> 36.55394319 | H149: 42.03 | I149: 126.09 | K149: =CAPA!$D$13 -> 0.04 | L149: 121.0464
A150: 1.4.30 | B150: COT-E137 | C150: PROPRIA | D150: SINALEIRO LED 22MM 220V LARANJ XA2EVM5LC | E150: PC | F150: 8 | G150: =VLOOKUP(B150,COT_Elet!$B$10:$R$888,17,0) -> 16.66664823 | H150: 19.16 | I150: 153.28 | K150: =CAPA!$D$13 -> 0.04 | L150: 147.1488
A151: 1.4.31 | B151: COT-E138 | C151: PROPRIA | D151: SINALEIRO LED 22MM 220V VD XA2EVM3LC | E151: PC | F151: 8 | G151: =VLOOKUP(B151,COT_Elet!$B$10:$R$888,17,0) -> 16.66664823 | H151: 19.16 | I151: 153.28 | K151: =CAPA!$D$13 -> 0.04 | L151: 147.1488
A152: 1.4.32 | B152: COT-E139 | C152: PROPRIA | D152: SWITCH 8 P. ETHERN. IP30 10/100TX CERT | E152: PC | F152: 1 | G152: =VLOOKUP(B152,COT_Elet!$B$10:$R$888,17,0) -> 2101.365567 | H152: 2416.57 | I152: 2416.57 | K152: =CAPA!$D$13 -> 0.04 | L152: 2319.9072
A153: 1.4.33 | B153: COT-E140 | C153: PROPRIA | D153: TERMINAL GARFO 0,5-1,5MM2 VM TPF21-4 | E153: PC | F153: 100 | G153: =VLOOKUP(B153,COT_Elet!$B$10:$R$888,17,0) -> 0.24741981 | H153: 0.28 | I153: 28 | K153: =CAPA!$D$13 -> 0.04 | L153: 26.88
A154: 1.4.34 | B154: COT-E141 | C154: PROPRIA | D154: TERMINAL ISOLADO TUBOLAR 1,0MM2 VM | E154: PC | F154: 100 | G154: =VLOOKUP(B154,COT_Elet!$B$10:$R$888,17,0) -> 0.058537545 | H154: 0.06 | I154: 6 | K154: =CAPA!$D$13 -> 0.04 | L154: 5.76
A155: 1.4.35 | B155: COT-E142 | C155: PROPRIA | D155: TOMADA P/TRILHO 2P+T 10A SIBRATEC | E155: PC | F155: 1 | G155: =VLOOKUP(B155,COT_Elet!$B$10:$R$888,17,0) -> 23.31641961 | H155: 26.81 | I155: 26.81 | K155: =CAPA!$D$13 -> 0.04 | L155: 25.7376
A156: 1.4.36 | B156: COT-E143 | C156: PROPRIA | D156: TRILHO 35X7,5MM 2M LISO PHOENIX | E156: BR | F156: 1 | G156: =VLOOKUP(B156,COT_Elet!$B$10:$R$888,17,0) -> 29.68001429 | H156: 34.13 | I156: 34.13 | K156: =CAPA!$D$13 -> 0.04 | L156: 32.7648
A157: 1.4.37 | B157: COT-E144 | C157: PROPRIA | D157: PLC PM5072-T-2ETH | E157: PC | F157: 1 | G157: =VLOOKUP(B157,COT_Elet!$B$10:$R$888,17,0) -> 5748.107669 | H157: 6610.32 | I157: 6610.32 | K157: =CAPA!$D$13 -> 0.04 | L157: 6345.9072
A158: 1.4.38 | B158: COT-E145 | C158: PROPRIA | D158: TERMINAL TA5212-TSCL PLC | E158: PC | F158: 1 | G158: =VLOOKUP(B158,COT_Elet!$B$10:$R$888,17,0) -> 126.7585605 | H158: 145.77 | I158: 145.77 | K158: =CAPA!$D$13 -> 0.04 | L158: 139.9392
A159: 1.4.39 | B159: COT-E146 | C159: PROPRIA | D159: MC5102 | E159: PC | F159: 1 | G159: =VLOOKUP(B159,COT_Elet!$B$10:$R$888,17,0) -> 451.8844419 | H159: 519.66 | I159: 519.66 | K159: =CAPA!$D$13 -> 0.04 | L159: 498.8736
A160: 1.4.40 | B160: COT-E147 | C160: PROPRIA | D160: DI524 32DI | E160: PC | F160: 1 | G160: =VLOOKUP(B160,COT_Elet!$B$10:$R$888,17,0) -> 2095.037319 | H160: 2409.29 | I160: 2409.29 | K160: =CAPA!$D$13 -> 0.04 | L160: 2312.9184
A161: 1.4.41 | B161: COT-E148 | C161: PROPRIA | D161: DO524 32 DO | E161: PC | F161: 1 | G161: =VLOOKUP(B161,COT_Elet!$B$10:$R$888,17,0) -> 2751.373166 | H161: 3164.07 | I161: 3164.07 | K161: =CAPA!$D$13 -> 0.04 | L161: 3037.5072
A162: 1.4.42 | B162: COT-E149 | C162: PROPRIA | D162: TERMINAL TU515 MODULOS | E162: PC | F162: 2 | G162: =VLOOKUP(B162,COT_Elet!$B$10:$R$888,17,0) -> 497.6174239 | H162: 572.26 | I162: 1144.52 | K162: =CAPA!$D$13 -> 0.04 | L162: 1098.7392
A163: 1.4.43 | B163: COT-E150 | C163: PROPRIA | D163: IHM CP610 10 POLEGADOR | E163: PC | F163: 1 | G163: =VLOOKUP(B163,COT_Elet!$B$10:$R$888,17,0) -> 6721.651081 | H163: 7729.89 | I163: 7729.89 | K163: =CAPA!$D$13 -> 0.04 | L163: 7420.6944
A164: 1.4.44 | B164: COT-E151 | C164: PROPRIA | D164: Antena Direcional YAGI 900MHz -17dBi - CF917 | E164: PC | F164: 1 | G164: =VLOOKUP(B164,COT_Elet!$B$10:$R$888,17,0) -> 488.1628125 | H164: 561.38 | I164: 561.38 | K164: =CAPA!$D$13 -> 0.04 | L164: 538.9248
A165: 1.4.45 | B165: COT-E152 | C165: PROPRIA | D165: Cabo Alfacomp interliga rádio/Centelhador (CONECTORES SMA-M/N-M) | E165: PC | F165: 1 | G165: =VLOOKUP(B165,COT_Elet!$B$10:$R$888,17,0) -> 1033.939335 | H165: 1189.03 | I165: 1189.03 | K165: =CAPA!$D$13 -> 0.04 | L165: 1141.4688
A166: 1.4.46 | B166: COT-E153 | C166: PROPRIA | D166: Cabo DLC 213 Com conectores N-macho 10 metros montado | E166: PC | F166: 1 | G166: =VLOOKUP(B166,COT_Elet!$B$10:$R$888,17,0) -> 75.468921 | H166: 86.78 | I166: 86.78 | K166: =CAPA!$D$13 -> 0.04 | L166: 83.3088
A167: 1.4.47 | B167: COT-E154 | C167: PROPRIA | D167: Cabo Serial Alfacomp programação SX900/RM2060/RM2071 | E167: PC | F167: 1 | G167: =VLOOKUP(B167,COT_Elet!$B$10:$R$888,17,0) -> 298.835427 | H167: 343.66 | I167: 343.66 | K167: =CAPA!$D$13 -> 0.04 | L167: 329.9136
A168: 1.4.48 | B168: COT-E155 | C168: PROPRIA | D168: Centelhador N - CN3203 | E168: PC | F168: 1 | G168: =VLOOKUP(B168,COT_Elet!$B$10:$R$888,17,0) -> 82.725225 | H168: 95.13 | I168: 95.13 | K168: =CAPA!$D$13 -> 0.04 | L168: 91.3248
A169: 1.4.49 | B169: COT-E156 | C169: PROPRIA | D169: Conector de loopback para teste de bancada | E169: PC | F169: 1 | G169: =VLOOKUP(B169,COT_Elet!$B$10:$R$888,17,0) -> 0.16797 | H169: 0.19 | I169: 0.19 | K169: =CAPA!$D$13 -> 0.04 | L169: 0.1824
A170: 1.4.50 | B170: COT-E157 | C170: PROPRIA | D170: Conversor Ethernet Serial - 1-port RS232/485 Serial to 100M Ethernet | E170: PC | F170: 1 | G170: =VLOOKUP(B170,COT_Elet!$B$10:$R$888,17,0) -> 990.85503 | H170: 1139.48 | I170: 1139.48 | K170: =CAPA!$D$13 -> 0.04 | L170: 1093.9008
A171: 1.4.51 | B171: COT-E158 | C171: PROPRIA | D171: Rádio modem Spread Spectrum-900MHz-1W - Alfacomp RM-SX900 | E171: PC | F171: 1 | G171: =VLOOKUP(B171,COT_Elet!$B$10:$R$888,17,0) -> 4129.080533 | H171: 4748.44 | I171: 4748.44 | K171: =CAPA!$D$13 -> 0.04 | L171: 4558.5024
A172: 1.5 | B172: ***** | C172: ***** | D172: FORNECIMENTO DE QUADRO DA SUBESTAÇÃO 112,5KVA - (QD SE 112,5KVA) - EBP | G172: =VLOOKUP(B172,COT_Elet!$B$10:$R$888,17,0) -> 0 | I172: =SUM(I173:I184) -> 6888.24 | K172: =CAPA!$D$13 -> 0.04 | L172: =SUM(L173:L184) -> 6612.7104
A173: 1.5.1 | B173: COT-E159 | C173: PROPRIA | D173: CAIXA MEDICAO 75-300KVA 700X1500X200MM - MONTADO, TESTADO E COMISSIONADO EM FÁBRICA | E173: PC | F173: 1 | G173: =VLOOKUP(B173,COT_Elet!$B$10:$R$888,17,0) -> 3434.791145 | H173: 3950 | I173: 3950 | K173: =CAPA!$D$13 -> 0.04 | L173: 3792
A174: 1.5.2 | B174: COT-E160 | C174: PROPRIA | D174: CHAPA DE POLICARB. 3.00X2,050X3MM CRISTA | E174: M2 | F174: 0.5 | G174: =VLOOKUP(B174,COT_Elet!$B$10:$R$888,17,0) -> 344.5814686 | H174: 396.26 | I174: 198.13 | K174: =CAPA!$D$13 -> 0.04 | L174: 190.2048
A175: 1.5.3 | B175: COT-E161 | C175: PROPRIA | D175: COBRE EM BARRA 3/4"X1/4" 269A 1,08KG/M | E175: M | F175: 3 | G175: =VLOOKUP(B175,COT_Elet!$B$10:$R$888,17,0) -> 156.2554363 | H175: 179.69 | I175: 539.07 | K175: =CAPA!$D$13 -> 0.04 | L175: 517.5072
A176: 1.5.4 | B176: COT-E162 | C176: PROPRIA | D176: DISJ. TRIP CX MOLD 32A 16KA 380V DWB | E176: PC | F176: 1 | G176: =VLOOKUP(B176,COT_Elet!$B$10:$R$888,17,0) -> 466.6427481 | H176: 536.63 | I176: 536.63 | K176: =CAPA!$D$13 -> 0.04 | L176: 515.1648
A177: 1.5.5 | B177: COT-E163 | C177: PROPRIA | D177: DISJ. TRIP CX MOLD 175A 80KA DWB | E177: PC | F177: 1 | G177: =VLOOKUP(B177,COT_Elet!$B$10:$R$888,17,0) -> 578.824704 | H177: 665.64 | I177: 665.64 | K177: =CAPA!$D$13 -> 0.04 | L177: 639.0144
A178: 1.5.6 | B178: COT-E164 | C178: PROPRIA | D178: DISJ. UNIP 32A MDW-C32 3KA | E178: PC | F178: 1 | G178: =VLOOKUP(B178,COT_Elet!$B$10:$R$888,17,0) -> 10.14135672 | H178: 11.66 | I178: 11.66 | K178: =CAPA!$D$13 -> 0.04 | L178: 11.1936
A179: 1.5.7 | B179: COT-E165 | C179: PROPRIA | D179: LIQUIDO PARA PRATEAR 1 LITRO | E179: LT | F179: 1 | G179: =VLOOKUP(B179,COT_Elet!$B$10:$R$888,17,0) -> 249.3472657 | H179: 286.74 | I179: 286.74 | K179: =CAPA!$D$13 -> 0.04 | L179: 275.2704
A180: 1.5.8 | B180: COT-E166 | C180: PROPRIA | D180: PROTETOR DE SURTO 275V 60KA EMBRAST | E180: PC | F180: 4 | G180: =VLOOKUP(B180,COT_Elet!$B$10:$R$888,17,0) -> 88.44832504 | H180: 101.71 | I180: 406.84 | K180: =CAPA!$D$13 -> 0.04 | L180: 390.5664
A181: 1.5.9 | B181: COT-E167 | C181: PROPRIA | D181: TERMO ENCOLHIVEL 1KV 60MM 2.1/2" BR | E181: M | F181: 1 | G181: =VLOOKUP(B181,COT_Elet!$B$10:$R$888,17,0) -> 32.28737817 | H181: 37.13 | I181: 37.13 | K181: =CAPA!$D$13 -> 0.04 | L181: 35.6448
A182: 1.5.10 | B182: COT-E168 | C182: PROPRIA | D182: TERMO ENCOLHIVEL 1KV 60MM 2.1/2" LILAS | E182: M | F182: 1 | G182: =VLOOKUP(B182,COT_Elet!$B$10:$R$888,17,0) -> 32.96922719 | H182: 37.91 | I182: 37.91 | K182: =CAPA!$D$13 -> 0.04 | L182: 36.3936
A183: 1.5.11 | B183: COT-E169 | C183: PROPRIA | D183: TERMO ENCOLHIVEL 1KV 60MM 2.1/2" VM | E183: M | F183: 1 | G183: =VLOOKUP(B183,COT_Elet!$B$10:$R$888,17,0) -> 18.18006019 | H183: 20.9 | I183: 20.9 | K183: =CAPA!$D$13 -> 0.04 | L183: 20.064
A184: 1.5.12 | B184: COT-E170 | C184: PROPRIA | D184: UNIDADE CAPAC. TRIF. 5KVAR 380V HD | E184: PC | F184: 1 | G184: =VLOOKUP(B184,COT_Elet!$B$10:$R$888,17,0) -> 171.8181927 | H184: 197.59 | I184: 197.59 | K184: =CAPA!$D$13 -> 0.04 | L184: 189.6864
A185: 1.6 | B185: ***** | C185: ***** | D185: FORNECIMENTO DE QUADRO DE DIST. FORÇA E LUZ DA SUBEST. DE ENTRADA - (QDFL SE ENTRADA) - EBP | G185: =VLOOKUP(B185,COT_Elet!$B$10:$R$888,17,0) -> 0 | I185: =SUM(I186:I201) -> 4205.88 | K185: =CAPA!$D$13 -> 0.04 | L185: =SUM(L186:L201) -> 4037.6448
A186: 1.6.1 | B186: COT-E171 | C186: PROPRIA | D186: BARRAMENTO FASE TRIP 54P 80A 1M WEG | E186: PC | F186: 1 | G186: =VLOOKUP(B186,COT_Elet!$B$10:$R$888,17,0) -> 135.6802031 | H186: 156.03 | I186: 156.03 | K186: =CAPA!$D$13 -> 0.04 | L186: 149.7888
A187: 1.6.2 | B187: COT-E172 | C187: PROPRIA | D187: CABO FLEXIVEL 750V 10MM2 PT | E187: M | F187: 12 | G187: =VLOOKUP(B187,COT_Elet!$B$10:$R$888,17,0) -> 10.47158574 | H187: 12.04 | I187: 144.48 | K187: =CAPA!$D$13 -> 0.04 | L187: 138.7008
A188: 1.6.3 | B188: COT-E173 | C188: PROPRIA | D188: CAIXA P/MONTAGEM 80X60X25CM - MONTADO, TESTADO E COMISSIONADO EM FÁBRICA | E188: PC | F188: 1 | G188: =VLOOKUP(B188,COT_Elet!$B$10:$R$888,17,0) -> 2458.728119 | H188: 2827.53 | I188: 2827.53 | K188: =CAPA!$D$13 -> 0.04 | L188: 2714.4288
A189: 1.6.4 | B189: COT-E174 | C189: PROPRIA | D189: CANALETA PVC 50X80MM VENTIL CZ 2M HELLE | E189: BR | F189: 2 | G189: =VLOOKUP(B189,COT_Elet!$B$10:$R$888,17,0) -> 93.0878161 | H189: 107.05 | I189: 214.1 | K189: =CAPA!$D$13 -> 0.04 | L189: 205.536
A190: 1.6.5 | B190: COT-E175 | C190: PROPRIA | D190: COBRE EM BARRA 5/8"X3/16" 176A 0,673KG/ | E190: M | F190: 0.8 | G190: =VLOOKUP(B190,COT_Elet!$B$10:$R$888,17,0) -> 97.36297065 | H190: 111.96 | I190: 89.56 | K190: =CAPA!$D$13 -> 0.04 | L190: 85.9776
A191: 1.6.6 | B191: COT-E176 | C191: PROPRIA | D191: CONECTOR EXTERNO PINO CURTO 25MM2 | E191: PC | F191: 6 | G191: =VLOOKUP(B191,COT_Elet!$B$10:$R$888,17,0) -> 14.55501707 | H191: 16.73 | I191: 100.38 | K191: =CAPA!$D$13 -> 0.04 | L191: 96.3648
A192: 1.6.7 | B192: COT-E177 | C192: PROPRIA | D192: DISJ. TRIP 32A MDW-C-32-3 3KA | E192: PC | F192: 2 | G192: =VLOOKUP(B192,COT_Elet!$B$10:$R$888,17,0) -> 54.44100865 | H192: 62.6 | I192: 125.2 | K192: =CAPA!$D$13 -> 0.04 | L192: 120.192
A193: 1.6.8 | B193: COT-E178 | C193: PROPRIA | D193: DISJ. TRIP 63A MDW-C63-3 3KA | E193: PC | F193: 1 | G193: =VLOOKUP(B193,COT_Elet!$B$10:$R$888,17,0) -> 78.95841377 | H193: 90.8 | I193: 90.8 | K193: =CAPA!$D$13 -> 0.04 | L193: 87.168
A194: 1.6.9 | B194: COT-E179 | C194: PROPRIA | D194: DISJ. UNIP 16A MDW-C16 3KA | E194: PC | F194: 1 | G194: =VLOOKUP(B194,COT_Elet!$B$10:$R$888,17,0) -> 10.14135672 | H194: 11.66 | I194: 11.66 | K194: =CAPA!$D$13 -> 0.04 | L194: 11.1936
A195: 1.6.10 | B195: COT-E180 | C195: PROPRIA | D195: DISJ. UNIP 20A MDW-C20 3KA | E195: PC | F195: 4 | G195: =VLOOKUP(B195,COT_Elet!$B$10:$R$888,17,0) -> 10.14135672 | H195: 11.66 | I195: 46.64 | K195: =CAPA!$D$13 -> 0.04 | L195: 44.7744
A196: 1.6.11 | B196: COT-E181 | C196: PROPRIA | D196: DISJ. UNIP 25A MDW-C25 3KA | E196: PC | F196: 1 | G196: =VLOOKUP(B196,COT_Elet!$B$10:$R$888,17,0) -> 11.02807035 | H196: 12.68 | I196: 12.68 | K196: =CAPA!$D$13 -> 0.04 | L196: 12.1728
A197: 1.6.12 | B197: COT-E182 | C197: PROPRIA | D197: DISJ. UNIP 32A MDW-C32 3KA | E197: PC | F197: 4 | G197: =VLOOKUP(B197,COT_Elet!$B$10:$R$888,17,0) -> 10.14135672 | H197: 11.66 | I197: 46.64 | K197: =CAPA!$D$13 -> 0.04 | L197: 44.7744
A198: 1.6.13 | B198: COT-E183 | C198: PROPRIA | D198: ISOLADOR EPOXI PARALELO 20X30MM 1/4" | E198: PC | F198: 4 | G198: =VLOOKUP(B198,COT_Elet!$B$10:$R$888,17,0) -> 5.034862117 | H198: 5.79 | I198: 23.16 | K198: =CAPA!$D$13 -> 0.04 | L198: 22.2336
A199: 1.6.14 | B199: COT-E184 | C199: PROPRIA | D199: PORTA DOCUMENTOS GRANDE A4 36580 | E199: PC | F199: 1 | G199: =VLOOKUP(B199,COT_Elet!$B$10:$R$888,17,0) -> 68.95319001 | H199: 79.29 | I199: 79.29 | K199: =CAPA!$D$13 -> 0.04 | L199: 76.1184
A200: 1.6.15 | B200: COT-E185 | C200: PROPRIA | D200: PROTETOR DE SURTO 275V 45KA CL-II | E200: PC | F200: 4 | G200: =VLOOKUP(B200,COT_Elet!$B$10:$R$888,17,0) -> 44.26634684 | H200: 50.9 | I200: 203.6 | K200: =CAPA!$D$13 -> 0.04 | L200: 195.456
... 507 more rows

Sheet COT_Elet
A1: 22627.68 | D1: MINISTÉRIO DA INTEGRAÇÃO E DO DESENVOLVIMENTO REGIONAL
D2: COMPANHIA DE DESENVOLVIMENTO DOS VALES DO SÃO FRANCISCO E PARNAÍBA
B3: Objeto: Contratação de serviços técnicos para retrofit de componentes da infraestruturas de uso comum do Projeto Público de Irrigação Tabuleiro de São Bernardo (PITSB).
B4: Local: Magalhães de Almeida - MA
B5: Preço Global:
A6: ORÇAMENTO SINTÉTICO - ELÉTRICA
G7: Painel de Preços | K7: Cotações de Mercado | R7: Custo Unitário
A8: Item | B8: Código | C8: Fonte | D8: Descrição | E8: Unid. | F8: Quant. | G8: Média | H8: Mediana | I8: Menor Valor | J8: Valor Adotado | K8: Empresa 1 | L8: Empresa 2 | M8: Empresa 3 | N8: Média | O8: Mediana | P8: Menor Valor | Q8: Valor Adotado
A9: 1 | D9: ESTAÇÃO DE BOMBEAMENTO PRINCIPAL - EBP
A10: 1.1 | B10: ***** | C10: ***** | D10: FORNECIMENTO DO CENTRO DE CONTROLE DE MOTORES 4,2KV - (CCM 4,2KV) - EBP
A11: 1.1.1 | B11: COT-E01 | C11: PROPRIA | D11: ABRACADEIRA PLASTICA 100X2,5MM (100) PT | E11: CT | K11: 5.316964685 | L11: 5.205308427 | M11: 5.051116451 | N11: =AVERAGE(K11:M11) -> 5.191129854 | O11: =MEDIAN(L11:N11) -> 5.191129854 | P11: =SMALL(K11:M11,1) -> 5.051116451 | Q11: =SMALL(N11:P11,1) -> 5.051116451 | R11: =AVERAGE(J11,Q11) -> 5.051116451
A12: 1.1.2 | B12: COT-E02 | C12: PROPRIA | D12: ABRACADEIRA PLASTICA 202X3,7MM (100) PT | E12: CT | K12: 15.18286781 | L12: 14.86402759 | M12: 14.42372442 | N12: =AVERAGE(K12:M12) -> 14.82353994 | O12: =MEDIAN(K12:M12) -> 14.86402759 | P12: =SMALL(K12:M12,1) -> 14.42372442 | Q12: =SMALL(N12:P12,1) -> 14.42372442 | R12: =AVERAGE(J12,Q12) -> 14.42372442
A13: 1.1.3 | B13: COT-E03 | C13: PROPRIA | D13: BARRAM NEUTRO 8F BRN01 8 AZUL | E13: PC | K13: 14.74165451 | L13: 16.32343404 | M13: 16.03449761 | N13: 15.69986205 | O13: 16.03449761 | P13: 14.74165451 | Q13: 14.74165451 | R13: 14.74165451
A14: 1.1.4 | B14: COT-E04 | C14: PROPRIA | D14: BARRAM TERRA 8F BRT01 8 VERDE | E14: PC | K14: 14.74165451 | L14: 16.32343404 | M14: 16.03449761 | N14: 15.69986205 | O14: 16.03449761 | P14: 14.74165451 | Q14: 14.74165451 | R14: 14.74165451
A15: 1.1.5 | B15: COT-E05 | C15: PROPRIA | D15: BASE FUSIVEL TP (MARROM) | E15: PC | K15: 323.8210338 | L15: 356.8507792 | M15: 340.7892559 | N15: 340.487023 | O15: 340.7892559 | P15: 323.8210338 | Q15: 323.8210338 | R15: 323.8210338
A16: 1.1.6 | B16: COT-E06 | C16: PROPRIA | D16: BORNE MOLA PUSH IN 2,5MM CP2,5 CZ | E16: PC | K16: 3.570162189 | L16: 3.415574166 | M16: 3.748670299 | N16: 3.578135551 | O16: 3.570162189 | P16: 3.415574166 | Q16: 3.415574166 | R16: 3.415574166
A17: 1.1.7 | B17: COT-E07 | C17: PROPRIA | D17: BORNE SINDAL 4MM2 | E17: PC | K17: 19.00304823 | L17: 18.2429263 | M17: 21.09338354 | N17: 19.44645269 | O17: 19.00304823 | P17: 18.2429263 | Q17: 18.2429263 | R17: 18.2429263
A18: 1.1.8 | B18: COT-E08 | C18: PROPRIA | D18: BOTAO COMANDO 22MM2 VD 1NA XA2EA31 | E18: PC | K18: 21.79718803 | L18: 21.26315692 | M18: 22.82165587 | N18: 21.96066694 | O18: 21.79718803 | P18: 21.26315692 | Q18: 21.26315692 | R18: 21.26315692
A19: 1.1.9 | B19: COT-E09 | C19: PROPRIA | D19: CABO FLEXIVEL 750V 1,0MM2 AZ | E19: M | K19: 1.281917423 | L19: 1.40754533 | M19: 1.307555771 | N19: 1.332339508 | O19: 1.307555771 | P19: 1.281917423 | Q19: 1.281917423 | R19: 1.281917423
A20: 1.1.10 | B20: COT-E10 | C20: PROPRIA | D20: CABO FLEXIVEL 750V 1,0MM2 CZ | E20: M | K20: 1.281917423 | L20: 1.40754533 | M20: 1.307555771 | N20: 1.332339508 | O20: 1.307555771 | P20: 1.281917423 | Q20: 1.281917423 | R20: 1.281917423
A21: 1.1.11 | B21: COT-E11 | C21: PROPRIA | D21: CABO FLEXIVEL 750V 1,0MM2 VD | E21: M | K21: 1.281917423 | L21: 1.40754533 | M21: 1.307555771 | N21: 1.332339508 | O21: 1.307555771 | P21: 1.281917423 | Q21: 1.281917423 | R21: 1.281917423
A22: 1.1.12 | B22: COT-E12 | C22: PROPRIA | D22: CABO FLEXIVEL 750V 1,5MM2 AZ | E22: M | K22: 1.472479134 | L22: 1.616782089 | M22: 1.501928717 | N22: 1.530396647 | O22: 1.501928717 | P22: 1.472479134 | Q22: 1.472479134 | R22: 1.472479134
A23: 1.1.13 | B23: COT-E13 | C23: PROPRIA | D23: CABO FLEXIVEL 750V 1,5MM2 CZ | E23: M | K23: 1.472479134 | L23: 1.616782089 | M23: 1.501928717 | N23: 1.530396647 | O23: 1.501928717 | P23: 1.472479134 | Q23: 1.472479134 | R23: 1.472479134
A24: 1.1.14 | B24: COT-E14 | C24: PROPRIA | D24: CABO FLEXIVEL 750V 2,5MM2 VD | E24: M | K24: 2.305107934 | L24: 2.531008512 | M24: 2.351210093 | N24: 2.395775513 | O24: 2.351210093 | P24: 2.305107934 | Q24: 2.305107934 | R24: 2.305107934
A25: 1.1.15 | B25: COT-E15 | C25: PROPRIA | D25: CANALETA PVC 50X50MM VENTIL CZ 2M HELLE | E25: BR | K25: 64.36694852 | L25: 62.66122439 | M25: 68.22896544 | N25: 65.08571278 | O25: 64.36694852 | P25: 62.66122439 | Q25: 62.66122439 | R25: 62.66122439
A26: 1.1.16 | B26: COT-E16 | C26: PROPRIA | D26: CHAVE DE AFERICAO DE SOB 3P+N 20A 600V | E26: PC | K26: 465.2893934 | L26: 445.2819494 | M26: 442.0249237 | N26: 450.8654222 | O26: 445.2819494 | P26: 442.0249237 | Q26: 442.0249237 | R26: 442.0249237
A27: 1.1.17 | B27: COT-E17 | C27: PROPRIA | D27: CHAVE SECC TRIP 15KV 400A C/CARGA C/BASE | E27: PC | K27: 3460.794967 | L27: 3893.394338 | M27: 3756.346858 | N27: 3703.512054 | O27: 3756.346858 | P27: 3460.794967 | Q27: 3460.794967 | R27: 3460.794967
A28: 1.1.18 | B28: COT-E18 | C28: PROPRIA | D28: CHAVE SECC. TRIP 400A/15KV SA15 COMPLETO | E28: PC | K28: 5904.353467 | L28: 5803.979458 | M28: 6612.875883 | N28: 6107.069602 | O28: 5904.353467 | P28: 5803.979458 | Q28: 5803.979458 | R28: 5803.979458
A29: 1.1.19 | B29: COT-E19 | C29: PROPRIA | D29: COBRE EM BARRA 3/4"X1/8" 146A 0,537KG/M | E29: M | K29: 73.23642053 | L29: 77.48413292 | M29: 79.82769838 | N29: 76.84941728 | O29: 77.48413292 | P29: 73.23642053 | Q29: 73.23642053 | R29: 73.23642053
A30: 1.1.20 | B30: COT-E20 | C30: PROPRIA | D30: COBRE EM BARRA 1 1/4"X3/8" 645A 2,69KG/M | E30: M | K30: 366.8683465 | L30: 388.1467106 | M30: 413.6073738 | N30: 389.5408103 | O30: 388.1467106 | P30: 366.8683465 | Q30: 366.8683465 | R30: 366.8683465
A31: 1.1.21 | B31: COT-E21 | C31: PROPRIA | D31: CORDOALHA DE COBRE FLEXIVEL 300MM PRT595 | E31: PC | K31: 48.55943098 | L31: 54.19232497 | M31: 51.47299684 | N31: 51.40825093 | O31: 51.47299684 | P31: 48.55943098 | Q31: 48.55943098 | R31: 48.55943098
A32: 1.1.22 | B32: COT-E22 | C32: PROPRIA | D32: CORDOALHA DE COBRE FLEXIVEL 500MM PRT596 | E32: PC | K32: 70.44069734 | L32: 78.61181823 | M32: 74.66713918 | N32: 74.57321825 | O32: 74.66713918 | P32: 70.44069734 | Q32: 70.44069734 | R32: 70.44069734
A33: 1.1.23 | B33: COT-E23 | C33: PROPRIA | D33: DISJ. BIP. 10A SJ202T-C10 3KA | E33: PC | K33: 49.48207584 | L33: 48.24502395 | M33: 50.25399623 | N33: 49.32703201 | O33: 49.48207584 | P33: 48.24502395 | Q33: 48.24502395 | R33: 48.24502395
A34: 1.1.24 | B34: COT-E24 | C34: PROPRIA | D34: DISJ. UNIP 10A SJ201T-C10 3KA | E34: PC | K34: 11.65070713 | L34: 11.35943945 | M34: 11.83245816 | N34: 11.61420158 | O34: 11.65070713 | P34: 11.35943945 | Q34: 11.35943945 | R34: 11.35943945
A35: 1.1.25 | B35: COT-E25 | C35: PROPRIA | D35: DISJ. VACUO 17,5KV 1250A 25KA EXTR 3AE5 | E35: PC | K35: 63306.0724 | L35: 68560.4764 | M35: 70902.80108 | N35: 67589.78329 | O35: 68560.4764 | P35: 63306.0724 | Q35: 63306.0724 | R35: 63306.0724
A36: 1.1.26 | B36: COT-E26 | C36: PROPRIA | D36: FUSIVEL LIMITADOR HH 15KV 50A 325MM | E36: PC | K36: 344.9689503 | L36: 317.3714342 | M36: 376.0161558 | N36: 346.1188468 | O36: 344.9689503 | P36: 317.3714342 | Q36: 317.3714342 | R36: 317.3714342
A37: 1.1.27 | B37: COT-E27 | C37: PROPRIA | D37: FUSIVEL LIMITADOR HH 15KV 80A 325MM | E37: PC | K37: 623.43788 | L37: 684.5347923 | M37: 635.9066376 | N37: 647.95977 | O37: 635.9066376 | P37: 623.43788 | Q37: 623.43788 | R37: 623.43788
A38: 1.1.28 | B38: COT-E28 | C38: PROPRIA | D38: FUSIVEL PARA TP 15KV 0,5A FI27X230 | E38: PC | K38: 142.2279147 | L38: 156.735162 | M38: 149.6806574 | N38: 149.5479113 | O38: 149.6806574 | P38: 142.2279147 | Q38: 142.2279147 | R38: 142.2279147
A39: 1.1.29 | B39: COT-E29 | C39: PROPRIA | D39: ISOLADOR EM RESINA 17,5KV 110KV BASE M12 | E39: PC | K39: 184.1297195 | L39: 180.9995143 | M39: 206.2252859 | N39: 190.4515066 | O39: 184.1297195 | P39: 180.9995143 | Q39: 180.9995143 | R39: 180.9995143
A40: 1.1.30 | B40: COT-E30 | C40: PROPRIA | D40: MODULO DUALE UP/BRAVA BR TOM 2P+T 10A | E40: PC | K40: 4.72137027 | L40: 5.398886904 | M40: 5.099079891 | N40: 5.073112355 | O40: 5.099079891 | P40: 4.72137027 | Q40: 4.72137027 | R40: 4.72137027
A41: 1.1.31 | B41: COT-E31 | C41: PROPRIA | D41: NO BREAK 1500VA E-BIV./S-BIV. OFF SENOID | E41: PC | K41: 3641.059855 | L41: 4031.745577 | M41: 3960.380804 | N41: 3877.728745 | O41: 3960.380804 | P41: 3641.059855 | Q41: 3641.059855 | R41: 3641.059855
A42: 1.1.32 | B42: COT-E32 | C42: PROPRIA | D42: PARA RAIOS POLIMERICO 12KV-10KA EQUATORI | E42: PC | K42: 275.2190094 | L42: 307.4196335 | M42: 291.73215 | N42: 291.456931 | O42: 291.73215 | P42: 275.2190094 | Q42: 275.2190094 | R42: 275.2190094
A43: 1.1.33 | B43: COT-E33 | C43: PROPRIA | D43: PLAQUETA DE EMERG P/BOTAO 22MM | E43: PC | K43: 11.82282228 | L43: 11.47996043 | M43: 12.53219161 | N43: 11.94499144 | O43: 11.82282228 | P43: 11.47996043 | Q43: 11.47996043 | R43: 11.47996043
A44: 1.1.34 | B44: COT-E34 | C44: PROPRIA | D44: PLUGUE PINO 2P+T 10A AXIAL PT PLD1-3 | E44: PC | K44: 4.045022657 | L44: 3.923671978 | M44: 4.301881596 | N44: 4.090192077 | O44: 4.045022657 | P44: 3.923671978 | Q44: 3.923671978 | R44: 3.923671978
A45: 1.1.35 | B45: COT-E35 | C45: PROPRIA | D45: PORTA PLAQUETA APP30T 30X50 | E45: PC | K45: 5.729914368 | L45: 6.34473418 | M45: 6.232427859 | N45: 6.102358802 | O45: 6.232427859 | P45: 5.729914368 | Q45: 5.729914368 | R45: 5.729914368
A46: 1.1.36 | B46: COT-E36 | C46: PROPRIA | D46: POSTE EXTREMIDADE E UK-PHOENIX CONTACT | E46: PC | K46: 8.506636809 | L46: 7.400774024 | M46: 7.67723972 | N46: 7.861550184 | O46: 7.67723972 | P46: 7.400774024 | Q46: 7.400774024 | R46: 7.400774024
A47: 1.1.37 | B47: COT-E37 | C47: PROPRIA | D47: RELE PROTEÇAO 7SR51111AA110AA0 | E47: PC | K47: 21015.98437 | L47: 22760.31107 | M47: 23916.19021 | N47: 22564.16189 | O47: 22760.31107 | P47: 21015.98437 | Q47: 21015.98437 | R47: 21015.98437
A48: 1.1.38 | B48: COT-E38 | C48: PROPRIA | D48: SINALEIRO LED 22MM 220VCA AM WEG | E48: PC | K48: 22.43292154 | L48: 24.83997402 | M48: 24.40028875 | N48: 23.89106144 | O48: 24.40028875 | P48: 22.43292154 | Q48: 22.43292154 | R48: 22.43292154
A49: 1.1.39 | B49: COT-E39 | C49: PROPRIA | D49: SINALEIRO LED 22MM 220VCA VD WEG | E49: PC | K49: 22.43292154 | L49: 24.83997402 | M49: 24.40028875 | N49: 23.89106144 | O49: 24.40028875 | P49: 22.43292154 | Q49: 22.43292154 | R49: 22.43292154
A50: 1.1.40 | B50: COT-E40 | C50: PROPRIA | D50: SINALEIRO LED 22MM 220VCA VM WEG | E50: PC | K50: 22.43292154 | L50: 24.83997402 | M50: 24.40028875 | N50: 23.89106144 | O50: 24.40028875 | P50: 22.43292154 | Q50: 22.43292154 | R50: 22.43292154
A51: 1.1.41 | B51: COT-E41 | C51: PROPRIA | D51: SIST IRIEL BRAVA BR CAIXA+PLACA 1 MOD | E51: PC | K51: 5.695000486 | L51: 6.512233056 | M51: 6.150600525 | N51: 6.119278022 | O51: 6.150600525 | P51: 5.695000486 | Q51: 5.695000486 | R51: 5.695000486
A52: 1.1.42 | B52: COT-E42 | C52: PROPRIA | D52: SUPORTE ADESIVO BAS 2507 | E52: PC | K52: 1.024298889 | L52: 1.002788612 | M52: 0.9730839446 | N52: 1.000057149 | O52: 1.002788612 | P52: 0.9730839446 | Q52: 0.9730839446 | R52: 0.9730839446
A53: 1.1.43 | B53: COT-E43 | C53: PROPRIA | D53: TERMINAL GARFO 0,5-1,5MM2 VM TPF21-4 | E53: PC | K53: 0.2332342346 | L53: 0.241630667 | M53: 0.2542253157 | N53: 0.2430300725 | O53: 0.241630667 | P53: 0.2332342346 | Q53: 0.2332342346 | R53: 0.2332342346
A54: 1.1.44 | B54: COT-E44 | C54: PROPRIA | D54: TERMINAL GARFO 1,0-2,5MM2 AZ TPF22-4 | E54: PC | K54: 0.2843779262 | L54: 0.2946155316 | M54: 0.3099719396 | N54: 0.2963217991 | O54: 0.2946155316 | P54: 0.2843779262 | Q54: 0.2843779262 | R54: 0.2843779262
A55: 1.1.45 | B55: COT-E45 | C55: PROPRIA | D55: TERMINAL ISOL TUB 1,0MM2 DUPLO VM | E55: PC | K55: 0.1278592291 | L55: 0.1324621613 | M55: 0.1393665597 | N55: 0.1332293167 | O55: 0.1324621613 | P55: 0.1278592291 | Q55: 0.1278592291 | R55: 0.1278592291
A56: 1.1.46 | B56: COT-E46 | C56: PROPRIA | D56: TERMINAL ISOLADO TUBOLAR 1,0MM2 VM | E56: PC | K56: 0.0551813515 | L56: 0.05716788015 | M56: 0.06014767313 | N56: 0.05749896826 | O56: 0.05716788015 | P56: 0.0551813515 | Q56: 0.0551813515 | R56: 0.0551813515
A57: 1.1.47 | B57: COT-E47 | C57: PROPRIA | D57: TERMINAL OLHAL 1,5-2,5MM2 AZ 5MM TP225 | E57: PC | K57: 0.3541265212 | L57: 0.3668750759 | M57: 0.3859979081 | N57: 0.3689998351 | O57: 0.3668750759 | P57: 0.3541265212 | Q57: 0.3541265212 | R57: 0.3541265212
A58: 1.1.48 | B58: COT-E48 | C58: PROPRIA | D58: TERMINAL PRE-ISOLADO FEMEA 0,5-1,0MM2 VM | E58: PC | K58: 0.365368633 | L58: 0.3785219037 | M58: 0.3982518099 | N58: 0.3807141155 | O58: 0.3785219037 | P58: 0.365368633 | Q58: 0.365368633 | R58: 0.365368633
A59: 1.1.49 | B59: COT-E49 | C59: PROPRIA | D59: TERMINAL PRE-ISOLADO FEMEA 1,5-2,5MM2 AZ | E59: PC | K59: 0.3202418462 | L59: 0.3317705527 | M59: 0.3490636124 | N59: 0.3336920038 | O59: 0.3317705527 | P59: 0.3202418462 | Q59: 0.3202418462 | R59: 0.3202418462
A60: 1.1.50 | B60: COT-E50 | C60: PROPRIA | D60: TERMO ENCOLHIVEL 36KV 40MM 1.1/2" VM | E60: M | K60: 76.49940389 | L60: 86.06182938 | M60: 72.6744337 | N60: 78.41188899 | O60: 76.49940389 | P60: 72.6744337 | Q60: 72.6744337 | R60: 72.6744337
A61: 1.1.51 | B61: COT-E51 | C61: PROPRIA | D61: TRANSF. CORRENTE JANELA 250/5A 60HZ | E61: PC | K61: 4863.939723 | L61: 5360.061575 | M61: 5739.448873 | N61: 5321.150057 | O61: 5360.061575 | P61: 4863.939723 | Q61: 4863.939723 | R61: 4863.939723
A62: 1.1.52 | B62: COT-E52 | C62: PROPRIA | D62: TRANSF. CORRENTE 7.2KV 150/5 1P15B1 150-5 | E62: PC | K62: 2665.036335 | L62: 2936.870041 | M62: 3144.742876 | N62: 2915.549751 | O62: 2936.870041 | P62: 2665.036335 | Q62: 2665.036335 | R62: 2665.036335
A63: 1.1.53 | B63: COT-E53 | C63: PROPRIA | D63: TRANSF. POTENC. 7.2KV 115V 1KVA 0,3P75 | E63: PC | K63: 3846.415156 | L63: 4238.749502 | M63: 4538.769884 | N63: 4207.978181 | O63: 4238.749502 | P63: 3846.415156 | Q63: 3846.415156 | R63: 3846.415156
A64: 1.1.54 | B64: COT-E54 | C64: PROPRIA | D64: CARRINHO PARA EXTRAÇÃO DE DISJUNTOR E CONTATOR EXTRAÍVEL 15kV, COM ALTURA REGULÁVEL DE 800 MM. (CONFORME ESPECIFICAÇÃO TÉCNICA E DIAGRAMA UNIFILAR) - MONTADO, TESTADO E COMISSIONADO EM FÁBRICA | E64: PC | K64: 27136.28267 | L64: 29632.82068 | M64: 30493.04084 | N64: 29087.3814 | O64: 29632.82068 | P64: 27136.28267 | Q64: 27136.28267 | R64: 27136.28267
A65: 1.1.55 | B65: COT-E55 | C65: PROPRIA | D65: CONJUNTO CHAPARIA DE ENTRADA COM BERÇO PARA DISJUNTOR EXTRAÍVEL 25 kA COM BASE. | E65: UND | K65: 79070.08101 | L65: 86344.52846 | M65: 88851.05003 | N65: 84755.21983 | O65: 86344.52846 | P65: 79070.08101 | Q65: 79070.08101 | R65: 79070.08101
A66: 1.1.56 | B66: COT-E56 | C66: PROPRIA | D66: CONJUNTO CHAPARIA DE SAIDA COM BERÇO PARA CONTATOR EXTRAÍVEL 25 kA COM BASE. (CONFORME ESPECIFICAÇÃO TÉCNICA E DIAGRAMA UNIFILAR) - MONTADO, TESTADO E COMISSIONADO EM FÁBRICA | E66: UND | K66: 62267.50198 | L66: 67996.11216 | M66: 69969.99198 | N66: 66744.53537 | O66: 67996.11216 | P66: 62267.50198 | Q66: 62267.50198 | R66: 62267.50198
A67: 1.1.57 | B67: COT-E57 | C67: PROPRIA | D67: CONJUNTO CHAPARIA BANCO DE CAPACITORES 25 kA COM BASE. (CONFORME ESPECIFICAÇÃO TÉCNICA E DIAGRAMA UNIFILAR) - MONTADO, TESTADO E COMISSIONADO EM FÁBRICA | E67: UND | K67: 45208.27029 | L67: 49367.43116 | M67: 50800.53333 | N67: 48458.74493 | O67: 49367.43116 | P67: 45208.27029 | Q67: 45208.27029 | R67: 45208.27029
A68: 1.1.58 | B68: COT-E58 | C68: PROPRIA | D68: Contator a Vácuo Extraível (Manual) com Subcubículo, Classe Tensão: 7,2kV, Corrente Nominal 400A, Tensão de Comando 125Vcc, 60Hz, Contatos Auxiliares 5NA + 5NF. Modelo SL-D-04S5U-220-NES-WPIC + fusíveis | E68: PC | K68: 82011.99716 | L68: 90049.17288 | M68: 95461.96469 | N68: 89174.37824 | O68: 90049.17288 | P68: 82011.99716 | Q68: 82011.99716 | R68: 82011.99716
A69: 1.1.59 | B69: COT-E59 | C69: PROPRIA | D69: BANCO CAPACITOR 200KVAR MONOFÁSICO 7,2kV | E69: PC | K69: 17148.05229 | L69: 18948.59778 | M69: 19828.29286 | N69: 18641.64764 | O69: 18948.59778 | P69: 17148.05229 | Q69: 17148.05229 | R69: 17148.05229
A70: 1.2 | B70: ***** | C70: ***** | D70: FORNECIMENTO DE QUADRO DE TRANSFERÊNCIA AUTOMÁTICA - (QTA) - EBP
A71: 1.2.1 | B71: COT-E60 | C71: PROPRIA | D71: CABO FLEXIVEL 750V 1,0MM2 CZ | E71: M | K71: 1.35988512 | L71: 1.493153862 | M71: 1.387082822 | N71: =AVERAGE(K71:M71) -> 1.413373935 | O71: =MEDIAN(K71:M71) -> 1.387082822 | P71: =SMALL(K71:M71,1) -> 1.35988512 | Q71: 1.35988512 | R71: 1.35988512
A72: 1.2.2 | B72: COT-E61 | C72: PROPRIA | D72: CANALETA PVC 50X80MM VENTIL CZ 2M HELLE | E72: BR | K72: 95.62179363 | L72: 93.0878161 | M72: 101.3591012 | N72: 96.68957033 | O72: 95.62179363 | P72: 93.0878161 | Q72: 93.0878161 | R72: 93.0878161
A73: 1.2.3 | B73: COT-E62 | C73: PROPRIA | D73: CHAPA DE POLICARB. 3.00X2,050X3MM CRISTA | E73: M2 | K73: 344.5814686 | L73: 378.3504525 | M73: 351.473098 | N73: 358.1350064 | O73: 351.473098 | P73: 344.5814686 | Q73: 344.5814686 | R73: 344.5814686
A74: 1.2.4 | B74: COT-E63 | C74: PROPRIA | D74: CHAVE TRANSF. MAN/AUTOM 4P 250A S/CARGA | E74: PC | K74: 4450.448883 | L74: 4321.385865 | M74: 4717.475816 | N74: 4496.436855 | O74: 4450.448883 | P74: 4321.385865 | Q74: 4321.385865 | R74: 4321.385865
A75: 1.2.5 | B75: COT-E64 | C75: PROPRIA | D75: COBRE EM BARRA 3/4"X1/4" 269A 1,08KG/M | E75: M | K75: 156.2554363 | L75: 165.3182516 | M75: 170.3184255 | N75: 163.9640378 | O75: 165.3182516 | P75: 156.2554363 | Q75: 156.2554363 | R75: 156.2554363
A76: 1.2.6 | B76: COT-E65 | C76: PROPRIA | D76: CONTATOR AUX. CWCAO-22 2NA+2NF 220V | E76: PC | K76: 78.58316878 | L76: 87.0151428 | M76: 85.47491269 | N76: 83.69107476 | O76: 85.47491269 | P76: 78.58316878 | Q76: =SMALL(N76:P76,1) -> 78.58316878 | R76: =AVERAGE(J76,Q76) -> 78.58316878
A77: 1.2.7 | B77: COT-E66 | C77: PROPRIA | D77: DISJ. TRIP CX MOLD 160-200A 80KA DWB | E77: PC | K77: 1055.457048 | L77: 1168.707589 | M77: 1148.020631 | N77: 1124.061756 | O77: 1148.020631 | P77: 1055.457048 | Q77: 1055.457048 | R77: 1055.457048
A78: 1.2.8 | B78: COT-E67 | C78: PROPRIA | D78: DISJ. UNIP 10A MDWH-C10 10KA | E78: PC | K78: 33.31626161 | L78: 36.89109648 | M78: 36.23809775 | N78: 35.48181861 | O78: 36.23809775 | P78: 33.31626161 | Q78: 33.31626161 | R78: 33.31626161
A79: 1.2.9 | B79: COT-E68 | C79: PROPRIA | D79: FIM DE CURSO T2L2 ALAV CURTA REG IRRIGAC | E79: PC | K79: 122.0612795 | L79: 132.9491456 | M79: 129.3849562 | N79: 128.1317937 | O79: 129.3849562 | P79: 122.0612795 | Q79: 122.0612795 | R79: 122.0612795
A80: 1.2.10 | B80: COT-E69 | C80: PROPRIA | D80: GRELHA FILTRO PLAST. EMB. 255X255MM JNG | E80: PC | K80: 182.7618581 | L80: 177.4617642 | M80: 193.7275696 | N80: 184.6503973 | O80: 182.7618581 | P80: 177.4617642 | Q80: 177.4617642 | R80: 177.4617642
A81: 1.2.11 | B81: COT-E70 | C81: PROPRIA | D81: PAINEL TTA 3B 1900X800X800MM TTW - MONTADO, TESTADO E COMISSIONADO EM FÁBRICA | E81: PC | K81: 28453.96395 | L81: 31507.07428 | M81: 30949.37658 | N81: 30303.4716 | O81: 30949.37658 | P81: 28453.96395 | Q81: 28453.96395 | R81: 28453.96395
A82: 1.2.12 | B82: COT-E71 | C82: PROPRIA | D82: LUMINARIA LINEAR P/PAINEL 60CM 7W 6,5K | E82: PC | K82: 63.57521725 | L82: 57.40842118 | M82: 61.66796074 | N82: 60.88386639 | O82: 61.66796074 | P82: 57.40842118 | Q82: 57.40842118 | R82: 57.40842118
A83: 1.2.13 | B83: COT-E72 | C83: PROPRIA | D83: MICROVENTIL 18X18X6,0CM 220VAC RMC | E83: PC | K83: 348.1485635 | L83: 387.5589809 | M83: 379.4819342 | N83: 371.7298262 | O83: 379.4819342 | P83: 348.1485635 | Q83: 348.1485635 | R83: 348.1485635
A84: 1.2.14 | B84: COT-E73 | C84: PROPRIA | D84: RELE FALTA DE FASE 380V C/NEUTRO RMW17FF | E84: PC | K84: 207.9371177 | L84: 230.2487705 | M84: 226.173203 | N84: 221.4530304 | O84: 226.173203 | P84: 207.9371177 | Q84: 207.9371177 | R84: 207.9371177
A85: 1.2.15 | B85: COT-E74 | C85: PROPRIA | D85: SELETOR CURTO 3 POS 45G FIXAS 2NA COMP | E85: PC | K85: 91.40448686 | L85: 101.2121883 | M85: 99.42066035 | N85: 97.3457785 | O85: 99.42066035 | P85: 91.40448686 | Q85: 91.40448686 | R85: 91.40448686
A86: 1.2.16 | B86: COT-E75 | C86: PROPRIA | D86: SELETOR LONGO 2 POS 45G FIXAS 1NA COMP | E86: PC | K86: 61.21700244 | L86: 67.7855868 | M86: 66.58573355 | N86: 65.1961076 | O86: 66.58573355 | P86: 61.21700244 | Q86: 61.21700244 | R86: 61.21700244
A87: 1.2.17 | B87: COT-E76 | C87: PROPRIA | D87: SINALEIRO LED 22MM 220VCA AM WEG | E87: PC | K87: 23.79731772 | L87: 26.35076991 | M87: 25.88434248 | N87: 25.34414337 | O87: 25.88434248 | P87: 23.79731772 | Q87: 23.79731772 | R87: 23.79731772
A88: 1.2.18 | B88: COT-E77 | C88: PROPRIA | D88: SINALEIRO LED 22MM 220VCA VD WEG | E88: PC | K88: 23.79731772 | L88: 26.35076991 | M88: 25.88434248 | N88: 25.34414337 | O88: 25.88434248 | P88: 23.79731772 | Q88: 23.79731772 | R88: 23.79731772
A89: 1.2.19 | B89: COT-E78 | C89: PROPRIA | D89: SINALEIRO LED 22MM 220VCA VM WEG | E89: PC | K89: 23.79731772 | L89: 26.35076991 | M89: 25.88434248 | N89: 25.34414337 | O89: 25.88434248 | P89: 23.79731772 | Q89: 23.79731772 | R89: 23.79731772
A90: 1.2.20 | B90: COT-E79 | C90: PROPRIA | D90: TERMOSTATO CALORIA 0-60G TLZ-530-NA | E90: PC | K90: 160.153852 | L90: 174.4395756 | M90: 184.1769298 | N90: 172.9234525 | O90: 174.4395756 | P90: 160.153852 | Q90: 160.153852 | R90: 160.153852
A91: 1.2.21 | B91: COT-E80 | C91: PROPRIA | D91: TRILHO 35X7,5MM 2M LISO PHOENIX | E91: BR | K91: 34.11495895 | L91: 29.68001429 | M91: 30.78875046 | N91: 31.5279079 | O91: 30.78875046 | P91: 29.68001429 | Q91: 29.68001429 | R91: 29.68001429
A92: 1.3 | B92: ***** | C92: ***** | D92: FORNECIMENTO DE QUADRO DE FORÇA 01 - (QF-01) - EBP
A93: 1.3.1 | B93: COT-E81 | C93: PROPRIA | D93: BARRAMENTO FASE TRIP 54P 80A 1M WEG | E93: PC | K93: 135.6802031 | L93: 150.2386889 | M93: 147.5793569 | N93: =AVERAGE(K93:M93) -> 144.4994163 | O93: =MEDIAN(K93:M93) -> 147.5793569 | P93: =SMALL(K93:M93,1) -> 135.6802031 | Q93: 135.6802031 | R93: 135.6802031
A94: 1.3.2 | B94: COT-E82 | C94: PROPRIA | D94: BLOCO DE AFERICAO 3TC´S ST6 C416143 | E94: PC | K94: 137.567178 | L94: 154.0752394 | M94: 153.7725916 | N94: 148.4716697 | O94: 153.7725916 | P94: 137.567178 | Q94: 137.567178 | R94: 137.567178
A95: 1.3.3 | B95: COT-E83 | C95: PROPRIA | D95: CABO FLEXIVEL 750V 6MM2 PT | E95: M | K95: 6.08353746 | L95: 6.679724131 | M95: 6.205208209 | N95: 6.322823267 | O95: 6.205208209 | P95: 6.08353746 | Q95: 6.08353746 | R95: 6.08353746
A96: 1.3.4 | B96: COT-E84 | C96: PROPRIA | D96: CABO FLEXIVEL 750V 10MM2 PT | E96: M | K96: 10.47158574 | L96: 11.49780114 | M96: 10.68101745 | N96: 10.88346811 | O96: 10.68101745 | P96: 10.47158574 | Q96: 10.47158574 | R96: 10.47158574
A97: 1.3.5 | B97: COT-E85 | C97: PROPRIA | D97: CANALETA PVC 50X80MM VENTIL CZ 2M HELLE | E97: BR | K97: 95.62179363 | L97: 93.0878161 | M97: 101.3591012 | N97: 96.68957033 | O97: 95.62179363 | P97: 93.0878161 | Q97: 93.0878161 | R97: 93.0878161
A98: 1.3.6 | B98: COT-E86 | C98: PROPRIA | D98: CHAPA DE POLICARB. 3.00X2,050X3MM CRISTA | E98: M2 | K98: 344.5814686 | L98: 378.3504525 | M98: 351.473098 | N98: 358.1350064 | O98: 351.473098 | P98: 344.5814686 | Q98: 344.5814686 | R98: 344.5814686
A99: 1.3.7 | B99: COT-E87 | C99: PROPRIA | D99: COBRE EM BARRA 3/4"X1/4" 269A 1,08KG/M | E99: M | K99: 156.2554363 | L99: 165.3182516 | M99: 170.3184255 | N99: 163.9640378 | O99: 165.3182516 | P99: 156.2554363 | Q99: 156.2554363 | R99: 156.2554363
A100: 1.3.8 | B100: COT-E88 | C100: PROPRIA | D100: CONECTOR EXTERNO PINO CURTO 25MM2 | E100: PC | K100: 5.87206323 | L100: 5.701773396 | M100: 6.224387024 | N100: 5.932741217 | O100: 5.87206323 | P100: 5.701773396 | Q100: 5.701773396 | R100: 5.701773396
A101: 1.3.9 | B101: COT-E89 | C101: PROPRIA | D101: DISJ. BIP 32A MDW-C32-2 3KA | E101: PC | K101: 47.99289231 | L101: 53.14252965 | M101: 52.20186897 | N101: 51.11243031 | O101: 52.20186897 | P101: 47.99289231 | Q101: 47.99289231 | R101: 47.99289231
A102: 1.3.10 | B102: COT-E90 | C102: PROPRIA | D102: DISJ. TRIP 10A MDW-C10-3 3KA | E102: PC | K102: 54.44100865 | L102: 60.28252888 | M102: 59.21548511 | N102: 57.97967422 | O102: 59.21548511 | P102: 54.44100865 | Q102: 54.44100865 | R102: 54.44100865
A103: 1.3.11 | B103: COT-E91 | C103: PROPRIA | D103: DISJ. TRIP 16A MDW-C16-3 3KA | E103: PC | K103: 59.22487824 | L103: 65.57970768 | M103: 64.41890006 | N103: 63.07449533 | O103: 64.41890006 | P103: 59.22487824 | Q103: 59.22487824 | R103: 59.22487824
A104: 1.3.12 | B104: COT-E92 | C104: PROPRIA | D104: DISJ. TRIP 20A MDW-C20-3 3KA | E104: PC | K104: 54.44100865 | L104: 60.28252888 | M104: 59.21548511 | N104: 57.97967422 | O104: 59.21548511 | P104: 54.44100865 | Q104: 54.44100865 | R104: 54.44100865
A105: 1.3.13 | B105: COT-E93 | C105: PROPRIA | D105: DISJ. TRIP 32A MDW-C-32-3 3KA | E105: PC | K105: 54.44100865 | L105: 60.28252888 | M105: 59.21548511 | N105: 57.97967422 | O105: 59.21548511 | P105: 54.44100865 | Q105: 54.44100865 | R105: 54.44100865
A106: 1.3.14 | B106: COT-E94 | C106: PROPRIA | D106: DISJ. TRIP 40A MDW-C40-3 3KA | E106: PC | K106: 54.44100865 | L106: 60.28252888 | M106: 59.21548511 | N106: 57.97967422 | O106: 59.21548511 | P106: 54.44100865 | Q106: 54.44100865 | R106: 54.44100865
A107: 1.3.15 | B107: COT-E95 | C107: PROPRIA | D107: DISJ. TRIP 63A MDW-C63-3 3KA | E107: PC | K107: 78.95841377 | L107: 87.43065156 | M107: 85.88306665 | N107: 84.09071066 | O107: 85.88306665 | P107: 78.95841377 | Q107: 78.95841377 | R107: 78.95841377
A108: 1.3.16 | B108: COT-E96 | C108: PROPRIA | D108: DISJ. TRIP CX MOLD 128-160A 80KA DWB | E108: PC | K108: 696.2423688 | L108: 770.949175 | M108: 757.3028245 | N108: 741.4981228 | O108: 757.3028245 | P108: 696.2423688 | Q108: 696.2423688 | R108: 696.2423688
A109: 1.3.17 | B109: COT-E97 | C109: PROPRIA | D109: DISJ. UNIP 10A MDWP-C10 3KA | E109: PC | K109: 8.234309325 | L109: 9.117850716 | M109: 8.956458253 | N109: 8.769539431 | O109: 8.956458253 | P109: 8.234309325 | Q109: 8.234309325 | R109: 8.234309325
A110: 1.3.18 | B110: COT-E98 | C110: PROPRIA | D110: DISJ. UNIP 16A MDW-C16 3KA | E110: PC | K110: 10.14135672 | L110: 11.2295243 | M110: 11.0307537 | N110: 10.80054491 | O110: 11.0307537 | P110: 10.14135672 | Q110: 10.14135672 | R110: 10.14135672
A111: 1.3.19 | B111: COT-E99 | C111: PROPRIA | D111: DISJ. UNIP 32A MDW-C32 3KA | E111: PC | K111: 10.14135672 | L111: 11.2295243 | M111: 11.0307537 | N111: 10.80054491 | O111: 11.0307537 | P111: 10.14135672 | Q111: 10.14135672 | R111: 10.14135672
A112: 1.3.20 | B112: COT-E100 | C112: PROPRIA | D112: ISOLADOR EPOXI PARALELO 16X25MM 6MM | E112: PC | K112: 7.574523165 | L112: 8.028994555 | M112: 7.044306543 | N112: 7.549274754 | O112: 7.574523165 | P112: 7.044306543 | Q112: 7.044306543 | R112: 7.044306543
A113: 1.3.21 | B113: COT-E101 | C113: PROPRIA | D113: PAINEL TTA 3B 1900X800X800MM TTW - MONTADO, TESTADO E COMISSIONADO EM FÁBRICA | E113: PC | K113: 27889.32484 | L113: 30881.8494 | M113: 30335.21863 | N113: 29702.13096 | O113: 30335.21863 | P113: 27889.32484 | Q113: 27889.32484 | R113: 27889.32484
A114: 1.3.22 | B114: COT-E102 | C114: PROPRIA | D114: LIQUIDO PARA PRATEAR 1 LITRO | E114: LT | K114: 249.3472657 | L114: 273.7832978 | M114: 254.3342111 | N114: 259.1549249 | O114: 254.3342111 | P114: 249.3472657 | Q114: 249.3472657 | R114: 249.3472657
A115: 1.3.23 | B115: COT-E103 | C115: PROPRIA | D115: MULTIMEDIDOR TRIF. GRANDEZA C/M ETHERNET | E115: PC | K115: 3526.958138 | L115: 3905.400746 | M115: 3836.272366 | N115: 3756.210417 | O115: 3836.272366 | P115: 3526.958138 | Q115: 3526.958138 | R115: 3526.958138
A116: 1.3.24 | B116: COT-E104 | C116: PROPRIA | D116: PORTA DOCUMENTOS P/PAINEL GRANDE BRPD01 | E116: PC | K116: 56.54802434 | L116: 63.22069121 | M116: 54.8515836 | N116: 58.20676638 | O116: 56.54802434 | P116: 54.8515836 | Q116: 54.8515836 | R116: 54.8515836
A117: 1.3.25 | B117: COT-E105 | C117: PROPRIA | D117: PROTETOR DE SURTO 275V 60KA CL-I/II | E117: PC | K117: 132.9768099 | L117: 122.3386651 | M117: 139.6256504 | N117: 131.6470418 | O117: 132.9768099 | P117: 122.3386651 | Q117: 122.3386651 | R117: 122.3386651
A118: 1.3.26 | B118: COT-E106 | C118: PROPRIA | D118: TRANSFORMADOR TC 200/5 ST-42 | E118: PC | K118: 173.0663778 | L118: 183.4503604 | M118: 177.73917 | N118: 178.0853027 | O118: 177.73917 | P118: 173.0663778 | Q118: 173.0663778 | R118: 173.0663778
A119: 1.3.27 | B119: COT-E107 | C119: PROPRIA | D119: TRILHO 35X7,5MM 2M LISO PHOENIX | E119: BR | K119: 34.11495895 | L119: 29.68001429 | M119: 30.78875046 | N119: 31.5279079 | O119: 30.78875046 | P119: 29.68001429 | Q119: 29.68001429 | R119: 29.68001429
A120: 1.4 | B120: ***** | C120: ***** | D120: FORNECIMENTO DE QUADRO DE AUTOMAÇÃO - (QA) - EBP
A121: 1.4.1 | B121: COT-E108 | C121: PROPRIA | D121: BLOCO DISTRIB 4X11 LIG 6-16MM2 125A CONN | E121: PC | K121: 139.7433134 | L121: 133.6924279 | M121: 146.730479 | N121: =AVERAGE(K121:M121) -> 140.0554068 | O121: =MEDIAN(K121:M121) -> 139.7433134 | P121: =SMALL(K121:M121,1) -> 133.6924279 | Q121: 133.6924279 | R121: 133.6924279
A122: 1.4.2 | B122: COT-E109 | C122: PROPRIA | D122: BORNE MOLA PUSH IN 2,5MM CP2,5 CZ | E122: PC | K122: 3.787303575 | L122: 3.62331333 | M122: 3.976668754 | N122: 3.795761886 | O122: 3.787303575 | P122: 3.62331333 | Q122: 3.62331333 | R122: 3.62331333
A123: 1.4.3 | B123: COT-E110 | C123: PROPRIA | D123: BORNE PORTA FUSIVEL LED CF4UL6-60V CZ | E123: PC | K123: 19.99414098 | L123: 19.12839468 | M123: 20.99384803 | N123: 20.03879456 | O123: 19.99414098 | P123: 19.12839468 | Q123: 19.12839468 | R123: 19.12839468
A124: 1.4.4 | B124: COT-E111 | C124: PROPRIA | D124: BORNE RELE SLIM 1REV 24VCC PARAFUSO | E124: PC | K124: 54.45142279 | L124: 52.09367619 | M124: 57.17399393 | N124: 54.57303097 | O124: 54.45142279 | P124: 52.09367619 | Q124: 52.09367619 | R124: 52.09367619
A125: 1.4.5 | B125: COT-E112 | C125: PROPRIA | D125: BOTAO DUPLO C/ ILUM 1NA+1NF XB5AW 220V | E125: PC | K125: 61.29603232 | L125: 59.79427953 | M125: 64.17694584 | N125: 61.75575257 | O125: 61.29603232 | P125: 59.79427953 | Q125: 59.79427953 | R125: 59.79427953
A126: 1.4.6 | B126: COT-E113 | C126: PROPRIA | D126: CABO FLEXIVEL 750V 1,0MM2 AZ | E126: M | K126: 1.35988512 | L126: 1.493153862 | M126: 1.387082822 | N126: 1.413373935 | O126: 1.387082822 | P126: 1.35988512 | Q126: 1.35988512 | R126: 1.35988512
A127: 1.4.7 | B127: COT-E114 | C127: PROPRIA | D127: CABO FLEXIVEL 750V 1,0MM2 CZ | E127: M | K127: 1.35988512 | L127: 1.493153862 | M127: 1.387082822 | N127: 1.413373935 | O127: 1.387082822 | P127: 1.35988512 | Q127: 1.35988512 | R127: 1.35988512
A128: 1.4.8 | B128: COT-E115 | C128: PROPRIA | D128: CABO FLEXIVEL 750V 1,0MM2 PT | E128: M | K128: 1.35988512 | L128: 1.493153862 | M128: 1.387082822 | N128: 1.413373935 | O128: 1.387082822 | P128: 1.35988512 | Q128: 1.35988512 | R128: 1.35988512
A129: 1.4.9 | B129: COT-E116 | C129: PROPRIA | D129: CABO FLEXIVEL 750V 1,0MM2 VM | E129: M | K129: 1.35988512 | L129: 1.493153862 | M129: 1.387082822 | N129: 1.413373935 | O129: 1.387082822 | P129: 1.35988512 | Q129: 1.35988512 | R129: 1.35988512
A130: 1.4.10 | B130: COT-E117 | C130: PROPRIA | D130: CANALETA PVC 50X80MM VENTIL CZ 2M HELLE | E130: BR | K130: 95.62179363 | L130: 93.0878161 | M130: 101.3591012 | N130: 96.68957033 | O130: 95.62179363 | P130: 93.0878161 | Q130: 93.0878161 | R130: 93.0878161
A131: 1.4.11 | B131: COT-E118 | C131: PROPRIA | D131: CONTATOR CWB 9.11 24VCA CWB9-11-3NA | E131: PC | K131: 140.5652746 | L131: 155.6479285 | M131: 152.8928492 | N131: 149.7020174 | O131: 152.8928492 | P131: 140.5652746 | Q131: 140.5652746 | R131: 140.5652746
A132: 1.4.12 | B132: COT-E119 | C132: PROPRIA | D132: DISJ. BIP. 10A SJ202T-C10 3KA | E132: PC | K132: 52.49163282 | L132: 51.179342 | M132: 53.31050229 | N132: 52.32715904 | O132: 52.49163282 | P132: 51.179342 | Q132: 51.179342 | R132: 51.179342
A133: 1.4.13 | B133: COT-E120 | C133: PROPRIA | D133: DISJ. MOTOR WEG MPW 0,4-0,63A MPW18-3- | E133: PC | K133: 289.0290025 | L133: 320.0418144 | M133: 314.376846 | N133: 307.8158876 | O133: 314.376846 | P133: 289.0290025 | Q133: 289.0290025 | R133: 289.0290025
A134: 1.4.14 | B134: COT-E121 | C134: PROPRIA | D134: DISJ. TRIP CX MOLD 40A 80KA 380V DWB | E134: PC | K134: 466.6427481 | L134: 516.7135149 | M134: 507.5673171 | N134: 496.9745267 | O134: 507.5673171 | P134: 466.6427481 | Q134: 466.6427481 | R134: 466.6427481
A135: 1.4.15 | B135: COT-E122 | C135: PROPRIA | D135: DISJ. UNIP 10A SJ201T-C10 3KA | E135: PC | K135: 12.35931659 | L135: 12.05033367 | M135: 12.55212192 | N135: 12.32059073 | O135: 12.35931659 | P135: 12.05033367 | Q135: 12.05033367 | R135: 12.05033367
A136: 1.4.16 | B136: COT-E123 | C136: PROPRIA | D136: DISJ. UNIP 20A SJ201 T-C20 3KA | E136: PC | K136: 12.35931659 | L136: 12.05033367 | M136: 12.55212192 | N136: 12.32059073 | O136: 12.35931659 | P136: 12.05033367 | Q136: 12.05033367 | R136: 12.05033367
A137: 1.4.17 | B137: COT-E124 | C137: PROPRIA | D137: FIM DE CURSO T2R ALAV FLEX C/ROLD | E137: PC | K137: 54.69094801 | L137: 59.56938058 | M137: 57.9724049 | N137: 57.41091116 | O137: 57.9724049 | P137: 54.69094801 | Q137: 54.69094801 | R137: 54.69094801
A138: 1.4.18 | B138: COT-E125 | C138: PROPRIA | D138: FONTE ALIM. CP-E 24/10.0 10A 24VCC ABB | E138: PC | K138: 1329.140899 | L138: 1295.912377 | M138: 1349.875497 | N138: 1324.976258 | O138: 1329.140899 | P138: 1295.912377 | Q138: 1295.912377 | R138: 1295.912377
A139: 1.4.19 | B139: COT-E126 | C139: PROPRIA | D139: GRELHA FILTRO PLAST. EMB. 255X255MM RMC | E139: PC | K139: 178.9334019 | L139: 199.188663 | M139: 195.0374081 | N139: 191.0531577 | O139: 195.0374081 | P139: 178.9334019 | Q139: 178.9334019 | R139: 178.9334019
A140: 1.4.20 | B140: COT-E127 | C140: PROPRIA | D140: PAINEL TTA 3B 1900X800X800MM TTW - MONTADO, TESTADO E COMISSIONADO EM FÁBRICA | E140: PC | K140: 36460.36638 | L140: 40372.56369 | M140: 40835.61034 | N140: 39222.8468 | O140: 40372.56369 | P140: 36460.36638 | Q140: =SMALL(N140:P140,1) -> 36460.36638 | R140: =AVERAGE(J140,Q140) -> 36460.36638
A141: 1.4.21 | B141: COT-E128 | C141: PROPRIA | D141: LUMINARIA LINEAR P/PAINEL 60CM 7W 6,5K | E141: PC | K141: 63.57521725 | L141: 57.40842118 | M141: 61.66796074 | N141: 60.88386639 | O141: 61.66796074 | P141: 57.40842118 | Q141: 57.40842118 | R141: 57.40842118
A142: 1.4.22 | B142: COT-E129 | C142: PROPRIA | D142: MICROVENTIL 18X18CM 220V FZY JNG | E142: PC | K142: 324.9301544 | L142: 315.5071799 | M142: 344.4259637 | N142: 328.287766 | O142: 324.9301544 | P142: 315.5071799 | Q142: 315.5071799 | R142: 315.5071799
A143: 1.4.23 | B143: COT-E130 | C143: PROPRIA | D143: PLAQUETA DE EMERG P/BOTAO 22MM | E143: PC | K143: 12.54189997 | L143: 12.17818488 | M143: 13.29441397 | N143: 12.67149961 | O143: 12.54189997 | P143: 12.17818488 | Q143: 12.17818488 | R143: 12.17818488
A144: 1.4.24 | B144: COT-E131 | C144: PROPRIA | D144: PORTA PLAQUETA APP30T 30X50 | E144: PC | K144: 6.078414375 | L144: 6.730628237 | M144: 6.611491316 | N144: 6.473511309 | O144: 6.611491316 | P144: 6.078414375 | Q144: 6.078414375 | R144: 6.078414375
A145: 1.4.25 | B145: COT-E132 | C145: PROPRIA | D145: POSTE EXTREMIDADE DIN35 CA802 CZ | E145: PC | K145: 2.444215455 | L145: 2.338380926 | M145: 2.566426228 | N145: 2.449674203 | O145: 2.444215455 | P145: 2.338380926 | Q145: 2.338380926 | R145: 2.338380926
A146: 1.4.26 | B146: COT-E133 | C146: PROPRIA | D146: PROTETOR DE SURTO 275V 45KA CL-II | E146: PC | K146: 48.1155944 | L146: 44.26634684 | M146: 50.52137411 | N146: 47.63443845 | O146: 48.1155944 | P146: 44.26634684 | Q146: 44.26634684 | R146: 44.26634684
A147: 1.4.27 | B147: COT-E134 | C147: PROPRIA | D147: PROTETOR DE SURTO 922.B.010.220 FASTER | E147: PC | K147: 198.9779339 | L147: 183.0596992 | M147: 208.9268306 | N147: 196.9881545 | O147: 198.9779339 | P147: 183.0596992 | Q147: 183.0596992 | R147: 183.0596992
A148: 1.4.28 | B148: COT-E135 | C148: PROPRIA | D148: PROTETOR DE SURTO 922.B.010.24VCC FASTER | E148: PC | K148: 179.7378102 | L148: 165.3587854 | M148: 188.7247007 | N148: 177.9404321 | O148: 179.7378102 | P148: 165.3587854 | Q148: 165.3587854 | R148: 165.3587854
A149: 1.4.29 | B149: COT-E136 | C149: PROPRIA | D149: SELETOR 3 POS. FIXAS CURTO 2NA XA2ED33 | E149: PC | K149: 37.47200737 | L149: 36.55394319 | M149: 39.23319172 | N149: 37.75304743 | O149: 37.47200737 | P149: 36.55394319 | Q149: 36.55394319 | R149: 36.55394319
A150: 1.4.30 | B150: COT-E137 | C150: PROPRIA | D150: SINALEIRO LED 22MM 220V LARANJ XA2EVM5LC | E150: PC | K150: 17.08523652 | L150: 16.66664823 | M150: 17.88824264 | N150: 17.21337579 | O150: 17.08523652 | P150: 16.66664823 | Q150: 16.66664823 | R150: 16.66664823
A151: 1.4.31 | B151: COT-E138 | C151: PROPRIA | D151: SINALEIRO LED 22MM 220V VD XA2EVM3LC | E151: PC | K151: 17.08523652 | L151: 16.66664823 | M151: 17.88824264 | N151: 17.21337579 | O151: 17.08523652 | P151: 16.66664823 | Q151: 16.66664823 | R151: 16.66664823
A152: 1.4.32 | B152: COT-E139 | C152: PROPRIA | D152: SWITCH 8 P. ETHERN. IP30 10/100TX CERT | E152: PC | K152: 2133.366058 | L152: 2101.365567 | M152: 2268.621466 | N152: 2167.784363 | O152: 2133.366058 | P152: 2101.365567 | Q152: 2101.365567 | R152: 2101.365567
A153: 1.4.33 | B153: COT-E140 | C153: PROPRIA | D153: TERMINAL GARFO 0,5-1,5MM2 VM TPF21-4 | E153: PC | K153: 0.24741981 | L153: 0.2563269232 | M153: 0.2696875929 | N153: 0.257811442 | O153: 0.2563269232 | P153: 0.24741981 | Q153: 0.24741981 | R153: 0.24741981
A154: 1.4.34 | B154: COT-E141 | C154: PROPRIA | D154: TERMINAL ISOLADO TUBOLAR 1,0MM2 VM | E154: PC | K154: 0.058537545 | L154: 0.06064489662 | M154: 0.06380592405 | N154: 0.06099612189 | O154: 0.06064489662 | P154: 0.058537545 | Q154: 0.058537545 | R154: 0.058537545
A155: 1.4.35 | B155: COT-E142 | C155: PROPRIA | D155: TOMADA P/TRILHO 2P+T 10A SIBRATEC | E155: PC | K155: 23.31641961 | L155: 26.34755416 | M155: 27.51337514 | N155: 25.72578297 | O155: 26.34755416 | P155: 23.31641961 | Q155: 23.31641961 | R155: 23.31641961
A156: 1.4.36 | B156: COT-E143 | C156: PROPRIA | D156: TRILHO 35X7,5MM 2M LISO PHOENIX | E156: BR | K156: 34.11495895 | L156: 29.68001429 | M156: 30.78875046 | N156: 31.5279079 | O156: 30.78875046 | P156: 29.68001429 | Q156: 29.68001429 | R156: 29.68001429
A157: 1.4.37 | B157: COT-E144 | C157: PROPRIA | D157: PLC PM5072-T-2ETH | E157: PC | K157: 5895.495045 | L157: 5748.107669 | M157: 5987.464768 | N157: 5877.022494 | O157: 5895.495045 | P157: 5748.107669 | Q157: 5748.107669 | R157: 5748.107669
A158: 1.4.38 | B158: COT-E145 | C158: PROPRIA | D158: TERMINAL TA5212-TSCL PLC | E158: PC | K158: 130.00878 | L158: 126.7585605 | M158: 132.036917 | N158: 129.6014192 | O158: 130.00878 | P158: 126.7585605 | Q158: 126.7585605 | R158: 126.7585605
A159: 1.4.39 | B159: COT-E146 | C159: PROPRIA | D159: MC5102 | E159: PC | K159: 463.4712225 | L159: 451.8844419 | M159: 470.7013736 | N159: 462.0190127 | O159: 463.4712225 | P159: 451.8844419 | Q159: 451.8844419 | R159: 451.8844419
A160: 1.4.40 | B160: COT-E147 | C160: PROPRIA | D160: DI524 32DI | E160: PC | K160: 2148.756225 | L160: 2095.037319 | M160: 2182.276822 | N160: 2142.023455 | O160: 2148.756225 | P160: 2095.037319 | Q160: 2095.037319 | R160: 2095.037319
A161: 1.4.41 | B161: COT-E148 | C161: PROPRIA | D161: DO524 32 DO | E161: PC | K161: 2821.921196 | L161: 2751.373166 | M161: 2865.943166 | N161: 2813.079176 | O161: 2821.921196 | P161: 2751.373166 | Q161: 2751.373166 | R161: 2751.373166
A162: 1.4.42 | B162: COT-E149 | C162: PROPRIA | D162: TERMINAL TU515 MODULOS | E162: PC | K162: 510.376845 | L162: 497.6174239 | M162: 518.3387238 | N162: 508.7776642 | O162: 510.376845 | P162: 497.6174239 | Q162: 497.6174239 | R162: 497.6174239
A163: 1.4.43 | B163: COT-E150 | C163: PROPRIA | D163: IHM CP610 10 POLEGADOR | E163: PC | K163: 6894.001108 | L163: 6721.651081 | M163: 7001.547526 | N163: 6872.399905 | O163: 6894.001108 | P163: 6721.651081 | Q163: 6721.651081 | R163: 6721.651081
A164: 1.4.44 | B164: COT-E151 | C164: PROPRIA | D164: Antena Direcional YAGI 900MHz -17dBi - CF917 | E164: PC | K164: 488.1628125 | L164: 528.6803259 | M164: 524.9702886 | N164: 513.937809 | O164: 524.9702886 | P164: 488.1628125 | Q164: 488.1628125 | R164: 488.1628125
A165: 1.4.45 | B165: COT-E152 | C165: PROPRIA | D165: Cabo Alfacomp interliga rádio/Centelhador (CONECTORES SMA-M/N-M) | E165: PC | K165: 1033.939335 | L165: 1119.7563 | M165: 1111.898361 | N165: 1088.531332 | O165: 1111.898361 | P165: 1033.939335 | Q165: 1033.939335 | R165: 1033.939335
A166: 1.4.46 | B166: COT-E153 | C166: PROPRIA | D166: Cabo DLC 213 Com conectores N-macho 10 metros montado | E166: PC | K166: 75.468921 | L166: 81.73284144 | M166: 81.15927764 | N166: 79.45368003 | O166: 81.15927764 | P166: 75.468921 | Q166: 75.468921 | R166: 75.468921
A167: 1.4.47 | B167: COT-E154 | C167: PROPRIA | D167: Cabo Serial Alfacomp programação SX900/RM2060/RM2071 | E167: PC | K167: 298.835427 | L167: 323.6387674 | M167: 321.3676182 | N167: 314.6139375 | O167: 321.3676182 | P167: 298.835427 | Q167: 298.835427 | R167: 298.835427
A168: 1.4.48 | B168: COT-E155 | C168: PROPRIA | D168: Centelhador N - CN3203 | E168: PC | K168: 82.725225 | L168: 89.59141867 | M168: 88.96270696 | N168: 87.09311688 | O168: 88.96270696 | P168: 82.725225 | Q168: 82.725225 | R168: 82.725225
A169: 1.4.49 | B169: COT-E156 | C169: PROPRIA | D169: Conector de loopback para teste de bancada | E169: PC | K169: 0.16797 | L169: 0.18191151 | M169: 0.180634938 | N169: 0.176838816 | O169: 0.180634938 | P169: 0.16797 | Q169: 0.16797 | R169: 0.16797
A170: 1.4.50 | B170: COT-E157 | C170: PROPRIA | D170: Conversor Ethernet Serial - 1-port RS232/485 Serial to 100M Ethernet | E170: PC | K170: 990.85503 | L170: 1073.095997 | M170: 1065.565499 | N170: 1043.172176 | O170: 1065.565499 | P170: 990.85503 | Q170: 990.85503 | R170: 990.85503
A171: 1.4.51 | B171: COT-E158 | C171: PROPRIA | D171: Rádio modem Spread Spectrum-900MHz-1W - Alfacomp RM-SX900 | E171: PC | K171: 4129.080533 | L171: 4471.794217 | M171: 4440.413205 | N171: 4347.095985 | O171: 4440.413205 | P171: 4129.080533 | Q171: 4129.080533 | R171: 4129.080533
A172: 1.5 | B172: ***** | C172: ***** | D172: FORNECIMENTO DE QUADRO DA SUBESTAÇÃO 112,5KVA - (QD SE 112,5KVA) - EBP
A173: 1.5.1 | B173: COT-E159 | C173: PROPRIA | D173: CAIXA MEDICAO 75-300KVA 700X1500X200MM - MONTADO, TESTADO E COMISSIONADO EM FÁBRICA | E173: PC | K173: 3487.097609 | L173: 3434.791145 | M173: 3696.323466 | N173: =AVERAGE(K173:M173) -> 3539.404074 | O173: =MEDIAN(K173:M173) -> 3487.097609 | P173: =SMALL(K173:M173,1) -> 3434.791145 | Q173: 3434.791145 | R173: 3434.791145
A174: 1.5.2 | B174: COT-E160 | C174: PROPRIA | D174: CHAPA DE POLICARB. 3.00X2,050X3MM CRISTA | E174: M2 | K174: 344.5814686 | L174: 378.3504525 | M174: 351.473098 | N174: 358.1350064 | O174: 351.473098 | P174: 344.5814686 | Q174: 344.5814686 | R174: 344.5814686
A175: 1.5.3 | B175: COT-E161 | C175: PROPRIA | D175: COBRE EM BARRA 3/4"X1/4" 269A 1,08KG/M | E175: M | K175: 156.2554363 | L175: 165.3182516 | M175: 170.3184255 | N175: 163.9640378 | O175: 165.3182516 | P175: 156.2554363 | Q175: 156.2554363 | R175: 156.2554363
A176: 1.5.4 | B176: COT-E162 | C176: PROPRIA | D176: DISJ. TRIP CX MOLD 32A 16KA 380V DWB | E176: PC | K176: 466.6427481 | L176: 516.7135149 | M176: 507.5673171 | N176: 496.9745267 | O176: 507.5673171 | P176: 466.6427481 | Q176: 466.6427481 | R176: 466.6427481
A177: 1.5.5 | B177: COT-E163 | C177: PROPRIA | D177: DISJ. TRIP CX MOLD 175A 80KA DWB | E177: PC | K177: 578.824704 | L177: 640.9325947 | M177: 629.5876305 | N177: 616.4483097 | O177: 629.5876305 | P177: 578.824704 | Q177: 578.824704 | R177: 578.824704
A178: 1.5.6 | B178: COT-E164 | C178: PROPRIA | D178: DISJ. UNIP 32A MDW-C32 3KA | E178: PC | K178: 10.14135672 | L178: 11.2295243 | M178: 11.0307537 | N178: 10.80054491 | O178: 11.0307537 | P178: 10.14135672 | Q178: 10.14135672 | R178: 10.14135672
A179: 1.5.7 | B179: COT-E165 | C179: PROPRIA | D179: LIQUIDO PARA PRATEAR 1 LITRO | E179: LT | K179: 249.3472657 | L179: 273.7832978 | M179: 254.3342111 | N179: 259.1549249 | O179: 254.3342111 | P179: 249.3472657 | Q179: 249.3472657 | R179: 249.3472657
A180: 1.5.8 | B180: COT-E166 | C180: PROPRIA | D180: PROTETOR DE SURTO 275V 60KA EMBRAST | E180: PC | K180: 91.37223662 | L180: 88.44832504 | M180: 93.19968135 | N180: 91.00674767 | O180: 91.37223662 | P180: 88.44832504 | Q180: 88.44832504 | R180: 88.44832504
A181: 1.5.9 | B181: COT-E167 | C181: PROPRIA | D181: TERMO ENCOLHIVEL 1KV 60MM 2.1/2" BR | E181: M | K181: 33.98671386 | L181: 38.23505309 | M181: 32.28737817 | N181: 34.83638171 | O181: 33.98671386 | P181: 32.28737817 | Q181: 32.28737817 | R181: 32.28737817
A182: 1.5.10 | B182: COT-E168 | C182: PROPRIA | D182: TERMO ENCOLHIVEL 1KV 60MM 2.1/2" LILAS | E182: M | K182: 34.70444967 | L182: 39.04250588 | M182: 32.96922719 | N182: 35.57206091 | O182: 34.70444967 | P182: 32.96922719 | Q182: 32.96922719 | R182: 32.96922719
A183: 1.5.11 | B183: COT-E169 | C183: PROPRIA | D183: TERMO ENCOLHIVEL 1KV 60MM 2.1/2" VM | E183: M | K183: 18.723028 | L183: 18.18006019 | M183: 19.84640969 | N183: 18.91649929 | O183: 18.723028 | P183: 18.18006019 | Q183: 18.18006019 | R183: 18.18006019
A184: 1.5.12 | B184: COT-E170 | C184: PROPRIA | D184: UNIDADE CAPAC. TRIF. 5KVAR 380V HD | E184: PC | K184: 171.8181927 | L184: 190.2542848 | M184: 186.8866482 | N184: 182.9863752 | O184: 186.8866482 | P184: 171.8181927 | Q184: 171.8181927 | R184: 171.8181927
A185: 1.6 | B185: ***** | C185: ***** | D185: FORNECIMENTO DE QUADRO DE DIST. FORÇA E LUZ DA SUBEST. DE ENTRADA - (QDFL SE ENTRADA) - EBP
A186: 1.6.1 | B186: COT-E171 | C186: PROPRIA | D186: BARRAMENTO FASE TRIP 54P 80A 1M WEG | E186: PC | K186: 135.6802031 | L186: 150.2386889 | M186: 147.5793569 | N186: =AVERAGE(K186:M186) -> 144.4994163 | O186: =MEDIAN(K186:M186) -> 147.5793569 | P186: =SMALL(K186:M186,1) -> 135.6802031 | Q186: 135.6802031 | R186: 135.6802031
A187: 1.6.2 | B187: COT-E172 | C187: PROPRIA | D187: CABO FLEXIVEL 750V 10MM2 PT | E187: M | K187: 10.47158574 | L187: 11.49780114 | M187: 10.68101745 | N187: 10.88346811 | O187: 10.68101745 | P187: 10.47158574 | Q187: 10.47158574 | R187: 10.47158574
A188: 1.6.3 | B188: COT-E173 | C188: PROPRIA | D188: CAIXA P/MONTAGEM 80X60X25CM - MONTADO, TESTADO E COMISSIONADO EM FÁBRICA | E188: PC | K188: 2534.771257 | L188: 2833.874265 | M188: 2458.728119 | N188: 2609.124547 | O188: 2534.771257 | P188: 2458.728119 | Q188: 2458.728119 | R188: 2458.728119
A189: 1.6.4 | B189: COT-E174 | C189: PROPRIA | D189: CANALETA PVC 50X80MM VENTIL CZ 2M HELLE | E189: BR | K189: 95.62179363 | L189: 93.0878161 | M189: 101.3591012 | N189: 96.68957033 | O189: 95.62179363 | P189: 93.0878161 | Q189: 93.0878161 | R189: 93.0878161
A190: 1.6.5 | B190: COT-E175 | C190: PROPRIA | D190: COBRE EM BARRA 5/8"X3/16" 176A 0,673KG/ | E190: M | K190: 97.36297065 | L190: 103.0100229 | M190: 106.125638 | N190: 102.1662105 | O190: 103.0100229 | P190: 97.36297065 | Q190: 97.36297065 | R190: 97.36297065
A191: 1.6.6 | B191: COT-E176 | C191: PROPRIA | D191: CONECTOR EXTERNO PINO CURTO 25MM2 | E191: PC | K191: 15.16147611 | L191: 14.55501707 | M191: 16.82923848 | N191: 15.51524389 | O191: 15.16147611 | P191: 14.55501707 | Q191: 14.55501707 | R191: 14.55501707
A192: 1.6.7 | B192: COT-E177 | C192: PROPRIA | D192: DISJ. TRIP 32A MDW-C-32-3 3KA | E192: PC | K192: 54.44100865 | L192: 60.28252888 | M192: 59.21548511 | N192: 57.97967422 | O192: 59.21548511 | P192: 54.44100865 | Q192: 54.44100865 | R192: 54.44100865
A193: 1.6.8 | B193: COT-E178 | C193: PROPRIA | D193: DISJ. TRIP 63A MDW-C63-3 3KA | E193: PC | K193: 78.95841377 | L193: 87.43065156 | M193: 85.88306665 | N193: 84.09071066 | O193: 85.88306665 | P193: 78.95841377 | Q193: 78.95841377 | R193: 78.95841377
A194: 1.6.9 | B194: COT-E179 | C194: PROPRIA | D194: DISJ. UNIP 16A MDW-C16 3KA | E194: PC | K194: 10.14135672 | L194: 11.2295243 | M194: 11.0307537 | N194: 10.80054491 | O194: 11.0307537 | P194: 10.14135672 | Q194: 10.14135672 | R194: 10.14135672
A195: 1.6.10 | B195: COT-E180 | C195: PROPRIA | D195: DISJ. UNIP 20A MDW-C20 3KA | E195: PC | K195: 10.14135672 | L195: 11.2295243 | M195: 11.0307537 | N195: 10.80054491 | O195: 11.0307537 | P195: 10.14135672 | Q195: 10.14135672 | R195: 10.14135672
A196: 1.6.11 | B196: COT-E181 | C196: PROPRIA | D196: DISJ. UNIP 25A MDW-C25 3KA | E196: PC | K196: 11.02807035 | L196: 12.2113823 | M196: 11.99523212 | N196: 11.74489492 | O196: 11.99523212 | P196: 11.02807035 | Q196: 11.02807035 | R196: 11.02807035
A197: 1.6.12 | B197: COT-E182 | C197: PROPRIA | D197: DISJ. UNIP 32A MDW-C32 3KA | E197: PC | K197: 10.14135672 | L197: 11.2295243 | M197: 11.0307537 | N197: 10.80054491 | O197: 11.0307537 | P197: 10.14135672 | Q197: 10.14135672 | R197: 10.14135672
A198: 1.6.13 | B198: COT-E183 | C198: PROPRIA | D198: ISOLADOR EPOXI PARALELO 20X30MM 1/4" | E198: PC | K198: 5.1852339 | L198: 5.034862117 | M198: 5.496347934 | N198: 5.23881465 | O198: 5.1852339 | P198: 5.034862117 | Q198: 5.034862117 | R198: 5.034862117
A199: 1.6.14 | B199: COT-E184 | C199: PROPRIA | D199: PORTA DOCUMENTOS GRANDE A4 36580 | E199: PC | K199: 71.8262396 | L199: 68.95319001 | M199: 79.72712595 | N199: 73.50218519 | O199: 71.8262396 | P199: 68.95319001 | Q199: 68.95319001 | R199: 68.95319001
A200: 1.6.15 | B200: COT-E185 | C200: PROPRIA | D200: PROTETOR DE SURTO 275V 45KA CL-II | E200: PC | K200: 48.1155944 | L200: 44.26634684 | M200: 50.52137411 | N200: 47.63443845 | O200: 48.1155944 | P200: 44.26634684 | Q200: 44.26634684 | R200: 44.26634684
... 688 more rows

Sheet CPU_Elet
C1: MINISTÉRIO DA INTEGRAÇÃO E DO DESENVOLVIMENTO REGIONAL | H1: SINAPI: | I1: =ORC_Civil!J1 -> 2025-08-01
C2: COMPANHIA DE DESENVOLVIMENTO DOS VALES DO SÃO FRANCISCO E PARNAÍBA | H2: SICRO: | I2: =ORC_Civil!J2 -> 2025-04-01
C3: 8ª SUPERINTENDÊNCIA REGIONAL - MARANHÃO | H3: ORSE: | I3: =ORC_Civil!J3 -> 2025-07-01
H4: Cotações: | I4: =ORC_Civil!J4 -> 2025-10-01
A5: Objeto: Contratação de serviços técnicos para retrofit de componentes da infraestruturas de uso comum do Projeto Público de Irrigação Tabuleiro de São Bernardo (PITSB). | H5: BDI-F: | I5: =CAPA!D14 -> 0.15
A6: Local: Magalhães de Almeida - MA | H6: BDI-S: | I6: =CAPA!D15 -> 0.2648
A7: COMPOSIÇÕES DE CUSTOS UNITÁRIOS PRÓPRIAS - ELÉTRICA
A8: CPUs 100 | B8: Fonte | C8: Descrição | D8: Tipo | E8: Unid. | F8: Custo Unitário | G8: Coeficiente de Utilização | H8: Valor Unitário | I8: Custo Unitário | J8: Custo Unitário com desconto
A9: CPU-E01 | C9: SERVIÇOS EBP - SUBESTAÇÃO DE ENTRADA CUBÍCULO EXISTENTE - ESTUDO DE PROTEÇÃO E SELETIVIDADE | E9: und | I9: =SUM(H10:H16) -> 25759.425 | J9: =SUM(J10:J16) -> 24729.048
A10: 40807 | B10: SINAPI | C10: DESENHISTA PROJETISTA (MENSALISTA) | D10: COMPOSIÇÃO | E10: mês | F10: 2766.09 | G10: 1 | H10: =F10*G10 -> 2766.09 | J10: =H10*(1-CAPA!$D$13) -> 2655.4464
A11: 40922 | B11: SINAPI | C11: ELETROTECNICO (MENSALISTA) | D11: COMPOSIÇÃO | E11: mês | F11: 4376.64 | G11: 0.5 | H11: =F11*G11 -> 2188.32 | J11: =H11*(1-CAPA!$D$13) -> 2100.7872
A12: P9882 | B12: SICRO | C12: Técnico especializado (Analista) | D12: COMPOSIÇÃO | E12: mês | F12: 5598.66 | G12: 0.5 | H12: 2799.33 | J12: =H12*(1-CAPA!$D$13) -> 2687.3568
A13: 40919 | B13: SINAPI | C13: AJUDANTE DE ELETRICISTA (MENSALISTA) | D13: COMPOSIÇÃO | E13: mês | F13: 2823.04 | G13: 1 | H13: 2823.04 | J13: =H13*(1-CAPA!$D$13) -> 2710.1184
A14: 40918 | B14: SINAPI | C14: ELETRICISTA (MENSALISTA) | D14: COMPOSIÇÃO | E14: mês | F14: 3721.71 | G14: 1 | H14: 3721.71 | J14: =H14*(1-CAPA!$D$13) -> 3572.8416
A15: 40939 | B15: COMPESA | C15: ENGENHEIRO ELETRICISTA (MENSALISTA) | D15: COMPOSIÇÃO | E15: mês | F15: 17575.19 | G15: 0.5 | H15: 8787.595 | J15: =H15*(1-CAPA!$D$13) -> 8436.0912
A16: 41084 | B16: SINAPI | C16: SERVENTE DE OBRAS (MENSALISTA) | D16: COMPOSIÇÃO | E16: mês | F16: 2673.34 | G16: 1 | H16: 2673.34 | J16: =H16*(1-CAPA!$D$13) -> 2566.4064
A17: CPU-E02 | C17: SERVIÇOS EBP - SUBST. DO CCM - 4.2KV (PAINEL DE MÉDIA ALIM. MOTORES 600 CV) | E17: und | I17: =SUM(H18:H25) -> 50839.37 | J17: =SUM(J18:J25) -> 48805.7952
A18: 40807 | B18: SINAPI | C18: DESENHISTA PROJETISTA (MENSALISTA) | D18: COMPOSIÇÃO | E18: mês | F18: 2766.09 | G18: 1 | H18: =F18*G18 -> 2766.09 | J18: =H18*(1-CAPA!$D$13) -> 2655.4464
A19: 40922 | B19: SINAPI | C19: ELETROTECNICO (MENSALISTA) | D19: COMPOSIÇÃO | E19: mês | F19: 4376.64 | G19: 1 | H19: =F19*G19 -> 4376.64 | J19: =H19*(1-CAPA!$D$13) -> 4201.5744
A20: P9882 | B20: SICRO | C20: Técnico especializado (Analista) | D20: COMPOSIÇÃO | E20: mês | F20: 5598.66 | G20: 1 | H20: 5598.66 | J20: =H20*(1-CAPA!$D$13) -> 5374.7136
A21: 40919 | B21: SINAPI | C21: AJUDANTE DE ELETRICISTA (MENSALISTA) | D21: COMPOSIÇÃO | E21: mês | F21: 2823.04 | G21: 2 | H21: 5646.08 | J21: =H21*(1-CAPA!$D$13) -> 5420.2368
A22: 40918 | B22: SINAPI | C22: ELETRICISTA (MENSALISTA) | D22: COMPOSIÇÃO | E22: mês | F22: 3721.71 | G22: 1 | H22: 3721.71 | J22: =H22*(1-CAPA!$D$13) -> 3572.8416
A23: 101390 | B23: SINAPI | C23: AUXILIAR TÉCNICO / ASSISTENTE DE ENGENHARIA COM ENCARGOS COMPLEMENTARES | D23: COMPOSIÇÃO | E23: mês | F23: =IF(B23="SINAPI",(IFERROR(VLOOKUP(A23,'CompSD SINAPI'!$B$11:$F$9784,4,0),VLOOKUP(CPU_Mec!A23,'ISD SINAPI'!$B$11:$F$4903,5,0))),IF(OR(B23="SICRO",B23="SICRO3"),(IFERROR(VLOOKUP(A23,'COMP SD SICRO'!$A$2:$D$6495,4,0),VLOOKUP(CPU_Mec!A23,'ISD SICRO'!$A$2:$D$2319,4,0))),IF(B23="SEINFRA",(IFERROR(VLOOKUP(A23,'COMPSD SEINFRA'!$B$7:$G$5611,4,0),VLOOKUP(CPU_Mec!A23,'ISD SEINFRA'!A21:$D$11922,4,0))),))) -> 5808.32 | G23: 1 | H23: 5808.32 | J23: =H23*(1-CAPA!$D$13) -> 5575.9872
A24: 40939 | B24: COMPESA | C24: ENGENHEIRO ELETRICISTA (MENSALISTA) | D24: COMPOSIÇÃO | E24: mês | F24: 17575.19 | G24: 1 | H24: 17575.19 | J24: =H24*(1-CAPA!$D$13) -> 16872.1824
A25: 41084 | B25: SINAPI | C25: SERVENTE DE OBRAS (MENSALISTA) | D25: COMPOSIÇÃO | E25: mês | F25: 2673.34 | G25: 2 | H25: 5346.68 | J25: =H25*(1-CAPA!$D$13) -> 5132.8128
A26: CPU-E03 | C26: SERVIÇOS EBP - MANUTENÇÃO DOS MOTORES 4,2KV | E26: und | I26: =SUM(H27:H35) -> 84848.64 | J26: =SUM(J27:J35) -> 81454.6944
A27: 40807 | B27: SINAPI | C27: DESENHISTA PROJETISTA (MENSALISTA) | D27: COMPOSIÇÃO | E27: mês | F27: 2766.09 | G27: 1 | H27: =F27*G27 -> 2766.09 | J27: =H27*(1-CAPA!$D$13) -> 2655.4464
A28: 40922 | B28: SINAPI | C28: ELETROTECNICO (MENSALISTA) | D28: COMPOSIÇÃO | E28: mês | F28: 4376.64 | G28: 2 | H28: =F28*G28 -> 8753.28 | J28: =H28*(1-CAPA!$D$13) -> 8403.1488
A29: P9882 | B29: SICRO | C29: Técnico especializado (Analista técnico) | D29: COMPOSIÇÃO | E29: mês | F29: 5598.66 | G29: 2 | H29: 11197.32 | J29: =H29*(1-CAPA!$D$13) -> 10749.4272
A30: 40919 | B30: SINAPI | C30: AJUDANTE DE ELETRICISTA (MENSALISTA) | D30: COMPOSIÇÃO | E30: mês | F30: 2823.04 | G30: 2 | H30: 5646.08 | J30: =H30*(1-CAPA!$D$13) -> 5420.2368
A31: 40918 | B31: SINAPI | C31: ELETRICISTA (MENSALISTA) | D31: COMPOSIÇÃO | E31: mês | F31: 3721.71 | G31: 2 | H31: 7443.42 | J31: =H31*(1-CAPA!$D$13) -> 7145.6832
A32: 40975 | B32: SINAPI | C32: AUXILIAR DE MECANICO (MENSALISTA) | D32: COMPOSIÇÃO | E32: mês | F32: 2823.04 | G32: 2 | H32: 5646.08 | J32: =H32*(1-CAPA!$D$13) -> 5420.2368
A33: 40939 | B33: COMPESA | C33: ENGENHEIRO ELETRICISTA (MENSALISTA) | D33: COMPOSIÇÃO | E33: mês | F33: 17575.19 | G33: 1 | H33: 17575.19 | J33: =H33*(1-CAPA!$D$13) -> 16872.1824
A34: P9891 | B34: SICRO | C34: Engenheiro mecânico | D34: COMPOSIÇÃO | E34: mês | F34: 23147.84 | G34: 1 | H34: 23147.84 | J34: =H34*(1-CAPA!$D$13) -> 22221.9264
A35: 41084 | B35: SINAPI | C35: SERVENTE DE OBRAS (MENSALISTA) | D35: COMPOSIÇÃO | E35: mês | F35: 2673.34 | G35: 1 | H35: 2673.34 | J35: =H35*(1-CAPA!$D$13) -> 2566.4064
A36: CPU-E04 | C36: SERVIÇOS EBP - NOVA SUBESTAÇÃO DE ENERGIA TRAFO 112,5 KVA 13.8KV/380 VCA - QDLF SE e EBP E AUTOMAÇÃO RESERVATÓRIO | E36: und | I36: =SUM(H37:H44) -> 43009.267 | J36: =SUM(J37:J44) -> 41288.89632
A37: 40807 | B37: SINAPI | C37: DESENHISTA PROJETISTA (MENSALISTA) | D37: COMPOSIÇÃO | E37: mês | F37: 2766.09 | G37: 1 | H37: =F37*G37 -> 2766.09 | J37: =H37*(1-CAPA!$D$13) -> 2655.4464
A38: 40922 | B38: SINAPI | C38: ELETROTECNICO (MENSALISTA) | D38: COMPOSIÇÃO | E38: mês | F38: 4376.64 | G38: 1 | H38: =F38*G38 -> 4376.64 | J38: =H38*(1-CAPA!$D$13) -> 4201.5744
A39: P9882 | B39: SICRO | C39: Técnico especializado (Analista técnico) | D39: COMPOSIÇÃO | E39: mês | F39: 5598.66 | G39: 1 | H39: 5598.66 | J39: =H39*(1-CAPA!$D$13) -> 5374.7136
A40: 40919 | B40: SINAPI | C40: AJUDANTE DE ELETRICISTA (MENSALISTA) | D40: COMPOSIÇÃO | E40: mês | F40: 2823.04 | G40: 4 | H40: 11292.16 | J40: =H40*(1-CAPA!$D$13) -> 10840.4736
A41: 40918 | B41: SINAPI | C41: ELETRICISTA (MENSALISTA) | D41: COMPOSIÇÃO | E41: mês | F41: 3721.71 | G41: 1 | H41: 3721.71 | J41: =H41*(1-CAPA!$D$13) -> 3572.8416
A42: 40939 | B42: COMPESA | C42: ENGENHEIRO ELETRICISTA (MENSALISTA) | D42: COMPOSIÇÃO | E42: mês | F42: 17575.19 | G42: 0.5 | H42: 8787.595 | J42: =H42*(1-CAPA!$D$13) -> 8436.0912
A43: P9882 | B43: SICRO | C43: Técnico especializado (Automação) | D43: COMPOSIÇÃO | E43: mês | F43: 5598.66 | G43: 0.2 | H43: 1119.732 | J43: =H43*(1-CAPA!$D$13) -> 1074.94272
A44: 41084 | B44: SINAPI | C44: SERVENTE DE OBRAS (MENSALISTA) | D44: COMPOSIÇÃO | E44: mês | F44: 2673.34 | G44: 2 | H44: 5346.68 | J44: =H44*(1-CAPA!$D$13) -> 5132.8128
A45: CPU-E05 | C45: SERVIÇOS EBS1: SUBESTAÇÃO DE ENTRADA DE ENERGIA EM ALVENARIA - 15KV COM TRANSFORMADOR DE 750KVA | E45: und | I45: =SUM(H46:H52) -> 36243.455 | J45: =SUM(J46:J52) -> 34793.7168
A46: 40807 | B46: SINAPI | C46: DESENHISTA PROJETISTA (MENSALISTA) | D46: COMPOSIÇÃO | E46: mês | F46: 2766.09 | G46: 1 | H46: =F46*G46 -> 2766.09 | J46: =H46*(1-CAPA!$D$13) -> 2655.4464
A47: 40922 | B47: SINAPI | C47: ELETROTECNICO (MENSALISTA) | D47: COMPOSIÇÃO | E47: mês | F47: 4376.64 | G47: 1 | H47: =F47*G47 -> 4376.64 | J47: =H47*(1-CAPA!$D$13) -> 4201.5744
A48: P9882 | B48: SICRO | C48: Técnico especializado (Analista técnico) | D48: COMPOSIÇÃO | E48: mês | F48: 5598.66 | G48: 1 | H48: 5598.66 | J48: =H48*(1-CAPA!$D$13) -> 5374.7136
A49: 40919 | B49: SINAPI | C49: AJUDANTE DE ELETRICISTA (MENSALISTA) | D49: COMPOSIÇÃO | E49: mês | F49: 2823.04 | G49: 2 | H49: 5646.08 | J49: =H49*(1-CAPA!$D$13) -> 5420.2368
A50: 40918 | B50: SINAPI | C50: ELETRICISTA (MENSALISTA) | D50: COMPOSIÇÃO | E50: mês | F50: 3721.71 | G50: 1 | H50: 3721.71 | J50: =H50*(1-CAPA!$D$13) -> 3572.8416
A51: 40939 | B51: COMPESA | C51: ENGENHEIRO ELETRICISTA (MENSALISTA) | D51: COMPOSIÇÃO | E51: mês | F51: 17575.19 | G51: 0.5 | H51: 8787.595 | J51: =H51*(1-CAPA!$D$13) -> 8436.0912
A52: 41084 | B52: SINAPI | C52: SERVENTE DE OBRAS (MENSALISTA) | D52: COMPOSIÇÃO | E52: mês | F52: 2673.34 | G52: 2 | H52: 5346.68 | J52: =H52*(1-CAPA!$D$13) -> 5132.8128
A53: CPU-E06 | C53: SERVIÇOS EBS1: CCM EBS1 380 VCA TTA CONFORME NORMA 61439 E PROJETO UNIFILAR EBS1 | E53: und | I53: =SUM(H54:H60) -> 36563.71 | J53: =SUM(J54:J60) -> 35101.1616
A54: 40807 | B54: SINAPI | C54: DESENHISTA PROJETISTA (MENSALISTA) | D54: COMPOSIÇÃO | E54: mês | F54: 2766.09 | G54: 0.5 | H54: =F54*G54 -> 1383.045 | J54: =H54*(1-CAPA!$D$13) -> 1327.7232
A55: 40922 | B55: SINAPI | C55: ELETROTECNICO (MENSALISTA) | D55: COMPOSIÇÃO | E55: mês | F55: 4376.64 | G55: 2 | H55: =F55*G55 -> 8753.28 | J55: =H55*(1-CAPA!$D$13) -> 8403.1488
A56: P9882 | B56: SICRO | C56: Técnico especializado (Analista técnico) | D56: COMPOSIÇÃO | E56: mês | F56: 5598.66 | G56: 1 | H56: 5598.66 | J56: =H56*(1-CAPA!$D$13) -> 5374.7136
A57: 40919 | B57: SINAPI | C57: AJUDANTE DE ELETRICISTA (MENSALISTA) | D57: COMPOSIÇÃO | E57: mês | F57: 2823.04 | G57: 2 | H57: 5646.08 | J57: =H57*(1-CAPA!$D$13) -> 5420.2368
A58: 40918 | B58: SINAPI | C58: ELETRICISTA (MENSALISTA) | D58: COMPOSIÇÃO | E58: mês | F58: 3721.71 | G58: 1 | H58: 3721.71 | J58: =H58*(1-CAPA!$D$13) -> 3572.8416
A59: 40939 | B59: COMPESA | C59: ENGENHEIRO ELETRICISTA (MENSALISTA) | D59: COMPOSIÇÃO | E59: mês | F59: 17575.19 | G59: 0.5 | H59: 8787.595 | J59: =H59*(1-CAPA!$D$13) -> 8436.0912
A60: 41084 | B60: SINAPI | C60: SERVENTE DE OBRAS (MENSALISTA) | D60: COMPOSIÇÃO | E60: mês | F60: 2673.34 | G60: 1 | H60: 2673.34 | J60: =H60*(1-CAPA!$D$13) -> 2566.4064
A61: CPU-E07 | C61: SERVIÇOS EBS2 - SUBESTAÇÃO DE ENERGIA COM MEDIÇÃO PADRÃO CONCESSIONÁRIA LOCAL TRAFO 225 KVA 13.8KV/380 VCA | E61: und | I61: =SUM(H62:H68) -> 18116.875 | J61: =SUM(I62:I68) -> 0
A62: 40807 | B62: SINAPI | C62: DESENHISTA PROJETISTA (MENSALISTA) | D62: COMPOSIÇÃO | E62: mês | F62: 2766.09 | G62: 1 | H62: =F62*G62 -> 2766.09
A63: 40922 | B63: SINAPI | C63: ELETROTECNICO (MENSALISTA) | D63: COMPOSIÇÃO | E63: mês | F63: 4376.64 | G63: 0.5 | H63: =F63*G63 -> 2188.32
A64: P9882 | B64: SICRO | C64: Técnico especializado (Analista técnico) | D64: COMPOSIÇÃO | E64: mês | F64: 5598.66 | G64: 0.2 | H64: 1119.732
A65: 40919 | B65: SINAPI | C65: AJUDANTE DE ELETRICISTA (MENSALISTA) | D65: COMPOSIÇÃO | E65: mês | F65: 2823.04 | G65: 0.7 | H65: 1976.128
A66: 40918 | B66: SINAPI | C66: ELETRICISTA (MENSALISTA) | D66: COMPOSIÇÃO | E66: mês | F66: 3721.71 | G66: 0.2 | H66: 744.342
A67: 40939 | B67: COMPESA | C67: ENGENHEIRO ELETRICISTA (MENSALISTA) | D67: COMPOSIÇÃO | E67: mês | F67: 17575.19 | G67: 0.5 | H67: 8787.595
A68: 41084 | B68: SINAPI | C68: SERVENTE DE OBRAS (MENSALISTA) | D68: COMPOSIÇÃO | E68: mês | F68: 2673.34 | G68: 0.2 | H68: 534.668
A69: CPU-E08 | C69: SERVIÇOS EBS2: CCM EBS2 380 VCA TTA CONFORME NORMA 61439 E PROJETO UNIFILAR EBS2 | E69: und | I69: =SUM(H70:H76) -> 36563.71 | J69: =SUM(I70:I76) -> 0
A70: 40807 | B70: SINAPI | C70: DESENHISTA PROJETISTA (MENSALISTA) | D70: COMPOSIÇÃO | E70: mês | F70: 2766.09 | G70: 0.5 | H70: =F70*G70 -> 1383.045
A71: 40922 | B71: SINAPI | C71: ELETROTECNICO (MENSALISTA) | D71: COMPOSIÇÃO | E71: mês | F71: 4376.64 | G71: 2 | H71: =F71*G71 -> 8753.28
A72: P9882 | B72: SICRO | C72: Técnico especializado (Analista técnico) | D72: COMPOSIÇÃO | E72: mês | F72: 5598.66 | G72: 1 | H72: 5598.66
A73: 40919 | B73: SINAPI | C73: AJUDANTE DE ELETRICISTA (MENSALISTA) | D73: COMPOSIÇÃO | E73: mês | F73: 2823.04 | G73: 2 | H73: 5646.08
A74: 40918 | B74: SINAPI | C74: ELETRICISTA (MENSALISTA) | D74: COMPOSIÇÃO | E74: mês | F74: 3721.71 | G74: 1 | H74: 3721.71
A75: 40939 | B75: COMPESA | C75: ENGENHEIRO ELETRICISTA (MENSALISTA) | D75: COMPOSIÇÃO | E75: mês | F75: 17575.19 | G75: 0.5 | H75: 8787.595
A76: 41084 | B76: SINAPI | C76: SERVENTE DE OBRAS (MENSALISTA) | D76: COMPOSIÇÃO | E76: mês | F76: 2673.34 | G76: 1 | H76: 2673.34
A77: CPU-E09 | C77: OPERAÇÃO ASSISTIDA E TREINAMENTO DA EQUIPE CODEVASF e ASITASB e DATA BOOK COM AS BUILT | E77: und | I77: =SUM(H78:H79) -> 7142.73 | J77: =SUM(J78:J79) -> 6857.0208
A78: 40807 | B78: SINAPI | C78: DESENHISTA PROJETISTA (MENSALISTA) | D78: COMPOSIÇÃO | E78: mês | F78: 2766.09 | G78: 1 | H78: =F78*G78 -> 2766.09 | J78: =H78*(1-CAPA!$D$13) -> 2655.4464
A79: 40922 | B79: SINAPI | C79: ELETROTECNICO (MENSALISTA) | D79: COMPOSIÇÃO | E79: mês | F79: 4376.64 | G79: 1 | H79: =F79*G79 -> 4376.64 | J79: =H79*(1-CAPA!$D$13) -> 4201.5744

Sheet ORC_Mec
A1: 22627.68 | D1: MINISTÉRIO DA INTEGRAÇÃO E DO DESENVOLVIMENTO REGIONAL | I1: SINAPI: | J1: 2025-08-01 | K1: PREÇO GLOBAL COM DESCONTO
D2: COMPANHIA DE DESENVOLVIMENTO DOS VALES DO SÃO FRANCISCO E PARNAÍBA | I2: SICRO: | J2: 2025-04-01
D3: 8ª SUPERINTENDÊNCIA REGIONAL - MARANHÃO | I3: ORSE: | J3: 2025-07-01
A4: Objeto: Contratação de serviços técnicos para retrofit de componentes da infraestruturas de uso comum do Projeto Público de Irrigação Tabuleiro de São Bernardo (PITSB). | I4: Cotações: | J4: 2025-10-01
A5: Local: Magalhães de Almeida - MA | I5: BDI-F: | J5: =CAPA!D14 -> 0.15
A6: Preço Global sem Desconto: | C6: =I121 -> 2263121.84 | I6: BDI-S: | J6: =CAPA!D15 -> 0.2648
A7: ORÇAMENTO - MECÂNICA | K7: =L121 -> 2172596.966
A8: Item | B8: Código | C8: Fonte | D8: Descrição | E8: Unid. | F8: Quant. | G8: Custo Unit. (R$) | H8: Preço Unit. (R$) | I8: Subtotal (R$) | J8: Peso (%) | K8: PROPOSTA DA EMPRESA LICITANTE
A9: 1 | D9: EBP - RECUPERAÇÃO BOMBAS VERTICAIS DE 3 ESTÁGIOS | K9: DESCONTO | L9: PREÇO COM BDI APÓS DESCONTO
A10: 1.1.1 | B10: ***** | C10: ***** | D10: MATERIAL BOMBA VERTICAL VTI 24 C/ 3 ESTAGIOS | I10: =SUM(I11:I22) -> 411011.83 | K10: =CAPA!$D$13 -> 0.04 | L10: =SUM(L11:L22) -> 394571.3568
A11: 1.1.1.1 | B11: COT_M01 | C11: PROPRIA | D11: Luva distanciadora 1 VTI 24C AISI 316 | E11: PC | F11: 6 | G11: =COT_Mec!R11 -> 8455.44 | H11: =G11*(1+$J$5) -> 9723.756 | I11: =TRUNC(F11*H11,2) -> 58342.53 | K11: =CAPA!$D$13 -> 0.04 | L11: =I11*(1-K11) -> 56008.8288
A12: 1.1.1.2 | B12: COT_M02 | C12: PROPRIA | D12: Luva distanciadora 2 VTI 24C AISI 316 | E12: PC | F12: 4 | G12: =COT_Mec!R12 -> 8455.44 | H12: =G12*(1+$J$5) -> 9723.756 | I12: =TRUNC(F12*H12,2) -> 38895.02 | K12: =CAPA!$D$13 -> 0.04 | L12: =I12*(1-K12) -> 37339.2192
A13: 1.1.1.3 | B13: COT_M03 | C13: PROPRIA | D13: Anel de desgaste estático VTI 24C ASTM A48 CL30 | E13: PC | F13: 12 | G13: =COT_Mec!R13 -> 2587.2 | H13: 2975.28 | I13: 35703.36 | K13: =CAPA!$D$13 -> 0.04 | L13: 34275.2256
A14: 1.1.1.4 | B14: COT_M04 | C14: PROPRIA | D14: Luva protetora da caixa de selagem VTI 24C AISI 316 | E14: PC | F14: 2 | G14: =COT_Mec!R14 -> 21782.4 | H14: 25049.76 | I14: 50099.52 | K14: =CAPA!$D$13 -> 0.04 | L14: 48095.5392
A15: 1.1.1.5 | B15: COT_M05 | C15: PROPRIA | D15: Mancal guia do sino VTI 24C D-GLIDE | E15: PC | F15: 2 | G15: =COT_Mec!R15 -> 4296 | H15: 4940.4 | I15: 9880.8 | K15: =CAPA!$D$13 -> 0.04 | L15: 9485.568
A16: 1.1.1.6 | B16: COT_M06 | C16: PROPRIA | D16: Mancal guia do difusor VTI 24C D-GLIDE | E16: PC | F16: 6 | G16: =COT_Mec!R16 -> 7305 | H16: 8400.75 | I16: 50404.5 | K16: =CAPA!$D$13 -> 0.04 | L16: 48388.32
A17: 1.1.1.7 | B17: COT_M07 | C17: PROPRIA | D17: Mancal guia do estabilizador VTI 24C D-GLIDE | E17: PC | F17: 6 | G17: =COT_Mec!R17 -> 7305 | H17: 8400.75 | I17: 50404.5 | K17: =CAPA!$D$13 -> 0.04 | L17: 48388.32
A18: 1.1.1.8 | B18: COT_M08 | C18: PROPRIA | D18: Jogo de juntas e orings VTI 24C/3 | E18: JG | F18: 2 | G18: =COT_Mec!R18 -> 9832 | H18: 11306.8 | I18: 22613.6 | K18: =CAPA!$D$13 -> 0.04 | L18: 21709.056
A19: 1.1.1.9 | B19: COT_M09 | C19: PROPRIA | D19: Cj de mangueiras e conexões de entrada no mancal VTI 24C | E19: PC | F19: 2 | G19: =COT_Mec!R19 -> 1280 | H19: 1472 | I19: 2944 | K19: =CAPA!$D$13 -> 0.04 | L19: 2826.24
A20: 1.1.1.10 | B20: COT_M10 | C20: PROPRIA | D20: Luva 3/4 NPT Femea / Femea | E20: PC | F20: 2 | G20: =COT_Mec!R20 -> 172 | H20: 197.8 | I20: 395.6 | K20: =CAPA!$D$13 -> 0.04 | L20: 379.776
A21: 1.1.1.11 | B21: COT_M11 | C21: PROPRIA | D21: Disco defletor VTI 24C AISI 316 | E21: PC | F21: 2 | G21: =COT_Mec!R21 -> 8808 | H21: 10129.2 | I21: 20258.4 | K21: =CAPA!$D$13 -> 0.04 | L21: 19448.064
A22: 1.1.1.12 | B22: COT_M12 | C22: PROPRIA | D22: Rolamento 29338E | E22: PC | F22: 2 | G22: =COT_Mec!R22 -> 30900 | H22: 35535 | I22: 71070 | K22: =CAPA!$D$13 -> 0.04 | L22: 68227.2
A23: 1.1.2 | B23: ***** | C23: ***** | D23: SERVIÇOS DE RECUPERAÇÃO BOMBA VERTICAL IMBIL VTI 24 C/ 3 ESTAGIOS | I23: =I24 -> 102396.26 | K23: =CAPA!$D$13 -> 0.04 | L23: =SUM(L24) -> 98300.4096
A24: 1.1.2.1 | B24: CPU-M13 | C24: PROPRIA | D24: SERVIÇOS DE RECUPERAÇÃO DE BOMBA VERTICAL IMBIL VTI 24 C/ 3 ESTAGIOS | E24: und | F24: 2 | G24: =VLOOKUP(B24,CPU_Mec!$A$9:$I$86,9,0) -> 40479.23 | H24: =G24*(1+$J$6) -> 51198.1301 | I24: 102396.26 | K24: =CAPA!$D$13 -> 0.04 | L24: =I24*(1-K24) -> 98300.4096
A25: 1.2.1 | B25: ***** | C25: ***** | D25: MATERIAL BOMBA VERTICAL KSB B 24 B / 3 ESTÁGIOS | I25: =SUM(I26:I37) -> 206498.14 | K25: =CAPA!$D$13 -> 0.04 | L25: =SUM(L26:L37) -> 198238.2144
A26: 1.2.1.1 | B26: COT_M13 | C26: PROPRIA | D26: Luva distanciadora B 24 B/3 AISI 316 | E26: PC | F26: 3 | G26: =COT_Mec!R26 -> 8628 | H26: =G26*(1+$J$5) -> 9922.2 | I26: 29766.6 | K26: =CAPA!$D$13 -> 0.04 | L26: 28575.936
A27: 1.2.1.2 | B27: COT_M14 | C27: PROPRIA | D27: Luva distanciadora B 24 B/3 AISI 316 | E27: PC | F27: 2 | G27: =COT_Mec!R27 -> 8628 | H27: 9922.2 | I27: 19844.4 | K27: =CAPA!$D$13 -> 0.04 | L27: 19050.624
A28: 1.2.1.3 | B28: COT_M15 | C28: PROPRIA | D28: Anel de desgaste estático B 24 B/3 ASTM A48 CL30 | E28: PC | F28: 6 | G28: =COT_Mec!R28 -> 2587.2 | H28: 2975.28 | I28: 17851.68 | K28: =CAPA!$D$13 -> 0.04 | L28: 17137.6128
A29: 1.2.1.4 | B29: COT_M16 | C29: PROPRIA | D29: Luva protetora da caixa de selagem B 24 B/3 AISI 316 | E29: PC | F29: 1 | G29: =COT_Mec!R29 -> 21782.4 | H29: 25049.76 | I29: 25049.76 | K29: =CAPA!$D$13 -> 0.04 | L29: 24047.7696
A30: 1.2.1.5 | B30: COT_M17 | C30: PROPRIA | D30: Mancal guia do sino B 24 B/3 | E30: PC | F30: 1 | G30: =COT_Mec!R30 -> 4296 | H30: 4940.4 | I30: 4940.4 | K30: =CAPA!$D$13 -> 0.04 | L30: 4742.784
A31: 1.2.1.6 | B31: COT_M18 | C31: PROPRIA | D31: Mancal guia do difusor B 24 B/3 | E31: PC | F31: 3 | G31: =COT_Mec!R31 -> 7305 | H31: 8400.75 | I31: 25202.25 | K31: =CAPA!$D$13 -> 0.04 | L31: 24194.16
A32: 1.2.1.7 | B32: COT_M19 | C32: PROPRIA | D32: Mancal guia do estabilizador B 24 B/3 | E32: PC | F32: 3 | G32: =COT_Mec!R32 -> 7305 | H32: 8400.75 | I32: 25202.25 | K32: =CAPA!$D$13 -> 0.04 | L32: 24194.16
A33: 1.2.1.8 | B33: COT_M20 | C33: PROPRIA | D33: Cj de mangueiras e conexões de entrada no mancal B 24 B/3 | E33: PC | F33: 1 | G33: =COT_Mec!R33 -> 9832 | H33: 11306.8 | I33: 11306.8 | K33: =CAPA!$D$13 -> 0.04 | L33: 10854.528
A34: 1.2.1.9 | B34: COT_M21 | C34: PROPRIA | D34: Luva 3/4 NPT Femea / Femea B 24 B/3 | E34: PC | F34: 1 | G34: =COT_Mec!R34 -> 1280 | H34: 1472 | I34: 1472 | K34: =CAPA!$D$13 -> 0.04 | L34: 1413.12
A35: 1.2.1.10 | B35: COT_M22 | C35: PROPRIA | D35: Disco defletor B 24 B/3 AISI 316 | E35: PC | F35: 1 | G35: =COT_Mec!R35 -> 172 | H35: 197.8 | I35: 197.8 | K35: =CAPA!$D$13 -> 0.04 | L35: 189.888
A36: 1.2.1.11 | B36: COT_M23 | C36: PROPRIA | D36: Jogo de juntas e orings B 24 B/3 | E36: PC | F36: 1 | G36: =COT_Mec!R36 -> 8808 | H36: 10129.2 | I36: 10129.2 | K36: =CAPA!$D$13 -> 0.04 | L36: 9724.032
A37: 1.2.1.12 | B37: COT_M24 | C37: PROPRIA | D37: Rolamento 29338E | E37: PC | F37: 1 | G37: =COT_Mec!R37 -> 30900 | H37: 35535 | I37: 35535 | K37: =CAPA!$D$13 -> 0.04 | L37: 34113.6
A38: 1.2.2 | B38: ***** | C38: ***** | D38: SERVIÇOS DE RECUPERAÇÃO BOMBA VERTICAL KSB B 24 B / 3 ESTÁGIOS | I38: =I39 -> 51198.13 | K38: =CAPA!$D$13 -> 0.04 | L38: =SUM(L39) -> 49150.2048
A39: 1.2.2.1 | B39: CPU-M14 | C39: PROPRIA | D39: SERVIÇOS DE RECUPERAÇÃO DE BOMBA VERTICAL KSB B 24 B / 3 ESTAGIOS | E39: und | F39: 1 | G39: =VLOOKUP(B39,CPU_Mec!$A$9:$I$86,9,0) -> 40479.23 | H39: =G39*(1+$J$6) -> 51198.1301 | I39: 51198.13 | K39: =CAPA!$D$13 -> 0.04 | L39: 49150.2048
A40: 1.3 | B40: ***** | C40: ***** | D40: BARRILETE DE BOMBAS | I40: =I41 -> 835762.5 | K40: =CAPA!$D$13 -> 0.04 | L40: =SUM(L41) -> 802332
A41: 1.3.1 | B41: COT_M25 | C41: PROPRIA | D41: Válvula Sutentadora de Pressão Bermad DN 500 mm e 2 flanges p/ tocos de montagem | E41: pç | F41: 3 | G41: =COT_Mec!R41 -> 242250 | H41: =G41*(1+$J$5) -> 278587.5 | I41: 835762.5 | K41: =CAPA!$D$13 -> 0.04 | L41: 802332
A42: 1.3 | B42: ***** | C42: ***** | D42: SERVIÇOS DE MANUTENÇÃO DE VÁLVULAS | I42: =SUM(I43:I48) -> 14791.84 | K42: =CAPA!$D$13 -> 0.04 | L42: =SUM(L43:L48) -> 14200.1664
A43: 1.3.1 | B43: CPU-M01 | C43: PROPRIA | D43: Manutenção de válvula gaveta DN < 300 mm | E43: und | F43: 3 | G43: =VLOOKUP(B43,CPU_Mec!$A$9:$I$46,9,0) -> 444.5264 | H43: =G43*(1+$J$6) -> 562.2369907 | I43: 1686.71 | K43: =CAPA!$D$13 -> 0.04 | L43: 1619.2416
A44: 1.3.2 | B44: CPU-M02 | C44: PROPRIA | D44: Manutenção de válvula borboleta com redutor e acionamento manual DN 300 a 800 mm | E44: und | F44: 3 | G44: =VLOOKUP(B44,CPU_Mec!$A$9:$I$46,9,0) -> 666.7896 | H44: 843.3554861 | I44: 2530.06 | K44: =CAPA!$D$13 -> 0.04 | L44: 2428.8576
A45: 1.3.3 | B45: CPU-M03 | C45: PROPRIA | D45: Manutenção de ventosa DN < 300mm | E45: und | F45: 4 | G45: =VLOOKUP(B45,CPU_Mec!$A$9:$I$46,9,0) -> 444.5264 | H45: 562.2369907 | I45: 2248.94 | K45: =CAPA!$D$13 -> 0.04 | L45: 2158.9824
A46: 1.3.4 | B46: CPU-M04 | C46: PROPRIA | D46: Manutenção de válvula Clasar | E46: und | F46: 3 | G46: =VLOOKUP(B46,CPU_Mec!$A$9:$I$46,9,0) -> 333.3948 | H46: 421.677743 | I46: 1265.03 | K46: =CAPA!$D$13 -> 0.04 | L46: 1214.4288
A47: 1.3.5 | B47: CPU-M05 | C47: PROPRIA | D47: Manutenção de comporta de poço de bombas | E47: und | F47: 1 | G47: =VLOOKUP(B47,CPU_Mec!$A$9:$I$46,9,0) -> 333.3948 | H47: 421.677743 | I47: 421.67 | K47: =CAPA!$D$13 -> 0.04 | L47: 404.8032
A48: 1.3.6 | B48: CPU-M06 | C48: PROPRIA | D48: Montagem de válvula sustentadora de pressão DN 500mm | E48: und | F48: 3 | G48: =VLOOKUP(B48,CPU_Mec!$A$9:$I$46,9,0) -> 1749.798 | H48: 2213.14451 | I48: 6639.43 | K48: =CAPA!$D$13 -> 0.04 | L48: 6373.8528
A49: 2 | D49: EBS1 - RECUPERAÇÃO BOMBAS CENTRÍFUGAS HORIZONTAIS
A50: 2.1 | B50: ***** | C50: ***** | D50: MATERIAL BOMBA BOMBA MEGANORM KSB 200-400 | I50: =SUM(I51:I65) -> 103176.16 | K50: =CAPA!$D$13 -> 0.04 | L50: =SUM(L51:L65) -> 99049.1136
A51: 2.1.1 | B51: COT_M26 | C51: PROPRIA | D51: Anel de Desgaste da Carcaça | E51: PC | F51: 4 | G51: =COT_Mec!R51 -> 464 | H51: =G51*(1+$J$5) -> 533.6 | I51: 2134.4 | K51: =CAPA!$D$13 -> 0.04 | L51: 2049.024
A52: 2.1.2 | B52: COT_M27 | C52: PROPRIA | D52: Anel de Desgaste do Rotor | E52: PC | F52: 4 | G52: =COT_Mec!R52 -> 384 | H52: 441.6 | I52: 1766.4 | K52: =CAPA!$D$13 -> 0.04 | L52: 1695.744
A53: 2.1.3 | B53: COT_M28 | C53: PROPRIA | D53: Bucha Protetora do Eixo | E53: PC | F53: 4 | G53: =COT_Mec!R53 -> 636 | H53: 731.4 | I53: 2925.6 | K53: =CAPA!$D$13 -> 0.04 | L53: 2808.576
A54: 2.1.4 | B54: COT_M29 | C54: PROPRIA | D54: Eixo do Rotor | E54: PC | F54: 4 | G54: =COT_Mec!R54 -> 2508 | H54: 2884.2 | I54: 11536.8 | K54: =CAPA!$D$13 -> 0.04 | L54: 11075.328
A55: 2.1.5 | B55: COT_M30 | C55: PROPRIA | D55: Jg de Gaxeta | E55: PC | F55: 4 | G55: =COT_Mec!R55 -> 571.2 | H55: 656.88 | I55: 2627.52 | K55: =CAPA!$D$13 -> 0.04 | L55: 2522.4192
A56: 2.1.6 | B56: COT_M31 | C56: PROPRIA | D56: Junta da Carcaça | E56: PC | F56: 4 | G56: =COT_Mec!R56 -> 256 | H56: 294.4 | I56: 1177.6 | K56: =CAPA!$D$13 -> 0.04 | L56: 1130.496
A57: 2.1.7 | B57: COT_M32 | C57: PROPRIA | D57: Junta da Tampa do Cavalete | E57: PC | F57: 8 | G57: =COT_Mec!R57 -> 148 | H57: 170.2 | I57: 1361.6 | K57: =CAPA!$D$13 -> 0.04 | L57: 1307.136
A58: 2.1.8 | B58: COT_M33 | C58: PROPRIA | D58: Oring da Bucha Protetora | E58: PC | F58: 4 | G58: =COT_Mec!R58 -> 10.4 | H58: 11.96 | I58: 47.84 | K58: =CAPA!$D$13 -> 0.04 | L58: 45.9264
A59: 2.1.9 | B59: COT_M34 | C59: PROPRIA | D59: Oring da Tampa de Refrigaração | E59: PC | F59: 4 | G59: =COT_Mec!R59 -> 17.6 | H59: 20.24 | I59: 80.96 | K59: =CAPA!$D$13 -> 0.04 | L59: 77.7216
A60: 2.1.10 | B60: COT_M35 | C60: PROPRIA | D60: Rolamentos | E60: PC | F60: 8 | G60: =COT_Mec!R60 -> 336 | H60: 386.4 | I60: 3091.2 | K60: =CAPA!$D$13 -> 0.04 | L60: 2967.552
A61: 2.1.11 | B61: COT_M36 | C61: PROPRIA | D61: Válvulas de Retenção | E61: PC | F61: 4 | G61: =COT_Mec!R61 -> 3968 | H61: 4563.2 | I61: 18252.8 | K61: =CAPA!$D$13 -> 0.04 | L61: 17522.688
A62: 2.1.12 | B62: COT_M37 | C62: PROPRIA | D62: Válvulas de Bloquieo 200 PN 16 | E62: PC | F62: 4 | G62: =COT_Mec!R62 -> 2880 | H62: 3312 | I62: 13248 | K62: =CAPA!$D$13 -> 0.04 | L62: 12718.08
A63: 2.1.13 | B63: COT_M38 | C63: PROPRIA | D63: Acoplamentos | E63: PC | F63: 4 | G63: =COT_Mec!R63 -> 1646.4 | H63: 1893.36 | I63: 7573.44 | K63: =CAPA!$D$13 -> 0.04 | L63: 7270.5024
A64: 2.1.14 | B64: COT_M39 | C64: PROPRIA | D64: Base metálica em aço carbono p/ conj motobomba Pot. 100 cv | E64: PC | F64: 4 | G64: =COT_Mec!R64 -> 5600 | H64: 6440 | I64: 25760 | K64: =CAPA!$D$13 -> 0.04 | L64: 24729.6
A65: 2.1.15 | B65: COT_M40 | C65: PROPRIA | D65: Redução concêntrica PN 10 DN 125 x 200 mm | E65: PC | F65: 4 | G65: =COT_Mec!R65 -> 2520 | H65: 2898 | I65: 11592 | K65: =CAPA!$D$13 -> 0.04 | L65: 11128.32
A66: 2.2 | B66: ***** | C66: ***** | D66: SERVIÇOS DE RECUPERAÇÃO DE BOMBA MEGANORM KSB 200-400 | I66: =I67 -> 279929.24 | K66: =CAPA!$D$13 -> 0.04 | L66: =SUM(L67) -> 268732.0704
A67: 2.2.1 | B67: CPU-M15 | C67: PROPRIA | D67: SERVIÇOS DE RECUPERAÇÃO DE BOMBA CENTRÍFUGA MEGANORM KSB 200-400 | E67: und | F67: 4 | G67: =VLOOKUP(B67,CPU_Mec!$A$9:$I$86,9,0) -> 55330.7325 | H67: =G67*(1+$J$6) -> 69982.31047 | I67: 279929.24 | K67: =CAPA!$D$13 -> 0.04 | L67: 268732.0704
A68: 2.3 | B68: ***** | C68: ***** | D68: SERVIÇOS DE MANUTENÇÃO DE VÁLVULAS | I68: =SUM(I69:I72) -> 11542.53 | K68: =CAPA!$D$13 -> 0.04 | L68: =SUM(L69:L72) -> 11080.8288
A69: 2.3.1 | B69: CPU-M07 | C69: PROPRIA | D69: Manutenção de válvula borboleta DN < 300 mm | E69: und | F69: 8 | G69: =VLOOKUP(B69,CPU_Mec!$A$9:$I$46,9,0) -> 444.5264 | H69: =G69*(1+$J$6) -> 562.2369907 | I69: 4497.89 | K69: =CAPA!$D$13 -> 0.04 | L69: 4317.9744
A70: 2.3.2 | B70: CPU-M08 | C70: PROPRIA | D70: Manutenção de filtro autolimpante Amiad | E70: und | F70: 2 | G70: =VLOOKUP(B70,CPU_Mec!$A$9:$I$46,9,0) -> 1229.045 | H70: 1554.496116 | I70: 3108.99 | K70: =CAPA!$D$13 -> 0.04 | L70: 2984.6304
A71: 2.3.3 | B71: CPU-M03 | C71: PROPRIA | D71: Manutenção de ventosa DN < 300mm | E71: und | F71: 4 | G71: =VLOOKUP(B71,CPU_Mec!$A$9:$I$46,9,0) -> 444.5264 | H71: 562.2369907 | I71: 2248.94 | K71: =CAPA!$D$13 -> 0.04 | L71: 2158.9824
A72: 2.3.4 | B72: CPU-M04 | C72: PROPRIA | D72: Manutenção de válvula Clasar | E72: und | F72: 4 | G72: =VLOOKUP(B72,CPU_Mec!$A$9:$I$46,9,0) -> 333.3948 | H72: 421.677743 | I72: 1686.71 | K72: =CAPA!$D$13 -> 0.04 | L72: 1619.2416
A73: 3 | D73: EBS2 - RECUPERAÇÃO BOMBAS CENTRÍFUGAS HORIZONTAIS | I73: 0 | K73: =CAPA!$D$13 -> 0.04 | L73: 0
A74: 3.1 | B74: ***** | C74: ***** | D74: MATERIAL BOMBA MEGANORM KSB 80-400 | I74: =SUM(I75:I87) -> 0 | K74: =CAPA!$D$13 -> 0.04 | L74: 0
A75: 3.1.1 | B75: COT_M41 | C75: PROPRIA | D75: Anel de Desgaste da Carcaça | E75: PC | F75: =0*4 -> 0 | G75: =COT_Mec!R75 -> 464 | H75: =G75*(1+$J$5) -> 533.6 | I75: 0 | K75: =CAPA!$D$13 -> 0.04 | L75: 0
A76: 3.1.2 | B76: COT_M42 | C76: PROPRIA | D76: Anel de Desgaste do Rotor | E76: PC | F76: =0*4 -> 0 | G76: =COT_Mec!R76 -> 384 | H76: 441.6 | I76: =TRUNC(F76*H76,2) -> 0 | K76: =CAPA!$D$13 -> 0.04 | L76: 0
A77: 3.1.3 | B77: COT_M43 | C77: PROPRIA | D77: Bucha Protetora do Eixo | E77: PC | F77: =0*4 -> 0 | G77: =COT_Mec!R77 -> 636 | H77: 731.4 | I77: 0 | K77: =CAPA!$D$13 -> 0.04 | L77: 0
A78: 3.1.4 | B78: COT_M44 | C78: PROPRIA | D78: Eixo do Rotor | E78: PC | F78: =0*2 -> 0 | G78: =COT_Mec!R78 -> 2508 | H78: 2884.2 | I78: 0 | K78: =CAPA!$D$13 -> 0.04 | L78: 0
A79: 3.1.5 | B79: COT_M45 | C79: PROPRIA | D79: Jg de Gaxeta | E79: PC | F79: =0*4 -> 0 | G79: =COT_Mec!R79 -> 571.2 | H79: 656.88 | I79: 0 | K79: =CAPA!$D$13 -> 0.04 | L79: 0
A80: 3.1.6 | B80: COT_M46 | C80: PROPRIA | D80: Junta da Carcaça | E80: PC | F80: =0*4 -> 0 | G80: =COT_Mec!R80 -> 256 | H80: 294.4 | I80: 0 | K80: =CAPA!$D$13 -> 0.04 | L80: 0
A81: 3.1.7 | B81: COT_M47 | C81: PROPRIA | D81: Junta da Tampa do Cavalete | E81: PC | F81: =0*8 -> 0 | G81: =COT_Mec!R81 -> 148 | H81: 170.2 | I81: 0 | K81: =CAPA!$D$13 -> 0.04 | L81: 0
A82: 3.1.8 | B82: COT_M48 | C82: PROPRIA | D82: Oring da Bucha Protetora | E82: PC | F82: =0*4 -> 0 | G82: =COT_Mec!R82 -> 10.4 | H82: 11.96 | I82: 0 | K82: =CAPA!$D$13 -> 0.04 | L82: 0
A83: 3.1.9 | B83: COT_M49 | C83: PROPRIA | D83: Oring da Tampa de Refrigaração | E83: PC | F83: =0*4 -> 0 | G83: =COT_Mec!R83 -> 17.6 | H83: 20.24 | I83: 0 | K83: =CAPA!$D$13 -> 0.04 | L83: 0
A84: 3.1.10 | B84: COT_M50 | C84: PROPRIA | D84: Rolamentos | E84: PC | F84: =0*8 -> 0 | G84: =COT_Mec!R84 -> 336 | H84: 386.4 | I84: 0 | K84: =CAPA!$D$13 -> 0.04 | L84: 0
A85: 3.1.11 | B85: COT_M51 | C85: PROPRIA | D85: Válvulas de Retenção | E85: PC | F85: =0*4 -> 0 | G85: =COT_Mec!R85 -> 3968 | H85: 4563.2 | I85: 0 | K85: =CAPA!$D$13 -> 0.04 | L85: 0
A86: 3.1.12 | B86: COT_M52 | C86: PROPRIA | D86: Válvulas de Bloqueio 200 PN 16 | E86: PC | F86: =0*4 -> 0 | G86: =COT_Mec!R86 -> 2880 | H86: 3312 | I86: 0 | K86: =CAPA!$D$13 -> 0.04 | L86: 0
A87: 3.1.13 | B87: COT_M53 | C87: PROPRIA | D87: Acoplamentos | E87: PC | F87: =0*4 -> 0 | G87: =COT_Mec!R87 -> 1646.4 | H87: 1893.36 | I87: 0 | K87: =CAPA!$D$13 -> 0.04 | L87: 0
A88: 3.2 | B88: ***** | C88: ***** | D88: SERVIÇOS DE RECUPERAÇÃO DE BOMBA MEGANORM KSB 80-400 | I88: =I89 -> 0 | K88: =CAPA!$D$13 -> 0.04 | L88: =I88*(1-K88) -> 0
A89: 3.2.1 | B89: CPU-M16 | C89: PROPRIA | D89: SERVIÇOS DE RECUPERAÇÃO DE BOMBA CENTRÍFUGA MEGANORM KSB 80-400 | E89: und | F89: =0*4 -> 0 | G89: =VLOOKUP(B89,CPU_Mec!$A$9:$I$86,9,0) -> 25627.7275 | H89: =G89*(1+$J$6) -> 32413.94974 | I89: 0 | K89: =CAPA!$D$13 -> 0.04 | L89: 0
A90: 3.3 | B90: ***** | C90: ***** | D90: SERVIÇOS DE MANUTENÇÃO DE VÁLVULAS | I90: =SUM(I91:I94) -> 0 | K90: =CAPA!$D$13 -> 0.04 | L90: 0
A91: 3.3.1 | B91: CPU-M07 | C91: PROPRIA | D91: Manutenção de válvula borboleta DN < 300 mm | E91: und | F91: =0*8 -> 0 | G91: =VLOOKUP(B91,CPU_Mec!$A$9:$I$46,9,0) -> 444.5264 | H91: =G91*(1+$J$6) -> 562.2369907 | I91: 0 | K91: =CAPA!$D$13 -> 0.04 | L91: 0
A92: 3.3.2 | B92: CPU-M08 | C92: PROPRIA | D92: Filtro autolimpante Amiad | E92: und | F92: =0*2 -> 0 | G92: =VLOOKUP(B92,CPU_Mec!$A$9:$I$46,9,0) -> 1229.045 | H92: 1554.496116 | I92: 0 | K92: =CAPA!$D$13 -> 0.04 | L92: 0
A93: 3.3.3 | B93: CPU-M03 | C93: PROPRIA | D93: Manutenção de ventosa DN < 300mm | E93: und | F93: =0*4 -> 0 | G93: =VLOOKUP(B93,CPU_Mec!$A$9:$I$46,9,0) -> 444.5264 | H93: 562.2369907 | I93: 0 | K93: =CAPA!$D$13 -> 0.04 | L93: 0
A94: 3.3.4 | B94: CPU-M04 | C94: PROPRIA | D94: Manutenção de válvula Clasar | E94: und | F94: =0*4 -> 0 | G94: =VLOOKUP(B94,CPU_Mec!$A$9:$I$46,9,0) -> 333.3948 | H94: 421.677743 | I94: 0 | K94: =CAPA!$D$13 -> 0.04 | L94: 0
A95: 3 | D95: ADUTORAS E TANQUES DE AMORTECIMENTO UNILATERAL
A96: 3.1 | B96: ***** | C96: ***** | D96: ADUTORA - SERVIÇOS DE MANUTENÇÃO DE VÁLVULAS | I96: =SUM(I97:I99) -> 10853.14 | K96: =CAPA!$D$13 -> 0.04 | L96: =SUM(L97:L99) -> 10419.0144
A97: 3.1.1 | B97: CPU-M01 | C97: PROPRIA | D97: Manutenção de válvula gaveta DN < 300 mm | E97: und | F97: 4 | G97: =VLOOKUP(B97,CPU_Mec!$A$9:$I$46,9,0) -> 444.5264 | H97: =G97*(1+$J$6) -> 562.2369907 | I97: 2248.94 | K97: =CAPA!$D$13 -> 0.04 | L97: 2158.9824
A98: 3.1.2 | B98: CPU-M09 | C98: PROPRIA | D98: Manutenção de válvulas borboleta com redutor e acionamento manual DN > 300 mm e < 800 mm | E98: und | F98: 3 | G98: =VLOOKUP(B98,CPU_Mec!$A$9:$I$46,9,0) -> 1111.316 | H98: 1405.592477 | I98: 4216.77 | K98: =CAPA!$D$13 -> 0.04 | L98: 4048.0992
A99: 3.1.3 | B99: CPU-M10 | C99: PROPRIA | D99: Manutenção de válvulas borboleta motorizadas DN 1.200 mm | E99: und | F99: 2 | G99: =VLOOKUP(B99,CPU_Mec!$A$9:$I$46,9,0) -> 1734.438 | H99: 2193.717182 | I99: 4387.43 | K99: =CAPA!$D$13 -> 0.04 | L99: 4211.9328
A100: 3.2 | B100: ***** | C100: ***** | D100: TAU 1 - MATERIAL | I100: =SUM(I101:I104) -> 159723.5 | K100: =CAPA!$D$13 -> 0.04 | L100: =SUM(L101:L104) -> 153334.56
A101: 3.2.1 | B101: COT_M54 | C101: PROPRIA | D101: Válvula sustentadora de pressão Bermad DN 100 mm | E101: pç | F101: 4 | G101: =COT_Mec!R101 -> 23750 | H101: =G101*(1+$J$5) -> 27312.5 | I101: 109250 | K101: =CAPA!$D$13 -> 0.04 | L101: 104880
A102: 3.2.2 | B102: COT_M55 | C102: PROPRIA | D102: Válvulas Gaveta DN 100 mm | E102: pç | F102: 8 | G102: =COT_Mec!R102 -> 1819.25 | H102: 2092.1375 | I102: 16737.1 | K102: =CAPA!$D$13 -> 0.04 | L102: 16067.616
A103: 3.2.3 | B103: COT_M56 | C103: PROPRIA | D103: Filtro de Linha DN 100 mm | E103: pç | F103: 4 | G103: =COT_Mec!R103 -> 4626.5 | H103: 5320.475 | I103: 21281.9 | K103: =CAPA!$D$13 -> 0.04 | L103: 20430.624
A104: 3.2.4 | B104: COT_M57 | C104: PROPRIA | D104: Toco Aço Carbono DN 800 mm x 500 mm | E104: pç | F104: 1 | G104: =COT_Mec!R104 -> 10830 | H104: 12454.5 | I104: 12454.5 | K104: =CAPA!$D$13 -> 0.04 | L104: 11956.32
A105: 3.3 | B105: ***** | C105: ***** | D105: TAU 1 - SERVIÇOS DE MANUTENÇÃO DE VÁLVULAS | I105: =SUM(I106:I111) -> 11806.95 | K105: =CAPA!$D$13 -> 0.04 | L105: =SUM(L106:L111) -> 11334.672
A106: 3.3.1 | B106: CPU-M01 | C106: PROPRIA | D106: Manutenção de válvula gaveta DN < 300 mm | E106: und | F106: 4 | G106: =VLOOKUP(B106,CPU_Mec!$A$9:$I$46,9,0) -> 444.5264 | H106: =G106*(1+$J$6) -> 562.2369907 | I106: 2248.94 | K106: =CAPA!$D$13 -> 0.04 | L106: 2158.9824
A107: 3.3.2 | B107: CPU-M02 | C107: PROPRIA | D107: Manutenção de válvulas borboleta com redutor e acionamento manual DN > 300 mm e < 800 mm | E107: und | F107: 4 | G107: =VLOOKUP(B107,CPU_Mec!$A$9:$I$46,9,0) -> 666.7896 | H107: 843.3554861 | I107: 3373.42 | K107: =CAPA!$D$13 -> 0.04 | L107: 3238.4832
A108: 3.3.3 | B108: CPU-M03 | C108: PROPRIA | D108: Manutenção de ventosa DN < 300mm | E108: und | F108: 4 | G108: =VLOOKUP(B108,CPU_Mec!$A$9:$I$46,9,0) -> 444.5264 | H108: 562.2369907 | I108: 2248.94 | K108: =CAPA!$D$13 -> 0.04 | L108: 2158.9824
A109: 3.3.4 | B109: CPU-M04 | C109: PROPRIA | D109: Manutenção de válvula Clasar | E109: und | F109: 4 | G109: =VLOOKUP(B109,CPU_Mec!$A$9:$I$46,9,0) -> 333.3948 | H109: 421.677743 | I109: 1686.71 | K109: =CAPA!$D$13 -> 0.04 | L109: 1619.2416
A110: 3.3.5 | B110: CPU-M11 | C110: PROPRIA | D110: Substituição dos conjuntos de Registro, Filtro Y de Linha e Válvula Bermad de controle de nível | E110: und | F110: 4 | G110: =VLOOKUP(B110,CPU_Mec!$A$9:$I$46,9,0) -> 333.3948 | H110: 421.677743 | I110: 1686.71 | K110: =CAPA!$D$13 -> 0.04 | L110: 1619.2416
A111: 3.3.6 | B111: CPU-M12 | C111: PROPRIA | D111: Substituição de toco aço carbono DN 800 para correção do desnivelamento | E111: und | F111: 1 | G111: =VLOOKUP(B111,CPU_Mec!$A$9:$I$46,9,0) -> 444.5264 | H111: 562.2369907 | I111: 562.23 | K111: =CAPA!$D$13 -> 0.04 | L111: 539.7408
A112: 3.4 | B112: ***** | C112: ***** | D112: TAU 2 - MATERIAL | I112: =SUM(I113:I114) -> 58809.27 | K112: =CAPA!$D$13 -> 0.04 | L112: =SUM(L113:L114) -> 56456.8992
A113: 3.4.1 | B113: COT_M58 | C113: PROPRIA | D113: Válvula Sustentadora de Pressão Bermad DN 100 mm | E113: pç | F113: 2 | G113: =COT_Mec!R113 -> 23750 | H113: =G113*(1+$J$5) -> 27312.5 | I113: 54625 | K113: =CAPA!$D$13 -> 0.04 | L113: 52440
A114: 3.4.2 | B114: COT_M60 | C114: PROPRIA | D114: Filtro de Linha DN 100 mm | E114: pç | F114: 2 | G114: =COT_Mec!R114 -> 1819.25 | H114: 2092.1375 | I114: 4184.27 | K114: =CAPA!$D$13 -> 0.04 | L114: 4016.8992
A115: 3.5 | B115: ***** | C115: ***** | D115: TAU 2 - SERVIÇOS DE MANUTENÇÃO DE VÁLVULAS | I115: =SUM(I116:I120) -> 5622.35 | K115: =CAPA!$D$13 -> 0.04 | L115: =SUM(L116:L120) -> 5397.456
A116: 3.5.1 | B116: CPU-M01 | C116: PROPRIA | D116: Manutenção de válvula gaveta DN < 300 mm | E116: und | F116: 2 | G116: =VLOOKUP(B116,CPU_Mec!$A$9:$I$46,9,0) -> 444.5264 | H116: =G116*(1+$J$6) -> 562.2369907 | I116: 1124.47 | K116: =CAPA!$D$13 -> 0.04 | L116: 1079.4912
A117: 3.5.2 | B117: CPU-M02 | C117: PROPRIA | D117: Manutenção de válvulas borboleta com redutor e acionamento manual DN > 300 mm e < 800 mm | E117: und | F117: 2 | G117: =VLOOKUP(B117,CPU_Mec!$A$9:$I$46,9,0) -> 666.7896 | H117: 843.3554861 | I117: 1686.71 | K117: =CAPA!$D$13 -> 0.04 | L117: 1619.2416
A118: 3.5.3 | B118: CPU-M03 | C118: PROPRIA | D118: Manutenção de ventosa DN < 300mm | E118: und | F118: 2 | G118: =VLOOKUP(B118,CPU_Mec!$A$9:$I$46,9,0) -> 444.5264 | H118: 562.2369907 | I118: 1124.47 | K118: =CAPA!$D$13 -> 0.04 | L118: 1079.4912
A119: 3.5.4 | B119: CPU-M04 | C119: PROPRIA | D119: Manutenção de válvula Clasar | E119: und | F119: 2 | G119: =VLOOKUP(B119,CPU_Mec!$A$9:$I$46,9,0) -> 333.3948 | H119: 421.677743 | I119: 843.35 | K119: =CAPA!$D$13 -> 0.04 | L119: 809.616
A120: 3.5.5 | B120: CPU-M11 | C120: PROPRIA | D120: Substituição dos conjuntos de Registro, Filtro Y de Linha e Válvula Bermad de controle de nível | E120: und | F120: 2 | G120: =VLOOKUP(B120,CPU_Mec!$A$9:$I$46,9,0) -> 333.3948 | H120: 421.677743 | I120: 843.35 | K120: =CAPA!$D$13 -> 0.04 | L120: 809.616
D121: PREÇO TOTAL - MECÂNICA | I121: =SUM(I10+I23+I25+I38+I40+I42+I50+I66+I68+I74+I88+I90+I96+I100+I105+I112+I115) -> 2263121.84 | K121: =CAPA!$D$13 -> 0.04 | L121: =SUM(L10+L23+L25+L38+L40+L42+L50+L66+L68+L74+L88+L90+L96+L100+L105+L112+L115) -> 2172596.966

Sheet CPU_Mec
C1: MINISTÉRIO DA INTEGRAÇÃO E DO DESENVOLVIMENTO REGIONAL | I1: SINAPI: | J1: =ORC_Civil!J1 -> 2025-08-01
C2: COMPANHIA DE DESENVOLVIMENTO DOS VALES DO SÃO FRANCISCO E PARNAÍBA | I2: SICRO: | J2: =ORC_Civil!J2 -> 2025-04-01
C3: 8ª SUPERINTENDÊNCIA REGIONAL - MARANHÃO | I3: ORSE: | J3: =ORC_Civil!J3 -> 2025-07-01
I4: Cotações: | J4: =ORC_Civil!J4 -> 2025-10-01
A5: Objeto: Contratação de serviços técnicos para retrofit de componentes da infraestruturas de uso comum do Projeto Público de Irrigação Tabuleiro de São Bernardo (PITSB). | I5: BDI-F: | J5: =CAPA!D14 -> 0.15
A6: Local: Magalhães de Almeida - MA | I6: BDI-S: | J6: =CAPA!D15 -> 0.2648
A7: COMPOSIÇÕES DE CUSTOS UNITÁRIOS PRÓPRIAS - MECÃNICA
A8: CPUs 100 | B8: Fonte | C8: Descrição | D8: Tipo | E8: Unid. | F8: Custo Unitário | G8: Coeficiente de Utilização | H8: Valor Unitário | I8: Custo Unitário | J8: Custo Unitário com desconto
A9: CPU-M01 | B9: PROPRIA | C9: Manutenção de válvula gaveta DN < 300 mm | E9: und | I9: =SUM(H10:H11) -> 444.5264 | J9: =SUM(J10:J11) -> 426.745344
A10: P9882 | B10: SICRO | C10: Técnico especializado | D10: COMPOSIÇÃO | E10: =IF(B10="SINAPI",(IFERROR(VLOOKUP(A10,'CompSD SINAPI'!$B$11:$F$9784,3,0),VLOOKUP(CPU_Mec!A10,'ISD SINAPI'!$B$11:$F$4903,3,0))),IF(OR(B10="SICRO",B10="SICRO3"),(IFERROR(VLOOKUP(A10,'COMP SD SICRO'!$A$2:$D$6495,3,0),VLOOKUP(CPU_Mec!A10,'ISD SICRO'!$A$2:$D$2319,3,0))),IF(B10="SEINFRA",(IFERROR(VLOOKUP(A10,'COMPSD SEINFRA'!$B$7:$G$5611,3,0),VLOOKUP(CPU_Mec!A10,'ISD SEINFRA'!A7:$D$11922,3,0))),))) -> h | F10: =IF(B10="SINAPI",(IFERROR(VLOOKUP(A10,'CompSD SINAPI'!$B$11:$F$9784,4,0),VLOOKUP(CPU_Mec!A10,'ISD SINAPI'!$B$11:$F$4903,5,0))),IF(OR(B10="SICRO",B10="SICRO3"),(IFERROR(VLOOKUP(A10,'COMP SD SICRO'!$A$2:$D$6495,4,0),VLOOKUP(CPU_Mec!A10,'ISD SICRO'!$A$2:$D$2319,4,0))),IF(B10="SEINFRA",(IFERROR(VLOOKUP(A10,'COMPSD SEINFRA'!$B$7:$G$5611,4,0),VLOOKUP(CPU_Mec!A10,'ISD SEINFRA'!A7:$D$11922,4,0))),))) -> 39.5558 | G10: 8 | H10: =F10*G10 -> 316.4464 | J10: =H10*(1-CAPA!$D$13) -> 303.788544
A11: 251 | B11: SINAPI | C11: AUXILIAR DE MECANICO (HORISTA) | D11: COMPOSIÇÃO | E11: =IF(B11="SINAPI",(IFERROR(VLOOKUP(A11,'CompSD SINAPI'!$B$11:$F$9784,3,0),VLOOKUP(CPU_Mec!A11,'ISD SINAPI'!$B$11:$F$4903,3,0))),IF(OR(B11="SICRO",B11="SICRO3"),(IFERROR(VLOOKUP(A11,'COMP SD SICRO'!$A$2:$D$6495,3,0),VLOOKUP(CPU_Mec!A11,'ISD SICRO'!$A$2:$D$2319,3,0))),IF(B11="SEINFRA",(IFERROR(VLOOKUP(A11,'COMPSD SEINFRA'!$B$7:$G$5611,3,0),VLOOKUP(CPU_Mec!A11,'ISD SEINFRA'!A8:$D$11922,3,0))),))) -> H | F11: =IF(B11="SINAPI",(IFERROR(VLOOKUP(A11,'CompSD SINAPI'!$B$11:$F$9784,4,0),VLOOKUP(CPU_Mec!A11,'ISD SINAPI'!$B$11:$F$4903,5,0))),IF(OR(B11="SICRO",B11="SICRO3"),(IFERROR(VLOOKUP(A11,'COMP SD SICRO'!$A$2:$D$6495,4,0),VLOOKUP(CPU_Mec!A11,'ISD SICRO'!$A$2:$D$2319,4,0))),IF(B11="SEINFRA",(IFERROR(VLOOKUP(A11,'COMPSD SEINFRA'!$B$7:$G$5611,4,0),VLOOKUP(CPU_Mec!A11,'ISD SEINFRA'!A8:$D$11922,4,0))),))) -> 16.01 | G11: 8 | H11: =F11*G11 -> 128.08 | J11: =H11*(1-CAPA!$D$13) -> 122.9568
A12: CPU-M02 | B12: PROPRIA | C12: Manutenção de válvula borboleta com redutor e acionamento manual DN 300 a 800 mm | E12: und | I12: =SUM(H13:H14) -> 666.7896 | J12: =SUM(J13:J14) -> 640.118016
A13: P9882 | B13: SICRO | C13: Técnico especializado | D13: COMPOSIÇÃO | E13: =IF(B13="SINAPI",(IFERROR(VLOOKUP(A13,'CompSD SINAPI'!$B$11:$F$9784,3,0),VLOOKUP(CPU_Mec!A13,'ISD SINAPI'!$B$11:$F$4903,3,0))),IF(OR(B13="SICRO",B13="SICRO3"),(IFERROR(VLOOKUP(A13,'COMP SD SICRO'!$A$2:$D$6495,3,0),VLOOKUP(CPU_Mec!A13,'ISD SICRO'!$A$2:$D$2319,3,0))),IF(B13="SEINFRA",(IFERROR(VLOOKUP(A13,'COMPSD SEINFRA'!$B$7:$G$5611,3,0),VLOOKUP(CPU_Mec!A13,'ISD SEINFRA'!A10:$D$11922,3,0))),))) -> h | F13: =IF(B13="SINAPI",(IFERROR(VLOOKUP(A13,'CompSD SINAPI'!$B$11:$F$9784,4,0),VLOOKUP(CPU_Mec!A13,'ISD SINAPI'!$B$11:$F$4903,5,0))),IF(OR(B13="SICRO",B13="SICRO3"),(IFERROR(VLOOKUP(A13,'COMP SD SICRO'!$A$2:$D$6495,4,0),VLOOKUP(CPU_Mec!A13,'ISD SICRO'!$A$2:$D$2319,4,0))),IF(B13="SEINFRA",(IFERROR(VLOOKUP(A13,'COMPSD SEINFRA'!$B$7:$G$5611,4,0),VLOOKUP(CPU_Mec!A13,'ISD SEINFRA'!A10:$D$11922,4,0))),))) -> 39.5558 | G13: 12 | H13: =F13*G13 -> 474.6696 | J13: =H13*(1-CAPA!$D$13) -> 455.682816
A14: 251 | B14: SINAPI | C14: AUXILIAR DE MECANICO (HORISTA) | D14: COMPOSIÇÃO | E14: =IF(B14="SINAPI",(IFERROR(VLOOKUP(A14,'CompSD SINAPI'!$B$11:$F$9784,3,0),VLOOKUP(CPU_Mec!A14,'ISD SINAPI'!$B$11:$F$4903,3,0))),IF(OR(B14="SICRO",B14="SICRO3"),(IFERROR(VLOOKUP(A14,'COMP SD SICRO'!$A$2:$D$6495,3,0),VLOOKUP(CPU_Mec!A14,'ISD SICRO'!$A$2:$D$2319,3,0))),IF(B14="SEINFRA",(IFERROR(VLOOKUP(A14,'COMPSD SEINFRA'!$B$7:$G$5611,3,0),VLOOKUP(CPU_Mec!A14,'ISD SEINFRA'!A11:$D$11922,3,0))),))) -> H | F14: =IF(B14="SINAPI",(IFERROR(VLOOKUP(A14,'CompSD SINAPI'!$B$11:$F$9784,4,0),VLOOKUP(CPU_Mec!A14,'ISD SINAPI'!$B$11:$F$4903,5,0))),IF(OR(B14="SICRO",B14="SICRO3"),(IFERROR(VLOOKUP(A14,'COMP SD SICRO'!$A$2:$D$6495,4,0),VLOOKUP(CPU_Mec!A14,'ISD SICRO'!$A$2:$D$2319,4,0))),IF(B14="SEINFRA",(IFERROR(VLOOKUP(A14,'COMPSD SEINFRA'!$B$7:$G$5611,4,0),VLOOKUP(CPU_Mec!A14,'ISD SEINFRA'!A11:$D$11922,4,0))),))) -> 16.01 | G14: 12 | H14: =F14*G14 -> 192.12 | J14: =H14*(1-CAPA!$D$13) -> 184.4352
A15: CPU-M03 | B15: PROPRIA | C15: Manutenção de ventosa DN < 300mm | E15: und | I15: =SUM(H16:H17) -> 444.5264 | J15: =SUM(J16:J17) -> 426.745344
A16: P9882 | B16: SICRO | C16: Técnico especializado | D16: COMPOSIÇÃO | E16: =IF(B16="SINAPI",(IFERROR(VLOOKUP(A16,'CompSD SINAPI'!$B$11:$F$9784,3,0),VLOOKUP(CPU_Mec!A16,'ISD SINAPI'!$B$11:$F$4903,3,0))),IF(OR(B16="SICRO",B16="SICRO3"),(IFERROR(VLOOKUP(A16,'COMP SD SICRO'!$A$2:$D$6495,3,0),VLOOKUP(CPU_Mec!A16,'ISD SICRO'!$A$2:$D$2319,3,0))),IF(B16="SEINFRA",(IFERROR(VLOOKUP(A16,'COMPSD SEINFRA'!$B$7:$G$5611,3,0),VLOOKUP(CPU_Mec!A16,'ISD SEINFRA'!A13:$D$11922,3,0))),))) -> h | F16: =IF(B16="SINAPI",(IFERROR(VLOOKUP(A16,'CompSD SINAPI'!$B$11:$F$9784,4,0),VLOOKUP(CPU_Mec!A16,'ISD SINAPI'!$B$11:$F$4903,5,0))),IF(OR(B16="SICRO",B16="SICRO3"),(IFERROR(VLOOKUP(A16,'COMP SD SICRO'!$A$2:$D$6495,4,0),VLOOKUP(CPU_Mec!A16,'ISD SICRO'!$A$2:$D$2319,4,0))),IF(B16="SEINFRA",(IFERROR(VLOOKUP(A16,'COMPSD SEINFRA'!$B$7:$G$5611,4,0),VLOOKUP(CPU_Mec!A16,'ISD SEINFRA'!A13:$D$11922,4,0))),))) -> 39.5558 | G16: 8 | H16: =F16*G16 -> 316.4464 | J16: =H16*(1-CAPA!$D$13) -> 303.788544
A17: 251 | B17: SINAPI | C17: AUXILIAR DE MECANICO (HORISTA) | D17: COMPOSIÇÃO | E17: =IF(B17="SINAPI",(IFERROR(VLOOKUP(A17,'CompSD SINAPI'!$B$11:$F$9784,3,0),VLOOKUP(CPU_Mec!A17,'ISD SINAPI'!$B$11:$F$4903,3,0))),IF(OR(B17="SICRO",B17="SICRO3"),(IFERROR(VLOOKUP(A17,'COMP SD SICRO'!$A$2:$D$6495,3,0),VLOOKUP(CPU_Mec!A17,'ISD SICRO'!$A$2:$D$2319,3,0))),IF(B17="SEINFRA",(IFERROR(VLOOKUP(A17,'COMPSD SEINFRA'!$B$7:$G$5611,3,0),VLOOKUP(CPU_Mec!A17,'ISD SEINFRA'!A14:$D$11922,3,0))),))) -> H | F17: =IF(B17="SINAPI",(IFERROR(VLOOKUP(A17,'CompSD SINAPI'!$B$11:$F$9784,4,0),VLOOKUP(CPU_Mec!A17,'ISD SINAPI'!$B$11:$F$4903,5,0))),IF(OR(B17="SICRO",B17="SICRO3"),(IFERROR(VLOOKUP(A17,'COMP SD SICRO'!$A$2:$D$6495,4,0),VLOOKUP(CPU_Mec!A17,'ISD SICRO'!$A$2:$D$2319,4,0))),IF(B17="SEINFRA",(IFERROR(VLOOKUP(A17,'COMPSD SEINFRA'!$B$7:$G$5611,4,0),VLOOKUP(CPU_Mec!A17,'ISD SEINFRA'!A14:$D$11922,4,0))),))) -> 16.01 | G17: 8 | H17: =F17*G17 -> 128.08 | J17: =H17*(1-CAPA!$D$13) -> 122.9568
A18: CPU-M04 | B18: PROPRIA | C18: Manutenção de válvula Clasar | E18: und | I18: =SUM(H19:H20) -> 333.3948 | J18: =SUM(J19:J20) -> 320.059008
A19: P9882 | B19: SICRO | C19: Técnico especializado | D19: COMPOSIÇÃO | E19: =IF(B19="SINAPI",(IFERROR(VLOOKUP(A19,'CompSD SINAPI'!$B$11:$F$9784,3,0),VLOOKUP(CPU_Mec!A19,'ISD SINAPI'!$B$11:$F$4903,3,0))),IF(OR(B19="SICRO",B19="SICRO3"),(IFERROR(VLOOKUP(A19,'COMP SD SICRO'!$A$2:$D$6495,3,0),VLOOKUP(CPU_Mec!A19,'ISD SICRO'!$A$2:$D$2319,3,0))),IF(B19="SEINFRA",(IFERROR(VLOOKUP(A19,'COMPSD SEINFRA'!$B$7:$G$5611,3,0),VLOOKUP(CPU_Mec!A19,'ISD SEINFRA'!A19:$D$11922,3,0))),))) -> h | F19: =IF(B19="SINAPI",(IFERROR(VLOOKUP(A19,'CompSD SINAPI'!$B$11:$F$9784,4,0),VLOOKUP(CPU_Mec!A19,'ISD SINAPI'!$B$11:$F$4903,5,0))),IF(OR(B19="SICRO",B19="SICRO3"),(IFERROR(VLOOKUP(A19,'COMP SD SICRO'!$A$2:$D$6495,4,0),VLOOKUP(CPU_Mec!A19,'ISD SICRO'!$A$2:$D$2319,4,0))),IF(B19="SEINFRA",(IFERROR(VLOOKUP(A19,'COMPSD SEINFRA'!$B$7:$G$5611,4,0),VLOOKUP(CPU_Mec!A19,'ISD SEINFRA'!A19:$D$11922,4,0))),))) -> 39.5558 | G19: 6 | H19: =F19*G19 -> 237.3348 | J19: =H19*(1-CAPA!$D$13) -> 227.841408
A20: 251 | B20: SINAPI | C20: AUXILIAR DE MECANICO (HORISTA) | D20: COMPOSIÇÃO | E20: =IF(B20="SINAPI",(IFERROR(VLOOKUP(A20,'CompSD SINAPI'!$B$11:$F$9784,3,0),VLOOKUP(CPU_Mec!A20,'ISD SINAPI'!$B$11:$F$4903,3,0))),IF(OR(B20="SICRO",B20="SICRO3"),(IFERROR(VLOOKUP(A20,'COMP SD SICRO'!$A$2:$D$6495,3,0),VLOOKUP(CPU_Mec!A20,'ISD SICRO'!$A$2:$D$2319,3,0))),IF(B20="SEINFRA",(IFERROR(VLOOKUP(A20,'COMPSD SEINFRA'!$B$7:$G$5611,3,0),VLOOKUP(CPU_Mec!A20,'ISD SEINFRA'!A20:$D$11922,3,0))),))) -> H | F20: =IF(B20="SINAPI",(IFERROR(VLOOKUP(A20,'CompSD SINAPI'!$B$11:$F$9784,4,0),VLOOKUP(CPU_Mec!A20,'ISD SINAPI'!$B$11:$F$4903,5,0))),IF(OR(B20="SICRO",B20="SICRO3"),(IFERROR(VLOOKUP(A20,'COMP SD SICRO'!$A$2:$D$6495,4,0),VLOOKUP(CPU_Mec!A20,'ISD SICRO'!$A$2:$D$2319,4,0))),IF(B20="SEINFRA",(IFERROR(VLOOKUP(A20,'COMPSD SEINFRA'!$B$7:$G$5611,4,0),VLOOKUP(CPU_Mec!A20,'ISD SEINFRA'!A20:$D$11922,4,0))),))) -> 16.01 | G20: 6 | H20: =F20*G20 -> 96.06 | J20: =H20*(1-CAPA!$D$13) -> 92.2176
A21: CPU-M05 | B21: PROPRIA | C21: Manutenção de comporta de poço de bombas | E21: und | I21: =SUM(H22:H23) -> 333.3948 | J21: =SUM(J22:J23) -> 320.059008
A22: P9882 | B22: SICRO | C22: Técnico especializado | D22: COMPOSIÇÃO | E22: =IF(B22="SINAPI",(IFERROR(VLOOKUP(A22,'CompSD SINAPI'!$B$11:$F$9784,3,0),VLOOKUP(CPU_Mec!A22,'ISD SINAPI'!$B$11:$F$4903,3,0))),IF(OR(B22="SICRO",B22="SICRO3"),(IFERROR(VLOOKUP(A22,'COMP SD SICRO'!$A$2:$D$6495,3,0),VLOOKUP(CPU_Mec!A22,'ISD SICRO'!$A$2:$D$2319,3,0))),IF(B22="SEINFRA",(IFERROR(VLOOKUP(A22,'COMPSD SEINFRA'!$B$7:$G$5611,3,0),VLOOKUP(CPU_Mec!A22,'ISD SEINFRA'!A22:$D$11922,3,0))),))) -> h | F22: =IF(B22="SINAPI",(IFERROR(VLOOKUP(A22,'CompSD SINAPI'!$B$11:$F$9784,4,0),VLOOKUP(CPU_Mec!A22,'ISD SINAPI'!$B$11:$F$4903,5,0))),IF(OR(B22="SICRO",B22="SICRO3"),(IFERROR(VLOOKUP(A22,'COMP SD SICRO'!$A$2:$D$6495,4,0),VLOOKUP(CPU_Mec!A22,'ISD SICRO'!$A$2:$D$2319,4,0))),IF(B22="SEINFRA",(IFERROR(VLOOKUP(A22,'COMPSD SEINFRA'!$B$7:$G$5611,4,0),VLOOKUP(CPU_Mec!A22,'ISD SEINFRA'!A22:$D$11922,4,0))),))) -> 39.5558 | G22: 6 | H22: =F22*G22 -> 237.3348 | J22: =H22*(1-CAPA!$D$13) -> 227.841408
A23: 251 | B23: SINAPI | C23: AUXILIAR DE MECANICO (HORISTA) | D23: COMPOSIÇÃO | E23: =IF(B23="SINAPI",(IFERROR(VLOOKUP(A23,'CompSD SINAPI'!$B$11:$F$9784,3,0),VLOOKUP(CPU_Mec!A23,'ISD SINAPI'!$B$11:$F$4903,3,0))),IF(OR(B23="SICRO",B23="SICRO3"),(IFERROR(VLOOKUP(A23,'COMP SD SICRO'!$A$2:$D$6495,3,0),VLOOKUP(CPU_Mec!A23,'ISD SICRO'!$A$2:$D$2319,3,0))),IF(B23="SEINFRA",(IFERROR(VLOOKUP(A23,'COMPSD SEINFRA'!$B$7:$G$5611,3,0),VLOOKUP(CPU_Mec!A23,'ISD SEINFRA'!A23:$D$11922,3,0))),))) -> H | F23: =IF(B23="SINAPI",(IFERROR(VLOOKUP(A23,'CompSD SINAPI'!$B$11:$F$9784,4,0),VLOOKUP(CPU_Mec!A23,'ISD SINAPI'!$B$11:$F$4903,5,0))),IF(OR(B23="SICRO",B23="SICRO3"),(IFERROR(VLOOKUP(A23,'COMP SD SICRO'!$A$2:$D$6495,4,0),VLOOKUP(CPU_Mec!A23,'ISD SICRO'!$A$2:$D$2319,4,0))),IF(B23="SEINFRA",(IFERROR(VLOOKUP(A23,'COMPSD SEINFRA'!$B$7:$G$5611,4,0),VLOOKUP(CPU_Mec!A23,'ISD SEINFRA'!A23:$D$11922,4,0))),))) -> 16.01 | G23: 6 | H23: =F23*G23 -> 96.06 | J23: =H23*(1-CAPA!$D$13) -> 92.2176
A24: CPU-M06 | B24: PROPRIA | C24: Montagem de válvula sustentadora de pressão DN 500mm | E24: und | I24: =SUM(H25:H27) -> 1749.798 | J24: =SUM(J25:J27) -> 1679.80608
A25: P9882 | B25: SICRO | C25: Técnico especializado | D25: COMPOSIÇÃO | E25: =IF(B25="SINAPI",(IFERROR(VLOOKUP(A25,'CompSD SINAPI'!$B$11:$F$9784,3,0),VLOOKUP(CPU_Mec!A25,'ISD SINAPI'!$B$11:$F$4903,3,0))),IF(OR(B25="SICRO",B25="SICRO3"),(IFERROR(VLOOKUP(A25,'COMP SD SICRO'!$A$2:$D$6495,3,0),VLOOKUP(CPU_Mec!A25,'ISD SICRO'!$A$2:$D$2319,3,0))),IF(B25="SEINFRA",(IFERROR(VLOOKUP(A25,'COMPSD SEINFRA'!$B$7:$G$5611,3,0),VLOOKUP(CPU_Mec!A25,'ISD SEINFRA'!A25:$D$11922,3,0))),))) -> h | F25: =IF(B25="SINAPI",(IFERROR(VLOOKUP(A25,'CompSD SINAPI'!$B$11:$F$9784,4,0),VLOOKUP(CPU_Mec!A25,'ISD SINAPI'!$B$11:$F$4903,5,0))),IF(OR(B25="SICRO",B25="SICRO3"),(IFERROR(VLOOKUP(A25,'COMP SD SICRO'!$A$2:$D$6495,4,0),VLOOKUP(CPU_Mec!A25,'ISD SICRO'!$A$2:$D$2319,4,0))),IF(B25="SEINFRA",(IFERROR(VLOOKUP(A25,'COMPSD SEINFRA'!$B$7:$G$5611,4,0),VLOOKUP(CPU_Mec!A25,'ISD SEINFRA'!A25:$D$11922,4,0))),))) -> 39.5558 | G25: 25 | H25: =F25*G25 -> 988.895 | J25: =H25*(1-CAPA!$D$13) -> 949.3392
A26: P9825 | B26: SICRO | C26: Soldador | D26: COMPOSIÇÃO | E26: =IF(B26="SINAPI",(IFERROR(VLOOKUP(A26,'CompSD SINAPI'!$B$11:$F$9784,3,0),VLOOKUP(CPU_Mec!A26,'ISD SINAPI'!$B$11:$F$4903,3,0))),IF(OR(B26="SICRO",B26="SICRO3"),(IFERROR(VLOOKUP(A26,'COMP SD SICRO'!$A$2:$D$6495,3,0),VLOOKUP(CPU_Mec!A26,'ISD SICRO'!$A$2:$D$2319,3,0))),IF(B26="SEINFRA",(IFERROR(VLOOKUP(A26,'COMPSD SEINFRA'!$B$7:$G$5611,3,0),VLOOKUP(CPU_Mec!A26,'ISD SEINFRA'!A26:$D$11922,3,0))),))) -> h | F26: =IF(B26="SINAPI",(IFERROR(VLOOKUP(A26,'CompSD SINAPI'!$B$11:$F$9784,4,0),VLOOKUP(CPU_Mec!A26,'ISD SINAPI'!$B$11:$F$4903,5,0))),IF(OR(B26="SICRO",B26="SICRO3"),(IFERROR(VLOOKUP(A26,'COMP SD SICRO'!$A$2:$D$6495,4,0),VLOOKUP(CPU_Mec!A26,'ISD SICRO'!$A$2:$D$2319,4,0))),IF(B26="SEINFRA",(IFERROR(VLOOKUP(A26,'COMPSD SEINFRA'!$B$7:$G$5611,4,0),VLOOKUP(CPU_Mec!A26,'ISD SEINFRA'!A26:$D$11922,4,0))),))) -> 36.0653 | G26: 10 | H26: =F26*G26 -> 360.653 | J26: =H26*(1-CAPA!$D$13) -> 346.22688
A27: 251 | B27: SINAPI | C27: AUXILIAR DE MECANICO (HORISTA) | D27: COMPOSIÇÃO | E27: =IF(B27="SINAPI",(IFERROR(VLOOKUP(A27,'CompSD SINAPI'!$B$11:$F$9784,3,0),VLOOKUP(CPU_Mec!A27,'ISD SINAPI'!$B$11:$F$4903,3,0))),IF(OR(B27="SICRO",B27="SICRO3"),(IFERROR(VLOOKUP(A27,'COMP SD SICRO'!$A$2:$D$6495,3,0),VLOOKUP(CPU_Mec!A27,'ISD SICRO'!$A$2:$D$2319,3,0))),IF(B27="SEINFRA",(IFERROR(VLOOKUP(A27,'COMPSD SEINFRA'!$B$7:$G$5611,3,0),VLOOKUP(CPU_Mec!A27,'ISD SEINFRA'!A26:$D$11922,3,0))),))) -> H | F27: =IF(B27="SINAPI",(IFERROR(VLOOKUP(A27,'CompSD SINAPI'!$B$11:$F$9784,4,0),VLOOKUP(CPU_Mec!A27,'ISD SINAPI'!$B$11:$F$4903,5,0))),IF(OR(B27="SICRO",B27="SICRO3"),(IFERROR(VLOOKUP(A27,'COMP SD SICRO'!$A$2:$D$6495,4,0),VLOOKUP(CPU_Mec!A27,'ISD SICRO'!$A$2:$D$2319,4,0))),IF(B27="SEINFRA",(IFERROR(VLOOKUP(A27,'COMPSD SEINFRA'!$B$7:$G$5611,4,0),VLOOKUP(CPU_Mec!A27,'ISD SEINFRA'!A26:$D$11922,4,0))),))) -> 16.01 | G27: 25 | H27: =F27*G27 -> 400.25 | J27: =H27*(1-CAPA!$D$13) -> 384.24
A28: CPU-M07 | B28: PROPRIA | C28: Manutenção de válvula borboleta DN < 300 mm | E28: und | I28: =SUM(H29:H30) -> 444.5264 | J28: =SUM(J29:J30) -> 426.745344
A29: P9882 | B29: SICRO | C29: Técnico especializado | D29: COMPOSIÇÃO | E29: =IF(B29="SINAPI",(IFERROR(VLOOKUP(A29,'CompSD SINAPI'!$B$11:$F$9784,3,0),VLOOKUP(CPU_Mec!A29,'ISD SINAPI'!$B$11:$F$4903,3,0))),IF(OR(B29="SICRO",B29="SICRO3"),(IFERROR(VLOOKUP(A29,'COMP SD SICRO'!$A$2:$D$6495,3,0),VLOOKUP(CPU_Mec!A29,'ISD SICRO'!$A$2:$D$2319,3,0))),IF(B29="SEINFRA",(IFERROR(VLOOKUP(A29,'COMPSD SEINFRA'!$B$7:$G$5611,3,0),VLOOKUP(CPU_Mec!A29,'ISD SEINFRA'!A26:$D$11922,3,0))),))) -> h | F29: =IF(B29="SINAPI",(IFERROR(VLOOKUP(A29,'CompSD SINAPI'!$B$11:$F$9784,4,0),VLOOKUP(CPU_Mec!A29,'ISD SINAPI'!$B$11:$F$4903,5,0))),IF(OR(B29="SICRO",B29="SICRO3"),(IFERROR(VLOOKUP(A29,'COMP SD SICRO'!$A$2:$D$6495,4,0),VLOOKUP(CPU_Mec!A29,'ISD SICRO'!$A$2:$D$2319,4,0))),IF(B29="SEINFRA",(IFERROR(VLOOKUP(A29,'COMPSD SEINFRA'!$B$7:$G$5611,4,0),VLOOKUP(CPU_Mec!A29,'ISD SEINFRA'!A26:$D$11922,4,0))),))) -> 39.5558 | G29: 8 | H29: =F29*G29 -> 316.4464 | J29: =H29*(1-CAPA!$D$13) -> 303.788544
A30: 251 | B30: SINAPI | C30: AUXILIAR DE MECANICO (HORISTA) | D30: COMPOSIÇÃO | E30: =IF(B30="SINAPI",(IFERROR(VLOOKUP(A30,'CompSD SINAPI'!$B$11:$F$9784,3,0),VLOOKUP(CPU_Mec!A30,'ISD SINAPI'!$B$11:$F$4903,3,0))),IF(OR(B30="SICRO",B30="SICRO3"),(IFERROR(VLOOKUP(A30,'COMP SD SICRO'!$A$2:$D$6495,3,0),VLOOKUP(CPU_Mec!A30,'ISD SICRO'!$A$2:$D$2319,3,0))),IF(B30="SEINFRA",(IFERROR(VLOOKUP(A30,'COMPSD SEINFRA'!$B$7:$G$5611,3,0),VLOOKUP(CPU_Mec!A30,'ISD SEINFRA'!A27:$D$11922,3,0))),))) -> H | F30: =IF(B30="SINAPI",(IFERROR(VLOOKUP(A30,'CompSD SINAPI'!$B$11:$F$9784,4,0),VLOOKUP(CPU_Mec!A30,'ISD SINAPI'!$B$11:$F$4903,5,0))),IF(OR(B30="SICRO",B30="SICRO3"),(IFERROR(VLOOKUP(A30,'COMP SD SICRO'!$A$2:$D$6495,4,0),VLOOKUP(CPU_Mec!A30,'ISD SICRO'!$A$2:$D$2319,4,0))),IF(B30="SEINFRA",(IFERROR(VLOOKUP(A30,'COMPSD SEINFRA'!$B$7:$G$5611,4,0),VLOOKUP(CPU_Mec!A30,'ISD SEINFRA'!A27:$D$11922,4,0))),))) -> 16.01 | G30: 8 | H30: =F30*G30 -> 128.08 | J30: =H30*(1-CAPA!$D$13) -> 122.9568
A31: CPU-M08 | B31: PROPRIA | C31: Manutenção de de filtro autolimpante Amiad | E31: und | I31: =SUM(H32:H33) -> 1229.045 | J31: =SUM(J32:J33) -> 1179.8832
A32: P9882 | B32: SICRO | C32: Técnico especializado | D32: COMPOSIÇÃO | E32: =IF(B32="SINAPI",(IFERROR(VLOOKUP(A32,'CompSD SINAPI'!$B$11:$F$9784,3,0),VLOOKUP(CPU_Mec!A32,'ISD SINAPI'!$B$11:$F$4903,3,0))),IF(OR(B32="SICRO",B32="SICRO3"),(IFERROR(VLOOKUP(A32,'COMP SD SICRO'!$A$2:$D$6495,3,0),VLOOKUP(CPU_Mec!A32,'ISD SICRO'!$A$2:$D$2319,3,0))),IF(B32="SEINFRA",(IFERROR(VLOOKUP(A32,'COMPSD SEINFRA'!$B$7:$G$5611,3,0),VLOOKUP(CPU_Mec!A32,'ISD SEINFRA'!A29:$D$11922,3,0))),))) -> h | F32: =IF(B32="SINAPI",(IFERROR(VLOOKUP(A32,'CompSD SINAPI'!$B$11:$F$9784,4,0),VLOOKUP(CPU_Mec!A32,'ISD SINAPI'!$B$11:$F$4903,5,0))),IF(OR(B32="SICRO",B32="SICRO3"),(IFERROR(VLOOKUP(A32,'COMP SD SICRO'!$A$2:$D$6495,4,0),VLOOKUP(CPU_Mec!A32,'ISD SICRO'!$A$2:$D$2319,4,0))),IF(B32="SEINFRA",(IFERROR(VLOOKUP(A32,'COMPSD SEINFRA'!$B$7:$G$5611,4,0),VLOOKUP(CPU_Mec!A32,'ISD SEINFRA'!A29:$D$11922,4,0))),))) -> 39.5558 | G32: 25 | H32: =F32*G32 -> 988.895 | J32: =H32*(1-CAPA!$D$13) -> 949.3392
A33: 251 | B33: SINAPI | C33: AUXILIAR DE MECANICO (HORISTA) | D33: COMPOSIÇÃO | E33: =IF(B33="SINAPI",(IFERROR(VLOOKUP(A33,'CompSD SINAPI'!$B$11:$F$9784,3,0),VLOOKUP(CPU_Mec!A33,'ISD SINAPI'!$B$11:$F$4903,3,0))),IF(OR(B33="SICRO",B33="SICRO3"),(IFERROR(VLOOKUP(A33,'COMP SD SICRO'!$A$2:$D$6495,3,0),VLOOKUP(CPU_Mec!A33,'ISD SICRO'!$A$2:$D$2319,3,0))),IF(B33="SEINFRA",(IFERROR(VLOOKUP(A33,'COMPSD SEINFRA'!$B$7:$G$5611,3,0),VLOOKUP(CPU_Mec!A33,'ISD SEINFRA'!A30:$D$11922,3,0))),))) -> H | F33: =IF(B33="SINAPI",(IFERROR(VLOOKUP(A33,'CompSD SINAPI'!$B$11:$F$9784,4,0),VLOOKUP(CPU_Mec!A33,'ISD SINAPI'!$B$11:$F$4903,5,0))),IF(OR(B33="SICRO",B33="SICRO3"),(IFERROR(VLOOKUP(A33,'COMP SD SICRO'!$A$2:$D$6495,4,0),VLOOKUP(CPU_Mec!A33,'ISD SICRO'!$A$2:$D$2319,4,0))),IF(B33="SEINFRA",(IFERROR(VLOOKUP(A33,'COMPSD SEINFRA'!$B$7:$G$5611,4,0),VLOOKUP(CPU_Mec!A33,'ISD SEINFRA'!A30:$D$11922,4,0))),))) -> 16.01 | G33: 15 | H33: =F33*G33 -> 240.15 | J33: =H33*(1-CAPA!$D$13) -> 230.544
A34: CPU-M09 | B34: PROPRIA | C34: Manutenção de válvulas borboleta com redutor e acionamento manual DN > 300 mm e < 800 mm | E34: und | I34: =SUM(H35:H36) -> 1111.316 | J34: =SUM(J35:J36) -> 1066.86336
A35: P9882 | B35: SICRO | C35: Técnico especializado | D35: COMPOSIÇÃO | E35: =IF(B35="SINAPI",(IFERROR(VLOOKUP(A35,'CompSD SINAPI'!$B$11:$F$9784,3,0),VLOOKUP(CPU_Mec!A35,'ISD SINAPI'!$B$11:$F$4903,3,0))),IF(OR(B35="SICRO",B35="SICRO3"),(IFERROR(VLOOKUP(A35,'COMP SD SICRO'!$A$2:$D$6495,3,0),VLOOKUP(CPU_Mec!A35,'ISD SICRO'!$A$2:$D$2319,3,0))),IF(B35="SEINFRA",(IFERROR(VLOOKUP(A35,'COMPSD SEINFRA'!$B$7:$G$5611,3,0),VLOOKUP(CPU_Mec!A35,'ISD SEINFRA'!A33:$D$11922,3,0))),))) -> h | F35: =IF(B35="SINAPI",(IFERROR(VLOOKUP(A35,'CompSD SINAPI'!$B$11:$F$9784,4,0),VLOOKUP(CPU_Mec!A35,'ISD SINAPI'!$B$11:$F$4903,5,0))),IF(OR(B35="SICRO",B35="SICRO3"),(IFERROR(VLOOKUP(A35,'COMP SD SICRO'!$A$2:$D$6495,4,0),VLOOKUP(CPU_Mec!A35,'ISD SICRO'!$A$2:$D$2319,4,0))),IF(B35="SEINFRA",(IFERROR(VLOOKUP(A35,'COMPSD SEINFRA'!$B$7:$G$5611,4,0),VLOOKUP(CPU_Mec!A35,'ISD SEINFRA'!A33:$D$11922,4,0))),))) -> 39.5558 | G35: 20 | H35: =F35*G35 -> 791.116 | J35: =H35*(1-CAPA!$D$13) -> 759.47136
A36: 251 | B36: SINAPI | C36: AUXILIAR DE MECANICO (HORISTA) | D36: COMPOSIÇÃO | E36: =IF(B36="SINAPI",(IFERROR(VLOOKUP(A36,'CompSD SINAPI'!$B$11:$F$9784,3,0),VLOOKUP(CPU_Mec!A36,'ISD SINAPI'!$B$11:$F$4903,3,0))),IF(OR(B36="SICRO",B36="SICRO3"),(IFERROR(VLOOKUP(A36,'COMP SD SICRO'!$A$2:$D$6495,3,0),VLOOKUP(CPU_Mec!A36,'ISD SICRO'!$A$2:$D$2319,3,0))),IF(B36="SEINFRA",(IFERROR(VLOOKUP(A36,'COMPSD SEINFRA'!$B$7:$G$5611,3,0),VLOOKUP(CPU_Mec!A36,'ISD SEINFRA'!A34:$D$11922,3,0))),))) -> H | F36: =IF(B36="SINAPI",(IFERROR(VLOOKUP(A36,'CompSD SINAPI'!$B$11:$F$9784,4,0),VLOOKUP(CPU_Mec!A36,'ISD SINAPI'!$B$11:$F$4903,5,0))),IF(OR(B36="SICRO",B36="SICRO3"),(IFERROR(VLOOKUP(A36,'COMP SD SICRO'!$A$2:$D$6495,4,0),VLOOKUP(CPU_Mec!A36,'ISD SICRO'!$A$2:$D$2319,4,0))),IF(B36="SEINFRA",(IFERROR(VLOOKUP(A36,'COMPSD SEINFRA'!$B$7:$G$5611,4,0),VLOOKUP(CPU_Mec!A36,'ISD SEINFRA'!A34:$D$11922,4,0))),))) -> 16.01 | G36: 20 | H36: =F36*G36 -> 320.2 | J36: =H36*(1-CAPA!$D$13) -> 307.392
A37: CPU-M10 | B37: PROPRIA | C37: Manutenção de válvulas borboleta motorizadas DN 1.200 mm | E37: und | I37: =SUM(H38:H40) -> 1734.438 | J37: =SUM(J38:J40) -> 1665.06048
A38: P9882 | B38: SICRO | C38: Técnico especializado | D38: COMPOSIÇÃO | E38: =IF(B38="SINAPI",(IFERROR(VLOOKUP(A38,'CompSD SINAPI'!$B$11:$F$9784,3,0),VLOOKUP(CPU_Mec!A38,'ISD SINAPI'!$B$11:$F$4903,3,0))),IF(OR(B38="SICRO",B38="SICRO3"),(IFERROR(VLOOKUP(A38,'COMP SD SICRO'!$A$2:$D$6495,3,0),VLOOKUP(CPU_Mec!A38,'ISD SICRO'!$A$2:$D$2319,3,0))),IF(B38="SEINFRA",(IFERROR(VLOOKUP(A38,'COMPSD SEINFRA'!$B$7:$G$5611,3,0),VLOOKUP(CPU_Mec!A38,'ISD SEINFRA'!A36:$D$11922,3,0))),))) -> h | F38: =IF(B38="SINAPI",(IFERROR(VLOOKUP(A38,'CompSD SINAPI'!$B$11:$F$9784,4,0),VLOOKUP(CPU_Mec!A38,'ISD SINAPI'!$B$11:$F$4903,5,0))),IF(OR(B38="SICRO",B38="SICRO3"),(IFERROR(VLOOKUP(A38,'COMP SD SICRO'!$A$2:$D$6495,4,0),VLOOKUP(CPU_Mec!A38,'ISD SICRO'!$A$2:$D$2319,4,0))),IF(B38="SEINFRA",(IFERROR(VLOOKUP(A38,'COMPSD SEINFRA'!$B$7:$G$5611,4,0),VLOOKUP(CPU_Mec!A38,'ISD SEINFRA'!A36:$D$11922,4,0))),))) -> 39.5558 | G38: 20 | H38: =F38*G38 -> 791.116 | J38: =H38*(1-CAPA!$D$13) -> 759.47136
A39: P9810 | B39: SICRO | C39: Eletricista | D39: COMPOSIÇÃO | E39: =IF(B39="SINAPI",(IFERROR(VLOOKUP(A39,'CompSD SINAPI'!$B$11:$F$9784,3,0),VLOOKUP(CPU_Mec!A39,'ISD SINAPI'!$B$11:$F$4903,3,0))),IF(OR(B39="SICRO",B39="SICRO3"),(IFERROR(VLOOKUP(A39,'COMP SD SICRO'!$A$2:$D$6495,3,0),VLOOKUP(CPU_Mec!A39,'ISD SICRO'!$A$2:$D$2319,3,0))),IF(B39="SEINFRA",(IFERROR(VLOOKUP(A39,'COMPSD SEINFRA'!$B$7:$G$5611,3,0),VLOOKUP(CPU_Mec!A39,'ISD SEINFRA'!A39:$D$11922,3,0))),))) -> h | F39: =IF(B39="SINAPI",(IFERROR(VLOOKUP(A39,'CompSD SINAPI'!$B$11:$F$9784,4,0),VLOOKUP(CPU_Mec!A39,'ISD SINAPI'!$B$11:$F$4903,5,0))),IF(OR(B39="SICRO",B39="SICRO3"),(IFERROR(VLOOKUP(A39,'COMP SD SICRO'!$A$2:$D$6495,4,0),VLOOKUP(CPU_Mec!A39,'ISD SICRO'!$A$2:$D$2319,4,0))),IF(B39="SEINFRA",(IFERROR(VLOOKUP(A39,'COMPSD SEINFRA'!$B$7:$G$5611,4,0),VLOOKUP(CPU_Mec!A39,'ISD SEINFRA'!A39:$D$11922,4,0))),))) -> 31.1561 | G39: 20 | H39: =F39*G39 -> 623.122 | J39: =H39*(1-CAPA!$D$13) -> 598.19712
A40: 251 | B40: SINAPI | C40: AUXILIAR DE MECANICO (HORISTA) | D40: COMPOSIÇÃO | E40: =IF(B40="SINAPI",(IFERROR(VLOOKUP(A40,'CompSD SINAPI'!$B$11:$F$9784,3,0),VLOOKUP(CPU_Mec!A40,'ISD SINAPI'!$B$11:$F$4903,3,0))),IF(OR(B40="SICRO",B40="SICRO3"),(IFERROR(VLOOKUP(A40,'COMP SD SICRO'!$A$2:$D$6495,3,0),VLOOKUP(CPU_Mec!A40,'ISD SICRO'!$A$2:$D$2319,3,0))),IF(B40="SEINFRA",(IFERROR(VLOOKUP(A40,'COMPSD SEINFRA'!$B$7:$G$5611,3,0),VLOOKUP(CPU_Mec!A40,'ISD SEINFRA'!A37:$D$11922,3,0))),))) -> H | F40: =IF(B40="SINAPI",(IFERROR(VLOOKUP(A40,'CompSD SINAPI'!$B$11:$F$9784,4,0),VLOOKUP(CPU_Mec!A40,'ISD SINAPI'!$B$11:$F$4903,5,0))),IF(OR(B40="SICRO",B40="SICRO3"),(IFERROR(VLOOKUP(A40,'COMP SD SICRO'!$A$2:$D$6495,4,0),VLOOKUP(CPU_Mec!A40,'ISD SICRO'!$A$2:$D$2319,4,0))),IF(B40="SEINFRA",(IFERROR(VLOOKUP(A40,'COMPSD SEINFRA'!$B$7:$G$5611,4,0),VLOOKUP(CPU_Mec!A40,'ISD SEINFRA'!A37:$D$11922,4,0))),))) -> 16.01 | G40: 20 | H40: =F40*G40 -> 320.2 | J40: =H40*(1-CAPA!$D$13) -> 307.392
A41: CPU-M11 | B41: PROPRIA | C41: Substituição dos conjuntos de Registro, Filtro Y de Linha e Válvula Bermad de controle de nível | E41: und | I41: =SUM(H42:H43) -> 333.3948 | J41: =SUM(J42:J43) -> 320.059008
A42: P9882 | B42: SICRO | C42: Técnico especializado | D42: COMPOSIÇÃO | E42: =IF(B42="SINAPI",(IFERROR(VLOOKUP(A42,'CompSD SINAPI'!$B$11:$F$9784,3,0),VLOOKUP(CPU_Mec!A42,'ISD SINAPI'!$B$11:$F$4903,3,0))),IF(OR(B42="SICRO",B42="SICRO3"),(IFERROR(VLOOKUP(A42,'COMP SD SICRO'!$A$2:$D$6495,3,0),VLOOKUP(CPU_Mec!A42,'ISD SICRO'!$A$2:$D$2319,3,0))),IF(B42="SEINFRA",(IFERROR(VLOOKUP(A42,'COMPSD SEINFRA'!$B$7:$G$5611,3,0),VLOOKUP(CPU_Mec!A42,'ISD SEINFRA'!A40:$D$11922,3,0))),))) -> h | F42: =IF(B42="SINAPI",(IFERROR(VLOOKUP(A42,'CompSD SINAPI'!$B$11:$F$9784,4,0),VLOOKUP(CPU_Mec!A42,'ISD SINAPI'!$B$11:$F$4903,5,0))),IF(OR(B42="SICRO",B42="SICRO3"),(IFERROR(VLOOKUP(A42,'COMP SD SICRO'!$A$2:$D$6495,4,0),VLOOKUP(CPU_Mec!A42,'ISD SICRO'!$A$2:$D$2319,4,0))),IF(B42="SEINFRA",(IFERROR(VLOOKUP(A42,'COMPSD SEINFRA'!$B$7:$G$5611,4,0),VLOOKUP(CPU_Mec!A42,'ISD SEINFRA'!A40:$D$11922,4,0))),))) -> 39.5558 | G42: 6 | H42: =F42*G42 -> 237.3348 | J42: =H42*(1-CAPA!$D$13) -> 227.841408
A43: 251 | B43: SINAPI | C43: AUXILIAR DE MECANICO (HORISTA) | D43: COMPOSIÇÃO | E43: =IF(B43="SINAPI",(IFERROR(VLOOKUP(A43,'CompSD SINAPI'!$B$11:$F$9784,3,0),VLOOKUP(CPU_Mec!A43,'ISD SINAPI'!$B$11:$F$4903,3,0))),IF(OR(B43="SICRO",B43="SICRO3"),(IFERROR(VLOOKUP(A43,'COMP SD SICRO'!$A$2:$D$6495,3,0),VLOOKUP(CPU_Mec!A43,'ISD SICRO'!$A$2:$D$2319,3,0))),IF(B43="SEINFRA",(IFERROR(VLOOKUP(A43,'COMPSD SEINFRA'!$B$7:$G$5611,3,0),VLOOKUP(CPU_Mec!A43,'ISD SEINFRA'!A41:$D$11922,3,0))),))) -> H | F43: =IF(B43="SINAPI",(IFERROR(VLOOKUP(A43,'CompSD SINAPI'!$B$11:$F$9784,4,0),VLOOKUP(CPU_Mec!A43,'ISD SINAPI'!$B$11:$F$4903,5,0))),IF(OR(B43="SICRO",B43="SICRO3"),(IFERROR(VLOOKUP(A43,'COMP SD SICRO'!$A$2:$D$6495,4,0),VLOOKUP(CPU_Mec!A43,'ISD SICRO'!$A$2:$D$2319,4,0))),IF(B43="SEINFRA",(IFERROR(VLOOKUP(A43,'COMPSD SEINFRA'!$B$7:$G$5611,4,0),VLOOKUP(CPU_Mec!A43,'ISD SEINFRA'!A41:$D$11922,4,0))),))) -> 16.01 | G43: 6 | H43: =F43*G43 -> 96.06 | J43: =H43*(1-CAPA!$D$13) -> 92.2176
A44: CPU-M12 | B44: PROPRIA | C44: Substituição de toco aço carbono DN 800 para correção do desnivelamento | E44: und | I44: =SUM(H45:H46) -> 444.5264 | J44: =SUM(J45:J46) -> 426.745344
A45: P9882 | B45: SICRO | C45: Técnico especializado | D45: COMPOSIÇÃO | E45: =IF(B45="SINAPI",(IFERROR(VLOOKUP(A45,'CompSD SINAPI'!$B$11:$F$9784,3,0),VLOOKUP(CPU_Mec!A45,'ISD SINAPI'!$B$11:$F$4903,3,0))),IF(OR(B45="SICRO",B45="SICRO3"),(IFERROR(VLOOKUP(A45,'COMP SD SICRO'!$A$2:$D$6495,3,0),VLOOKUP(CPU_Mec!A45,'ISD SICRO'!$A$2:$D$2319,3,0))),IF(B45="SEINFRA",(IFERROR(VLOOKUP(A45,'COMPSD SEINFRA'!$B$7:$G$5611,3,0),VLOOKUP(CPU_Mec!A45,'ISD SEINFRA'!A43:$D$11922,3,0))),))) -> h | F45: =IF(B45="SINAPI",(IFERROR(VLOOKUP(A45,'CompSD SINAPI'!$B$11:$F$9784,4,0),VLOOKUP(CPU_Mec!A45,'ISD SINAPI'!$B$11:$F$4903,5,0))),IF(OR(B45="SICRO",B45="SICRO3"),(IFERROR(VLOOKUP(A45,'COMP SD SICRO'!$A$2:$D$6495,4,0),VLOOKUP(CPU_Mec!A45,'ISD SICRO'!$A$2:$D$2319,4,0))),IF(B45="SEINFRA",(IFERROR(VLOOKUP(A45,'COMPSD SEINFRA'!$B$7:$G$5611,4,0),VLOOKUP(CPU_Mec!A45,'ISD SEINFRA'!A43:$D$11922,4,0))),))) -> 39.5558 | G45: 8 | H45: =F45*G45 -> 316.4464 | J45: =H45*(1-CAPA!$D$13) -> 303.788544
A46: 251 | B46: SINAPI | C46: AUXILIAR DE MECANICO (HORISTA) | D46: COMPOSIÇÃO | E46: =IF(B46="SINAPI",(IFERROR(VLOOKUP(A46,'CompSD SINAPI'!$B$11:$F$9784,3,0),VLOOKUP(CPU_Mec!A46,'ISD SINAPI'!$B$11:$F$4903,3,0))),IF(OR(B46="SICRO",B46="SICRO3"),(IFERROR(VLOOKUP(A46,'COMP SD SICRO'!$A$2:$D$6495,3,0),VLOOKUP(CPU_Mec!A46,'ISD SICRO'!$A$2:$D$2319,3,0))),IF(B46="SEINFRA",(IFERROR(VLOOKUP(A46,'COMPSD SEINFRA'!$B$7:$G$5611,3,0),VLOOKUP(CPU_Mec!A46,'ISD SEINFRA'!A44:$D$11922,3,0))),))) -> H | F46: =IF(B46="SINAPI",(IFERROR(VLOOKUP(A46,'CompSD SINAPI'!$B$11:$F$9784,4,0),VLOOKUP(CPU_Mec!A46,'ISD SINAPI'!$B$11:$F$4903,5,0))),IF(OR(B46="SICRO",B46="SICRO3"),(IFERROR(VLOOKUP(A46,'COMP SD SICRO'!$A$2:$D$6495,4,0),VLOOKUP(CPU_Mec!A46,'ISD SICRO'!$A$2:$D$2319,4,0))),IF(B46="SEINFRA",(IFERROR(VLOOKUP(A46,'COMPSD SEINFRA'!$B$7:$G$5611,4,0),VLOOKUP(CPU_Mec!A46,'ISD SEINFRA'!A44:$D$11922,4,0))),))) -> 16.01 | G46: 8 | H46: =F46*G46 -> 128.08 | J46: =H46*(1-CAPA!$D$13) -> 122.9568
A47: CPU-M13 | B47: PROPRIA | C47: SERVIÇOS DE RECUPERAÇÃO DE BOMBA VERTICAL IMBIL VTI 24 C/ 3 ESTAGIOS | E47: und | I47: =SUM(H48:H56) -> 40479.23 | J47: =SUM(J48:J56) -> 38860.0608
A48: P9891 | B48: SICRO | C48: Engenheiro mecânico | D48: COMPOSIÇÃO | E48: mês | F48: 23147.84 | G48: 0.5 | H48: =F48*G48 -> 11573.92 | J48: =H48*(1-CAPA!$D$13) -> 11110.9632
A49: 101390 | B49: SINAPI | C49: AUXILIAR TÉCNICO / ASSISTENTE DE ENGENHARIA COM ENCARGOS COMPLEMENTARES | D49: COMPOSIÇÃO | E49: mês | F49: =IF(B49="SINAPI",(IFERROR(VLOOKUP(A49,'CompSD SINAPI'!$B$11:$F$9784,4,0),VLOOKUP(CPU_Mec!A49,'ISD SINAPI'!$B$11:$F$4903,5,0))),IF(OR(B49="SICRO",B49="SICRO3"),(IFERROR(VLOOKUP(A49,'COMP SD SICRO'!$A$2:$D$6495,4,0),VLOOKUP(CPU_Mec!A49,'ISD SICRO'!$A$2:$D$2319,4,0))),IF(B49="SEINFRA",(IFERROR(VLOOKUP(A49,'COMPSD SEINFRA'!$B$7:$G$5611,4,0),VLOOKUP(CPU_Mec!A49,'ISD SEINFRA'!A47:$D$11922,4,0))),))) -> 5808.32 | G49: 0.5 | H49: =F49*G49 -> 2904.16 | J49: =H49*(1-CAPA!$D$13) -> 2787.9936
A50: P9804 | B50: SICRO | C50: Apontador | D50: COMPOSIÇÃO | E50: mês | F50: 5598.66 | G50: 0.5 | H50: 2799.33 | J50: =H50*(1-CAPA!$D$13) -> 2687.3568
A51: 40975 | B51: SINAPI | C51: AUXILIAR DE MECANICO (HORISTA) | D51: COMPOSIÇÃO | E51: mês | F51: =IF(B51="SINAPI",(IFERROR(VLOOKUP(A51,'CompSD SINAPI'!$B$11:$F$9784,4,0),VLOOKUP(CPU_Mec!A51,'ISD SINAPI'!$B$11:$F$4903,5,0))),IF(OR(B51="SICRO",B51="SICRO3"),(IFERROR(VLOOKUP(A51,'COMP SD SICRO'!$A$2:$D$6495,4,0),VLOOKUP(CPU_Mec!A51,'ISD SICRO'!$A$2:$D$2319,4,0))),IF(B51="SEINFRA",(IFERROR(VLOOKUP(A51,'COMPSD SEINFRA'!$B$7:$G$5611,4,0),VLOOKUP(CPU_Mec!A51,'ISD SEINFRA'!A41:$D$11922,4,0))),))) -> 2823.04 | G51: 1 | H51: 2823.04 | J51: =H51*(1-CAPA!$D$13) -> 2710.1184
A52: 40921 | B52: SINAPI | C52: MONTADOR DE MAQUINAS (MENSALISTA) | D52: COMPOSIÇÃO | E52: mês | F52: =IF(B52="SINAPI",(IFERROR(VLOOKUP(A52,'CompSD SINAPI'!$B$11:$F$9784,4,0),VLOOKUP(CPU_Mec!A52,'ISD SINAPI'!$B$11:$F$4903,5,0))),IF(OR(B52="SICRO",B52="SICRO3"),(IFERROR(VLOOKUP(A52,'COMP SD SICRO'!$A$2:$D$6495,4,0),VLOOKUP(CPU_Mec!A52,'ISD SICRO'!$A$2:$D$2319,4,0))),IF(B52="SEINFRA",(IFERROR(VLOOKUP(A52,'COMPSD SEINFRA'!$B$7:$G$5611,4,0),VLOOKUP(CPU_Mec!A52,'ISD SEINFRA'!A45:$D$11922,4,0))),))) -> 3589.47 | G52: 1 | H52: 3589.47 | J52: =H52*(1-CAPA!$D$13) -> 3445.8912
A53: P9882 | B53: SICRO | C53: Técnico especializado (Manutenção de mecânica) | D53: COMPOSIÇÃO | E53: mês | F53: 5598.66 | G53: 1 | H53: 5598.66 | J53: =H53*(1-CAPA!$D$13) -> 5374.7136
A54: P9882 | B54: SICRO | C54: Técnico especializado (Torneiro mecânico) | D54: COMPOSIÇÃO | E54: mês | F54: 5598.66 | G54: 1 | H54: 5598.66 | J54: =H54*(1-CAPA!$D$13) -> 5374.7136
A55: 41079 | B55: SINAPI | C55: PINTOR (MENSALISTA) | D55: COMPOSIÇÃO | E55: mês | F55: =IF(B55="SINAPI",(IFERROR(VLOOKUP(A55,'CompSD SINAPI'!$B$11:$F$9784,4,0),VLOOKUP(CPU_Mec!A55,'ISD SINAPI'!$B$11:$F$4903,5,0))),IF(OR(B55="SICRO",B55="SICRO3"),(IFERROR(VLOOKUP(A55,'COMP SD SICRO'!$A$2:$D$6495,4,0),VLOOKUP(CPU_Mec!A55,'ISD SICRO'!$A$2:$D$2319,4,0))),IF(B55="SEINFRA",(IFERROR(VLOOKUP(A55,'COMPSD SEINFRA'!$B$7:$G$5611,4,0),VLOOKUP(CPU_Mec!A55,'ISD SEINFRA'!A45:$D$11922,4,0))),))) -> 3942.62 | G55: 1 | H55: 3942.62 | J55: =H55*(1-CAPA!$D$13) -> 3784.9152
A56: 40979 | B56: SINAPI | C56: OPERADOR DE JATO ABRASIVO OU JATISTA (MENSALISTA) | D56: COMPOSIÇÃO | E56: mês | F56: =IF(B56="SINAPI",(IFERROR(VLOOKUP(A56,'CompSD SINAPI'!$B$11:$F$9784,4,0),VLOOKUP(CPU_Mec!A56,'ISD SINAPI'!$B$11:$F$4903,5,0))),IF(OR(B56="SICRO",B56="SICRO3"),(IFERROR(VLOOKUP(A56,'COMP SD SICRO'!$A$2:$D$6495,4,0),VLOOKUP(CPU_Mec!A56,'ISD SICRO'!$A$2:$D$2319,4,0))),IF(B56="SEINFRA",(IFERROR(VLOOKUP(A56,'COMPSD SEINFRA'!$B$7:$G$5611,4,0),VLOOKUP(CPU_Mec!A56,'ISD SEINFRA'!A46:$D$11922,4,0))),))) -> 3298.74 | G56: 0.5 | H56: 1649.37 | J56: =H56*(1-CAPA!$D$13) -> 1583.3952
A57: CPU-M14 | B57: PROPRIA | C57: SERVIÇOS DE RECUPERAÇÃO DE BOMBA VERTICAL KSB B 24 B / 3 ESTAGIOS | E57: und | I57: =SUM(H58:H66) -> 40479.23 | J57: =SUM(J58:J66) -> 38860.0608
A58: P9891 | B58: SICRO | C58: Engenheiro mecânico | D58: COMPOSIÇÃO | E58: mês | F58: 23147.84 | G58: 0.5 | H58: =F58*G58 -> 11573.92 | J58: =H58*(1-CAPA!$D$13) -> 11110.9632
A59: 101390 | B59: SINAPI | C59: AUXILIAR TÉCNICO / ASSISTENTE DE ENGENHARIA COM ENCARGOS COMPLEMENTARES | D59: COMPOSIÇÃO | E59: mês | F59: =IF(B59="SINAPI",(IFERROR(VLOOKUP(A59,'CompSD SINAPI'!$B$11:$F$9784,4,0),VLOOKUP(CPU_Mec!A59,'ISD SINAPI'!$B$11:$F$4903,5,0))),IF(OR(B59="SICRO",B59="SICRO3"),(IFERROR(VLOOKUP(A59,'COMP SD SICRO'!$A$2:$D$6495,4,0),VLOOKUP(CPU_Mec!A59,'ISD SICRO'!$A$2:$D$2319,4,0))),IF(B59="SEINFRA",(IFERROR(VLOOKUP(A59,'COMPSD SEINFRA'!$B$7:$G$5611,4,0),VLOOKUP(CPU_Mec!A59,'ISD SEINFRA'!A57:$D$11922,4,0))),))) -> 5808.32 | G59: 0.5 | H59: =F59*G59 -> 2904.16 | J59: =H59*(1-CAPA!$D$13) -> 2787.9936
A60: P9804 | B60: SICRO | C60: Apontador | D60: COMPOSIÇÃO | E60: mês | F60: 5598.66 | G60: 0.5 | H60: 2799.33 | J60: =H60*(1-CAPA!$D$13) -> 2687.3568
A61: 40975 | B61: SINAPI | C61: AUXILIAR DE MECANICO (HORISTA) | D61: COMPOSIÇÃO | E61: mês | F61: =IF(B61="SINAPI",(IFERROR(VLOOKUP(A61,'CompSD SINAPI'!$B$11:$F$9784,4,0),VLOOKUP(CPU_Mec!A61,'ISD SINAPI'!$B$11:$F$4903,5,0))),IF(OR(B61="SICRO",B61="SICRO3"),(IFERROR(VLOOKUP(A61,'COMP SD SICRO'!$A$2:$D$6495,4,0),VLOOKUP(CPU_Mec!A61,'ISD SICRO'!$A$2:$D$2319,4,0))),IF(B61="SEINFRA",(IFERROR(VLOOKUP(A61,'COMPSD SEINFRA'!$B$7:$G$5611,4,0),VLOOKUP(CPU_Mec!A61,'ISD SEINFRA'!A51:$D$11922,4,0))),))) -> 2823.04 | G61: 1 | H61: 2823.04 | J61: =H61*(1-CAPA!$D$13) -> 2710.1184
A62: 40921 | B62: SINAPI | C62: MONTADOR DE MAQUINAS (MENSALISTA) | D62: COMPOSIÇÃO | E62: mês | F62: =IF(B62="SINAPI",(IFERROR(VLOOKUP(A62,'CompSD SINAPI'!$B$11:$F$9784,4,0),VLOOKUP(CPU_Mec!A62,'ISD SINAPI'!$B$11:$F$4903,5,0))),IF(OR(B62="SICRO",B62="SICRO3"),(IFERROR(VLOOKUP(A62,'COMP SD SICRO'!$A$2:$D$6495,4,0),VLOOKUP(CPU_Mec!A62,'ISD SICRO'!$A$2:$D$2319,4,0))),IF(B62="SEINFRA",(IFERROR(VLOOKUP(A62,'COMPSD SEINFRA'!$B$7:$G$5611,4,0),VLOOKUP(CPU_Mec!A62,'ISD SEINFRA'!A55:$D$11922,4,0))),))) -> 3589.47 | G62: 1 | H62: 3589.47 | J62: =H62*(1-CAPA!$D$13) -> 3445.8912
A63: P9882 | B63: SICRO | C63: Técnico especializado (Manutenção de mecânica) | D63: COMPOSIÇÃO | E63: mês | F63: 5598.66 | G63: 1 | H63: 5598.66 | J63: =H63*(1-CAPA!$D$13) -> 5374.7136
A64: P9882 | B64: SICRO | C64: Técnico especializado (Torneiro mecânico) | D64: COMPOSIÇÃO | E64: mês | F64: 5598.66 | G64: 1 | H64: 5598.66 | J64: =H64*(1-CAPA!$D$13) -> 5374.7136
A65: 41079 | B65: SINAPI | C65: PINTOR (MENSALISTA) | D65: COMPOSIÇÃO | E65: mês | F65: =IF(B65="SINAPI",(IFERROR(VLOOKUP(A65,'CompSD SINAPI'!$B$11:$F$9784,4,0),VLOOKUP(CPU_Mec!A65,'ISD SINAPI'!$B$11:$F$4903,5,0))),IF(OR(B65="SICRO",B65="SICRO3"),(IFERROR(VLOOKUP(A65,'COMP SD SICRO'!$A$2:$D$6495,4,0),VLOOKUP(CPU_Mec!A65,'ISD SICRO'!$A$2:$D$2319,4,0))),IF(B65="SEINFRA",(IFERROR(VLOOKUP(A65,'COMPSD SEINFRA'!$B$7:$G$5611,4,0),VLOOKUP(CPU_Mec!A65,'ISD SEINFRA'!A55:$D$11922,4,0))),))) -> 3942.62 | G65: 1 | H65: 3942.62 | J65: =H65*(1-CAPA!$D$13) -> 3784.9152
A66: 40979 | B66: SINAPI | C66: OPERADOR DE JATO ABRASIVO OU JATISTA (MENSALISTA) | D66: COMPOSIÇÃO | E66: mês | F66: =IF(B66="SINAPI",(IFERROR(VLOOKUP(A66,'CompSD SINAPI'!$B$11:$F$9784,4,0),VLOOKUP(CPU_Mec!A66,'ISD SINAPI'!$B$11:$F$4903,5,0))),IF(OR(B66="SICRO",B66="SICRO3"),(IFERROR(VLOOKUP(A66,'COMP SD SICRO'!$A$2:$D$6495,4,0),VLOOKUP(CPU_Mec!A66,'ISD SICRO'!$A$2:$D$2319,4,0))),IF(B66="SEINFRA",(IFERROR(VLOOKUP(A66,'COMPSD SEINFRA'!$B$7:$G$5611,4,0),VLOOKUP(CPU_Mec!A66,'ISD SEINFRA'!A56:$D$11922,4,0))),))) -> 3298.74 | G66: 0.5 | H66: 1649.37 | J66: =H66*(1-CAPA!$D$13) -> 1583.3952
A67: CPU-M15 | B67: PROPRIA | C67: SERVIÇOS DE RECUPERAÇÃO DE BOMBA CENTRÍFUGA MEGANORM KSB 200-400 | E67: und | I67: =SUM(H68:H76) -> 55330.7325 | J67: =SUM(J68:J76) -> 53117.5032
A68: P9891 | B68: SICRO | C68: Engenheiro mecânico | D68: COMPOSIÇÃO | E68: mês | F68: 23147.84 | G68: 0.75 | H68: =F68*G68 -> 17360.88 | J68: =H68*(1-CAPA!$D$13) -> 16666.4448
A69: 101390 | B69: SINAPI | C69: AUXILIAR TÉCNICO / ASSISTENTE DE ENGENHARIA COM ENCARGOS COMPLEMENTARES | D69: COMPOSIÇÃO | E69: mês | F69: =IF(B69="SINAPI",(IFERROR(VLOOKUP(A69,'CompSD SINAPI'!$B$11:$F$9784,4,0),VLOOKUP(CPU_Mec!A69,'ISD SINAPI'!$B$11:$F$4903,5,0))),IF(OR(B69="SICRO",B69="SICRO3"),(IFERROR(VLOOKUP(A69,'COMP SD SICRO'!$A$2:$D$6495,4,0),VLOOKUP(CPU_Mec!A69,'ISD SICRO'!$A$2:$D$2319,4,0))),IF(B69="SEINFRA",(IFERROR(VLOOKUP(A69,'COMPSD SEINFRA'!$B$7:$G$5611,4,0),VLOOKUP(CPU_Mec!A69,'ISD SEINFRA'!A67:$D$11922,4,0))),))) -> 5808.32 | G69: 0.75 | H69: =F69*G69 -> 4356.24 | J69: =H69*(1-CAPA!$D$13) -> 4181.9904
A70: P9804 | B70: SICRO | C70: Apontador | D70: COMPOSIÇÃO | E70: mês | F70: 5598.66 | G70: 0.75 | H70: 4198.995 | J70: =H70*(1-CAPA!$D$13) -> 4031.0352
A71: 40975 | B71: SINAPI | C71: AUXILIAR DE MECANICO (HORISTA) | D71: COMPOSIÇÃO | E71: mês | F71: =IF(B71="SINAPI",(IFERROR(VLOOKUP(A71,'CompSD SINAPI'!$B$11:$F$9784,4,0),VLOOKUP(CPU_Mec!A71,'ISD SINAPI'!$B$11:$F$4903,5,0))),IF(OR(B71="SICRO",B71="SICRO3"),(IFERROR(VLOOKUP(A71,'COMP SD SICRO'!$A$2:$D$6495,4,0),VLOOKUP(CPU_Mec!A71,'ISD SICRO'!$A$2:$D$2319,4,0))),IF(B71="SEINFRA",(IFERROR(VLOOKUP(A71,'COMPSD SEINFRA'!$B$7:$G$5611,4,0),VLOOKUP(CPU_Mec!A71,'ISD SEINFRA'!A61:$D$11922,4,0))),))) -> 2823.04 | G71: 1.25 | H71: 3528.8 | J71: =H71*(1-CAPA!$D$13) -> 3387.648
A72: 40921 | B72: SINAPI | C72: MONTADOR DE MAQUINAS (MENSALISTA) | D72: COMPOSIÇÃO | E72: mês | F72: =IF(B72="SINAPI",(IFERROR(VLOOKUP(A72,'CompSD SINAPI'!$B$11:$F$9784,4,0),VLOOKUP(CPU_Mec!A72,'ISD SINAPI'!$B$11:$F$4903,5,0))),IF(OR(B72="SICRO",B72="SICRO3"),(IFERROR(VLOOKUP(A72,'COMP SD SICRO'!$A$2:$D$6495,4,0),VLOOKUP(CPU_Mec!A72,'ISD SICRO'!$A$2:$D$2319,4,0))),IF(B72="SEINFRA",(IFERROR(VLOOKUP(A72,'COMPSD SEINFRA'!$B$7:$G$5611,4,0),VLOOKUP(CPU_Mec!A72,'ISD SEINFRA'!A65:$D$11922,4,0))),))) -> 3589.47 | G72: 1.25 | H72: 4486.8375 | J72: =H72*(1-CAPA!$D$13) -> 4307.364
A73: P9882 | B73: SICRO | C73: Técnico especializado (Manutenção de mecânica) | D73: COMPOSIÇÃO | E73: mês | F73: 5598.66 | G73: 1.25 | H73: 6998.325 | J73: =H73*(1-CAPA!$D$13) -> 6718.392
A74: P9882 | B74: SICRO | C74: Técnico especializado (Torneiro mecânico) | D74: COMPOSIÇÃO | E74: mês | F74: 5598.66 | G74: 1.25 | H74: 6998.325 | J74: =H74*(1-CAPA!$D$13) -> 6718.392
A75: 41079 | B75: SINAPI | C75: PINTOR (MENSALISTA) | D75: COMPOSIÇÃO | E75: mês | F75: =IF(B75="SINAPI",(IFERROR(VLOOKUP(A75,'CompSD SINAPI'!$B$11:$F$9784,4,0),VLOOKUP(CPU_Mec!A75,'ISD SINAPI'!$B$11:$F$4903,5,0))),IF(OR(B75="SICRO",B75="SICRO3"),(IFERROR(VLOOKUP(A75,'COMP SD SICRO'!$A$2:$D$6495,4,0),VLOOKUP(CPU_Mec!A75,'ISD SICRO'!$A$2:$D$2319,4,0))),IF(B75="SEINFRA",(IFERROR(VLOOKUP(A75,'COMPSD SEINFRA'!$B$7:$G$5611,4,0),VLOOKUP(CPU_Mec!A75,'ISD SEINFRA'!A65:$D$11922,4,0))),))) -> 3942.62 | G75: 1.25 | H75: 4928.275 | J75: =H75*(1-CAPA!$D$13) -> 4731.144
A76: 40979 | B76: SINAPI | C76: OPERADOR DE JATO ABRASIVO OU JATISTA (MENSALISTA) | D76: COMPOSIÇÃO | E76: mês | F76: =IF(B76="SINAPI",(IFERROR(VLOOKUP(A76,'CompSD SINAPI'!$B$11:$F$9784,4,0),VLOOKUP(CPU_Mec!A76,'ISD SINAPI'!$B$11:$F$4903,5,0))),IF(OR(B76="SICRO",B76="SICRO3"),(IFERROR(VLOOKUP(A76,'COMP SD SICRO'!$A$2:$D$6495,4,0),VLOOKUP(CPU_Mec!A76,'ISD SICRO'!$A$2:$D$2319,4,0))),IF(B76="SEINFRA",(IFERROR(VLOOKUP(A76,'COMPSD SEINFRA'!$B$7:$G$5611,4,0),VLOOKUP(CPU_Mec!A76,'ISD SEINFRA'!A66:$D$11922,4,0))),))) -> 3298.74 | G76: 0.75 | H76: 2474.055 | J76: =H76*(1-CAPA!$D$13) -> 2375.0928
A77: CPU-M16 | B77: PROPRIA | C77: SERVIÇOS DE RECUPERAÇÃO DE BOMBA CENTRÍFUGA MEGANORM KSB 80-400 | E77: und | I77: =SUM(H78:H86) -> 25627.7275 | J77: =SUM(J78:J86) -> 24602.6184
A78: P9891 | B78: SICRO | C78: Engenheiro mecânico | D78: COMPOSIÇÃO | E78: mês | F78: 23147.84 | G78: 0.25 | H78: =F78*G78 -> 5786.96 | J78: =H78*(1-CAPA!$D$13) -> 5555.4816
A79: 101390 | B79: SINAPI | C79: AUXILIAR TÉCNICO / ASSISTENTE DE ENGENHARIA COM ENCARGOS COMPLEMENTARES | D79: COMPOSIÇÃO | E79: mês | F79: =IF(B79="SINAPI",(IFERROR(VLOOKUP(A79,'CompSD SINAPI'!$B$11:$F$9784,4,0),VLOOKUP(CPU_Mec!A79,'ISD SINAPI'!$B$11:$F$4903,5,0))),IF(OR(B79="SICRO",B79="SICRO3"),(IFERROR(VLOOKUP(A79,'COMP SD SICRO'!$A$2:$D$6495,4,0),VLOOKUP(CPU_Mec!A79,'ISD SICRO'!$A$2:$D$2319,4,0))),IF(B79="SEINFRA",(IFERROR(VLOOKUP(A79,'COMPSD SEINFRA'!$B$7:$G$5611,4,0),VLOOKUP(CPU_Mec!A79,'ISD SEINFRA'!A77:$D$11922,4,0))),))) -> 5808.32 | G79: 0.25 | H79: =F79*G79 -> 1452.08 | J79: =H79*(1-CAPA!$D$13) -> 1393.9968
A80: P9804 | B80: SICRO | C80: Apontador | D80: COMPOSIÇÃO | E80: mês | F80: 5598.66 | G80: 0.25 | H80: 1399.665 | J80: =H80*(1-CAPA!$D$13) -> 1343.6784
A81: 40975 | B81: SINAPI | C81: AUXILIAR DE MECANICO (HORISTA) | D81: COMPOSIÇÃO | E81: mês | F81: =IF(B81="SINAPI",(IFERROR(VLOOKUP(A81,'CompSD SINAPI'!$B$11:$F$9784,4,0),VLOOKUP(CPU_Mec!A81,'ISD SINAPI'!$B$11:$F$4903,5,0))),IF(OR(B81="SICRO",B81="SICRO3"),(IFERROR(VLOOKUP(A81,'COMP SD SICRO'!$A$2:$D$6495,4,0),VLOOKUP(CPU_Mec!A81,'ISD SICRO'!$A$2:$D$2319,4,0))),IF(B81="SEINFRA",(IFERROR(VLOOKUP(A81,'COMPSD SEINFRA'!$B$7:$G$5611,4,0),VLOOKUP(CPU_Mec!A81,'ISD SEINFRA'!A71:$D$11922,4,0))),))) -> 2823.04 | G81: 0.75 | H81: 2117.28 | J81: =H81*(1-CAPA!$D$13) -> 2032.5888
A82: 40921 | B82: SINAPI | C82: MONTADOR DE MAQUINAS (MENSALISTA) | D82: COMPOSIÇÃO | E82: mês | F82: =IF(B82="SINAPI",(IFERROR(VLOOKUP(A82,'CompSD SINAPI'!$B$11:$F$9784,4,0),VLOOKUP(CPU_Mec!A82,'ISD SINAPI'!$B$11:$F$4903,5,0))),IF(OR(B82="SICRO",B82="SICRO3"),(IFERROR(VLOOKUP(A82,'COMP SD SICRO'!$A$2:$D$6495,4,0),VLOOKUP(CPU_Mec!A82,'ISD SICRO'!$A$2:$D$2319,4,0))),IF(B82="SEINFRA",(IFERROR(VLOOKUP(A82,'COMPSD SEINFRA'!$B$7:$G$5611,4,0),VLOOKUP(CPU_Mec!A82,'ISD SEINFRA'!A75:$D$11922,4,0))),))) -> 3589.47 | G82: 0.75 | H82: 2692.1025 | J82: =H82*(1-CAPA!$D$13) -> 2584.4184
A83: P9882 | B83: SICRO | C83: Técnico especializado (Manutenção de mecânica) | D83: COMPOSIÇÃO | E83: mês | F83: 5598.66 | G83: 0.75 | H83: 4198.995 | J83: =H83*(1-CAPA!$D$13) -> 4031.0352
A84: P9882 | B84: SICRO | C84: Técnico especializado (Torneiro mecânico) | D84: COMPOSIÇÃO | E84: mês | F84: 5598.66 | G84: 0.75 | H84: 4198.995 | J84: =H84*(1-CAPA!$D$13) -> 4031.0352
A85: 41079 | B85: SINAPI | C85: PINTOR (MENSALISTA) | D85: COMPOSIÇÃO | E85: mês | F85: =IF(B85="SINAPI",(IFERROR(VLOOKUP(A85,'CompSD SINAPI'!$B$11:$F$9784,4,0),VLOOKUP(CPU_Mec!A85,'ISD SINAPI'!$B$11:$F$4903,5,0))),IF(OR(B85="SICRO",B85="SICRO3"),(IFERROR(VLOOKUP(A85,'COMP SD SICRO'!$A$2:$D$6495,4,0),VLOOKUP(CPU_Mec!A85,'ISD SICRO'!$A$2:$D$2319,4,0))),IF(B85="SEINFRA",(IFERROR(VLOOKUP(A85,'COMPSD SEINFRA'!$B$7:$G$5611,4,0),VLOOKUP(CPU_Mec!A85,'ISD SEINFRA'!A75:$D$11922,4,0))),))) -> 3942.62 | G85: 0.75 | H85: 2956.965 | J85: =H85*(1-CAPA!$D$13) -> 2838.6864
A86: 40979 | B86: SINAPI | C86: OPERADOR DE JATO ABRASIVO OU JATISTA (MENSALISTA) | D86: COMPOSIÇÃO | E86: mês | F86: =IF(B86="SINAPI",(IFERROR(VLOOKUP(A86,'CompSD SINAPI'!$B$11:$F$9784,4,0),VLOOKUP(CPU_Mec!A86,'ISD SINAPI'!$B$11:$F$4903,5,0))),IF(OR(B86="SICRO",B86="SICRO3"),(IFERROR(VLOOKUP(A86,'COMP SD SICRO'!$A$2:$D$6495,4,0),VLOOKUP(CPU_Mec!A86,'ISD SICRO'!$A$2:$D$2319,4,0))),IF(B86="SEINFRA",(IFERROR(VLOOKUP(A86,'COMPSD SEINFRA'!$B$7:$G$5611,4,0),VLOOKUP(CPU_Mec!A86,'ISD SEINFRA'!A76:$D$11922,4,0))),))) -> 3298.74 | G86: 0.25 | H86: 824.685 | J86: =H86*(1-CAPA!$D$13) -> 791.6976

Sheet COT_Mec
A1: 22627.68 | D1: MINISTÉRIO DA INTEGRAÇÃO E DO DESENVOLVIMENTO REGIONAL
D2: COMPANHIA DE DESENVOLVIMENTO DOS VALES DO SÃO FRANCISCO E PARNAÍBA
B3: Objeto: Contratação de serviços técnicos para retrofit de componentes da infraestruturas de uso comum do Projeto Público de Irrigação Tabuleiro de São Bernardo (PITSB).
B4: Local: Magalhães de Almeida - MA
B5: Preço Global:
A6: ORÇAMENTO SINTÉTICO - MECÂNICA
G7: Painel de Preços | K7: Cotações de Mercado | R7: Custo Unitário
A8: Item | B8: Código | C8: Fonte | D8: Descrição | E8: Unid. | F8: Quant. | G8: Média | H8: Mediana | I8: Menor Valor | J8: Valor Adotado | K8: Empresa 1 | L8: Empresa 2 | M8: Empresa 3 | N8: Média | O8: Mediana | P8: Menor Valor | Q8: Valor Adotado
A9: 1 | D9: EBP - RECUPERAÇÃO BOMBAS VERTICAIS DE 3 ESTÁGIOS
A10: 1.1.1 | B10: ***** | C10: ***** | D10: MATERIAL BOMBA VERTICAL VTI 24 C/ 3 ESTAGIOS
A11: 1.1.1.1 | B11: COT_M01 | C11: PROPRIA | D11: Luva distanciadora 1 VTI 24C AISI 316 | E11: PC | F11: 6 | K11: 8628 | L11: 9464.916 | M11: 8455.44 | N11: =MEDIAN(K11:M11) -> 8628 | O11: =MEDIAN(K11:M11) -> 8628 | P11: =MIN(K11:M11) -> 8455.44 | Q11: =MIN(N11:P11) -> 8455.44 | R11: =MEDIAN(Q11,J11) -> 8455.44
A12: 1.1.1.2 | B12: COT_M02 | C12: PROPRIA | D12: Luva distanciadora 2 VTI 24C AISI 316 | E12: PC | F12: 4 | K12: 8628 | L12: 9464.916 | M12: 8455.44 | N12: =MEDIAN(K12:M12) -> 8628 | O12: =MEDIAN(K12:M12) -> 8628 | P12: =MIN(K12:M12) -> 8455.44 | Q12: =MIN(N12:P12) -> 8455.44 | R12: =MEDIAN(Q12,J12) -> 8455.44
A13: 1.1.1.3 | B13: COT_M03 | C13: PROPRIA | D13: Anel de desgaste estático VTI 24C ASTM A48 CL30 | E13: PC | F13: 12 | K13: 2587.2 | L13: 2848.76592 | M13: 2742.432 | N13: 2742.432 | O13: 2742.432 | P13: 2587.2 | Q13: 2587.2 | R13: 2587.2
A14: 1.1.1.4 | B14: COT_M04 | C14: PROPRIA | D14: Luva protetora da caixa de selagem VTI 24C AISI 316 | E14: PC | F14: 2 | K14: 21782.4 | L14: 23721.0336 | M14: 23764.5984 | N14: 23721.0336 | O14: 23721.0336 | P14: 21782.4 | Q14: 21782.4 | R14: 21782.4
A15: 1.1.1.5 | B15: COT_M05 | C15: PROPRIA | D15: Mancal guia do sino VTI 24C D-GLIDE | E15: PC | F15: 2 | K15: 4296 | L15: 4747.08 | M15: 4983.36 | N15: 4747.08 | O15: 4747.08 | P15: 4296 | Q15: 4296 | R15: 4296
A16: 1.1.1.6 | B16: COT_M06 | C16: PROPRIA | D16: Mancal guia do difusor VTI 24C D-GLIDE | E16: PC | F16: 6 | K16: 7305 | L16: 8072.025 | M16: 8473.8 | N16: 8072.025 | O16: 8072.025 | P16: 7305 | Q16: 7305 | R16: 7305
A17: 1.1.1.7 | B17: COT_M07 | C17: PROPRIA | D17: Mancal guia do estabilizador VTI 24C D-GLIDE | E17: PC | F17: 6 | K17: 7305 | L17: 8072.025 | M17: 8473.8 | N17: 8072.025 | O17: 8072.025 | P17: 7305 | Q17: 7305 | R17: 7305
A18: 1.1.1.8 | B18: COT_M08 | C18: PROPRIA | D18: Jogo de juntas e orings VTI 24C/3 | E18: JG | F18: 2 | K18: 9832 | L18: 10551.7024 | M18: 10028.64 | N18: 10028.64 | O18: 10028.64 | P18: 9832 | Q18: 9832 | R18: 9832
A19: 1.1.1.9 | B19: COT_M09 | C19: PROPRIA | D19: Cj de mangueiras e conexões de entrada no mancal VTI 24C | E19: PC | F19: 2 | K19: 1280 | L19: 1420.8 | M19: 1415.04 | N19: 1415.04 | O19: 1415.04 | P19: 1280 | Q19: 1280 | R19: 1280
A20: 1.1.1.10 | B20: COT_M10 | C20: PROPRIA | D20: Luva 3/4 NPT Femea / Femea | E20: PC | F20: 2 | K20: 172 | L20: 190.92 | M20: 190.146 | N20: 190.146 | O20: 190.146 | P20: 172 | Q20: 172 | R20: 172
A21: 1.1.1.11 | B21: COT_M11 | C21: PROPRIA | D21: Disco defletor VTI 24C AISI 316 | E21: PC | F21: 2 | K21: 8808 | L21: 9909 | M21: 9776.88 | N21: 9776.88 | O21: 9776.88 | P21: 8808 | Q21: 8808 | R21: 8808
A22: 1.1.1.12 | B22: COT_M12 | C22: PROPRIA | D22: Rolamento 29338E | E22: PC | F22: 2 | K22: 30900 | L22: 34793.4 | M22: 33372 | N22: 33372 | O22: 33372 | P22: 30900 | Q22: 30900 | R22: 30900
A23: 1.1.2 | B23: ***** | C23: ***** | D23: SERVIÇOS DE RECUPERAÇÃO BOMBA VERTICAL IMBIL VTI 24 C/ 3 ESTAGIOS | Q23: 0
A24: 1.1.2.1 | B24: CPU-M13 | C24: PROPRIA | D24: SERVIÇOS DE RECUPERAÇÃO DE BOMBA VERTICAL IMBIL VTI 24 C/ 3 ESTAGIOS | E24: und | F24: 2 | Q24: 0
A25: 1.2.1 | B25: ***** | C25: ***** | D25: MATERIAL BOMBA VERTICAL KSB B 24 B / 3 ESTÁGIOS | Q25: 0
A26: 1.2.1.1 | B26: COT_M13 | C26: PROPRIA | D26: Luva distanciadora B 24 B/3 AISI 316 | E26: PC | F26: 3 | K26: 8628 | L26: 9395.892 | M26: 9413.148 | N26: =MEDIAN(K26:M26) -> 9395.892 | O26: =MEDIAN(K26:M26) -> 9395.892 | P26: =MIN(K26:M26) -> 8628 | Q26: 8628 | R26: =MEDIAN(Q26,J26) -> 8628
A27: 1.2.1.2 | B27: COT_M14 | C27: PROPRIA | D27: Luva distanciadora B 24 B/3 AISI 316 | E27: PC | F27: 2 | K27: 8628 | L27: 9395.892 | M27: 9413.148 | N27: 9395.892 | O27: 9395.892 | P27: 8628 | Q27: 8628 | R27: 8628
A28: 1.2.1.3 | B28: COT_M15 | C28: PROPRIA | D28: Anel de desgaste estático B 24 B/3 ASTM A48 CL30 | E28: PC | F28: 6 | K28: 2587.2 | L28: 2848.76592 | M28: 2742.432 | N28: 2742.432 | O28: 2742.432 | P28: 2587.2 | Q28: 2587.2 | R28: 2587.2
A29: 1.2.1.4 | B29: COT_M16 | C29: PROPRIA | D29: Luva protetora da caixa de selagem B 24 B/3 AISI 316 | E29: PC | F29: 1 | K29: 21782.4 | L29: 23721.0336 | M29: 23764.5984 | N29: 23721.0336 | O29: 23721.0336 | P29: 21782.4 | Q29: 21782.4 | R29: 21782.4
A30: 1.2.1.5 | B30: COT_M17 | C30: PROPRIA | D30: Mancal guia do sino B 24 B/3 | E30: PC | F30: 1 | K30: 4296 | L30: 4747.08 | M30: 4721.304 | N30: 4721.304 | O30: 4721.304 | P30: 4296 | Q30: 4296 | R30: 4296
A31: 1.2.1.6 | B31: COT_M18 | C31: PROPRIA | D31: Mancal guia do difusor B 24 B/3 | E31: PC | F31: 3 | K31: 7305 | L31: 8072.025 | M31: 8028.195 | N31: 8028.195 | O31: 8028.195 | P31: 7305 | Q31: 7305 | R31: 7305
A32: 1.2.1.7 | B32: COT_M19 | C32: PROPRIA | D32: Mancal guia do estabilizador B 24 B/3 | E32: PC | F32: 3 | K32: 7305 | L32: 8072.025 | M32: 8028.195 | N32: 8028.195 | O32: 8028.195 | P32: 7305 | Q32: 7305 | R32: 7305
A33: 1.2.1.8 | B33: COT_M20 | C33: PROPRIA | D33: Cj de mangueiras e conexões de entrada no mancal B 24 B/3 | E33: PC | F33: 1 | K33: 9832 | L33: 10913.52 | M33: 10869.276 | N33: 10869.276 | O33: 10869.276 | P33: 9832 | Q33: 9832 | R33: 9832
A34: 1.2.1.9 | B34: COT_M21 | C34: PROPRIA | D34: Luva 3/4 NPT Femea / Femea B 24 B/3 | E34: PC | F34: 1 | K34: 1280 | L34: 1393.92 | M34: 1396.48 | N34: 1393.92 | O34: 1393.92 | P34: 1280 | Q34: 1280 | R34: 1280
A35: 1.2.1.10 | B35: COT_M22 | C35: PROPRIA | D35: Disco defletor B 24 B/3 AISI 316 | E35: PC | F35: 1 | K35: 172 | L35: 193.5 | M35: 190.92 | N35: 190.92 | O35: 190.92 | P35: 172 | Q35: 172 | R35: 172
A36: 1.2.1.11 | B36: COT_M23 | C36: PROPRIA | D36: Jogo de juntas e orings B 24 B/3 | E36: PC | F36: 1 | K36: 8808 | L36: 9671.184 | M36: 9671.184 | N36: 9671.184 | O36: 9671.184 | P36: 8808 | Q36: 8808 | R36: 8808
A37: 1.2.1.12 | B37: COT_M24 | C37: PROPRIA | D37: Rolamento 29338E | E37: PC | F37: 1 | K37: 30900 | L37: 34793.4 | M37: 33372 | N37: 33372 | O37: 33372 | P37: 30900 | Q37: 30900 | R37: 30900
A38: 1.2.2 | B38: ***** | C38: ***** | D38: SERVIÇOS DE RECUPERAÇÃO BOMBA VERTICAL KSB B 24 B / 3 ESTÁGIOS | Q38: 0
A39: 1.2.2.1 | B39: CPU-M14 | C39: PROPRIA | D39: SERVIÇOS DE RECUPERAÇÃO DE BOMBA VERTICAL KSB B 24 B / 3 ESTAGIOS | E39: und | F39: 1 | Q39: 0
A40: 1.3 | B40: ***** | C40: ***** | D40: BARRILETE DE BOMBAS | Q40: 0
A41: 1.3.1 | B41: COT_M25 | C41: PROPRIA | D41: Válvula Sutentadora de Pressão Bermad DN 500 mm e 2 flanges p/ tocos de montagem | E41: pç | F41: 3 | K41: 242250 | L41: 265869.375 | M41: 273742.5 | N41: =MEDIAN(K41:M41) -> 265869.375 | O41: =MEDIAN(K41:M41) -> 265869.375 | P41: =MIN(K41:M41) -> 242250 | Q41: 242250 | R41: =MEDIAN(Q41,J41) -> 242250
A42: 1.3 | B42: ***** | C42: ***** | D42: SERVIÇOS DE MANUTENÇÃO DE VÁLVULAS | Q42: 0
A43: 1.3.1 | B43: CPU-M01 | C43: PROPRIA | D43: Manutenção de válvula gaveta DN < 300 mm | E43: und | F43: 3 | Q43: 0
A44: 1.3.2 | B44: CPU-M02 | C44: PROPRIA | D44: Manutenção de válvula borboleta com redutor e acionamento manual DN 300 a 800 mm | E44: und | F44: 3 | Q44: 0
A45: 1.3.3 | B45: CPU-M03 | C45: PROPRIA | D45: Manutenção de ventosa DN < 300mm | E45: und | F45: 4 | Q45: 0
A46: 1.3.4 | B46: CPU-M04 | C46: PROPRIA | D46: Manutenção de válvula Clasar | E46: und | F46: 3 | Q46: 0
A47: 1.3.5 | B47: CPU-M05 | C47: PROPRIA | D47: Manutenção de comporta de poço de bombas | E47: und | F47: 1 | Q47: 0
A48: 1.3.6 | B48: CPU-M06 | C48: PROPRIA | D48: Montagem de válvula sustentadora de pressão DN 500mm | E48: und | F48: 3 | Q48: 0
A49: 2 | D49: EBS1 - RECUPERAÇÃO BOMBAS CENTRÍFUGAS HORIZONTAIS | Q49: 0
A50: 2.1 | B50: ***** | C50: ***** | D50: MATERIAL BOMBA BOMBA MEGANORM KSB 200-400 | Q50: 0
A51: 2.1.1 | B51: COT_M26 | C51: PROPRIA | D51: Anel de Desgaste da Carcaça | E51: PC | F51: 5 | K51: 464 | L51: 510.9104 | M51: 491.84 | N51: =MEDIAN(K51:M51) -> 491.84 | O51: =MEDIAN(K51:M51) -> 491.84 | P51: =MIN(K51:M51) -> 464 | Q51: 464 | R51: =MEDIAN(Q51,J51) -> 464
A52: 2.1.2 | B52: COT_M27 | C52: PROPRIA | D52: Anel de Desgaste do Rotor | E52: PC | F52: 5 | K52: 384 | L52: 422.8224 | M52: 407.04 | N52: 407.04 | O52: 407.04 | P52: 384 | Q52: 384 | R52: 384
A53: 2.1.3 | B53: COT_M28 | C53: PROPRIA | D53: Bucha Protetora do Eixo | E53: PC | F53: 5 | K53: 636 | L53: 685.4172 | M53: 678.1668 | N53: 678.1668 | O53: 678.1668 | P53: 636 | Q53: 636 | R53: 636
A54: 2.1.4 | B54: COT_M29 | C54: PROPRIA | D54: Eixo do Rotor | E54: PC | F54: 2 | K54: 2508 | L54: 2766.324 | M54: 2834.04 | N54: 2766.324 | O54: 2766.324 | P54: 2508 | Q54: 2508 | R54: 2508
A55: 2.1.5 | B55: COT_M30 | C55: PROPRIA | D55: Jg de Gaxeta | E55: PC | F55: 5 | K55: 571.2 | L55: 622.0368 | M55: 623.1792 | N55: 622.0368 | O55: 622.0368 | P55: 571.2 | Q55: 571.2 | R55: 571.2
A56: 2.1.6 | B56: COT_M31 | C56: PROPRIA | D56: Junta da Carcaça | E56: PC | F56: 5 | K56: 256 | L56: 281.088 | M56: 281.088 | N56: 281.088 | O56: 281.088 | P56: 256 | Q56: 256 | R56: 256
A57: 2.1.7 | B57: COT_M32 | C57: PROPRIA | D57: Junta da Tampa do Cavalete | E57: PC | F57: 10 | K57: 148 | L57: 162.504 | M57: 162.504 | N57: 162.504 | O57: 162.504 | P57: 148 | Q57: 148 | R57: 148
A58: 2.1.8 | B58: COT_M33 | C58: PROPRIA | D58: Oring da Bucha Protetora | E58: PC | F58: 5 | K58: 10.4 | L58: 11.4712 | M58: 11.752 | N58: 11.4712 | O58: 11.4712 | P58: 10.4 | Q58: 10.4 | R58: 10.4
A59: 2.1.9 | B59: COT_M34 | C59: PROPRIA | D59: Oring da Tampa de Refrigaração | E59: PC | F59: 5 | K59: 17.6 | L59: 19.4128 | M59: 19.888 | N59: 19.4128 | O59: 19.4128 | P59: 17.6 | Q59: 17.6 | R59: 17.6
A60: 2.1.10 | B60: COT_M35 | C60: PROPRIA | D60: Rolamentos | E60: PC | F60: 10 | K60: 336 | L60: 378.336 | M60: 362.88 | N60: 362.88 | O60: 362.88 | P60: 336 | Q60: 336 | R60: 336
A61: 2.1.11 | B61: COT_M36 | C61: PROPRIA | D61: Válvulas de Retenção | E61: PC | F61: 5 | K61: 3968 | L61: 4354.88 | M61: 4317.184 | N61: 4317.184 | O61: 4317.184 | P61: 3968 | Q61: 3968 | R61: 3968
A62: 2.1.12 | B62: COT_M37 | C62: PROPRIA | D62: Válvulas de Bloquieo 200 PN 16 | E62: PC | F62: 5 | K62: 2880 | L62: 3160.8 | M62: 3133.44 | N62: 3133.44 | O62: 3133.44 | P62: 2880 | Q62: 2880 | R62: 2880
A63: 2.1.13 | B63: COT_M38 | C63: PROPRIA | D63: Acoplamentos | E63: PC | F63: 5 | K63: 1680 | L63: 1646.4 | M63: 1764 | N63: 1680 | O63: 1680 | P63: 1646.4 | Q63: 1646.4 | R63: 1646.4
A64: 2.1.14 | B64: COT_M39 | C64: PROPRIA | D64: Base metálica em aço carbono p/ conj motobomba Pot. 100 cv | E64: PC | F64: 5 | K64: 5600 | L64: 5600 | M64: 6272 | N64: 5600 | O64: 5600 | P64: 5600 | Q64: 5600 | R64: 5600
A65: 2.1.15 | B65: COT_M40 | C65: PROPRIA | D65: Redução concêntrica PN 10 DN 125 x 200 mm | E65: PC | F65: 5 | K65: 2520 | L65: 2520 | M65: 2822.4 | N65: 2520 | O65: 2520 | P65: 2520 | Q65: 2520 | R65: 2520
A66: 2.2 | B66: ***** | C66: ***** | D66: SERVIÇOS DE RECUPERAÇÃO DE BOMBA MEGANORM KSB 200-400 | Q66: 0
A67: 2.2.1 | B67: CPU-M15 | C67: PROPRIA | D67: SERVIÇOS DE RECUPERAÇÃO DE BOMBA CENTRÍFUGA MEGANORM KSB 200-400 | E67: und | F67: 5 | Q67: 0
A68: 2.3 | B68: ***** | C68: ***** | D68: SERVIÇOS DE MANUTENÇÃO DE VÁLVULAS | Q68: 0
A69: 2.3.1 | B69: CPU-M07 | C69: PROPRIA | D69: Manutenção de válvula borboleta DN < 300 mm | E69: und | F69: 5 | Q69: 0
A70: 2.3.2 | B70: CPU-M08 | C70: PROPRIA | D70: Manutenção de filtro autolimpante Amiad | E70: und | F70: 10 | Q70: 0
A71: 2.3.3 | B71: CPU-M03 | C71: PROPRIA | D71: Manutenção de ventosa DN < 300mm | E71: und | F71: 2 | Q71: 0
A72: 2.3.4 | B72: CPU-M04 | C72: PROPRIA | D72: Manutenção de válvula Clasar | E72: und | F72: 5 | Q72: 0
A73: 3 | D73: EBS2 - RECUPERAÇÃO BOMBAS CENTRÍFUGAS HORIZONTAIS | Q73: 0
A74: 3.1 | B74: ***** | C74: ***** | D74: MATERIAL BOMBA MEGANORM KSB 80-400 | Q74: 0
A75: 3.1.1 | B75: COT_M41 | C75: PROPRIA | D75: Anel de Desgaste da Carcaça | E75: PC | F75: 4 | K75: 464 | L75: 510.9104 | M75: 491.84 | N75: =MEDIAN(K75:M75) -> 491.84 | O75: =MEDIAN(K75:M75) -> 491.84 | P75: =MIN(K75:M75) -> 464 | Q75: 464 | R75: =MEDIAN(Q75,J75) -> 464
A76: 3.1.2 | B76: COT_M42 | C76: PROPRIA | D76: Anel de Desgaste do Rotor | E76: PC | F76: 4 | K76: 384 | L76: 422.8224 | M76: 407.04 | N76: 407.04 | O76: 407.04 | P76: 384 | Q76: =MIN(N76:P76) -> 384 | R76: 384
A77: 3.1.3 | B77: COT_M43 | C77: PROPRIA | D77: Bucha Protetora do Eixo | E77: PC | F77: 4 | K77: 636 | L77: 685.4172 | M77: 678.1668 | N77: 678.1668 | O77: 678.1668 | P77: 636 | Q77: 636 | R77: 636
A78: 3.1.4 | B78: COT_M44 | C78: PROPRIA | D78: Eixo do Rotor | E78: PC | F78: 2 | K78: 2508 | L78: 2766.324 | M78: 2834.04 | N78: 2766.324 | O78: 2766.324 | P78: 2508 | Q78: 2508 | R78: 2508
A79: 3.1.5 | B79: COT_M45 | C79: PROPRIA | D79: Jg de Gaxeta | E79: PC | F79: 4 | K79: 571.2 | L79: 622.0368 | M79: 623.1792 | N79: 622.0368 | O79: 622.0368 | P79: 571.2 | Q79: 571.2 | R79: 571.2
A80: 3.1.6 | B80: COT_M46 | C80: PROPRIA | D80: Junta da Carcaça | E80: PC | F80: 4 | K80: 256 | L80: 281.088 | M80: 281.088 | N80: 281.088 | O80: 281.088 | P80: 256 | Q80: 256 | R80: 256
A81: 3.1.7 | B81: COT_M47 | C81: PROPRIA | D81: Junta da Tampa do Cavalete | E81: PC | F81: 8 | K81: 148 | L81: 162.504 | M81: 162.504 | N81: 162.504 | O81: 162.504 | P81: 148 | Q81: 148 | R81: 148
A82: 3.1.8 | B82: COT_M48 | C82: PROPRIA | D82: Oring da Bucha Protetora | E82: PC | F82: 4 | K82: 10.4 | L82: 11.4712 | M82: 11.752 | N82: 11.4712 | O82: 11.4712 | P82: 10.4 | Q82: 10.4 | R82: 10.4
A83: 3.1.9 | B83: COT_M49 | C83: PROPRIA | D83: Oring da Tampa de Refrigaração | E83: PC | F83: 4 | K83: 17.6 | L83: 19.4128 | M83: 19.888 | N83: 19.4128 | O83: 19.4128 | P83: 17.6 | Q83: 17.6 | R83: 17.6
A84: 3.1.10 | B84: COT_M50 | C84: PROPRIA | D84: Rolamentos | E84: PC | F84: 8 | K84: 336 | L84: 378.336 | M84: 362.88 | N84: 362.88 | O84: 362.88 | P84: 336 | Q84: 336 | R84: 336
A85: 3.1.11 | B85: COT_M51 | C85: PROPRIA | D85: Válvulas de Retenção | E85: PC | F85: 4 | K85: 3968 | L85: 4354.88 | M85: 4317.184 | N85: 4317.184 | O85: 4317.184 | P85: 3968 | Q85: 3968 | R85: 3968
A86: 3.1.12 | B86: COT_M52 | C86: PROPRIA | D86: Válvulas de Bloqueio 200 PN 16 | E86: PC | F86: 4 | K86: 2880 | L86: 3160.8 | M86: 3133.44 | N86: 3133.44 | O86: 3133.44 | P86: 2880 | Q86: 2880 | R86: 2880
A87: 3.1.13 | B87: COT_M53 | C87: PROPRIA | D87: Acoplamentos | E87: PC | F87: 4 | K87: 1680 | L87: 1646.4 | M87: 1764 | N87: 1680 | O87: 1680 | P87: 1646.4 | Q87: 1646.4 | R87: 1646.4
A88: 3.2 | B88: ***** | C88: ***** | D88: SERVIÇOS DE RECUPERAÇÃO DE BOMBA MEGANORM KSB 80-400 | Q88: 0
A89: 3.2.1 | B89: CPU-M16 | C89: PROPRIA | D89: SERVIÇOS DE RECUPERAÇÃO DE BOMBA CENTRÍFUGA MEGANORM KSB 80-400 | E89: und | F89: 4 | Q89: 0
A90: 3.3 | B90: ***** | C90: ***** | D90: SERVIÇOS DE MANUTENÇÃO DE VÁLVULAS | Q90: 0
A91: 3.3.1 | B91: CPU-M07 | C91: PROPRIA | D91: Manutenção de válvula borboleta DN < 300 mm | E91: und | F91: 8 | Q91: 0
A92: 3.3.2 | B92: CPU-M08 | C92: PROPRIA | D92: Filtro autolimpante Amiad | E92: und | F92: 2 | Q92: 0
A93: 3.3.3 | B93: CPU-M03 | C93: PROPRIA | D93: Manutenção de ventosa DN < 300mm | E93: und | F93: 4 | Q93: 0
A94: 3.3.4 | B94: CPU-M04 | C94: PROPRIA | D94: Manutenção de válvula Clasar | E94: und | F94: 4 | Q94: 0
A95: 4 | D95: ADUTORAS E TANQUES DE AMORTECIMENTO UNILATERAL | Q95: 0
A96: 4.1 | B96: ***** | C96: ***** | D96: ADUTORA - SERVIÇOS DE MANUTENÇÃO DE VÁLVULAS | Q96: 0
A97: 4.1.2.1 | B97: CPU-M01 | C97: PROPRIA | D97: Manutenção de válvula gaveta DN < 300 mm | E97: und | F97: 4 | Q97: 0
A98: 4.1.2.2 | B98: CPU-M09 | C98: PROPRIA | D98: Manutenção de válvulas borboleta com redutor e acionamento manual DN > 300 mm e < 800 mm | E98: und | F98: 3 | Q98: 0
A99: 4.1.2.3 | B99: CPU-M10 | C99: PROPRIA | D99: Manutenção de válvulas borboleta motorizadas DN 1.200 mm | E99: und | F99: 2 | Q99: 0
A100: 4.2.1 | B100: ***** | C100: ***** | D100: TAU 1 - MATERIAL | Q100: 0
A101: 4.2.1.1 | B101: COT_M54 | C101: PROPRIA | D101: Válvula sustentadora de pressão Bermad DN 100 mm | E101: pç | F101: 4 | K101: 23750 | L101: 26065.625 | M101: 25840 | N101: =MEDIAN(K101:M101) -> 25840 | O101: =MEDIAN(K101:M101) -> 25840 | P101: =MIN(K101:M101) -> 23750 | Q101: 23750 | R101: =MEDIAN(Q101,J101) -> 23750
A102: 4.2.1.2 | B102: COT_M55 | C102: PROPRIA | D102: Válvulas Gaveta DN 100 mm | E102: pç | F102: 8 | K102: 1819.25 | L102: 1996.626875 | M102: 1979.344 | N102: 1979.344 | O102: 1979.344 | P102: 1819.25 | Q102: 1819.25 | R102: 1819.25
A103: 4.2.1.3 | B103: COT_M56 | C103: PROPRIA | D103: Filtro de Linha DN 100 mm | E103: pç | F103: 4 | K103: 4626.5 | L103: 5024.379 | M103: 5072.4946 | N103: 5024.379 | O103: 5024.379 | P103: 4626.5 | Q103: 4626.5 | R103: 4626.5
A104: 4.2.1.4 | B104: COT_M57 | C104: PROPRIA | D104: Toco Aço Carbono DN 800 mm x 500 mm | E104: pç | F104: 1 | K104: 10830 | L104: 12021.3 | M104: 12205.41 | N104: 12021.3 | O104: 12021.3 | P104: 10830 | Q104: 10830 | R104: 10830
A105: 4.2.2 | B105: ***** | C105: ***** | D105: TAU 1 - SERVIÇOS DE MANUTENÇÃO DE VÁLVULAS | Q105: 0
A106: 4.2.2.1 | B106: CPU-M01 | C106: PROPRIA | D106: Manutenção de válvula gaveta DN < 300 mm | E106: und | F106: 4 | Q106: 0
A107: 4.2.2.2 | B107: CPU-M02 | C107: PROPRIA | D107: Manutenção de válvulas borboleta com redutor e acionamento manual DN > 300 mm e < 800 mm | E107: und | F107: 4 | Q107: 0
A108: 4.2.2.3 | B108: CPU-M03 | C108: PROPRIA | D108: Manutenção de ventosa DN < 300mm | E108: und | F108: 4 | Q108: 0
A109: 4.2.2.4 | B109: CPU-M04 | C109: PROPRIA | D109: Manutenção de válvula Clasar | E109: und | F109: 4 | Q109: 0
A110: 4.2.2.5 | B110: CPU-M11 | C110: PROPRIA | D110: Substituição dos conjuntos de Registro, Filtro Y de Linha e Válvula Bermad de controle de nível | E110: und | F110: 4 | Q110: 0
A111: 4.2.2.6 | B111: CPU-M12 | C111: PROPRIA | D111: Substituição de toco aço carbono DN 800 para correção do desnivelamento | E111: und | F111: 1 | Q111: 0
A112: 4.3.1 | B112: ***** | C112: ***** | D112: TAU 2 - MATERIAL | Q112: 0
A113: 4.3.1.1 | B113: COT_M58 | C113: PROPRIA | D113: Válvula Sutentadora de Pressão Bermad DN 100 mm | E113: pç | F113: 2 | K113: 23750 | L113: 26065.625 | M113: 25840 | N113: =MEDIAN(K113:M113) -> 25840 | O113: =MEDIAN(K113:M113) -> 25840 | P113: =MIN(K113:M113) -> 23750 | Q113: 23750 | R113: =MEDIAN(Q113,J113) -> 23750
A114: 4.2.3 | B114: COT_M60 | C114: PROPRIA | D114: Filtro de Linha DN 100 mm | E114: pç | F114: 2 | K114: 1819.25 | L114: 1996.626875 | M114: 1979.344 | N114: 1979.344 | O114: 1979.344 | P114: 1819.25 | Q114: 1819.25 | R114: 1819.25
A115: 4.2.2 | B115: ***** | C115: ***** | D115: TAU 2 - SERVIÇOS DE MANUTENÇÃO DE VÁLVULAS | Q115: 0
A116: 4.2.2.1 | B116: CPU-M01 | C116: PROPRIA | D116: Manutenção de válvula gaveta DN < 300 mm | E116: und | F116: 2 | Q116: 0
A117: 4.2.2.2 | B117: CPU-M02 | C117: PROPRIA | D117: Manutenção de válvulas borboleta com redutor e acionamento manual DN > 300 mm e < 800 mm | E117: und | F117: 2 | Q117: 0
A118: 4.2.2.3 | B118: CPU-M03 | C118: PROPRIA | D118: Manutenção de ventosa DN < 300mm | E118: und | F118: 2 | Q118: 0
A119: 4.2.2.4 | B119: CPU-M04 | C119: PROPRIA | D119: Manutenção de válvula Clasar | E119: und | F119: 2 | Q119: 0
A120: 4.2.2.5 | B120: CPU-M11 | C120: PROPRIA | D120: Substituição dos conjuntos de Registro, Filtro Y de Linha e Válvula Bermad de controle de nível | E120: und | F120: 2 | Q120: 0
Q121: 0

Sheet ORC_Civil
A1: 22627.68 | D1: MINISTÉRIO DA INTEGRAÇÃO E DO DESENVOLVIMENTO REGIONAL | I1: SINAPI: | J1: 2025-08-01 | K1: PREÇO GLOBAL COM DESCONTO
D2: COMPANHIA DE DESENVOLVIMENTO DOS VALES DO SÃO FRANCISCO E PARNAÍBA | I2: SICRO: | J2: 2025-04-01
D3: 8ª SUPERINTENDÊNCIA REGIONAL - MARANHÃO | I3: ORSE: | J3: 2025-07-01
A4: Objeto: Contratação de serviços técnicos para retrofit de componentes da infraestruturas de uso comum do Projeto Público de Irrigação Tabuleiro de São Bernardo (PITSB). | I4: Cotações: | J4: 2025-10-01
A5: Local: Magalhães de Almeida - MA | I5: BDI-F: | J5: =CAPA!D14 -> 0.15
A6: Preço Global Sem Desconto: | C6: =SUM(I9,I17,I34,I49,I85,I109) -> 954815.46 | I6: BDI-S: | J6: =CAPA!D15 -> 0.2648 | K6: =L115 -> 916622.8416
A7: MOB/DESMOB, ADMINISTRAÇÃO LOCAL E CANTEIRO | K7: PROPOSTA DA EMPRESA LICITANTE
A8: Item | B8: Código | C8: Fonte | D8: Descrição | E8: Unid. | F8: Quant. | G8: Custo Unit. (R$) | H8: Preço Unit. (R$) | I8: Subtotal (R$) | J8: Peso (%) | K8: DESCONTO | L8: PREÇO COM BDI APÓS DESCONTO
A9: 1 | D9: SERVIÇOS PRELIMINARES | I9: =SUM(I10:I16) -> 51355.22 | K9: =CAPA!$D$13 -> 0.04 | L9: =SUM(L10:L16) -> 49301.0112
A10: 1.1 | B10: 103689 | C10: SINAPI | D10: FORNECIMENTO E INSTALAÇÃO DE PLACA DE OBRA COM CHAPA GALVANIZADA E ESTRUTURA DE MADEIRA. AF_03/2022_PS | E10: m² | F10: =MC_Civil!K9 -> 2.88 | G10: 469.48 | H10: =TRUNC(G10*(1+$J$6),2) -> 593.79 | I10: =TRUNC(F10*H10,2) -> 1710.11 | K10: =CAPA!$D$13 -> 0.04 | L10: =I10*(1-K10) -> 1641.7056
A11: 1.2 | B11: CPU101 | C11: PRÓPRIA | D11: Instalação de Contêiner/Escritório | E11: und | F11: =MC_Civil!K11 -> 3 | G11: =VLOOKUP(B11,CPU_Civil!$A$9:$I$213,9,0) -> 423.35568 | H11: =TRUNC(G11*(1+$J$6),2) -> 535.46 | I11: =TRUNC(F11*H11,2) -> 1606.38 | K11: =CAPA!$D$13 -> 0.04 | L11: =I11*(1-K11) -> 1542.1248
A12: 1.3 | B12: CPU102 | C12: PROPRIA | D12: Mobilização e Desmobilização Equipamento de Grande Porte | E12: km | F12: =MC_Civil!K13 -> 936 | G12: =VLOOKUP(B12,CPU_Civil!$A$9:$I$213,9,0) -> 7.9886077 | H12: 10.1 | I12: 9453.6 | K12: =CAPA!$D$13 -> 0.04 | L12: 9075.456
A13: 1.4 | B13: CPU103 | C13: PROPRIA | D13: Mobilização e Desmobilização Equipamento de Médio Porte | E13: km | F13: =MC_Civil!K16 -> 936 | G13: =VLOOKUP(B13,CPU_Civil!$A$9:$I$213,9,0) -> 7.1545741 | H13: 9.04 | I13: 8461.44 | K13: =CAPA!$D$13 -> 0.04 | L13: 8122.9824
A14: 1.5 | B14: CPU104 | C14: PRÓPRIA | D14: Aquisição de Gerador Diesel Trifásico 8kVA, 220/380v, partida elétrica, inclusive cabo elétrico 30m. | E14: und | F14: =MC_Civil!K18 -> 1 | G14: =VLOOKUP(B14,CPU_Civil!$A$9:$I$213,9,0) -> 8316 | H14: =TRUNC(G14*(1+$J$5),2) -> 9563.4 | I14: 9563.4 | K14: =CAPA!$D$13 -> 0.04 | L14: 9180.864
A15: 1.6 | B15: CPU105 | C15: PRÓPRIA | D15: Aquisição de bomba submersível de drenagem 3cv, 220V trifásica, Daka, Dancor ou similar, inclusive mangote 30m. | E15: und | F15: =MC_Civil!K19 -> 1 | G15: =VLOOKUP(B15,CPU_Civil!$A$9:$I$213,9,0) -> 4188.5 | H15: =TRUNC(G15*(1+$J$5),2) -> 4816.77 | I15: 4816.77 | K15: =CAPA!$D$13 -> 0.04 | L15: 4624.0992
A16: 1.7 | B16: CPU106 | C16: PRÓPRIA | D16: Transporte de Equipamentos Eletromecânicos | E16: km | F16: =MC_Civil!K20 -> 5428.8 | G16: =VLOOKUP(B16,CPU_Civil!$A$9:$I$213,9,0) -> 2.5263264 | H16: =TRUNC(G16*(1+$J$5),2) -> 2.9 | I16: 15743.52 | K16: =CAPA!$D$13 -> 0.04 | L16: 15113.7792
A17: 2 | D17: ADMINISTRAÇÃO LOCAL | I17: =SUM(I18,I23,I28) -> 502849.9 | L17: =SUM(L18,L23,L28) -> 482735.904
A18: 2.1 | B18: ***** | C18: ***** | D18: Pessoal | I18: =SUM(I19:I22) -> 352458.26 | K18: =CAPA!$D$13 -> 0.04 | L18: =SUM(L19:L22) -> 338359.9296
A19: 2.1.1 | B19: 93565 | C19: SINAPI | D19: ENGENHEIRO CIVIL DE OBRA JUNIOR COM ENCARGOS COMPLEMENTARES | E19: mês | F19: =MC_Civil!K29 -> 6 | G19: =IF(C19="SINAPI",(IFERROR(VLOOKUP(B19,'CompSD SINAPI'!$B$11:$F$9784,4,0),VLOOKUP(B19,'ISD SINAPI'!$B$11:$F$4903,5,0))),IF(OR(C19="SICRO",C19="SICRO3"),(IFERROR(VLOOKUP(B19,'COMP SD SICRO'!$A$2:$D$6495,4,0),VLOOKUP(B19,'ISD SICRO'!$A$2:$D$2319,4,0))),IF(C19="SEINFRA",(IFERROR(VLOOKUP(B19,'COMPSD SEINFRA'!$B$7:$G$5611,4,0),VLOOKUP(B19,'ISD SEINFRA'!A7:$D$11922,4,0))),))) -> 22638.12 | H19: =TRUNC(G19*(1+$J$6),2) -> 28632.69 | I19: =TRUNC(F19*H19,2) -> 171796.14 | K19: =CAPA!$D$13 -> 0.04 | L19: 164924.2944
A20: 2.1.2 | B20: P9891 | C20: SICRO | D20: Engenheiro mecânico | E20: mês | F20: =MC_Civil!K30 -> 3 | G20: 23147.84 | H20: 29277.38 | I20: 87832.14 | K20: =CAPA!$D$13 -> 0.04 | L20: 84318.8544
A21: 2.1.3 | B21: 94295 | C21: SINAPI | D21: MESTRE DE OBRAS COM ENCARGOS COMPLEMENTARES | E21: mês | F21: =MC_Civil!K31 -> 6 | G21: 8360.29 | H21: 10574.09 | I21: 63444.54 | K21: =CAPA!$D$13 -> 0.04 | L21: 60906.7584
A22: 2.1.4 | B22: 101390 | C22: SINAPI | D22: AUXILIAR TÉCNICO / ASSISTENTE DE ENGENHARIA COM ENCARGOS COMPLEMENTARES | E22: mês | F22: =MC_Civil!K32 -> 4 | G22: =IF(C22="SINAPI",(IFERROR(VLOOKUP(B22,'CompSD SINAPI'!$B$11:$F$9784,4,0),VLOOKUP(B22,'ISD SINAPI'!$B$11:$F$4903,5,0))),IF(OR(C22="SICRO",C22="SICRO3"),(IFERROR(VLOOKUP(B22,'COMP SD SICRO'!$A$2:$D$6495,4,0),VLOOKUP(B22,'ISD SICRO'!$A$2:$D$2319,4,0))),IF(C22="SEINFRA",(IFERROR(VLOOKUP(B22,'COMPSD SEINFRA'!$B$7:$G$5611,4,0),VLOOKUP(B22,'ISD SEINFRA'!A10:$D$11922,4,0))),))) -> 5808.32 | H22: 7346.36 | I22: 29385.44 | K22: =CAPA!$D$13 -> 0.04 | L22: 28210.0224
A23: 2.2 | B23: ***** | C23: ***** | D23: Manutenção de Canteiro | I23: =SUM(I24:I27) -> 58658.64 | K23: =CAPA!$D$13 -> 0.04 | L23: =SUM(L24:L27) -> 56312.2944
A24: 2.2.1 | B24: 4656 | C24: ORSE | D24: Locação de container - Banheiro com chuveiros e vasos - 4,30 x 2,30m | E24: mês | F24: =MC_Civil!K34 -> 8 | G24: 962.26 | H24: =TRUNC(G24*(1+$J$5),2) -> 1106.59 | I24: 8852.72 | K24: =CAPA!$D$13 -> 0.04 | L24: 8498.6112
A25: 2.2.2 | B25: 4657 | C25: ORSE | D25: Locação de container - Escritório com banheiro - 6,20 x 2,40m - Rev 02_02/2022 | E25: mês | F25: =MC_Civil!K35 -> 8 | G25: 1600 | H25: 1840 | I25: 14720 | K25: =CAPA!$D$13 -> 0.04 | L25: 14131.2
A26: 2.2.3 | B26: 4659 | C26: ORSE | D26: Locação de container - Refeitório sem banheiro - 6,00 x 2,40m - Rev 02_x001f__02/2022 | E26: mês | F26: =MC_Civil!K36 -> 8 | G26: 1800 | H26: 2070 | I26: 16560 | K26: =CAPA!$D$13 -> 0.04 | L26: 15897.6
A27: 2.2.4 | B27: CPU201 | C27: PRÓPRIA | D27: Mobiliário e custos de escritório local | E27: mês | F27: =MC_Civil!K37 -> 8 | G27: =VLOOKUP(B27,CPU_Civil!$A$9:$I$213,9,0) -> 2013.69 | H27: 2315.74 | I27: 18525.92 | K27: =CAPA!$D$13 -> 0.04 | L27: 17784.8832
A28: 2.3 | B28: ***** | C28: ***** | D28: Veículos, Insumos e Equipamentos Diversos | I28: =SUM(I29:I32) -> 91733 | K28: =CAPA!$D$13 -> 0.04 | L28: =SUM(L29:L32) -> 88063.68
A29: 2.3.1 | B29: CPU202 | C29: PROPRIA | D29: Locação de veículo tipo van/furgão/kombi (inclusive gasolina) | E29: mês | F29: =MC_Civil!K39 -> 8 | G29: =VLOOKUP(B29,CPU_Civil!$A$9:$I$213,9,0) -> 3981.451 | H29: 4578.66 | I29: 36629.28 | K29: =CAPA!$D$13 -> 0.04 | L29: 35164.1088
A30: 2.3.2 | B30: CPU203 | C30: PRÓPRIA | D30: Aquisição de Diesel para Gerador 8kVA | E30: L | F30: =MC_Civil!K40 -> 936 | G30: =VLOOKUP(B30,CPU_Civil!$A$9:$I$213,9,0) -> 6.02 | H30: 6.92 | I30: 6477.12 | K30: =CAPA!$D$13 -> 0.04 | L30: 6218.0352
A31: 2.3.3 | B31: 20193 | C31: SINAPI | D31: LOCACAO DE ANDAIME METALICO TIPO FACHADEIRO, PECAS COM APROXIMADAMENTE 1,20 M DE LARGURA E 2,0 M DE ALTURA, INCLUINDO DIAGONAIS EM X, BARRAS DE LIGACAO, SAPATAS E DEMAIS ITENS NECESSARIOS A MONTAGEM (NAO INCLUI INSTALACAO) | E31: peçaxmês | F31: =MC_Civil!K41 -> 672 | G31: =IF(C31="SINAPI",(IFERROR(VLOOKUP(B31,'CompSD SINAPI'!$B$11:$F$9784,4,0),VLOOKUP(B31,'ISD SINAPI'!$B$11:$F$4903,5,0))),IF(OR(C31="SICRO",C31="SICRO3"),(IFERROR(VLOOKUP(B31,'COMP SD SICRO'!$A$2:$D$6495,4,0),VLOOKUP(B31,'ISD SICRO'!$A$2:$D$2319,4,0))),IF(C31="SEINFRA",(IFERROR(VLOOKUP(B31,'COMPSD SEINFRA'!$B$7:$G$5611,4,0),VLOOKUP(B31,'ISD SEINFRA'!A21:$D$11922,4,0))),))) -> 15 | H31: 17.25 | I31: 11592 | K31: =CAPA!$D$13 -> 0.04 | L31: 11128.32
A32: 2.3.1 | B32: CPU204 | C32: PROPRIA | D32: Guindauto 11,7 t.m, alcance 9,7 incluso motorista e combustível | E32: mês | F32: =MC_Civil!K45 -> 2.5 | G32: =VLOOKUP(B32,CPU_Civil!$A$9:$I$213,9,0) -> 12881.6 | H32: =TRUNC(G32*(1+$J$5),2) -> 14813.84 | I32: =TRUNC(F32*H32,2) -> 37034.6 | K32: =CAPA!$D$13 -> 0.04 | L32: 35553.216
A33: ORÇAMENTO - CIVIL
A34: 3 | D34: CANAL DE APROXIMAÇÃO | I34: =SUM(I35,I42) -> 113457.33 | L34: =SUM(L35,L42) -> 108919.0368
A35: 3.1 | B35: ***** | C35: ***** | D35: Dragagem, recuperação e limpeza do Canal de Aproximação | I35: =SUM(I36:I41) -> 70191.41 | K35: =CAPA!$D$13 -> 0.04 | L35: =SUM(L36:L41) -> 67383.7536
A36: 3.1.1 | B36: 4915776 | C36: SICRO | D36: Roçada com roçadeira costal | E36: ha | F36: =MC_Civil!K48 -> 2.51 | G36: 777.84 | H36: =TRUNC(G36*(1+$J$6),2) -> 983.81 | I36: =TRUNC(F36*H36,2) -> 2469.36 | K36: =CAPA!$D$13 -> 0.04 | L36: 2370.5856
A37: 3.1.2 | B37: 104949 | C37: SINAPI | D37: DRAGAGEM DE MATERIAIS DE 1A CATEGORIA E COMPOSTOS ORGÂNICOS E INORGÂNICOS COM ESCAVADEIRA HIDRÁULICA DE LONGO ALCANCE (CAÇAMBA: 0,52 M3/155 HP). AF_03/2024 | E37: m³ | F37: =MC_Civil!K52 -> 3671.92 | G37: =IF(C37="SINAPI",(IFERROR(VLOOKUP(B37,'CompSD SINAPI'!$B$11:$F$9784,4,0),VLOOKUP(B37,'ISD SINAPI'!$B$11:$F$4903,5,0))),IF(OR(C37="SICRO",C37="SICRO3"),(IFERROR(VLOOKUP(B37,'COMP SD SICRO'!$A$2:$D$6495,4,0),VLOOKUP(B37,'ISD SICRO'!$A$2:$D$2319,4,0))),IF(C37="SEINFRA",(IFERROR(VLOOKUP(B37,'COMPSD SEINFRA'!$B$7:$G$5611,4,0),VLOOKUP(B37,'ISD SEINFRA'!A27:$D$11922,4,0))),))) -> 9.8 | H37: =TRUNC(G37*(1+$J$6),2) -> 12.39 | I37: =TRUNC(F37*H37,2) -> 45495.08 | K37: =CAPA!$D$13 -> 0.04 | L37: 43675.2768
A38: 3.1.3 | B38: 93589 | C38: SINAPI | D38: TRANSPORTE COM CAMINHÃO BASCULANTE DE 10 M³, EM VIA URBANA EM REVESTIMENTO PRIMÁRIO (UNIDADE: M3XKM). AF_07/2020 | E38: m³xkm | F38: =MC_Civil!K64 -> 1101.576 | G38: =IF(C38="SINAPI",(IFERROR(VLOOKUP(B38,'CompSD SINAPI'!$B$11:$F$9784,4,0),VLOOKUP(B38,'ISD SINAPI'!$B$11:$F$4903,5,0))),IF(OR(C38="SICRO",C38="SICRO3"),(IFERROR(VLOOKUP(B38,'COMP SD SICRO'!$A$2:$D$6495,4,0),VLOOKUP(B38,'ISD SICRO'!$A$2:$D$2319,4,0))),IF(C38="SEINFRA",(IFERROR(VLOOKUP(B38,'COMPSD SEINFRA'!$B$7:$G$5611,4,0),VLOOKUP(B38,'ISD SEINFRA'!A28:$D$11922,4,0))),))) -> 2.72 | H38: 3.44 | I38: 3789.42 | K38: =CAPA!$D$13 -> 0.04 | L38: 3637.8432
A39: 3.1.4 | B39: 4413942 | C39: SICRO | D39: Espalhamento de material em bota-fora | E39: m³ | F39: =MC_Civil!K66 -> 3671.92 | G39: 2.01 | H39: 2.54 | I39: 9326.67 | K39: =CAPA!$D$13 -> 0.04 | L39: 8953.6032
A40: 3.1.5 | B40: CPU301 | C40: PROPRIA | D40: Controle topográfico planialtimétrico de seções | E40: estaca | F40: =MC_Civil!K68 -> 16 | G40: =VLOOKUP(B40,CPU_Civil!$A$9:$I$213,9,0) -> 316.5 | H40: 400.3 | I40: 6404.8 | K40: =CAPA!$D$13 -> 0.04 | L40: 6148.608
A41: 3.1.6 | B41: CPU302 | C41: PROPRIA | D41: Fornecimento e instalação de barreira ecológica 40m p/ retenção de macrófitas. | E41: cj | F41: =MC_Civil!K72 -> 1 | G41: =VLOOKUP(B41,CPU_Civil!$A$9:$I$213,9,0) -> 2139.533333 | H41: 2706.08 | I41: 2706.08 | K41: =CAPA!$D$13 -> 0.04 | L41: 2597.8368
A42: 3.2 | B42: ***** | C42: ***** | D42: Recomposição de taludes | I42: =SUM(I43:I48) -> 43265.92 | K42: =CAPA!$D$13 -> 0.04 | L42: =SUM(L43:L48) -> 41535.2832
A43: 3.2.1 | B43: 4016096 | C43: SICRO | D43: Escavação e carga de material de jazida com escavadeira hidráulica de 1,56 m³ | E43: m³ | F43: =MC_Civil!K74 -> 160.3 | G43: 1.47 | H43: =TRUNC(G43*(1+$J$6),2) -> 1.85 | I43: 296.55 | K43: =CAPA!$D$13 -> 0.04 | L43: 284.688
A44: 3.2.2 | B44: 93589 | C44: SINAPI | D44: TRANSPORTE COM CAMINHÃO BASCULANTE DE 10 M³, EM VIA URBANA EM REVESTIMENTO PRIMÁRIO (UNIDADE: M3XKM). AF_07/2020 | E44: m³xkm | F44: =MC_Civil!K76 -> 1282.4 | G44: =IF(C44="SINAPI",(IFERROR(VLOOKUP(B44,'CompSD SINAPI'!$B$11:$F$9784,4,0),VLOOKUP(B44,'ISD SINAPI'!$B$11:$F$4903,5,0))),IF(OR(C44="SICRO",C44="SICRO3"),(IFERROR(VLOOKUP(B44,'COMP SD SICRO'!$A$2:$D$6495,4,0),VLOOKUP(B44,'ISD SICRO'!$A$2:$D$2319,4,0))),IF(C44="SEINFRA",(IFERROR(VLOOKUP(B44,'COMPSD SEINFRA'!$B$7:$G$5611,4,0),VLOOKUP(B44,'ISD SEINFRA'!A34:$D$11922,4,0))),))) -> 2.72 | H44: 3.44 | I44: 4411.45 | K44: =CAPA!$D$13 -> 0.04 | L44: 4234.992
A45: 3.2.3 | B45: 104730 | C45: SINAPI | D45: REATERRO MECANIZADO DE VALA COM ESCAVADEIRA HIDRÁULICA (CAPACIDADE DA CAÇAMBA: 0,8 M³/POTÊNCIA: 111 HP), LARGURA DE 1,5 A 2,5 M, PROFUNDIDADE DE 1,5 A 3,0 M, COM SOLO (SEM SUBSTITUIÇÃO) DE 1ª CATEGORIA, COM PLACA VIBRATÓRIA. AF_08/2023 | E45: m³ | F45: =MC_Civil!K78 -> 160.3 | G45: =IF(C45="SINAPI",(IFERROR(VLOOKUP(B45,'CompSD SINAPI'!$B$11:$F$9784,4,0),VLOOKUP(B45,'ISD SINAPI'!$B$11:$F$4903,5,0))),IF(OR(C45="SICRO",C45="SICRO3"),(IFERROR(VLOOKUP(B45,'COMP SD SICRO'!$A$2:$D$6495,4,0),VLOOKUP(B45,'ISD SICRO'!$A$2:$D$2319,4,0))),IF(C45="SEINFRA",(IFERROR(VLOOKUP(B45,'COMPSD SEINFRA'!$B$7:$G$5611,4,0),VLOOKUP(B45,'ISD SEINFRA'!A35:$D$11922,4,0))),))) -> 12.92 | H45: 16.34 | I45: 2619.3 | K45: =CAPA!$D$13 -> 0.04 | L45: 2514.528
A46: 3.2.4 | B46: CPU303 | C46: PROPRIA | D46: Execução de decidas d'água rápida (DAR 40-20), com alas de captação. | E46: cj | F46: =MC_Civil!K83 -> 6 | G46: =VLOOKUP(B46,CPU_Civil!$A$9:$I$213,9,0) -> 3687.36 | H46: =TRUNC(G46*(1+$J$6),2) -> 4663.77 | I46: 27982.62 | K46: =CAPA!$D$13 -> 0.04 | L46: 26863.3152
A47: 3.2.5 | B47: 4413993 | C47: SICRO | D47: Revestimento vegetal por semeadura a lanço manual de gramíneas e leguminosas | E47: m² | F47: =MC_Civil!K87 -> 6800 | G47: 0.55 | H47: 0.69 | I47: 4692 | K47: =CAPA!$D$13 -> 0.04 | L47: 4504.32
A48: 3.2.6 | B48: 4413987 | C48: SICRO | D48: Irrigação de área plantada para proteção vegetal do corpo estradal | E48: m² | F48: =MC_Civil!K89 -> 6800 | G48: 0.38 | H48: 0.48 | I48: 3264 | K48: =CAPA!$D$13 -> 0.04 | L48: 3133.44
A49: 4 | D49: ESTAÇÃO DE BOMBEAMENTO PRINCIPAL E SUBESTAÇÃO - EBP | I49: =SUM(I50,I54,I64,I66,I75,I77,I81) -> 232923.64 | L49: =SUM(L50,L54,L64,L66,L75,L77,L81) -> 223606.6944
A50: 4.1 | B50: ***** | C50: ***** | D50: Limpeza de poços de captação, entorno e dedetização geral | I50: =SUM(I51:I53) -> 3471.28 | K50: =CAPA!$D$13 -> 0.04 | L50: =SUM(L51:L53) -> 3332.4288
A51: 4.1.1 | B51: CPU401 | C51: PROPRIA | D51: Controle de pragas de vespas edificação até 2 pavimentos | E51: und | F51: =MC_Civil!K93 -> 1 | G51: =VLOOKUP(B51,CPU_Civil!$A$9:$I$213,9,0) -> 624.92 | H51: =TRUNC(G51*(1+$J$6),2) -> 790.39 | I51: =TRUNC(F51*H51,2) -> 790.39 | K51: =CAPA!$D$13 -> 0.04 | L51: 758.7744
A52: 4.1.2 | B52: CPU402 | C52: PROPRIA | D52: Esgotamento e limpeza dos poços de bomba 6 e 7 da EBP | E52: und | F52: =MC_Civil!K94 -> 1 | G52: =VLOOKUP(B52,CPU_Civil!$A$9:$I$213,9,0) -> 1077.76 | H52: 1363.15 | I52: 1363.15 | K52: =CAPA!$D$13 -> 0.04 | L52: 1308.624
A53: 6.1.3 | B53: CPU403 | C53: PROPRIA | D53: Limpeza de terreno 500 a 600m², com roçagem e capina, inclusive varrição e remoção da poda. | E53: und | F53: =MC_Civil!K95 -> 1 | G53: =VLOOKUP(B53,CPU_Civil!$A$9:$I$213,9,0) -> 1041.8608 | H53: 1317.74 | I53: 1317.74 | K53: =CAPA!$D$13 -> 0.04 | L53: 1265.0304
A54: 4.2 | B54: ***** | C54: ***** | D54: Esquadrias, janelas, portas, portões, parapeitos e escadas marinheiro | I54: =SUM(I55:I63) -> 112216.13 | K54: =CAPA!$D$13 -> 0.04 | L54: =SUM(L55:L63) -> 107727.4848
A55: 4.2.1 | B55: 97063 | C55: SINAPI | D55: MONTAGEM E DESMONTAGEM DE ANDAIME MODULAR FACHADEIRO, COM PISO METÁLICO, PARA EDIFÍCIOS COM MULTIPLOS PAVIMENTOS (EXCLUSIVE ANDAIME E LIMPEZA). AF_03/2024 | E55: m² | F55: =MC_Civil!K98 -> 720 | G55: =IF(C55="SINAPI",(IFERROR(VLOOKUP(B55,'CompSD SINAPI'!$B$11:$F$9784,4,0),VLOOKUP(B55,'ISD SINAPI'!$B$11:$F$4903,5,0))),IF(OR(C55="SICRO",C55="SICRO3"),(IFERROR(VLOOKUP(B55,'COMP SD SICRO'!$A$2:$D$6495,4,0),VLOOKUP(B55,'ISD SICRO'!$A$2:$D$2319,4,0))),IF(C55="SEINFRA",(IFERROR(VLOOKUP(B55,'COMPSD SEINFRA'!$B$7:$G$5611,4,0),VLOOKUP(B55,'ISD SEINFRA'!A45:$D$11922,4,0))),))) -> 18.59 | H55: =TRUNC(G55*(1+$J$6),2) -> 23.51 | I55: =TRUNC(F55*H55,2) -> 16927.2 | K55: =CAPA!$D$13 -> 0.04 | L55: 16250.112
A56: 4.2.2 | B56: CPU404 | C56: PROPRIA | D56: Reparos e pintura de esquadrias, guarnições portas e janelas matálicas. | E56: m² | F56: =MC_Civil!K100 -> 7.398 | G56: =VLOOKUP(B56,CPU_Civil!$A$9:$I$213,9,0) -> 59.04999 | H56: 74.68 | I56: 552.48 | K56: =CAPA!$D$13 -> 0.04 | L56: 530.3808
A57: 4.2.3 | B57: CPU502 | C57: PROPRIA | D57: Reparos de esquadrias e substituição de fechamentos de vidro por policarbonato e≥9,5mm | E57: m² | F57: =MC_Civil!K104 -> 4.5 | G57: =VLOOKUP(B57,CPU_Civil!$A$9:$I$213,9,0) -> 904.6776 | H57: 1144.23 | I57: 5149.03 | K57: =CAPA!$D$13 -> 0.04 | L57: 4943.0688
A58: 4.2.4 | B58: 4942 | C58: ORSE | D58: Remoção de esquadria metálica, sem reaproveitamento Rev. 01 - 03/2022 | E58: m² | F58: =MC_Civil!K106 -> 153.9 | G58: 20.69 | H58: 26.16 | I58: 4026.02 | K58: =CAPA!$D$13 -> 0.04 | L58: 3864.9792
A59: 4.2.5 | B59: I6741 | C59: SEINFRA | D59: VENEZIANA INDUSTRIAL EM PVC RÍGIDO, TRANSLÚCIDO E MONTANTE EM AÇO GALVANIZADO OU ALUMÍNIO (FORNECIMENTO E MONTAGEM) | E59: m² | F59: =MC_Civil!K109 -> 72.9 | G59: =IF(C59="SINAPI",(IFERROR(VLOOKUP(B59,'CompSD SINAPI'!$B$11:$F$9784,4,0),VLOOKUP(B59,'ISD SINAPI'!$B$11:$F$4903,5,0))),IF(OR(C59="SICRO",C59="SICRO3"),(IFERROR(VLOOKUP(B59,'COMP SD SICRO'!$A$2:$D$6495,4,0),VLOOKUP(B59,'ISD SICRO'!$A$2:$D$2319,4,0))),IF(C59="SEINFRA",(IFERROR(VLOOKUP(B59,'COMPSD SEINFRA'!$B$7:$G$5611,4,0),VLOOKUP(B59,'ISD SEINFRA'!A49:$D$11922,4,0))),))) -> 282.73 | H59: 357.59 | I59: 26068.31 | K59: =CAPA!$D$13 -> 0.04 | L59: 25025.5776
A60: 4.2.6 | B60: CPU405 | C60: PROPRIA | D60: Alvenaria de vedação com elemento vazado de concreto, tipo veneziana 39x29x10. | E60: m² | F60: =MC_Civil!K112 -> 81 | G60: =VLOOKUP(B60,CPU_Civil!$A$9:$I$213,9,0) -> 386.1995467 | H60: 488.46 | I60: 39565.26 | K60: =CAPA!$D$13 -> 0.04 | L60: 37982.6496
A61: 4.2.7 | B61: CPU406a | C61: PROPRIA | D61: Fornecimento e instalação de porta de enrolar 2,25x6,4 dupla, inclusive grade de proteção em metalon, pintadas em azul. inclusive cadeados. | E61: cj | F61: =MC_Civil!K114 -> 1 | G61: =VLOOKUP(B61,CPU_Civil!$A$9:$I$213,9,0) -> 13797.9218 | H61: 17451.61 | I61: 17451.61 | K61: =CAPA!$D$13 -> 0.04 | L61: 16753.5456
A62: 4.2.8 | B62: 94807 | C62: SINAPI | D62: PORTA EM AÇO DE ABRIR TIPO VENEZIANA SEM GUARNIÇÃO, 87X210CM, FIXAÇÃO COM PARAFUSOS - FORNECIMENTO E INSTALAÇÃO. AF_12/2019 | E62: und | F62: =MC_Civil!K116 -> 1 | G62: =IF(C62="SINAPI",(IFERROR(VLOOKUP(B62,'CompSD SINAPI'!$B$11:$F$9784,4,0),VLOOKUP(B62,'ISD SINAPI'!$B$11:$F$4903,5,0))),IF(OR(C62="SICRO",C62="SICRO3"),(IFERROR(VLOOKUP(B62,'COMP SD SICRO'!$A$2:$D$6495,4,0),VLOOKUP(B62,'ISD SICRO'!$A$2:$D$2319,4,0))),IF(C62="SEINFRA",(IFERROR(VLOOKUP(B62,'COMPSD SEINFRA'!$B$7:$G$5611,4,0),VLOOKUP(B62,'ISD SEINFRA'!A52:$D$11922,4,0))),))) -> 755.05 | H62: 954.98 | I62: 954.98 | K62: =CAPA!$D$13 -> 0.04 | L62: 916.7808
A63: 4.2.9 | B63: CPU406b | C63: PROPRIA | D63: Fornecimento e instalação de portão de acesso à caixa de válvulas, inclusive tela galvanizada 25x25mm, pintado em azul. Inclusive cadeados. | E63: cj | F63: =MC_Civil!K118 -> 1 | G63: =VLOOKUP(B63,CPU_Civil!$A$9:$I$213,9,0) -> 1202.751782 | H63: 1521.24 | I63: 1521.24 | K63: =CAPA!$D$13 -> 0.04 | L63: 1460.3904
A64: 4.3 | B64: ***** | C64: ***** | D64: Pisos, rampas e escadarias | I64: =SUM(I65:I65) -> 1125.85 | K64: =CAPA!$D$13 -> 0.04 | L64: =SUM(L65) -> 1080.816
A65: 4.3.1 | B65: 99814 | C65: SINAPI | D65: LIMPEZA DE SUPERFÍCIE COM JATO DE ALTA PRESSÃO. AF_04/2019 | E65: m² | F65: =MC_Civil!K121 -> 409.4 | G65: =IF(C65="SINAPI",(IFERROR(VLOOKUP(B65,'CompSD SINAPI'!$B$11:$F$9784,4,0),VLOOKUP(B65,'ISD SINAPI'!$B$11:$F$4903,5,0))),IF(OR(C65="SICRO",C65="SICRO3"),(IFERROR(VLOOKUP(B65,'COMP SD SICRO'!$A$2:$D$6495,4,0),VLOOKUP(B65,'ISD SICRO'!$A$2:$D$2319,4,0))),IF(C65="SEINFRA",(IFERROR(VLOOKUP(B65,'COMPSD SEINFRA'!$B$7:$G$5611,4,0),VLOOKUP(B65,'ISD SEINFRA'!A56:$D$11922,4,0))),))) -> 2.18 | H65: =TRUNC(G65*(1+$J$6),2) -> 2.75 | I65: =TRUNC(F65*H65,2) -> 1125.85 | K65: =CAPA!$D$13 -> 0.04 | L65: 1080.816
A66: 4.4 | B66: ***** | C66: ***** | D66: Reparos em Telhados e Calhas | I66: =SUM(I67:I74) -> 17997.91 | K66: =CAPA!$D$13 -> 0.04 | L66: =SUM(L67:L74) -> 17277.9936
A67: 4.4.1 | B67: 10324 | C67: IOPES | D67: Retirada manual de telha tipo Canalete 90, sem reaproveitamento | E67: m² | F67: =MC_Civil!K128 -> 32.4 | G67: 6.68 | H67: =TRUNC(G67*(1+$J$6),2) -> 8.44 | I67: =TRUNC(F67*H67,2) -> 273.45 | K67: =CAPA!$D$13 -> 0.04 | L67: 262.512
A68: 4.4.2 | B68: 238 | C68: ORSE | D68: Telhamento com telha de fibrocimento tipo canalete 90 (Eternit ou similar) | E68: m² | F68: =MC_Civil!K130 -> 32.4 | G68: 223.15 | H68: 282.24 | I68: 9144.57 | K68: =CAPA!$D$13 -> 0.04 | L68: =I68*(1-K68) -> 8778.7872
A69: 4.4.3 | B69: 253 | C69: ORSE | D69: Cumeeira normal em fibrocimento para telha canalete 90 ou similar | E69: m | F69: =MC_Civil!K132 -> 3 | G69: 155.77 | H69: 197.01 | I69: 591.03 | K69: =CAPA!$D$13 -> 0.04 | L69: 567.3888
A70: 4.4.4 | B70: 99814 | C70: SINAPI | D70: LIMPEZA DE SUPERFÍCIE COM JATO DE ALTA PRESSÃO. AF_04/2019 | E70: m² | F70: =MC_Civil!K134 -> 37.44 | G70: =IF(C70="SINAPI",(IFERROR(VLOOKUP(B70,'CompSD SINAPI'!$B$11:$F$9784,4,0),VLOOKUP(B70,'ISD SINAPI'!$B$11:$F$4903,5,0))),IF(OR(C70="SICRO",C70="SICRO3"),(IFERROR(VLOOKUP(B70,'COMP SD SICRO'!$A$2:$D$6495,4,0),VLOOKUP(B70,'ISD SICRO'!$A$2:$D$2319,4,0))),IF(C70="SEINFRA",(IFERROR(VLOOKUP(B70,'COMPSD SEINFRA'!$B$7:$G$5611,4,0),VLOOKUP(B70,'ISD SEINFRA'!A68:$D$11922,4,0))),))) -> 2.18 | H70: 2.75 | I70: 102.96 | K70: =CAPA!$D$13 -> 0.04 | L70: 98.8416
A71: 4.4.5 | B71: 98576 | C71: SINAPI | D71: TRATAMENTO DE JUNTA DE DILATAÇÃO COM MANTA ASFÁLTICA ADERIDA COM MAÇARICO. AF_09/2023 | E71: m | F71: =MC_Civil!K136 -> 4 | G71: =IF(C71="SINAPI",(IFERROR(VLOOKUP(B71,'CompSD SINAPI'!$B$11:$F$9784,4,0),VLOOKUP(B71,'ISD SINAPI'!$B$11:$F$4903,5,0))),IF(OR(C71="SICRO",C71="SICRO3"),(IFERROR(VLOOKUP(B71,'COMP SD SICRO'!$A$2:$D$6495,4,0),VLOOKUP(B71,'ISD SICRO'!$A$2:$D$2319,4,0))),IF(C71="SEINFRA",(IFERROR(VLOOKUP(B71,'COMPSD SEINFRA'!$B$7:$G$5611,4,0),VLOOKUP(B71,'ISD SEINFRA'!A69:$D$11922,4,0))),))) -> 23.46 | H71: 29.67 | I71: 118.68 | K71: =CAPA!$D$13 -> 0.04 | L71: 113.9328
A72: 4.4.6 | B72: CPU410 | C72: PROPRIA | D72: Fabricação e instalação de telas passarinheiras retangular chanfrada c/ tela galvanizada 25x25mm cantoneiras em alumínio. | E72: m | F72: =MC_Civil!K138 -> 48 | G72: =VLOOKUP(B72,CPU_Civil!$A$9:$I$213,9,0) -> 103.4107944 | H72: 130.79 | I72: 6277.92 | K72: =CAPA!$D$13 -> 0.04 | L72: 6026.8032
A73: 4.4.7 | B73: 4915650 | C73: SICRO | D73: Injeção de adesivo estrutural à base de resina epóxi de baixa viscosidade para tratamento de fissuras em estruturas de concreto - fornecimento e aplicação manual. | E73: Kg | F73: =MC_Civil!K140 -> 2 | G73: 285.03 | H73: 360.5 | I73: 721 | K73: =CAPA!$D$13 -> 0.04 | L73: 692.16
A74: 4.4.8 | B74: 93203 | C74: SINAPI | D74: FIXAÇÃO (ENCUNHAMENTO) DE ALVENARIA DE VEDAÇÃO COM ESPUMA DE POLIURETANO EXPANSIVA. AF_03/2024 | E74: m | F74: =MC_Civil!K142 -> 41.02 | G74: =IF(C74="SINAPI",(IFERROR(VLOOKUP(B74,'CompSD SINAPI'!$B$11:$F$9784,4,0),VLOOKUP(B74,'ISD SINAPI'!$B$11:$F$4903,5,0))),IF(OR(C74="SICRO",C74="SICRO3"),(IFERROR(VLOOKUP(B74,'COMP SD SICRO'!$A$2:$D$6495,4,0),VLOOKUP(B74,'ISD SICRO'!$A$2:$D$2319,4,0))),IF(C74="SEINFRA",(IFERROR(VLOOKUP(B74,'COMPSD SEINFRA'!$B$7:$G$5611,4,0),VLOOKUP(B74,'ISD SEINFRA'!A72:$D$11922,4,0))),))) -> 14.81 | H74: 18.73 | I74: 768.3 | K74: =CAPA!$D$13 -> 0.04 | L74: 737.568
A75: 4.5 | B75: ***** | C75: ***** | D75: Sistema de Medição de Vazão | I75: =SUM(I76:I76) -> 52521.06 | K75: =CAPA!$D$13 -> 0.04 | L75: =SUM(L76) -> 50420.2176
A76: 4.5.1 | B76: CPU411 | C76: PRÓPRIA | D76: Fornecimento, instalação e configuração de medidor de vazão eletromagnético em adutora 1200mm | E76: und | F76: =MC_Civil!K145 -> 2 | G76: =VLOOKUP(B76,CPU_Civil!$A$9:$I$213,9,0) -> 22835.25 | H76: =TRUNC(G76*(1+$J$5),2) -> 26260.53 | I76: =TRUNC(F76*H76,2) -> 52521.06 | K76: =CAPA!$D$13 -> 0.04 | L76: 50420.2176
A77: 4.6 | B77: ***** | C77: ***** | D77: Cercas, Portões e Tampas de Caixas de Inspeção/Passagem | I77: =SUM(I78:I80) -> 44498.85 | K77: =CAPA!$D$13 -> 0.04 | L77: =SUM(L78:L80) -> 42718.896
A78: 4.6.1 | B78: 101197 | C78: SINAPI | D78: CERCA COM MOURÕES DE CONCRETO, SEÇÃO "T" PONTA INCLINADA, 10X10 CM, ESPAÇAMENTO DE 2,5 M, CRAVADOS 0,5 M, COM 11 FIOS DE ARAME FARPADO Nº 14 - FORNECIMENTO E INSTALAÇÃO. AF_05/2020 | E78: m | F78: =MC_Civil!K149 -> 130 | G78: =IF(C78="SINAPI",(IFERROR(VLOOKUP(B78,'CompSD SINAPI'!$B$11:$F$9784,4,0),VLOOKUP(B78,'ISD SINAPI'!$B$11:$F$4903,5,0))),IF(OR(C78="SICRO",C78="SICRO3"),(IFERROR(VLOOKUP(B78,'COMP SD SICRO'!$A$2:$D$6495,4,0),VLOOKUP(B78,'ISD SICRO'!$A$2:$D$2319,4,0))),IF(C78="SEINFRA",(IFERROR(VLOOKUP(B78,'COMPSD SEINFRA'!$B$7:$G$5611,4,0),VLOOKUP(B78,'ISD SEINFRA'!A77:$D$11922,4,0))),))) -> 142.54 | H78: =TRUNC(G78*(1+$J$6),2) -> 180.28 | I78: =TRUNC(F78*H78,2) -> 23436.4 | K78: =CAPA!$D$13 -> 0.04 | L78: 22498.944
A79: 4.6.2 | B79: CPU413 | C79: PROPRIA | D79: Fornecimento e instalação de portão em ferro 3,5x2m, de abrir, em gradil nylofor 3D, padrão belgo ou equivalente, inclusive pintura, cadeado e corrente. | E79: cj | F79: =MC_Civil!K151 -> 2 | G79: =VLOOKUP(B79,CPU_Civil!$A$9:$I$213,9,0) -> 5937.93364 | H79: 7510.29 | I79: 15020.58 | K79: =CAPA!$D$13 -> 0.04 | L79: 14419.7568
A80: 4.6.3 | B80: CPU414 | C80: PRÓPRIA | D80: Tampa armada com alça, e=8cm, Concreto C20, acabamento alisado. | E80: m² | F80: =MC_Civil!K153 -> 12.88 | G80: =VLOOKUP(B80,CPU_Civil!$A$9:$I$213,9,0) -> 370.881504 | H80: 469.09 | I80: 6041.87 | K80: =CAPA!$D$13 -> 0.04 | L80: 5800.1952
A81: 4.7 | B81: ***** | C81: ***** | D81: Reforma de Banheiros | I81: =SUM(I82:I84) -> 1092.56 | K81: =CAPA!$D$13 -> 0.04 | L81: =SUM(L82:L84) -> 1048.8576
A82: 4.7.1 | B82: CPU415 | C82: PROPRIA | D82: Troca de revestimentos cerâmicos 35x35, rejuntado, inclusive rodapé 7cm. | E82: m² | F82: =MC_Civil!K158 -> 1 | G82: =VLOOKUP(B82,CPU_Civil!$A$9:$I$213,9,0) -> 88.19 | H82: =TRUNC(G82*(1+$J$6),2) -> 111.54 | I82: =TRUNC(F82*H82,2) -> 111.54 | K82: =CAPA!$D$13 -> 0.04 | L82: 107.0784
A83: 4.7.2 | B83: 4440 | C83: ORSE | D83: Revestimento cerâmico para parede, 10 x 10 cm, Elizabeth, linha lux neve, aplicado com argamassa industrializada ac-ii, rejuntado, exclusive regularizaçãode base ou emboço - Rev 04 | E83: m² | F83: =MC_Civil!K159 -> 1 | G83: 285.03 | H83: 360.5 | I83: 360.5 | K83: =CAPA!$D$13 -> 0.04 | L83: 346.08
A84: 4.7.3 | B84: CPU416 | C84: PROPRIA | D84: Revisão e reparo de ponto de água residencial - pia, chuveiro, vaso sanitário, mictório, bebedouro e afins. Inclusive acabamento. | E84: cj | F84: =MC_Civil!K160 -> 3 | G84: =VLOOKUP(B84,CPU_Civil!$A$9:$I$213,9,0) -> 163.54 | H84: 206.84 | I84: 620.52 | K84: =CAPA!$D$13 -> 0.04 | L84: 595.6992
A85: 5 | D85: ESTAÇÃO DE BOMBEAMENTO SECUNDÁRIA E SUBESTAÇÃO - EBS1 | I85: =SUM(I86,I89,I93,I95,I99,) -> 26799.89 | L85: =SUM(L86,L89,L93,L95,L99,) -> 25727.8944
A86: 5.1 | B86: ***** | C86: ***** | D86: Limpeza de poços de sucção, entorno e dedetização geral | I86: =SUM(I87:I88) -> 1601.48 | K86: =CAPA!$D$13 -> 0.04 | L86: =SUM(L87:L88) -> 1537.4208
A87: 5.1.1 | B87: CPU501 | C87: PROPRIA | D87: Esgotamento e limpeza de poço de bomba de EBS | E87: und | F87: =MC_Civil!K166 -> 5 | G87: =VLOOKUP(B87,CPU_Civil!$A$9:$I$213,9,0) -> 72.31 | H87: =TRUNC(G87*(1+$J$6),2) -> 91.45 | I87: =TRUNC(F87*H87,2) -> 457.25 | K87: =CAPA!$D$13 -> 0.04 | L87: 438.96
A88: 5.1.2 | B88: CPU502 | C88: PROPRIA | D88: Limpeza de terreno 300 a 350m², com roçagem e capina, inclusive varrição e remoção da poda. | E88: und | F88: =MC_Civil!K167 -> 1 | G88: =VLOOKUP(B88,CPU_Civil!$A$9:$I$213,9,0) -> 904.6776 | H88: 1144.23 | I88: 1144.23 | K88: =CAPA!$D$13 -> 0.04 | L88: 1098.4608
A89: 5.2 | B89: ***** | C89: ***** | D89: Esquadrias, janelas, portas, portões, parapeitos e escadas marinheiro | I89: =SUM(I90:I92) -> 3459.3 | K89: =CAPA!$D$13 -> 0.04 | L89: =SUM(L90:L92) -> 3320.928
A90: 5.2.1 | B90: CPU404 | C90: PROPRIA | D90: Reparos e pintura de esquadrias, guarnições portas e janelas matálicas. | E90: m² | F90: =MC_Civil!K169 -> 12.44 | G90: =VLOOKUP(B90,CPU_Civil!$A$9:$I$213,9,0) -> 59.04999 | H90: =TRUNC(G90*(1+$J$6),2) -> 74.68 | I90: =TRUNC(F90*H90,2) -> 929.01 | K90: =CAPA!$D$13 -> 0.04 | L90: 891.8496
A91: 5.2.2 | B91: CPU503 | C91: PROPRIA | D91: Reparos de esquadrias e substituição de fechamentos de vidro por policarbonato translúcido e≥9,5mm | E91: m² | F91: =MC_Civil!K172 -> 3.51 | G91: =VLOOKUP(B91,CPU_Civil!$A$9:$I$213,9,0) -> 511.088739 | H91: 646.42 | I91: 2268.93 | K91: =CAPA!$D$13 -> 0.04 | L91: 2178.1728
A92: 5.2.3 | B92: CPU407 | C92: PROPRIA | D92: Lixamento, limpeza e pintura com tinta alquídica em escadas marinheiro, parapeitos, corrimãos e gradis. | E92: m | F92: =MC_Civil!K174 -> 12 | G92: =VLOOKUP(B92,CPU_Civil!$A$9:$I$213,9,0) -> 17.22173 | H92: 21.78 | I92: 261.36 | K92: =CAPA!$D$13 -> 0.04 | L92: 250.9056
A93: 5.3 | B93: ***** | C93: ***** | D93: Pisos, rampas e escadarias | I93: =SUM(I94:I94) -> 291.55 | K93: =CAPA!$D$13 -> 0.04 | L93: =SUM(L94) -> 279.888
A94: 5.3.1 | B94: 99814 | C94: SINAPI | D94: LIMPEZA DE SUPERFÍCIE COM JATO DE ALTA PRESSÃO. AF_04/2019 | E94: m² | F94: =MC_Civil!K177 -> 49.5 | G94: 4.66 | H94: =TRUNC(G94*(1+$J$6),2) -> 5.89 | I94: =TRUNC(F94*H94,2) -> 291.55 | K94: =CAPA!$D$13 -> 0.04 | L94: 279.888
A95: 5.4 | B95: ***** | C95: ***** | D95: Reparos em Telhados | I95: =SUM(I96:I98) -> 11406.05 | K95: =CAPA!$D$13 -> 0.04 | L95: =SUM(L96:L98) -> 10949.808
A96: 5.4.1 | B96: 10324 | C96: IOPES | D96: Retirada manual de telha tipo Canalete 90, sem reaproveitamento | E96: m² | F96: =MC_Civil!K180 -> 48.6 | G96: =G67 -> 6.68 | H96: =TRUNC(G96*(1+$J$6),2) -> 8.44 | I96: =TRUNC(F96*H96,2) -> 410.18 | K96: =CAPA!$D$13 -> 0.04 | L96: 393.7728
A97: 5.4.2 | B97: 238 | C97: ORSE | D97: Telhamento com telha de fibrocimento tipo canalete 90 (Eternit ou similar) | E97: m² | F97: =MC_Civil!K183 -> 37.8 | G97: =G68 -> 223.15 | H97: 282.24 | I97: 10668.67 | K97: =CAPA!$D$13 -> 0.04 | L97: 10241.9232
A98: 5.4.3 | B98: 4307 | C98: SINAPI | D98: PLACA DE VENTILACAO PARA TELHA DE FIBROCIMENTO, CANALETE 90 OU KALHETAO | E98: und | F98: =MC_Civil!K186 -> 16 | G98: =IF(C98="SINAPI",(IFERROR(VLOOKUP(B98,'CompSD SINAPI'!$B$11:$F$9784,4,0),VLOOKUP(B98,'ISD SINAPI'!$B$11:$F$4903,5,0))),IF(OR(C98="SICRO",C98="SICRO3"),(IFERROR(VLOOKUP(B98,'COMP SD SICRO'!$A$2:$D$6495,4,0),VLOOKUP(B98,'ISD SICRO'!$A$2:$D$2319,4,0))),IF(C98="SEINFRA",(IFERROR(VLOOKUP(B98,'COMPSD SEINFRA'!$B$7:$G$5611,4,0),VLOOKUP(B98,'ISD SEINFRA'!A104:$D$11922,4,0))),))) -> 17.79 | H98: =TRUNC(G98*(1+$J$5),2) -> 20.45 | I98: 327.2 | K98: =CAPA!$D$13 -> 0.04 | L98: 314.112
A99: 5.5 | B99: ***** | C99: ***** | D99: Reforma de Banheiros | I99: =SUM(I100:I108) -> 10041.51 | K99: =CAPA!$D$13 -> 0.04 | L99: =SUM(L100:L108) -> 9639.8496
A100: 5.5.1 | B100: CPU415 | C100: PROPRIA | D100: Troca de revestimentos cerâmicos 35x35, rejuntado, inclusive rodapé 7cm. | E100: m² | F100: =MC_Civil!K189 -> 3 | G100: =VLOOKUP(B100,CPU_Civil!$A$9:$I$213,9,0) -> 88.19 | H100: =TRUNC(G100*(1+$J$6),2) -> 111.54 | I100: =TRUNC(F100*H100,2) -> 334.62 | K100: =CAPA!$D$13 -> 0.04 | L100: 321.2352
A101: 5.5.2 | B101: 4440 | C101: ORSE | D101: Revestimento cerâmico para parede, 10 x 10 cm, Elizabeth, linha lux neve, aplicado com argamassa industrializada ac-ii, rejuntado, exclusive regularizaçãode base ou emboço - Rev 04 | E101: m² | F101: =MC_Civil!K190 -> 2.25 | G101: 52.73 | H101: 66.69 | I101: 150.05 | K101: =CAPA!$D$13 -> 0.04 | L101: 144.048
A102: 5.5.3 | B102: CPU416 | C102: PROPRIA | D102: Revisão e reparo de ponto de água residencial - pia, chuveiro, vaso sanitário, mictório, bebedouro e afins. Inclusive acabamento. | E102: und | F102: =MC_Civil!K191 -> 10 | G102: =VLOOKUP(B102,CPU_Civil!$A$9:$I$213,9,0) -> 163.54 | H102: 206.84 | I102: 2068.4 | K102: =CAPA!$D$13 -> 0.04 | L102: 1985.664
A103: 5.5.4 | B103: 94807 | C103: SINAPI | D103: PORTA EM AÇO DE ABRIR TIPO VENEZIANA SEM GUARNIÇÃO, 87X210CM, FIXAÇÃO COM PARAFUSOS - FORNECIMENTO E INSTALAÇÃO. AF_12/2019 | E103: und | F103: =MC_Civil!K198 -> 3 | G103: =IF(C103="SINAPI",(IFERROR(VLOOKUP(B103,'CompSD SINAPI'!$B$11:$F$9784,4,0),VLOOKUP(B103,'ISD SINAPI'!$B$11:$F$4903,5,0))),IF(OR(C103="SICRO",C103="SICRO3"),(IFERROR(VLOOKUP(B103,'COMP SD SICRO'!$A$2:$D$6495,4,0),VLOOKUP(B103,'ISD SICRO'!$A$2:$D$2319,4,0))),IF(C103="SEINFRA",(IFERROR(VLOOKUP(B103,'COMPSD SEINFRA'!$B$7:$G$5611,4,0),VLOOKUP(B103,'ISD SEINFRA'!A116:$D$11922,4,0))),))) -> 755.05 | H103: 954.98 | I103: 2864.94 | K103: =CAPA!$D$13 -> 0.04 | L103: 2750.3424
A104: 5.5.5 | B104: 4914 | C104: SINAPI | D104: PORTA DE ABRIR EM ALUMINIO COM LAMBRI HORIZONTAL/LAMINADA, ACABAMENTO ANODIZADO NATURAL, SEM GUARNICAO/ALIZAR/VISTA | E104: m² | F104: =MC_Civil!K200 -> 3.84 | G104: 647.93 | H104: 819.5 | I104: 3146.88 | K104: =CAPA!$D$13 -> 0.04 | L104: 3021.0048
A105: 5.5.6 | B105: 12032 | C105: SINAPI | D105: JOGO DE TRANQUETA E ROSETA QUADRADA DE SOBREPOR SEM FUROS, EM LATAO CROMADO, *50 X 50* MM, PARA FECHADURA DE PORTA DE BANHEIRO | E105: und | F105: =MC_Civil!K202 -> 4 | G105: =IF(C105="SINAPI",(IFERROR(VLOOKUP(B105,'CompSD SINAPI'!$B$11:$F$9784,4,0),VLOOKUP(B105,'ISD SINAPI'!$B$11:$F$4903,5,0))),IF(OR(C105="SICRO",C105="SICRO3"),(IFERROR(VLOOKUP(B105,'COMP SD SICRO'!$A$2:$D$6495,4,0),VLOOKUP(B105,'ISD SICRO'!$A$2:$D$2319,4,0))),IF(C105="SEINFRA",(IFERROR(VLOOKUP(B105,'COMPSD SEINFRA'!$B$7:$G$5611,4,0),VLOOKUP(B105,'ISD SEINFRA'!A118:$D$11922,4,0))),))) -> 53.25 | H105: 67.35 | I105: 269.4 | K105: =CAPA!$D$13 -> 0.04 | L105: 258.624
A106: 5.5.7 | B106: 2085 | C106: ORSE | D106: Vaso sanitário convencional, linha popular, c/caixa de descarga de sobrepor AKROS ou similar, assento plastico universal branco, conjunto de fixação, tubode ligação e engate plástico - Rev 04 | E106: und | F106: =MC_Civil!K204 -> 2 | G106: 336.78 | H106: 425.95 | I106: 851.9 | K106: =CAPA!$D$13 -> 0.04 | L106: 817.824
A107: 5.5.8 | B107: 4232 | C107: ORSE | D107: Kit de acessórios para banheiro em ABS/Alumínio com 5 peças (01 cabide, 01 saboneteira, 01 papeleira, 01 porta-toalha rosto e 01 porta-toalha banho) | E107: cj | F107: =MC_Civil!K206 -> 2 | G107: 40.65 | H107: 51.41 | I107: 102.82 | K107: =CAPA!$D$13 -> 0.04 | L107: 98.7072
A108: 5.5.9 | B108: N.03.000.065539 | C108: CPOS | D108: Armário plástico para lavatório embutir/sobrepor; referência modelo A43 fabricação Astra ou equivalente | E108: und | F108: =MC_Civil!K208 -> 2 | G108: 99.82 | H108: 126.25 | I108: 252.5 | K108: =CAPA!$D$13 -> 0.04 | L108: 242.4
A109: 6 | D109: OBRAS ESPECIAIS | I109: =I110 -> 27429.48 | L109: =L110 -> 26332.3008
A110: 6.1 | B110: ***** | C110: ***** | D110: Comportas AVIO e Canais C1 e C1.1 | I110: =SUM(I111:I114) -> 27429.48 | K110: =CAPA!$D$13 -> 0.04 | L110: =SUM(L111:L114) -> 26332.3008
A111: 6.1.1 | B111: CPU805 | C111: PROPRIA | D111: Reparos em comporta de isolação, berço e juntas da AVIO 110/100 - captação CP1 | E111: cj | F111: =MC_Civil!K212 -> 1 | G111: =VLOOKUP(B111,CPU_Civil!$A$9:$I$213,9,0) -> 7443.526 | H111: =TRUNC(G111*(1+$J$6),2) -> 9414.57 | I111: =TRUNC(F111*H111,2) -> 9414.57 | K111: =CAPA!$D$13 -> 0.04 | L111: =I111*(1-K111) -> 9037.9872
A112: 6.1.2 | B112: CPU806 | C112: PROPRIA | D112: Reparos em comporta de isolação, berço e juntas da AVIO 71/40 - captação CS1.1 | E112: cj | F112: =MC_Civil!K214 -> 1 | G112: =VLOOKUP(B112,CPU_Civil!$A$9:$I$213,9,0) -> 6999.4586 | H112: 8852.91 | I112: 8852.91 | K112: =CAPA!$D$13 -> 0.04 | L112: 8498.7936
A113: 6.1.3 | B113: 4915650 | C113: SICRO | D113: Injeção de adesivo estrutural à base de resina epóxi de baixa viscosidade para tratamento de fissuras em estruturas de concreto - fornecimento e aplicação manual | E113: Kg | F113: =MC_Civil!K216 -> 5 | G113: =G73 -> 285.03 | H113: =TRUNC(G113*(1+$J$6),2) -> 360.5 | I113: =TRUNC(F113*H113,2) -> 1802.5 | K113: =CAPA!$D$13 -> 0.04 | L113: 1730.4
A114: 6.1.4 | B114: CPU807 | C114: PROPRIA | D114: Execução de mureta 25x35cm em concreto C20 sobre bordo do canal, inclusive juntas de dilatação em EVA. | E114: m | F114: =MC_Civil!K218 -> 50 | G114: =VLOOKUP(B114,CPU_Civil!$A$9:$I$213,9,0) -> 116.3792615 | H114: 147.19 | I114: 7359.5 | K114: =CAPA!$D$13 -> 0.04 | L114: 7065.12
D115: PREÇO TOTAL - CIVIL | I115: =SUM(I9,I17,I34,I49,I85,I109) -> 954815.46 | K115: =CAPA!$D$13 -> 0.04 | L115: =SUM(L9,L17,L34,L49,L85,L109) -> 916622.8416

Sheet CPU_Civil
C1: MINISTÉRIO DA INTEGRAÇÃO E DO DESENVOLVIMENTO REGIONAL | I1: SINAPI: | J1: =ORC_Civil!J1 -> 2025-08-01
C2: COMPANHIA DE DESENVOLVIMENTO DOS VALES DO SÃO FRANCISCO E PARNAÍBA | I2: SICRO: | J2: =ORC_Civil!J2 -> 2025-04-01
C3: ÁREA DE IRRIGAÇÃO E OPERAÇÕES | I3: ORSE: | J3: =ORC_Civil!J3 -> 2025-07-01
I4: Cotações: | J4: =ORC_Civil!J4 -> 2025-10-01
A5: Objeto: Contratação de serviços técnicos para retrofit de componentes da infraestruturas de uso comum do Projeto Público de Irrigação Tabuleiro de São Bernardo (PITSB). | I5: BDI-F: | J5: =CAPA!D14 -> 0.15
A6: Local: Magalhães de Almeida - MA | I6: BDI-S: | J6: =CAPA!D15 -> 0.2648
A7: COMPOSIÇÕES DE CUSTOS UNITÁRIOS PRÓPRIAS - CIVIL
A8: CPUs 100 | B8: Fonte | C8: Descrição | D8: Tipo | E8: Unid. | F8: Custo Unitário | G8: Coeficiente de Utilização | H8: Valor Unitário | I8: Custo Unitário | J8: Custo Unitário com desconto
A9: CPU101 | B9: PROPRIA | C9: Instalação de Contêiner | E9: und | I9: =SUM(H10:H11) -> 423.35568 | J9: =SUM(J10:J11) -> 406.4214528
A10: 105114 | B10: SINAPI | C10: =IF(B10="SINAPI",(IFERROR(VLOOKUP(A10,'CompSD SINAPI'!$B$11:$F$9784,2,0),VLOOKUP(CPU_Civil!A10,'ISD SINAPI'!$B$11:$F$4903,2,0))),IF(OR(B10="SICRO",B10="SICRO3"),(IFERROR(VLOOKUP(A10,'COMP SD SICRO'!$A$2:$D$6495,2,0),VLOOKUP(CPU_Civil!A10,'ISD SICRO'!$A$2:$D$2319,2,0))),IF(B10="SEINFRA",(IFERROR(VLOOKUP(A10,'COMPSD SEINFRA'!$B$7:$G$5611,2,0),VLOOKUP(CPU_Civil!A10,'ISD SEINFRA'!A7:$D$11922,2,0))),))) -> EXECUÇÃO DOS APOIOS PARA CONTÊINER OU MÓDULO HABITÁVEL. AF_03/2024 | D10: COMPOSIÇÃO | E10: =IF(B10="SINAPI",(IFERROR(VLOOKUP(A10,'CompSD SINAPI'!$B$11:$F$9784,3,0),VLOOKUP(CPU_Civil!A10,'ISD SINAPI'!$B$11:$F$4903,3,0))),IF(OR(B10="SICRO",B10="SICRO3"),(IFERROR(VLOOKUP(A10,'COMP SD SICRO'!$A$2:$D$6495,3,0),VLOOKUP(CPU_Civil!A10,'ISD SICRO'!$A$2:$D$2319,3,0))),IF(B10="SEINFRA",(IFERROR(VLOOKUP(A10,'COMPSD SEINFRA'!$B$7:$G$5611,3,0),VLOOKUP(CPU_Civil!A10,'ISD SEINFRA'!A7:$D$11922,3,0))),))) -> M3 | F10: =IF(B10="SINAPI",(IFERROR(VLOOKUP(A10,'CompSD SINAPI'!$B$11:$F$9784,4,0),VLOOKUP(CPU_Civil!A10,'ISD SINAPI'!$B$11:$F$4903,5,0))),IF(OR(B10="SICRO",B10="SICRO3"),(IFERROR(VLOOKUP(A10,'COMP SD SICRO'!$A$2:$D$6495,4,0),VLOOKUP(CPU_Civil!A10,'ISD SICRO'!$A$2:$D$2319,4,0))),IF(B10="SEINFRA",(IFERROR(VLOOKUP(A10,'COMPSD SEINFRA'!$B$7:$G$5611,4,0),VLOOKUP(CPU_Civil!A10,'ISD SEINFRA'!A7:$D$11922,4,0))),))) -> 2027.47 | G10: =ROUND(0.3*0.3*0.4*4,3) -> 0.144 | H10: =F10*G10 -> 291.95568 | J10: =H10*(1-CAPA!$D$13) -> 280.2774528
A11: 105115 | B11: SINAPI | C11: =IF(B11="SINAPI",(IFERROR(VLOOKUP(A11,'CompSD SINAPI'!$B$11:$F$9784,2,0),VLOOKUP(CPU_Civil!A11,'ISD SINAPI'!$B$11:$F$4903,2,0))),IF(OR(B11="SICRO",B11="SICRO3"),(IFERROR(VLOOKUP(A11,'COMP SD SICRO'!$A$2:$D$6495,2,0),VLOOKUP(CPU_Civil!A11,'ISD SICRO'!$A$2:$D$2319,2,0))),IF(B11="SEINFRA",(IFERROR(VLOOKUP(A11,'COMPSD SEINFRA'!$B$7:$G$5611,2,0),VLOOKUP(CPU_Civil!A11,'ISD SEINFRA'!A8:$D$11922,2,0))),))) -> INSTALAÇÃO E DESINSTALAÇÃO MECANIZADA DE CONTÊINER OU MÓDULO HABITÁVEL DE USOS DIVERSOS. AF_03/2024 | D11: COMPOSIÇÃO | E11: =IF(B11="SINAPI",(IFERROR(VLOOKUP(A11,'CompSD SINAPI'!$B$11:$F$9784,3,0),VLOOKUP(CPU_Civil!A11,'ISD SINAPI'!$B$11:$F$4903,3,0))),IF(OR(B11="SICRO",B11="SICRO3"),(IFERROR(VLOOKUP(A11,'COMP SD SICRO'!$A$2:$D$6495,3,0),VLOOKUP(CPU_Civil!A11,'ISD SICRO'!$A$2:$D$2319,3,0))),IF(B11="SEINFRA",(IFERROR(VLOOKUP(A11,'COMPSD SEINFRA'!$B$7:$G$5611,3,0),VLOOKUP(CPU_Civil!A11,'ISD SEINFRA'!A8:$D$11922,3,0))),))) -> UN | F11: =IF(B11="SINAPI",(IFERROR(VLOOKUP(A11,'CompSD SINAPI'!$B$11:$F$9784,4,0),VLOOKUP(CPU_Civil!A11,'ISD SINAPI'!$B$11:$F$4903,5,0))),IF(OR(B11="SICRO",B11="SICRO3"),(IFERROR(VLOOKUP(A11,'COMP SD SICRO'!$A$2:$D$6495,4,0),VLOOKUP(CPU_Civil!A11,'ISD SICRO'!$A$2:$D$2319,4,0))),IF(B11="SEINFRA",(IFERROR(VLOOKUP(A11,'COMPSD SEINFRA'!$B$7:$G$5611,4,0),VLOOKUP(CPU_Civil!A11,'ISD SEINFRA'!A8:$D$11922,4,0))),))) -> 131.4 | G11: 1 | H11: =F11*G11 -> 131.4 | J11: =H11*(1-CAPA!$D$13) -> 126.144
A12: *** | B12: *** | C12: *** | D12: *** | E12: *** | F12: *** | G12: *** | H12: *** | I12: ***
A13: CPU102 | B13: PROPRIA | C13: Mobilização e Desmobilização Equipamento de Grande Porte | E13: km | H13: =SUM(H14:H15) -> 7.9886077 | I13: =H14 -> 7.9886077 | J13: =J14 -> 7.669063392
A14: E9666 | B14: SICRO | C14: =IF(B14="SINAPI",(IFERROR(VLOOKUP(A14,'CompSD SINAPI'!$B$11:$F$9784,2,0),VLOOKUP(CPU_Civil!A14,'ISD SINAPI'!$B$11:$F$4903,2,0))),IF(OR(B14="SICRO",B14="SICRO3"),(IFERROR(VLOOKUP(A14,'COMP SD SICRO'!$A$2:$D$6495,2,0),VLOOKUP(CPU_Civil!A14,'ISD SICRO'!$A$2:$D$2319,2,0))),IF(B14="SEINFRA",(IFERROR(VLOOKUP(A14,'COMPSD SEINFRA'!$B$7:$G$5611,2,0),VLOOKUP(CPU_Civil!A14,'ISD SEINFRA'!A11:$D$11922,2,0))),))) -> Cavalo mecânico com semirreboque com capacidade de 32 t - 302 kW | D14: COMPOSIÇÃO | E14: =IF(B14="SINAPI",(IFERROR(VLOOKUP(A14,'CompSD SINAPI'!$B$11:$F$9784,3,0),VLOOKUP(CPU_Civil!A14,'ISD SINAPI'!$B$11:$F$4903,3,0))),IF(OR(B14="SICRO",B14="SICRO3"),(IFERROR(VLOOKUP(A14,'COMP SD SICRO'!$A$2:$D$6495,3,0),VLOOKUP(CPU_Civil!A14,'ISD SICRO'!$A$2:$D$2319,3,0))),IF(B14="SEINFRA",(IFERROR(VLOOKUP(A14,'COMPSD SEINFRA'!$B$7:$G$5611,3,0),VLOOKUP(CPU_Civil!A14,'ISD SEINFRA'!A11:$D$11922,3,0))),))) -> CHP | F14: =IF(B14="SINAPI",(IFERROR(VLOOKUP(A14,'CompSD SINAPI'!$B$11:$F$9784,4,0),VLOOKUP(CPU_Civil!A14,'ISD SINAPI'!$B$11:$F$4903,5,0))),IF(OR(B14="SICRO",B14="SICRO3"),(IFERROR(VLOOKUP(A14,'COMP SD SICRO'!$A$2:$D$6495,4,0),VLOOKUP(CPU_Civil!A14,'ISD SICRO'!$A$2:$D$2319,4,0))),IF(B14="SEINFRA",(IFERROR(VLOOKUP(A14,'COMPSD SEINFRA'!$B$7:$G$5611,4,0),VLOOKUP(CPU_Civil!A14,'ISD SEINFRA'!A11:$D$11922,4,0))),))) -> 469.9181 | G14: =ROUND(1/60,3) -> 0.017 | H14: =F14*G14 -> 7.9886077 | J14: =H14*(1-CAPA!$D$13) -> 7.669063392
A15: *** | B15: *** | C15: *** | D15: *** | E15: *** | F15: *** | G15: *** | H15: *** | I15: ***
A16: CPU103 | B16: PROPRIA | C16: Mobilização e Desmobilização Equipamento de Médio Porte | E16: km | I16: =H17 -> 7.1545741 | J16: =J17 -> 6.868391136
A17: E9665 | B17: SICRO | C17: =IF(B17="SINAPI",(IFERROR(VLOOKUP(A17,'CompSD SINAPI'!$B$11:$F$9784,2,0),VLOOKUP(CPU_Civil!A17,'ISD SINAPI'!$B$11:$F$4903,2,0))),IF(OR(B17="SICRO",B17="SICRO3"),(IFERROR(VLOOKUP(A17,'COMP SD SICRO'!$A$2:$D$6495,2,0),VLOOKUP(CPU_Civil!A17,'ISD SICRO'!$A$2:$D$2319,2,0))),IF(B17="SEINFRA",(IFERROR(VLOOKUP(A17,'COMPSD SEINFRA'!$B$7:$G$5611,2,0),VLOOKUP(CPU_Civil!A17,'ISD SEINFRA'!A14:$D$11922,2,0))),))) -> Cavalo mecânico com semirreboque com capacidade de 20 t - 276 kW | D17: COMPOSIÇÃO | E17: =IF(B17="SINAPI",(IFERROR(VLOOKUP(A17,'CompSD SINAPI'!$B$11:$F$9784,3,0),VLOOKUP(CPU_Civil!A17,'ISD SINAPI'!$B$11:$F$4903,3,0))),IF(OR(B17="SICRO",B17="SICRO3"),(IFERROR(VLOOKUP(A17,'COMP SD SICRO'!$A$2:$D$6495,3,0),VLOOKUP(CPU_Civil!A17,'ISD SICRO'!$A$2:$D$2319,3,0))),IF(B17="SEINFRA",(IFERROR(VLOOKUP(A17,'COMPSD SEINFRA'!$B$7:$G$5611,3,0),VLOOKUP(CPU_Civil!A17,'ISD SEINFRA'!A14:$D$11922,3,0))),))) -> CHP | F17: =IF(B17="SINAPI",(IFERROR(VLOOKUP(A17,'CompSD SINAPI'!$B$11:$F$9784,4,0),VLOOKUP(CPU_Civil!A17,'ISD SINAPI'!$B$11:$F$4903,5,0))),IF(OR(B17="SICRO",B17="SICRO3"),(IFERROR(VLOOKUP(A17,'COMP SD SICRO'!$A$2:$D$6495,4,0),VLOOKUP(CPU_Civil!A17,'ISD SICRO'!$A$2:$D$2319,4,0))),IF(B17="SEINFRA",(IFERROR(VLOOKUP(A17,'COMPSD SEINFRA'!$B$7:$G$5611,4,0),VLOOKUP(CPU_Civil!A17,'ISD SEINFRA'!A14:$D$11922,4,0))),))) -> 420.8573 | G17: =ROUND(1/60,3) -> 0.017 | H17: 7.1545741 | J17: =H17*(1-CAPA!$D$13) -> 6.868391136
A18: *** | B18: *** | C18: *** | D18: *** | E18: *** | F18: *** | G18: *** | H18: *** | I18: ***
A19: CPU104 | B19: PROPRIA | C19: Aquisição de Gerador Diesel Trifásico 8kVA, 220/380v, partida elétrica, inclusive cabo elétrico 30m. | E19: und | I19: =SUM(H20:H21) -> 8316 | J19: =SUM(J20:J21) -> 7983.36
A20: COT10 | B20: COTAÇÃO | C20: GERADOR DIESEL 6Kva, TRIFÁSICO 220V. | D20: INSUMO | E20: und | F20: 7599 | G20: 1 | H20: 7599 | J20: =H20*(1-CAPA!$D$13) -> 7295.04
A21: 7850 | B21: ORSE | C21: Cabo de cobre PP Cordplast 4 x 6,0 mm2, 450/750v | D21: INSUMO | E21: m | F21: 23.9 | G21: 30 | H21: 717 | J21: =H21*(1-CAPA!$D$13) -> 688.32
A22: *** | B22: *** | C22: *** | D22: *** | E22: *** | F22: *** | G22: *** | H22: *** | I22: ***
A23: CPU105 | B23: PROPRIA | C23: Aquisição de bomba submersível de drenagem 3cv, 220V trifásica, Daka, Dancor ou similar, inclusive mangote 30m. | I23: =SUM(H24:H25) -> 4188.5 | J23: =SUM(J24:J25) -> 4020.96
A24: 4378 | B24: ORSE | C24: Aquisição de Bomba submersa para drenagem trifásica 3cv saída de 2" c/ 5m de cabo DANCOR SERIE SDE 2303 ou similar | D24: INSUMO | E24: und | F24: 2291.9 | G24: 1 | H24: 2291.9 | J24: =H24*(1-CAPA!$D$13) -> 2200.224
A25: 5812 | B25: ORSE | C25: Tubo de pead, PE80, pn-12,5 , SDR-11, d= 75mm x 6,9mm | D25: INSUMO | E25: m | F25: 63.22 | G25: 30 | H25: 1896.6 | J25: =H25*(1-CAPA!$D$13) -> 1820.736
A26: CPU106 | B26: PROPRIA | C26: Transporte de Equipamentos Eletromecânicos | E26: km | I26: =H27 -> 2.5263264 | J26: =J27 -> 2.425273344
A27: E9508 | B27: SICRO | C27: =IF(B27="SINAPI",(IFERROR(VLOOKUP(A27,'CompSD SINAPI'!$B$11:$F$9784,2,0),VLOOKUP(CPU_Civil!A27,'ISD SINAPI'!$B$11:$F$4903,2,0))),IF(OR(B27="SICRO",B27="SICRO3"),(IFERROR(VLOOKUP(A27,'COMP SD SICRO'!$A$2:$D$6495,2,0),VLOOKUP(CPU_Civil!A27,'ISD SICRO'!$A$2:$D$2319,2,0))),IF(B27="SEINFRA",(IFERROR(VLOOKUP(A27,'COMPSD SEINFRA'!$B$7:$G$5611,2,0),VLOOKUP(CPU_Civil!A27,'ISD SEINFRA'!A24:$D$11922,2,0))),))) -> Caminhão carroceria com capacidade de 9 t - 136 kW | D27: COMPOSIÇÃO | E27: =IF(B27="SINAPI",(IFERROR(VLOOKUP(A27,'CompSD SINAPI'!$B$11:$F$9784,3,0),VLOOKUP(CPU_Civil!A27,'ISD SINAPI'!$B$11:$F$4903,3,0))),IF(OR(B27="SICRO",B27="SICRO3"),(IFERROR(VLOOKUP(A27,'COMP SD SICRO'!$A$2:$D$6495,3,0),VLOOKUP(CPU_Civil!A27,'ISD SICRO'!$A$2:$D$2319,3,0))),IF(B27="SEINFRA",(IFERROR(VLOOKUP(A27,'COMPSD SEINFRA'!$B$7:$G$5611,3,0),VLOOKUP(CPU_Civil!A27,'ISD SEINFRA'!A24:$D$11922,3,0))),))) -> CHP | F27: =IF(B27="SINAPI",(IFERROR(VLOOKUP(A27,'CompSD SINAPI'!$B$11:$F$9784,4,0),VLOOKUP(CPU_Civil!A27,'ISD SINAPI'!$B$11:$F$4903,5,0))),IF(OR(B27="SICRO",B27="SICRO3"),(IFERROR(VLOOKUP(A27,'COMP SD SICRO'!$A$2:$D$6495,4,0),VLOOKUP(CPU_Civil!A27,'ISD SICRO'!$A$2:$D$2319,4,0))),IF(B27="SEINFRA",(IFERROR(VLOOKUP(A27,'COMPSD SEINFRA'!$B$7:$G$5611,4,0),VLOOKUP(CPU_Civil!A27,'ISD SEINFRA'!A24:$D$11922,4,0))),))) -> 194.3328 | G27: =ROUND(1/80,3) -> 0.013 | H27: =F27*G27 -> 2.5263264 | J27: =H27*(1-CAPA!$D$13) -> 2.425273344
A28: CPUs 200 | B28: Fonte | C28: Descrição | D28: Tipo | E28: Unid. | F28: Custo Un. Ref. | G28: Coeficiente de Utilização | H28: Valor Unitário | I28: Custo Unitário
A29: CPU201 | B29: PROPRIA | C29: Mobiliário e custos de escritório local | E29: mês | I29: =SUM(H30:H31) -> 2013.69 | J29: =SUM(J30:J31) -> 1933.1424
A30: B8953 | B30: TC-DNIT | C30: Mobiliário | D30: COMPOSIÇÃO | E30: mês | F30: ='TC 07-25'!F14 -> 478.38 | G30: 3 | H30: =F30*G30 -> 1435.14 | J30: =H30*(1-CAPA!$D$13) -> 1377.7344
A31: B8959 | B31: TC-DNIT | C31: Outros custos de escritório local | D31: COMPOSIÇÃO | E31: mês | F31: ='TC 07-25'!F21 -> 192.85 | G31: 3 | H31: 578.55 | J31: =H31*(1-CAPA!$D$13) -> 555.408
A32: *** | B32: *** | C32: *** | D32: *** | E32: *** | F32: *** | G32: *** | H32: *** | I32: ***
A33: CPU202 | B33: PROPRIA | C33: Locação de veículo tipo van/furgão/kombi (inclusive gasolina) | E33: mês | I33: =SUM(H34:H35) -> 3981.451 | J33: =SUM(J34:J35) -> 3822.19296
A34: I0786 | B34: SEINFRA | C34: =IF(B34="SINAPI",(IFERROR(VLOOKUP(A34,'CompSD SINAPI'!$B$11:$F$9784,2,0),VLOOKUP(CPU_Civil!A34,'ISD SINAPI'!$B$11:$F$4903,2,0))),IF(OR(B34="SICRO",B34="SICRO3"),(IFERROR(VLOOKUP(A34,'COMP SD SICRO'!$A$2:$D$6495,2,0),VLOOKUP(CPU_Civil!A34,'ISD SICRO'!$A$2:$D$2319,2,0))),IF(B34="SEINFRA",(IFERROR(VLOOKUP(A34,'COMPSD SEINFRA'!$B$7:$G$5611,2,0),VLOOKUP(CPU_Civil!A34,'ISD SEINFRA'!A14:$D$11922,2,0))),))) -> VEÍCULO UTILITÁRIO KOMBI (CHP) | D34: COMPOSIÇÃO | E34: CHP | F34: =IF(B34="SINAPI",(IFERROR(VLOOKUP(A34,'CompSD SINAPI'!$B$11:$F$9784,4,0),VLOOKUP(CPU_Civil!A34,'ISD SINAPI'!$B$11:$F$4903,5,0))),IF(OR(B34="SICRO",B34="SICRO3"),(IFERROR(VLOOKUP(A34,'COMP SD SICRO'!$A$2:$D$6495,4,0),VLOOKUP(CPU_Civil!A34,'ISD SICRO'!$A$2:$D$2319,4,0))),IF(B34="SEINFRA",(IFERROR(VLOOKUP(A34,'COMPSD SEINFRA'!$B$7:$G$5611,4,0),VLOOKUP(CPU_Civil!A34,'ISD SEINFRA'!A14:$D$11922,4,0))),))) -> 80.11909 | G34: 25 | H34: 2002.97725 | J34: =H34*(1-CAPA!$D$13) -> 1922.85816
A35: I0673 | B35: SEINFRA | C35: =IF(B35="SINAPI",(IFERROR(VLOOKUP(A35,'CompSD SINAPI'!$B$11:$F$9784,2,0),VLOOKUP(CPU_Civil!A35,'ISD SINAPI'!$B$11:$F$4903,2,0))),IF(OR(B35="SICRO",B35="SICRO3"),(IFERROR(VLOOKUP(A35,'COMP SD SICRO'!$A$2:$D$6495,2,0),VLOOKUP(CPU_Civil!A35,'ISD SICRO'!$A$2:$D$2319,2,0))),IF(B35="SEINFRA",(IFERROR(VLOOKUP(A35,'COMPSD SEINFRA'!$B$7:$G$5611,2,0),VLOOKUP(CPU_Civil!A35,'ISD SEINFRA'!A15:$D$11922,2,0))),))) -> VEÍCULO UTILITÁRIO KOMBI (CHI) | D35: COMPOSIÇÃO | E35: CHI | F35: =IF(B35="SINAPI",(IFERROR(VLOOKUP(A35,'CompSD SINAPI'!$B$11:$F$9784,4,0),VLOOKUP(CPU_Civil!A35,'ISD SINAPI'!$B$11:$F$4903,5,0))),IF(OR(B35="SICRO",B35="SICRO3"),(IFERROR(VLOOKUP(A35,'COMP SD SICRO'!$A$2:$D$6495,4,0),VLOOKUP(CPU_Civil!A35,'ISD SICRO'!$A$2:$D$2319,4,0))),IF(B35="SEINFRA",(IFERROR(VLOOKUP(A35,'COMPSD SEINFRA'!$B$7:$G$5611,4,0),VLOOKUP(CPU_Civil!A35,'ISD SEINFRA'!A15:$D$11922,4,0))),))) -> 26.37965 | G35: 75 | H35: 1978.47375 | J35: =H35*(1-CAPA!$D$13) -> 1899.3348
A36: CPU203 | B36: PROPRIA | C36: Aquisição de Diesel para Gerador 8kVA | E36: L | I36: =H37 -> 6.02 | J36: =SUM(J37) -> 5.7792
A37: COT20 | B37: COTAÇÃO | C37: Diesel S-10 | D37: INSUMO | E37: L | F37: 6.02 | G37: 1 | H37: 6.02 | J37: =H37*(1-CAPA!$D$13) -> 5.7792
A38: CPU204 | B38: PROPRIA | C38: Guindauto 11,7 t.m, alcance 9,7 incluso motorista e combustível | E38: mês | I38: =SUM(H39:H40) -> 12881.6 | J38: =SUM(J39:J40) -> 12366.336
A39: 105845 | B39: SINAPI | C39: =IF(B39="SINAPI",(IFERROR(VLOOKUP(A39,'CompSD SINAPI'!$B$11:$F$9784,2,0),VLOOKUP(CPU_Civil!A39,'ISD SINAPI'!$B$11:$F$4903,2,0))),IF(OR(B39="SICRO",B39="SICRO3"),(IFERROR(VLOOKUP(A39,'COMP SD SICRO'!$A$2:$D$6495,2,0),VLOOKUP(CPU_Civil!A39,'ISD SICRO'!$A$2:$D$2319,2,0))),IF(B39="SEINFRA",(IFERROR(VLOOKUP(A39,'COMPSD SEINFRA'!$B$7:$G$5611,2,0),VLOOKUP(CPU_Civil!A39,'ISD SEINFRA'!A19:$D$11922,2,0))),))) -> GUINDAUTO HIDRÁULICO, CAPACIDADE MÁXIMA DE CARGA 6200 KG, MOMENTO MÁXIMO DE CARGA 11,7 TM, ALCANCE MÁXIMO HORIZONTAL 9,70 M, INCLUSIVE CAMINHÃO TOCO PBT 16.000 KG, POTÊNCIA DE 189 CV E CESTA AÉREA COM ISOLAMENTO CLASSE C - CHI DIURNO. AF_01/2025 | D39: COMPOSIÇÃO | E39: CHP | F39: 205.79 | G39: 40 | H39: =F39*G39 -> 8231.6 | J39: =H39*(1-CAPA!$D$13) -> 7902.336
A40: 105844 | B40: SINAPI | C40: =IF(B40="SINAPI",(IFERROR(VLOOKUP(A40,'CompSD SINAPI'!$B$11:$F$9784,2,0),VLOOKUP(CPU_Civil!A40,'ISD SINAPI'!$B$11:$F$4903,2,0))),IF(OR(B40="SICRO",B40="SICRO3"),(IFERROR(VLOOKUP(A40,'COMP SD SICRO'!$A$2:$D$6495,2,0),VLOOKUP(CPU_Civil!A40,'ISD SICRO'!$A$2:$D$2319,2,0))),IF(B40="SEINFRA",(IFERROR(VLOOKUP(A40,'COMPSD SEINFRA'!$B$7:$G$5611,2,0),VLOOKUP(CPU_Civil!A40,'ISD SEINFRA'!A20:$D$11922,2,0))),))) -> GUINDAUTO HIDRÁULICO, CAPACIDADE MÁXIMA DE CARGA 6200 KG, MOMENTO MÁXIMO DE CARGA 11,7 TM, ALCANCE MÁXIMO HORIZONTAL 9,70 M, INCLUSIVE CAMINHÃO TOCO PBT 16.000 KG, POTÊNCIA DE 189 CV E CESTA AÉREA COM ISOLAMENTO CLASSE C - CHP DIURNO. AF_01/2025 | D40: COMPOSIÇÃO | E40: CHI | F40: 77.5 | G40: 60 | H40: 4650 | J40: =H40*(1-CAPA!$D$13) -> 4464
A41: CPUs 300 | B41: Fonte | C41: Descrição | D41: Tipo | E41: Unid. | F41: Custo Unitário | G41: Coeficiente de Utilização | H41: Valor Unitário | I41: Custo Unitário
A42: CPU301 | B42: PROPRIA | C42: Controle topográfico | D42: COMPOSIÇÃO | E42: estaca | I42: =SUM(H43:H44) -> 316.5 | J42: =SUM(J43:J44) -> 303.84
A43: 9164 | B43: ORSE | C43: Locação topográfica com nivelamento de seções transversais de serviços de terraplenagem, inclusive conferências | D43: COMPOSIÇÃO | E43: m | F43: 4.64 | G43: 50 | H43: 232 | J43: =H43*(1-CAPA!$D$13) -> 222.72
A44: 3713 | B44: ORSE | C44: Locação de eixos em geral, com estaqueamento | D44: COMPOSIÇÃO | E44: m | F44: 1.69 | G44: 50 | H44: 84.5 | J44: =H44*(1-CAPA!$D$13) -> 81.12
A45: *** | B45: *** | C45: *** | D45: *** | E45: *** | F45: *** | G45: *** | H45: *** | I45: ***
A46: CPU302 | B46: PROPRIA | C46: Fornecimento e instalação de barreira ecológica 40m p/ retenção de macrófitas. | D46: COMPOSIÇÃO | E46: cj | I46: =SUM(H47:H52) -> 2139.533333 | J46: =SUM(J47:J52) -> 2053.952
A47: 88316 | B47: SINAPI | C47: =IF(B47="SINAPI",(IFERROR(VLOOKUP(A47,'CompSD SINAPI'!$B$11:$F$9784,2,0),VLOOKUP(CPU_Civil!A47,'ISD SINAPI'!$B$11:$F$4903,2,0))),IF(OR(B47="SICRO",B47="SICRO3"),(IFERROR(VLOOKUP(A47,'COMP SD SICRO'!$A$2:$D$6495,2,0),VLOOKUP(CPU_Civil!A47,'ISD SICRO'!$A$2:$D$2319,2,0))),IF(B47="SEINFRA",(IFERROR(VLOOKUP(A47,'COMPSD SEINFRA'!$B$7:$G$5611,2,0),VLOOKUP(CPU_Civil!A47,'ISD SEINFRA'!A12:$D$11922,2,0))),))) -> SERVENTE COM ENCARGOS COMPLEMENTARES | D47: COMPOSIÇÃO | E47: =IF(B47="SINAPI",(IFERROR(VLOOKUP(A47,'CompSD SINAPI'!$B$11:$F$9784,3,0),VLOOKUP(CPU_Civil!A47,'ISD SINAPI'!$B$11:$F$4903,3,0))),IF(OR(B47="SICRO",B47="SICRO3"),(IFERROR(VLOOKUP(A47,'COMP SD SICRO'!$A$2:$D$6495,3,0),VLOOKUP(CPU_Civil!A47,'ISD SICRO'!$A$2:$D$2319,3,0))),IF(B47="SEINFRA",(IFERROR(VLOOKUP(A47,'COMPSD SEINFRA'!$B$7:$G$5611,3,0),VLOOKUP(CPU_Civil!A47,'ISD SEINFRA'!A42:$D$11922,3,0))),))) -> H | F47: =IF(B47="SINAPI",(IFERROR(VLOOKUP(A47,'CompSD SINAPI'!$B$11:$F$9784,4,0),VLOOKUP(CPU_Civil!A47,'ISD SINAPI'!$B$11:$F$4903,5,0))),IF(OR(B47="SICRO",B47="SICRO3"),(IFERROR(VLOOKUP(A47,'COMP SD SICRO'!$A$2:$D$6495,4,0),VLOOKUP(CPU_Civil!A47,'ISD SICRO'!$A$2:$D$2319,4,0))),IF(B47="SEINFRA",(IFERROR(VLOOKUP(A47,'COMPSD SEINFRA'!$B$7:$G$5611,4,0),VLOOKUP(CPU_Civil!A47,'ISD SEINFRA'!A11:$D$11922,4,0))),))) -> 23.84 | G47: 6 | H47: =F47*G47 -> 143.04 | J47: =H47*(1-CAPA!$D$13) -> 137.3184
A48: 4518 | B48: ORSE | C48: Tela de nylon para proteção de fachada 5X5cm | D48: COMPOSIÇÃO | E48: m² | F48: 30.13 | G48: 40 | H48: 1205.2 | J48: =H48*(1-CAPA!$D$13) -> 1156.992
A49: 4107 | B49: SINAPI | C49: =IF(B49="SINAPI",(IFERROR(VLOOKUP(A49,'CompSD SINAPI'!$B$11:$F$9784,2,0),VLOOKUP(CPU_Civil!A49,'ISD SINAPI'!$B$11:$F$4903,2,0))),IF(OR(B49="SICRO",B49="SICRO3"),(IFERROR(VLOOKUP(A49,'COMP SD SICRO'!$A$2:$D$6495,2,0),VLOOKUP(CPU_Civil!A49,'ISD SICRO'!$A$2:$D$2319,2,0))),IF(B49="SEINFRA",(IFERROR(VLOOKUP(A49,'COMPSD SEINFRA'!$B$7:$G$5611,2,0),VLOOKUP(CPU_Civil!A49,'ISD SEINFRA'!A15:$D$11922,2,0))),))) -> MOURAO DE CONCRETO RETO, SECAO QUADRADA *10 X 10* CM, H= *2,30* M | D49: INSUMO | E49: =IF(B49="SINAPI",(IFERROR(VLOOKUP(A49,'CompSD SINAPI'!$B$11:$F$9784,3,0),VLOOKUP(CPU_Civil!A49,'ISD SINAPI'!$B$11:$F$4903,3,0))),IF(OR(B49="SICRO",B49="SICRO3"),(IFERROR(VLOOKUP(A49,'COMP SD SICRO'!$A$2:$D$6495,3,0),VLOOKUP(CPU_Civil!A49,'ISD SICRO'!$A$2:$D$2319,3,0))),IF(B49="SEINFRA",(IFERROR(VLOOKUP(A49,'COMPSD SEINFRA'!$B$7:$G$5611,3,0),VLOOKUP(CPU_Civil!A49,'ISD SEINFRA'!A41:$D$11922,3,0))),))) -> UN | F49: =IF(B49="SINAPI",(IFERROR(VLOOKUP(A49,'CompSD SINAPI'!$B$11:$F$9784,4,0),VLOOKUP(CPU_Civil!A49,'ISD SINAPI'!$B$11:$F$4903,5,0))),IF(OR(B49="SICRO",B49="SICRO3"),(IFERROR(VLOOKUP(A49,'COMP SD SICRO'!$A$2:$D$6495,4,0),VLOOKUP(CPU_Civil!A49,'ISD SICRO'!$A$2:$D$2319,4,0))),IF(B49="SEINFRA",(IFERROR(VLOOKUP(A49,'COMPSD SEINFRA'!$B$7:$G$5611,4,0),VLOOKUP(CPU_Civil!A49,'ISD SEINFRA'!A14:$D$11922,4,0))),))) -> 75.78 | G49: 2 | H49: 151.56 | J49: =H49*(1-CAPA!$D$13) -> 145.4976
A50: I6220 | B50: SEINFRA | C50: =IF(B50="SINAPI",(IFERROR(VLOOKUP(A50,'CompSD SINAPI'!$B$11:$F$9784,2,0),VLOOKUP(CPU_Civil!A50,'ISD SINAPI'!$B$11:$F$4903,2,0))),IF(OR(B50="SICRO",B50="SICRO3"),(IFERROR(VLOOKUP(A50,'COMP SD SICRO'!$A$2:$D$6495,2,0),VLOOKUP(CPU_Civil!A50,'ISD SICRO'!$A$2:$D$2319,2,0))),IF(B50="SEINFRA",(IFERROR(VLOOKUP(A50,'COMPSD SEINFRA'!$B$7:$G$5611,2,0),VLOOKUP(CPU_Civil!A50,'ISD SEINFRA'!A16:$D$11922,2,0))),))) -> CORDA DE NYLON DE 4mm | D50: INSUMO | E50: =IF(B50="SINAPI",(IFERROR(VLOOKUP(A50,'CompSD SINAPI'!$B$11:$F$9784,3,0),VLOOKUP(CPU_Civil!A50,'ISD SINAPI'!$B$11:$F$4903,3,0))),IF(OR(B50="SICRO",B50="SICRO3"),(IFERROR(VLOOKUP(A50,'COMP SD SICRO'!$A$2:$D$6495,3,0),VLOOKUP(CPU_Civil!A50,'ISD SICRO'!$A$2:$D$2319,3,0))),IF(B50="SEINFRA",(IFERROR(VLOOKUP(A50,'COMPSD SEINFRA'!$B$7:$G$5611,3,0),VLOOKUP(CPU_Civil!A50,'ISD SEINFRA'!A42:$D$11922,3,0))),))) -> M | F50: =IF(B50="SINAPI",(IFERROR(VLOOKUP(A50,'CompSD SINAPI'!$B$11:$F$9784,4,0),VLOOKUP(CPU_Civil!A50,'ISD SINAPI'!$B$11:$F$4903,5,0))),IF(OR(B50="SICRO",B50="SICRO3"),(IFERROR(VLOOKUP(A50,'COMP SD SICRO'!$A$2:$D$6495,4,0),VLOOKUP(CPU_Civil!A50,'ISD SICRO'!$A$2:$D$2319,4,0))),IF(B50="SEINFRA",(IFERROR(VLOOKUP(A50,'COMPSD SEINFRA'!$B$7:$G$5611,4,0),VLOOKUP(CPU_Civil!A50,'ISD SEINFRA'!A15:$D$11922,4,0))),))) -> 0.29 | G50: 60 | H50: 17.4 | J50: =H50*(1-CAPA!$D$13) -> 16.704
A51: 411 | B51: SINAPI | C51: =IF(B51="SINAPI",(IFERROR(VLOOKUP(A51,'CompSD SINAPI'!$B$11:$F$9784,2,0),VLOOKUP(CPU_Civil!A51,'ISD SINAPI'!$B$11:$F$4903,2,0))),IF(OR(B51="SICRO",B51="SICRO3"),(IFERROR(VLOOKUP(A51,'COMP SD SICRO'!$A$2:$D$6495,2,0),VLOOKUP(CPU_Civil!A51,'ISD SICRO'!$A$2:$D$2319,2,0))),IF(B51="SEINFRA",(IFERROR(VLOOKUP(A51,'COMPSD SEINFRA'!$B$7:$G$5611,2,0),VLOOKUP(CPU_Civil!A51,'ISD SEINFRA'!A17:$D$11922,2,0))),))) -> ABRACADEIRA DE NYLON PARA AMARRACAO DE CABOS, COMPRIMENTO DE 200 X *4,6* MM | D51: INSUMO | E51: =IF(B51="SINAPI",(IFERROR(VLOOKUP(A51,'CompSD SINAPI'!$B$11:$F$9784,3,0),VLOOKUP(CPU_Civil!A51,'ISD SINAPI'!$B$11:$F$4903,3,0))),IF(OR(B51="SICRO",B51="SICRO3"),(IFERROR(VLOOKUP(A51,'COMP SD SICRO'!$A$2:$D$6495,3,0),VLOOKUP(CPU_Civil!A51,'ISD SICRO'!$A$2:$D$2319,3,0))),IF(B51="SEINFRA",(IFERROR(VLOOKUP(A51,'COMPSD SEINFRA'!$B$7:$G$5611,3,0),VLOOKUP(CPU_Civil!A51,'ISD SEINFRA'!A43:$D$11922,3,0))),))) -> UN | F51: =IF(B51="SINAPI",(IFERROR(VLOOKUP(A51,'CompSD SINAPI'!$B$11:$F$9784,4,0),VLOOKUP(CPU_Civil!A51,'ISD SINAPI'!$B$11:$F$4903,5,0))),IF(OR(B51="SICRO",B51="SICRO3"),(IFERROR(VLOOKUP(A51,'COMP SD SICRO'!$A$2:$D$6495,4,0),VLOOKUP(CPU_Civil!A51,'ISD SICRO'!$A$2:$D$2319,4,0))),IF(B51="SEINFRA",(IFERROR(VLOOKUP(A51,'COMPSD SEINFRA'!$B$7:$G$5611,4,0),VLOOKUP(CPU_Civil!A51,'ISD SEINFRA'!A16:$D$11922,4,0))),))) -> 0.19 | G51: 100 | H51: 19 | J51: =H51*(1-CAPA!$D$13) -> 18.24
A52: COT30 | B52: COTAÇÃO | C52: GARRAFA PLASTICA CAPACIDADE DE 5L | D52: INSUMO | E52: und | F52: 4.826666667 | G52: =40/0.32 -> 125 | H52: 603.3333333 | J52: =H52*(1-CAPA!$D$13) -> 579.2
A53: *** | B53: *** | C53: *** | D53: *** | E53: *** | F53: *** | G53: *** | H53: *** | I53: ***
A54: CPU303 | B54: PROPRIA | C54: Execução de decidas d'água rápida (DAR 40-20), com alas de captação. | D54: COMPOSIÇÃO | E54: cj | I54: =SUM(H55:H56) -> 3687.36 | J54: =SUM(J55:J56) -> 3539.8656
A55: 2003389 | B55: SICRO | C55: Descida d'água de aterros tipo rápido - DAR 40-20 - areia e brita comerciais | D55: COMPOSIÇÃO | E55: M | F55: 248.1 | G55: 14 | H55: 3473.4 | J55: =H55*(1-CAPA!$D$13) -> 3334.464
A56: 41679 | B56: SINAPI | C56: =IF(B56="SINAPI",(IFERROR(VLOOKUP(A56,'CompSD SINAPI'!$B$11:$F$9784,2,0),VLOOKUP(CPU_Civil!A56,'ISD SINAPI'!$B$11:$F$4903,2,0))),IF(OR(B56="SICRO",B56="SICRO3"),(IFERROR(VLOOKUP(A56,'COMP SD SICRO'!$A$2:$D$6495,2,0),VLOOKUP(CPU_Civil!A56,'ISD SICRO'!$A$2:$D$2319,2,0))),IF(B56="SEINFRA",(IFERROR(VLOOKUP(A56,'COMPSD SEINFRA'!$B$7:$G$5611,2,0),VLOOKUP(CPU_Civil!A56,'ISD SEINFRA'!A21:$D$11922,2,0))),))) -> MEIO-FIO OU GUIA DE CONCRETO PRE-MOLDADO, COMP 1 M, *20 X 12/15* CM (H X L1/L2) | D56: INSUMO | E56: =IF(B56="SINAPI",(IFERROR(VLOOKUP(A56,'CompSD SINAPI'!$B$11:$F$9784,3,0),VLOOKUP(CPU_Civil!A56,'ISD SINAPI'!$B$11:$F$4903,3,0))),IF(OR(B56="SICRO",B56="SICRO3"),(IFERROR(VLOOKUP(A56,'COMP SD SICRO'!$A$2:$D$6495,3,0),VLOOKUP(CPU_Civil!A56,'ISD SICRO'!$A$2:$D$2319,3,0))),IF(B56="SEINFRA",(IFERROR(VLOOKUP(A56,'COMPSD SEINFRA'!$B$7:$G$5611,3,0),VLOOKUP(CPU_Civil!A56,'ISD SEINFRA'!A51:$D$11922,3,0))),))) -> UN | F56: =IF(B56="SINAPI",(IFERROR(VLOOKUP(A56,'CompSD SINAPI'!$B$11:$F$9784,4,0),VLOOKUP(CPU_Civil!A56,'ISD SINAPI'!$B$11:$F$4903,5,0))),IF(OR(B56="SICRO",B56="SICRO3"),(IFERROR(VLOOKUP(A56,'COMP SD SICRO'!$A$2:$D$6495,4,0),VLOOKUP(CPU_Civil!A56,'ISD SICRO'!$A$2:$D$2319,4,0))),IF(B56="SEINFRA",(IFERROR(VLOOKUP(A56,'COMPSD SEINFRA'!$B$7:$G$5611,4,0),VLOOKUP(CPU_Civil!A56,'ISD SEINFRA'!A20:$D$11922,4,0))),))) -> 35.66 | G56: 6 | H56: 213.96 | J56: =H56*(1-CAPA!$D$13) -> 205.4016
A57: CPUs 400 | B57: Fonte | C57: Descrição | D57: Tipo | E57: Unid. | F57: Custo Unitário | G57: Coeficiente de Utilização | H57: Valor Unitário | I57: Custo Unitário
A58: CPU401 | B58: PROPRIA | C58: Controle de pragas de vespas em edificação até 2 pavimentos | E58: und | I58: =SUM(H59:H60) -> 624.92 | J58: =SUM(J59:J60) -> 599.9232
A59: 14884 | B59: ORSE | C59: Inseticida de alta eficiência Fipronil concentração 2,5%, ref: Poderoso 25CE ou similar, para combate de pragas urbanas | D59: COMPOSIÇÃO | E59: l | F59: 264.78 | G59: 2 | H59: 529.56 | J59: =H59*(1-CAPA!$D$13) -> 508.3776
A60: 88316 | B60: SINAPI | C60: =IF(B60="SINAPI",(IFERROR(VLOOKUP(A60,'CompSD SINAPI'!$B$11:$F$9784,2,0),VLOOKUP(CPU_Civil!A60,'ISD SINAPI'!$B$11:$F$4903,2,0))),IF(OR(B60="SICRO",B60="SICRO3"),(IFERROR(VLOOKUP(A60,'COMP SD SICRO'!$A$2:$D$6495,2,0),VLOOKUP(CPU_Civil!A60,'ISD SICRO'!$A$2:$D$2319,2,0))),IF(B60="SEINFRA",(IFERROR(VLOOKUP(A60,'COMPSD SEINFRA'!$B$7:$G$5611,2,0),VLOOKUP(CPU_Civil!A60,'ISD SEINFRA'!A25:$D$11922,2,0))),))) -> SERVENTE COM ENCARGOS COMPLEMENTARES | D60: COMPOSIÇÃO | E60: =IF(B60="SINAPI",(IFERROR(VLOOKUP(A60,'CompSD SINAPI'!$B$11:$F$9784,3,0),VLOOKUP(CPU_Civil!A60,'ISD SINAPI'!$B$11:$F$4903,3,0))),IF(OR(B60="SICRO",B60="SICRO3"),(IFERROR(VLOOKUP(A60,'COMP SD SICRO'!$A$2:$D$6495,3,0),VLOOKUP(CPU_Civil!A60,'ISD SICRO'!$A$2:$D$2319,3,0))),IF(B60="SEINFRA",(IFERROR(VLOOKUP(A60,'COMPSD SEINFRA'!$B$7:$G$5611,3,0),VLOOKUP(CPU_Civil!A60,'ISD SEINFRA'!A55:$D$11922,3,0))),))) -> H | F60: =IF(B60="SINAPI",(IFERROR(VLOOKUP(A60,'CompSD SINAPI'!$B$11:$F$9784,4,0),VLOOKUP(CPU_Civil!A60,'ISD SINAPI'!$B$11:$F$4903,5,0))),IF(OR(B60="SICRO",B60="SICRO3"),(IFERROR(VLOOKUP(A60,'COMP SD SICRO'!$A$2:$D$6495,4,0),VLOOKUP(CPU_Civil!A60,'ISD SICRO'!$A$2:$D$2319,4,0))),IF(B60="SEINFRA",(IFERROR(VLOOKUP(A60,'COMPSD SEINFRA'!$B$7:$G$5611,4,0),VLOOKUP(CPU_Civil!A60,'ISD SEINFRA'!A24:$D$11922,4,0))),))) -> 23.84 | G60: 4 | H60: 95.36 | J60: =H60*(1-CAPA!$D$13) -> 91.5456
A61: *** | B61: *** | C61: *** | D61: *** | E61: *** | F61: *** | G61: *** | H61: *** | I61: ***
A62: CPU402 | B62: PROPRIA | C62: Esgotamento e limpeza dos poços de bomba 6 e 7 da EBP | E62: und | I62: =SUM(H63:H65) -> 1077.76 | J62: =SUM(J63:J65) -> 1034.6496
A63: E9609 | B63: SICRO | C63: Draga de sucção para extração de areia com tubo de descarga de 150 mm - 100 Kw | D63: INSUMO | E63: CHP | F63: 166.3 | G63: 4 | H63: =F63*G63 -> 665.2 | J63: =H63*(1-CAPA!$D$13) -> 638.592
A64: E9609 | B64: SICRO | C64: Draga de sucção para extração de areia com tubo de descarga de 150 mm - 100 Kw | D64: INSUMO | E64: CHI | F64: 55.46 | G64: 4 | H64: 221.84 | J64: =H64*(1-CAPA!$D$13) -> 212.9664
A65: 88316 | B65: SINAPI | C65: =IF(B65="SINAPI",(IFERROR(VLOOKUP(A65,'CompSD SINAPI'!$B$11:$F$9784,2,0),VLOOKUP(CPU_Civil!A65,'ISD SINAPI'!$B$11:$F$4903,2,0))),IF(OR(B65="SICRO",B65="SICRO3"),(IFERROR(VLOOKUP(A65,'COMP SD SICRO'!$A$2:$D$6495,2,0),VLOOKUP(CPU_Civil!A65,'ISD SICRO'!$A$2:$D$2319,2,0))),IF(B65="SEINFRA",(IFERROR(VLOOKUP(A65,'COMPSD SEINFRA'!$B$7:$G$5611,2,0),VLOOKUP(CPU_Civil!A65,'ISD SEINFRA'!A28:$D$11922,2,0))),))) -> SERVENTE COM ENCARGOS COMPLEMENTARES | D65: COMPOSIÇÃO | E65: =IF(B65="SINAPI",(IFERROR(VLOOKUP(A65,'CompSD SINAPI'!$B$11:$F$9784,3,0),VLOOKUP(CPU_Civil!A65,'ISD SINAPI'!$B$11:$F$4903,3,0))),IF(OR(B65="SICRO",B65="SICRO3"),(IFERROR(VLOOKUP(A65,'COMP SD SICRO'!$A$2:$D$6495,3,0),VLOOKUP(CPU_Civil!A65,'ISD SICRO'!$A$2:$D$2319,3,0))),IF(B65="SEINFRA",(IFERROR(VLOOKUP(A65,'COMPSD SEINFRA'!$B$7:$G$5611,3,0),VLOOKUP(CPU_Civil!A65,'ISD SEINFRA'!A58:$D$11922,3,0))),))) -> H | F65: =IF(B65="SINAPI",(IFERROR(VLOOKUP(A65,'CompSD SINAPI'!$B$11:$F$9784,4,0),VLOOKUP(CPU_Civil!A65,'ISD SINAPI'!$B$11:$F$4903,5,0))),IF(OR(B65="SICRO",B65="SICRO3"),(IFERROR(VLOOKUP(A65,'COMP SD SICRO'!$A$2:$D$6495,4,0),VLOOKUP(CPU_Civil!A65,'ISD SICRO'!$A$2:$D$2319,4,0))),IF(B65="SEINFRA",(IFERROR(VLOOKUP(A65,'COMPSD SEINFRA'!$B$7:$G$5611,4,0),VLOOKUP(CPU_Civil!A65,'ISD SEINFRA'!A27:$D$11922,4,0))),))) -> 23.84 | G65: 8 | H65: 190.72 | J65: =H65*(1-CAPA!$D$13) -> 183.0912
A66: *** | B66: *** | C66: *** | D66: *** | E66: *** | F66: *** | G66: *** | H66: *** | I66: ***
A67: CPU403 | B67: PROPRIA | C67: Limpeza de terreno 500 a 600m², com roçagem e capina, inclusive varrição e remoção da poda. | D67: COMPOSIÇÃO | E67: und | I67: =SUM(H68:H69) -> 1041.8608 | J67: =SUM(J68:J69) -> 1000.186368
A68: 98524 | B68: SINAPI | C68: =IF(B68="SINAPI",(IFERROR(VLOOKUP(A68,'CompSD SINAPI'!$B$11:$F$9784,2,0),VLOOKUP(CPU_Civil!A68,'ISD SINAPI'!$B$11:$F$4903,2,0))),IF(OR(B68="SICRO",B68="SICRO3"),(IFERROR(VLOOKUP(A68,'COMP SD SICRO'!$A$2:$D$6495,2,0),VLOOKUP(CPU_Civil!A68,'ISD SICRO'!$A$2:$D$2319,2,0))),IF(B68="SEINFRA",(IFERROR(VLOOKUP(A68,'COMPSD SEINFRA'!$B$7:$G$5611,2,0),VLOOKUP(CPU_Civil!A68,'ISD SEINFRA'!A33:$D$11922,2,0))),))) -> LIMPEZA MANUAL DE VEGETAÇÃO EM TERRENO COM ENXADA. AF_03/2024 | D68: COMPOSIÇÃO | E68: =IF(B68="SINAPI",(IFERROR(VLOOKUP(A68,'CompSD SINAPI'!$B$11:$F$9784,3,0),VLOOKUP(CPU_Civil!A68,'ISD SINAPI'!$B$11:$F$4903,3,0))),IF(OR(B68="SICRO",B68="SICRO3"),(IFERROR(VLOOKUP(A68,'COMP SD SICRO'!$A$2:$D$6495,3,0),VLOOKUP(CPU_Civil!A68,'ISD SICRO'!$A$2:$D$2319,3,0))),IF(B68="SEINFRA",(IFERROR(VLOOKUP(A68,'COMPSD SEINFRA'!$B$7:$G$5611,3,0),VLOOKUP(CPU_Civil!A68,'ISD SEINFRA'!A63:$D$11922,3,0))),))) -> M2 | F68: =IF(B68="SINAPI",(IFERROR(VLOOKUP(A68,'CompSD SINAPI'!$B$11:$F$9784,4,0),VLOOKUP(CPU_Civil!A68,'ISD SINAPI'!$B$11:$F$4903,5,0))),IF(OR(B68="SICRO",B68="SICRO3"),(IFERROR(VLOOKUP(A68,'COMP SD SICRO'!$A$2:$D$6495,4,0),VLOOKUP(CPU_Civil!A68,'ISD SICRO'!$A$2:$D$2319,4,0))),IF(B68="SEINFRA",(IFERROR(VLOOKUP(A68,'COMPSD SEINFRA'!$B$7:$G$5611,4,0),VLOOKUP(CPU_Civil!A68,'ISD SEINFRA'!A32:$D$11922,4,0))),))) -> 5.08 | G68: 200 | H68: 1016 | J68: =H68*(1-CAPA!$D$13) -> 975.36
A69: 4915776 | B69: SICRO | C69: Roçada com roçadeira costal | D69: COMPOSIÇÃO | E69: HA | F69: 738.88 | G69: 0.035 | H69: 25.8608 | J69: =H69*(1-CAPA!$D$13) -> 24.826368
A70: *** | B70: *** | C70: *** | D70: *** | E70: *** | F70: *** | G70: *** | H70: *** | I70: ***
A71: CPU404 | B71: PROPRIA | C71: Reparos e pintura de esquadrias, guarnições portas e janelas matálicas. | D71: COMPOSIÇÃO | E71: m² | I71: =SUM(H72:H77) -> 59.04999 | J71: =SUM(J72:J77) -> 56.6879904
A72: 6110 | B72: SINAPI | C72: =IF(B72="SINAPI",(IFERROR(VLOOKUP(A72,'CompSD SINAPI'!$B$11:$F$9784,2,0),VLOOKUP(CPU_Civil!A72,'ISD SINAPI'!$B$11:$F$4903,2,0))),IF(OR(B72="SICRO",B72="SICRO3"),(IFERROR(VLOOKUP(A72,'COMP SD SICRO'!$A$2:$D$6495,2,0),VLOOKUP(CPU_Civil!A72,'ISD SICRO'!$A$2:$D$2319,2,0))),IF(B72="SEINFRA",(IFERROR(VLOOKUP(A72,'COMPSD SEINFRA'!$B$7:$G$5611,2,0),VLOOKUP(CPU_Civil!A72,'ISD SEINFRA'!A37:$D$11922,2,0))),))) -> SERRALHEIRO (HORISTA) | D72: COMPOSIÇÃO | E72: =IF(B72="SINAPI",(IFERROR(VLOOKUP(A72,'CompSD SINAPI'!$B$11:$F$9784,3,0),VLOOKUP(CPU_Civil!A72,'ISD SINAPI'!$B$11:$F$4903,3,0))),IF(OR(B72="SICRO",B72="SICRO3"),(IFERROR(VLOOKUP(A72,'COMP SD SICRO'!$A$2:$D$6495,3,0),VLOOKUP(CPU_Civil!A72,'ISD SICRO'!$A$2:$D$2319,3,0))),IF(B72="SEINFRA",(IFERROR(VLOOKUP(A72,'COMPSD SEINFRA'!$B$7:$G$5611,3,0),VLOOKUP(CPU_Civil!A72,'ISD SEINFRA'!A67:$D$11922,3,0))),))) -> H | F72: =IF(B72="SINAPI",(IFERROR(VLOOKUP(A72,'CompSD SINAPI'!$B$11:$F$9784,4,0),VLOOKUP(CPU_Civil!A72,'ISD SINAPI'!$B$11:$F$4903,5,0))),IF(OR(B72="SICRO",B72="SICRO3"),(IFERROR(VLOOKUP(A72,'COMP SD SICRO'!$A$2:$D$6495,4,0),VLOOKUP(CPU_Civil!A72,'ISD SICRO'!$A$2:$D$2319,4,0))),IF(B72="SEINFRA",(IFERROR(VLOOKUP(A72,'COMPSD SEINFRA'!$B$7:$G$5611,4,0),VLOOKUP(CPU_Civil!A72,'ISD SEINFRA'!A36:$D$11922,4,0))),))) -> 21.14 | G72: 1.25 | H72: 26.425 | J72: =H72*(1-CAPA!$D$13) -> 25.368
A73: 252 | B73: SINAPI | C73: =IF(B73="SINAPI",(IFERROR(VLOOKUP(A73,'CompSD SINAPI'!$B$11:$F$9784,2,0),VLOOKUP(CPU_Civil!A73,'ISD SINAPI'!$B$11:$F$4903,2,0))),IF(OR(B73="SICRO",B73="SICRO3"),(IFERROR(VLOOKUP(A73,'COMP SD SICRO'!$A$2:$D$6495,2,0),VLOOKUP(CPU_Civil!A73,'ISD SICRO'!$A$2:$D$2319,2,0))),IF(B73="SEINFRA",(IFERROR(VLOOKUP(A73,'COMPSD SEINFRA'!$B$7:$G$5611,2,0),VLOOKUP(CPU_Civil!A73,'ISD SEINFRA'!A38:$D$11922,2,0))),))) -> AJUDANTE DE SERRALHEIRO (HORISTA) | D73: COMPOSIÇÃO | E73: =IF(B73="SINAPI",(IFERROR(VLOOKUP(A73,'CompSD SINAPI'!$B$11:$F$9784,3,0),VLOOKUP(CPU_Civil!A73,'ISD SINAPI'!$B$11:$F$4903,3,0))),IF(OR(B73="SICRO",B73="SICRO3"),(IFERROR(VLOOKUP(A73,'COMP SD SICRO'!$A$2:$D$6495,3,0),VLOOKUP(CPU_Civil!A73,'ISD SICRO'!$A$2:$D$2319,3,0))),IF(B73="SEINFRA",(IFERROR(VLOOKUP(A73,'COMPSD SEINFRA'!$B$7:$G$5611,3,0),VLOOKUP(CPU_Civil!A73,'ISD SEINFRA'!A68:$D$11922,3,0))),))) -> H | F73: =IF(B73="SINAPI",(IFERROR(VLOOKUP(A73,'CompSD SINAPI'!$B$11:$F$9784,4,0),VLOOKUP(CPU_Civil!A73,'ISD SINAPI'!$B$11:$F$4903,5,0))),IF(OR(B73="SICRO",B73="SICRO3"),(IFERROR(VLOOKUP(A73,'COMP SD SICRO'!$A$2:$D$6495,4,0),VLOOKUP(CPU_Civil!A73,'ISD SICRO'!$A$2:$D$2319,4,0))),IF(B73="SEINFRA",(IFERROR(VLOOKUP(A73,'COMPSD SEINFRA'!$B$7:$G$5611,4,0),VLOOKUP(CPU_Civil!A73,'ISD SEINFRA'!A37:$D$11922,4,0))),))) -> 16.01 | G73: =G72 -> 1.25 | H73: 20.0125 | J73: =H73*(1-CAPA!$D$13) -> 19.212
A74: 3768 | B74: SINAPI | C74: =IF(B74="SINAPI",(IFERROR(VLOOKUP(A74,'CompSD SINAPI'!$B$11:$F$9784,2,0),VLOOKUP(CPU_Civil!A74,'ISD SINAPI'!$B$11:$F$4903,2,0))),IF(OR(B74="SICRO",B74="SICRO3"),(IFERROR(VLOOKUP(A74,'COMP SD SICRO'!$A$2:$D$6495,2,0),VLOOKUP(CPU_Civil!A74,'ISD SICRO'!$A$2:$D$2319,2,0))),IF(B74="SEINFRA",(IFERROR(VLOOKUP(A74,'COMPSD SEINFRA'!$B$7:$G$5611,2,0),VLOOKUP(CPU_Civil!A74,'ISD SEINFRA'!A39:$D$11922,2,0))),))) -> LIXA EM FOLHA PARA FERRO, NUMERO 150 | D74: INSUMO | E74: UND | F74: =IF(B74="SINAPI",(IFERROR(VLOOKUP(A74,'CompSD SINAPI'!$B$11:$F$9784,4,0),VLOOKUP(CPU_Civil!A74,'ISD SINAPI'!$B$11:$F$4903,5,0))),IF(OR(B74="SICRO",B74="SICRO3"),(IFERROR(VLOOKUP(A74,'COMP SD SICRO'!$A$2:$D$6495,4,0),VLOOKUP(CPU_Civil!A74,'ISD SICRO'!$A$2:$D$2319,4,0))),IF(B74="SEINFRA",(IFERROR(VLOOKUP(A74,'COMPSD SEINFRA'!$B$7:$G$5611,4,0),VLOOKUP(CPU_Civil!A74,'ISD SEINFRA'!A38:$D$11922,4,0))),))) -> 2.82 | G74: 0.13 | H74: 0.3666 | J74: =H74*(1-CAPA!$D$13) -> 0.351936
A75: 7307 | B75: SINAPI | C75: FUNDO ANTICORROSIVO PARA METAIS FERROSOS (ZARCAO) | D75: INSUMO | E75: L | F75: =IF(B75="SINAPI",(IFERROR(VLOOKUP(A75,'CompSD SINAPI'!$B$11:$F$9784,4,0),VLOOKUP(CPU_Civil!A75,'ISD SINAPI'!$B$11:$F$4903,5,0))),IF(OR(B75="SICRO",B75="SICRO3"),(IFERROR(VLOOKUP(A75,'COMP SD SICRO'!$A$2:$D$6495,4,0),VLOOKUP(CPU_Civil!A75,'ISD SICRO'!$A$2:$D$2319,4,0))),IF(B75="SEINFRA",(IFERROR(VLOOKUP(A75,'COMPSD SEINFRA'!$B$7:$G$5611,4,0),VLOOKUP(CPU_Civil!A75,'ISD SEINFRA'!A39:$D$11922,4,0))),))) -> 34.46 | G75: 0.095 | H75: 3.2737 | J75: =H75*(1-CAPA!$D$13) -> 3.142752
A76: 5318 | B76: SINAPI | C76: =IF(B76="SINAPI",(IFERROR(VLOOKUP(A76,'CompSD SINAPI'!$B$11:$F$9784,2,0),VLOOKUP(CPU_Civil!A76,'ISD SINAPI'!$B$11:$F$4903,2,0))),IF(OR(B76="SICRO",B76="SICRO3"),(IFERROR(VLOOKUP(A76,'COMP SD SICRO'!$A$2:$D$6495,2,0),VLOOKUP(CPU_Civil!A76,'ISD SICRO'!$A$2:$D$2319,2,0))),IF(B76="SEINFRA",(IFERROR(VLOOKUP(A76,'COMPSD SEINFRA'!$B$7:$G$5611,2,0),VLOOKUP(CPU_Civil!A76,'ISD SEINFRA'!A40:$D$11922,2,0))),))) -> DILUENTE AGUARRAS | D76: INSUMO | E76: =IF(B76="SINAPI",(IFERROR(VLOOKUP(A76,'CompSD SINAPI'!$B$11:$F$9784,3,0),VLOOKUP(CPU_Civil!A76,'ISD SINAPI'!$B$11:$F$4903,3,0))),IF(OR(B76="SICRO",B76="SICRO3"),(IFERROR(VLOOKUP(A76,'COMP SD SICRO'!$A$2:$D$6495,3,0),VLOOKUP(CPU_Civil!A76,'ISD SICRO'!$A$2:$D$2319,3,0))),IF(B76="SEINFRA",(IFERROR(VLOOKUP(A76,'COMPSD SEINFRA'!$B$7:$G$5611,3,0),VLOOKUP(CPU_Civil!A76,'ISD SEINFRA'!A70:$D$11922,3,0))),))) -> L | F76: =IF(B76="SINAPI",(IFERROR(VLOOKUP(A76,'CompSD SINAPI'!$B$11:$F$9784,4,0),VLOOKUP(CPU_Civil!A76,'ISD SINAPI'!$B$11:$F$4903,5,0))),IF(OR(B76="SICRO",B76="SICRO3"),(IFERROR(VLOOKUP(A76,'COMP SD SICRO'!$A$2:$D$6495,4,0),VLOOKUP(CPU_Civil!A76,'ISD SICRO'!$A$2:$D$2319,4,0))),IF(B76="SEINFRA",(IFERROR(VLOOKUP(A76,'COMPSD SEINFRA'!$B$7:$G$5611,4,0),VLOOKUP(CPU_Civil!A76,'ISD SEINFRA'!A39:$D$11922,4,0))),))) -> 21.98 | G76: =0.0255 -> 0.0255 | H76: 0.56049 | J76: =H76*(1-CAPA!$D$13) -> 0.5380704
A77: 7311 | B77: SINAPI | C77: =IF(B77="SINAPI",(IFERROR(VLOOKUP(A77,'CompSD SINAPI'!$B$11:$F$9784,2,0),VLOOKUP(CPU_Civil!A77,'ISD SINAPI'!$B$11:$F$4903,2,0))),IF(OR(B77="SICRO",B77="SICRO3"),(IFERROR(VLOOKUP(A77,'COMP SD SICRO'!$A$2:$D$6495,2,0),VLOOKUP(CPU_Civil!A77,'ISD SICRO'!$A$2:$D$2319,2,0))),IF(B77="SEINFRA",(IFERROR(VLOOKUP(A77,'COMPSD SEINFRA'!$B$7:$G$5611,2,0),VLOOKUP(CPU_Civil!A77,'ISD SEINFRA'!A41:$D$11922,2,0))),))) -> TINTA ESMALTE SINTETICO PREMIUM ACETINADO | D77: INSUMO | E77: =IF(B77="SINAPI",(IFERROR(VLOOKUP(A77,'CompSD SINAPI'!$B$11:$F$9784,3,0),VLOOKUP(CPU_Civil!A77,'ISD SINAPI'!$B$11:$F$4903,3,0))),IF(OR(B77="SICRO",B77="SICRO3"),(IFERROR(VLOOKUP(A77,'COMP SD SICRO'!$A$2:$D$6495,3,0),VLOOKUP(CPU_Civil!A77,'ISD SICRO'!$A$2:$D$2319,3,0))),IF(B77="SEINFRA",(IFERROR(VLOOKUP(A77,'COMPSD SEINFRA'!$B$7:$G$5611,3,0),VLOOKUP(CPU_Civil!A77,'ISD SEINFRA'!A71:$D$11922,3,0))),))) -> L | F77: =IF(B77="SINAPI",(IFERROR(VLOOKUP(A77,'CompSD SINAPI'!$B$11:$F$9784,4,0),VLOOKUP(CPU_Civil!A77,'ISD SINAPI'!$B$11:$F$4903,5,0))),IF(OR(B77="SICRO",B77="SICRO3"),(IFERROR(VLOOKUP(A77,'COMP SD SICRO'!$A$2:$D$6495,4,0),VLOOKUP(CPU_Civil!A77,'ISD SICRO'!$A$2:$D$2319,4,0))),IF(B77="SEINFRA",(IFERROR(VLOOKUP(A77,'COMPSD SEINFRA'!$B$7:$G$5611,4,0),VLOOKUP(CPU_Civil!A77,'ISD SEINFRA'!A40:$D$11922,4,0))),))) -> 33 | G77: =0.2549 -> 0.2549 | H77: 8.4117 | J77: =H77*(1-CAPA!$D$13) -> 8.075232
A78: *** | B78: *** | C78: *** | D78: *** | E78: *** | F78: *** | G78: *** | H78: *** | I78: ***
A79: CPU405 | B79: PROPRIA | C79: Alvenaria de vedação com elemento vazado de concreto, veneziana 39x29x10 | E79: m² | I79: =SUM(H80:H84) -> 386.1995467 | J79: =SUM(J80:J84) -> 370.7515648
A80: 100489 | B80: SINAPI | C80: =IF(B80="SINAPI",(IFERROR(VLOOKUP(A80,'CompSD SINAPI'!$B$11:$F$9784,2,0),VLOOKUP(CPU_Civil!A80,'ISD SINAPI'!$B$11:$F$4903,2,0))),IF(OR(B80="SICRO",B80="SICRO3"),(IFERROR(VLOOKUP(A80,'COMP SD SICRO'!$A$2:$D$6495,2,0),VLOOKUP(CPU_Civil!A80,'ISD SICRO'!$A$2:$D$2319,2,0))),IF(B80="SEINFRA",(IFERROR(VLOOKUP(A80,'COMPSD SEINFRA'!$B$7:$G$5611,2,0),VLOOKUP(CPU_Civil!A80,'ISD SEINFRA'!A44:$D$11922,2,0))),))) -> ARGAMASSA TRAÇO 1:3 (EM VOLUME DE CIMENTO E AREIA MÉDIA ÚMIDA), PREPARO MECÂNICO COM BETONEIRA 600 L. AF_08/2019 | D80: COMPOSIÇÃO | E80: =IF(B80="SINAPI",(IFERROR(VLOOKUP(A80,'CompSD SINAPI'!$B$11:$F$9784,3,0),VLOOKUP(CPU_Civil!A80,'ISD SINAPI'!$B$11:$F$4903,3,0))),IF(OR(B80="SICRO",B80="SICRO3"),(IFERROR(VLOOKUP(A80,'COMP SD SICRO'!$A$2:$D$6495,3,0),VLOOKUP(CPU_Civil!A80,'ISD SICRO'!$A$2:$D$2319,3,0))),IF(B80="SEINFRA",(IFERROR(VLOOKUP(A80,'COMPSD SEINFRA'!$B$7:$G$5611,3,0),VLOOKUP(CPU_Civil!A80,'ISD SEINFRA'!A74:$D$11922,3,0))),))) -> M3 | F80: =IF(B80="SINAPI",(IFERROR(VLOOKUP(A80,'CompSD SINAPI'!$B$11:$F$9784,4,0),VLOOKUP(CPU_Civil!A80,'ISD SINAPI'!$B$11:$F$4903,5,0))),IF(OR(B80="SICRO",B80="SICRO3"),(IFERROR(VLOOKUP(A80,'COMP SD SICRO'!$A$2:$D$6495,4,0),VLOOKUP(CPU_Civil!A80,'ISD SICRO'!$A$2:$D$2319,4,0))),IF(B80="SEINFRA",(IFERROR(VLOOKUP(A80,'COMPSD SEINFRA'!$B$7:$G$5611,4,0),VLOOKUP(CPU_Civil!A80,'ISD SEINFRA'!A43:$D$11922,4,0))),))) -> 690.36 | G80: 0.023 | H80: =F80*G80 -> 15.87828 | J80: =H80*(1-CAPA!$D$13) -> 15.2431488
A81: 88309 | B81: SINAPI | C81: =IF(B81="SINAPI",(IFERROR(VLOOKUP(A81,'CompSD SINAPI'!$B$11:$F$9784,2,0),VLOOKUP(CPU_Civil!A81,'ISD SINAPI'!$B$11:$F$4903,2,0))),IF(OR(B81="SICRO",B81="SICRO3"),(IFERROR(VLOOKUP(A81,'COMP SD SICRO'!$A$2:$D$6495,2,0),VLOOKUP(CPU_Civil!A81,'ISD SICRO'!$A$2:$D$2319,2,0))),IF(B81="SEINFRA",(IFERROR(VLOOKUP(A81,'COMPSD SEINFRA'!$B$7:$G$5611,2,0),VLOOKUP(CPU_Civil!A81,'ISD SEINFRA'!A45:$D$11922,2,0))),))) -> PEDREIRO COM ENCARGOS COMPLEMENTARES | D81: COMPOSIÇÃO | E81: =IF(B81="SINAPI",(IFERROR(VLOOKUP(A81,'CompSD SINAPI'!$B$11:$F$9784,3,0),VLOOKUP(CPU_Civil!A81,'ISD SINAPI'!$B$11:$F$4903,3,0))),IF(OR(B81="SICRO",B81="SICRO3"),(IFERROR(VLOOKUP(A81,'COMP SD SICRO'!$A$2:$D$6495,3,0),VLOOKUP(CPU_Civil!A81,'ISD SICRO'!$A$2:$D$2319,3,0))),IF(B81="SEINFRA",(IFERROR(VLOOKUP(A81,'COMPSD SEINFRA'!$B$7:$G$5611,3,0),VLOOKUP(CPU_Civil!A81,'ISD SEINFRA'!A75:$D$11922,3,0))),))) -> H | F81: =IF(B81="SINAPI",(IFERROR(VLOOKUP(A81,'CompSD SINAPI'!$B$11:$F$9784,4,0),VLOOKUP(CPU_Civil!A81,'ISD SINAPI'!$B$11:$F$4903,5,0))),IF(OR(B81="SICRO",B81="SICRO3"),(IFERROR(VLOOKUP(A81,'COMP SD SICRO'!$A$2:$D$6495,4,0),VLOOKUP(CPU_Civil!A81,'ISD SICRO'!$A$2:$D$2319,4,0))),IF(B81="SEINFRA",(IFERROR(VLOOKUP(A81,'COMPSD SEINFRA'!$B$7:$G$5611,4,0),VLOOKUP(CPU_Civil!A81,'ISD SEINFRA'!A44:$D$11922,4,0))),))) -> 30.01 | G81: 2.22 | H81: 66.6222 | J81: =H81*(1-CAPA!$D$13) -> 63.957312
A82: 88316 | B82: SINAPI | C82: =IF(B82="SINAPI",(IFERROR(VLOOKUP(A82,'CompSD SINAPI'!$B$11:$F$9784,2,0),VLOOKUP(CPU_Civil!A82,'ISD SINAPI'!$B$11:$F$4903,2,0))),IF(OR(B82="SICRO",B82="SICRO3"),(IFERROR(VLOOKUP(A82,'COMP SD SICRO'!$A$2:$D$6495,2,0),VLOOKUP(CPU_Civil!A82,'ISD SICRO'!$A$2:$D$2319,2,0))),IF(B82="SEINFRA",(IFERROR(VLOOKUP(A82,'COMPSD SEINFRA'!$B$7:$G$5611,2,0),VLOOKUP(CPU_Civil!A82,'ISD SEINFRA'!A46:$D$11922,2,0))),))) -> SERVENTE COM ENCARGOS COMPLEMENTARES | D82: COMPOSIÇÃO | E82: =IF(B82="SINAPI",(IFERROR(VLOOKUP(A82,'CompSD SINAPI'!$B$11:$F$9784,3,0),VLOOKUP(CPU_Civil!A82,'ISD SINAPI'!$B$11:$F$4903,3,0))),IF(OR(B82="SICRO",B82="SICRO3"),(IFERROR(VLOOKUP(A82,'COMP SD SICRO'!$A$2:$D$6495,3,0),VLOOKUP(CPU_Civil!A82,'ISD SICRO'!$A$2:$D$2319,3,0))),IF(B82="SEINFRA",(IFERROR(VLOOKUP(A82,'COMPSD SEINFRA'!$B$7:$G$5611,3,0),VLOOKUP(CPU_Civil!A82,'ISD SEINFRA'!A76:$D$11922,3,0))),))) -> H | F82: =IF(B82="SINAPI",(IFERROR(VLOOKUP(A82,'CompSD SINAPI'!$B$11:$F$9784,4,0),VLOOKUP(CPU_Civil!A82,'ISD SINAPI'!$B$11:$F$4903,5,0))),IF(OR(B82="SICRO",B82="SICRO3"),(IFERROR(VLOOKUP(A82,'COMP SD SICRO'!$A$2:$D$6495,4,0),VLOOKUP(CPU_Civil!A82,'ISD SICRO'!$A$2:$D$2319,4,0))),IF(B82="SEINFRA",(IFERROR(VLOOKUP(A82,'COMPSD SEINFRA'!$B$7:$G$5611,4,0),VLOOKUP(CPU_Civil!A82,'ISD SEINFRA'!A45:$D$11922,4,0))),))) -> 23.84 | G82: 1.11 | H82: 26.4624 | J82: =H82*(1-CAPA!$D$13) -> 25.403904
A83: 10579 | B83: SINAPI | C83: =IF(B83="SINAPI",(IFERROR(VLOOKUP(A83,'CompSD SINAPI'!$B$11:$F$9784,2,0),VLOOKUP(CPU_Civil!A83,'ISD SINAPI'!$B$11:$F$4903,2,0))),IF(OR(B83="SICRO",B83="SICRO3"),(IFERROR(VLOOKUP(A83,'COMP SD SICRO'!$A$2:$D$6495,2,0),VLOOKUP(CPU_Civil!A83,'ISD SICRO'!$A$2:$D$2319,2,0))),IF(B83="SEINFRA",(IFERROR(VLOOKUP(A83,'COMPSD SEINFRA'!$B$7:$G$5611,2,0),VLOOKUP(CPU_Civil!A83,'ISD SEINFRA'!A47:$D$11922,2,0))),))) -> ELEMENTO VAZADO DE CONCRETO, VENEZIANA *39 X 29 X 10* CM | D83: INSUMO | E83: =IF(B83="SINAPI",(IFERROR(VLOOKUP(A83,'CompSD SINAPI'!$B$11:$F$9784,3,0),VLOOKUP(CPU_Civil!A83,'ISD SINAPI'!$B$11:$F$4903,3,0))),IF(OR(B83="SICRO",B83="SICRO3"),(IFERROR(VLOOKUP(A83,'COMP SD SICRO'!$A$2:$D$6495,3,0),VLOOKUP(CPU_Civil!A83,'ISD SICRO'!$A$2:$D$2319,3,0))),IF(B83="SEINFRA",(IFERROR(VLOOKUP(A83,'COMPSD SEINFRA'!$B$7:$G$5611,3,0),VLOOKUP(CPU_Civil!A83,'ISD SEINFRA'!A77:$D$11922,3,0))),))) -> UN | F83: =IF(B83="SINAPI",(IFERROR(VLOOKUP(A83,'CompSD SINAPI'!$B$11:$F$9784,4,0),VLOOKUP(CPU_Civil!A83,'ISD SINAPI'!$B$11:$F$4903,5,0))),IF(OR(B83="SICRO",B83="SICRO3"),(IFERROR(VLOOKUP(A83,'COMP SD SICRO'!$A$2:$D$6495,4,0),VLOOKUP(CPU_Civil!A83,'ISD SICRO'!$A$2:$D$2319,4,0))),IF(B83="SEINFRA",(IFERROR(VLOOKUP(A83,'COMPSD SEINFRA'!$B$7:$G$5611,4,0),VLOOKUP(CPU_Civil!A83,'ISD SEINFRA'!A46:$D$11922,4,0))),))) -> 32.51 | G83: =25/3 -> 8.333333333 | H83: 270.9166667 | J83: =H83*(1-CAPA!$D$13) -> 260.08
A84: 37595 | B84: SINAPI | C84: =IF(B84="SINAPI",(IFERROR(VLOOKUP(A84,'CompSD SINAPI'!$B$11:$F$9784,2,0),VLOOKUP(CPU_Civil!A84,'ISD SINAPI'!$B$11:$F$4903,2,0))),IF(OR(B84="SICRO",B84="SICRO3"),(IFERROR(VLOOKUP(A84,'COMP SD SICRO'!$A$2:$D$6495,2,0),VLOOKUP(CPU_Civil!A84,'ISD SICRO'!$A$2:$D$2319,2,0))),IF(B84="SEINFRA",(IFERROR(VLOOKUP(A84,'COMPSD SEINFRA'!$B$7:$G$5611,2,0),VLOOKUP(CPU_Civil!A84,'ISD SEINFRA'!A48:$D$11922,2,0))),))) -> ARGAMASSA COLANTE TIPO AC III | D84: INSUMO | E84: =IF(B84="SINAPI",(IFERROR(VLOOKUP(A84,'CompSD SINAPI'!$B$11:$F$9784,3,0),VLOOKUP(CPU_Civil!A84,'ISD SINAPI'!$B$11:$F$4903,3,0))),IF(OR(B84="SICRO",B84="SICRO3"),(IFERROR(VLOOKUP(A84,'COMP SD SICRO'!$A$2:$D$6495,3,0),VLOOKUP(CPU_Civil!A84,'ISD SICRO'!$A$2:$D$2319,3,0))),IF(B84="SEINFRA",(IFERROR(VLOOKUP(A84,'COMPSD SEINFRA'!$B$7:$G$5611,3,0),VLOOKUP(CPU_Civil!A84,'ISD SEINFRA'!A78:$D$11922,3,0))),))) -> KG | F84: =IF(B84="SINAPI",(IFERROR(VLOOKUP(A84,'CompSD SINAPI'!$B$11:$F$9784,4,0),VLOOKUP(CPU_Civil!A84,'ISD SINAPI'!$B$11:$F$4903,5,0))),IF(OR(B84="SICRO",B84="SICRO3"),(IFERROR(VLOOKUP(A84,'COMP SD SICRO'!$A$2:$D$6495,4,0),VLOOKUP(CPU_Civil!A84,'ISD SICRO'!$A$2:$D$2319,4,0))),IF(B84="SEINFRA",(IFERROR(VLOOKUP(A84,'COMPSD SEINFRA'!$B$7:$G$5611,4,0),VLOOKUP(CPU_Civil!A84,'ISD SEINFRA'!A47:$D$11922,4,0))),))) -> 3.16 | G84: 2 | H84: 6.32 | J84: =H84*(1-CAPA!$D$13) -> 6.0672
A85: *** | B85: *** | C85: *** | D85: *** | E85: *** | F85: *** | G85: *** | H85: *** | I85: ***
A86: CPU406a | B86: PROPRIA | C86: Fornecimento e instalação de porta de enrolar 2,25x6,4 dupla, inclusive grade de proteção em metalon, pintadas em azul. Incluso cadeados. | D86: COMPOSIÇÃO | E86: cj | I86: =SUM(H87:H93) -> 13797.9218 | J86: =SUM(J87:J93) -> 13246.00493
A87: 12710 | B87: ORSE | C87: Porta de enrolar, em perfil meia cana fechado, em chapa de aço galvanizado nº22. | D87: COMPOSIÇÃO | E87: m² | F87: 356.55 | G87: =4.5*6.4 -> 28.8 | H87: 10268.64 | J87: =H87*(1-CAPA!$D$13) -> 9857.8944
A88: 13870 | B88: ORSE | C88: Grade em metalon 50 x 30 x 1,25mm, h = 1,65m. | D88: COMPOSIÇÃO | E88: m | F88: 560.22 | G88: 4.75 | H88: 2661.045 | J88: =H88*(1-CAPA!$D$13) -> 2554.6032
A89: 156 | B89: SINAPI | C89: =IF(B89="SINAPI",(IFERROR(VLOOKUP(A89,'CompSD SINAPI'!$B$11:$F$9784,2,0),VLOOKUP(CPU_Civil!A89,'ISD SINAPI'!$B$11:$F$4903,2,0))),IF(OR(B89="SICRO",B89="SICRO3"),(IFERROR(VLOOKUP(A89,'COMP SD SICRO'!$A$2:$D$6495,2,0),VLOOKUP(CPU_Civil!A89,'ISD SICRO'!$A$2:$D$2319,2,0))),IF(B89="SEINFRA",(IFERROR(VLOOKUP(A89,'COMPSD SEINFRA'!$B$7:$G$5611,2,0),VLOOKUP(CPU_Civil!A89,'ISD SEINFRA'!A53:$D$11922,2,0))),))) -> ADESIVO ESTRUTURAL A BASE DE RESINA EPOXI, BICOMPONENTE, FLUIDO | D89: INSUMO | E89: =IF(B89="SINAPI",(IFERROR(VLOOKUP(A89,'CompSD SINAPI'!$B$11:$F$9784,3,0),VLOOKUP(CPU_Civil!A89,'ISD SINAPI'!$B$11:$F$4903,3,0))),IF(OR(B89="SICRO",B89="SICRO3"),(IFERROR(VLOOKUP(A89,'COMP SD SICRO'!$A$2:$D$6495,3,0),VLOOKUP(CPU_Civil!A89,'ISD SICRO'!$A$2:$D$2319,3,0))),IF(B89="SEINFRA",(IFERROR(VLOOKUP(A89,'COMPSD SEINFRA'!$B$7:$G$5611,3,0),VLOOKUP(CPU_Civil!A89,'ISD SEINFRA'!A83:$D$11922,3,0))),))) -> KG | F89: =IF(B89="SINAPI",(IFERROR(VLOOKUP(A89,'CompSD SINAPI'!$B$11:$F$9784,4,0),VLOOKUP(CPU_Civil!A89,'ISD SINAPI'!$B$11:$F$4903,5,0))),IF(OR(B89="SICRO",B89="SICRO3"),(IFERROR(VLOOKUP(A89,'COMP SD SICRO'!$A$2:$D$6495,4,0),VLOOKUP(CPU_Civil!A89,'ISD SICRO'!$A$2:$D$2319,4,0))),IF(B89="SEINFRA",(IFERROR(VLOOKUP(A89,'COMPSD SEINFRA'!$B$7:$G$5611,4,0),VLOOKUP(CPU_Civil!A89,'ISD SEINFRA'!A52:$D$11922,4,0))),))) -> 66.33 | G89: 1.5 | H89: 99.495 | J89: =H89*(1-CAPA!$D$13) -> 95.5152
A90: 3768 | B90: SINAPI | C90: =IF(B90="SINAPI",(IFERROR(VLOOKUP(A90,'CompSD SINAPI'!$B$11:$F$9784,2,0),VLOOKUP(CPU_Civil!A90,'ISD SINAPI'!$B$11:$F$4903,2,0))),IF(OR(B90="SICRO",B90="SICRO3"),(IFERROR(VLOOKUP(A90,'COMP SD SICRO'!$A$2:$D$6495,2,0),VLOOKUP(CPU_Civil!A90,'ISD SICRO'!$A$2:$D$2319,2,0))),IF(B90="SEINFRA",(IFERROR(VLOOKUP(A90,'COMPSD SEINFRA'!$B$7:$G$5611,2,0),VLOOKUP(CPU_Civil!A90,'ISD SEINFRA'!A54:$D$11922,2,0))),))) -> LIXA EM FOLHA PARA FERRO, NUMERO 150 | D90: INSUMO | E90: =IF(B90="SINAPI",(IFERROR(VLOOKUP(A90,'CompSD SINAPI'!$B$11:$F$9784,3,0),VLOOKUP(CPU_Civil!A90,'ISD SINAPI'!$B$11:$F$4903,3,0))),IF(OR(B90="SICRO",B90="SICRO3"),(IFERROR(VLOOKUP(A90,'COMP SD SICRO'!$A$2:$D$6495,3,0),VLOOKUP(CPU_Civil!A90,'ISD SICRO'!$A$2:$D$2319,3,0))),IF(B90="SEINFRA",(IFERROR(VLOOKUP(A90,'COMPSD SEINFRA'!$B$7:$G$5611,3,0),VLOOKUP(CPU_Civil!A90,'ISD SEINFRA'!A84:$D$11922,3,0))),))) -> UN | F90: =IF(B90="SINAPI",(IFERROR(VLOOKUP(A90,'CompSD SINAPI'!$B$11:$F$9784,4,0),VLOOKUP(CPU_Civil!A90,'ISD SINAPI'!$B$11:$F$4903,5,0))),IF(OR(B90="SICRO",B90="SICRO3"),(IFERROR(VLOOKUP(A90,'COMP SD SICRO'!$A$2:$D$6495,4,0),VLOOKUP(CPU_Civil!A90,'ISD SICRO'!$A$2:$D$2319,4,0))),IF(B90="SEINFRA",(IFERROR(VLOOKUP(A90,'COMPSD SEINFRA'!$B$7:$G$5611,4,0),VLOOKUP(CPU_Civil!A90,'ISD SEINFRA'!A53:$D$11922,4,0))),))) -> 2.82 | G90: 4 | H90: 11.28 | J90: =H90*(1-CAPA!$D$13) -> 10.8288
A91: 5318 | B91: SINAPI | C91: =IF(B91="SINAPI",(IFERROR(VLOOKUP(A91,'CompSD SINAPI'!$B$11:$F$9784,2,0),VLOOKUP(CPU_Civil!A91,'ISD SINAPI'!$B$11:$F$4903,2,0))),IF(OR(B91="SICRO",B91="SICRO3"),(IFERROR(VLOOKUP(A91,'COMP SD SICRO'!$A$2:$D$6495,2,0),VLOOKUP(CPU_Civil!A91,'ISD SICRO'!$A$2:$D$2319,2,0))),IF(B91="SEINFRA",(IFERROR(VLOOKUP(A91,'COMPSD SEINFRA'!$B$7:$G$5611,2,0),VLOOKUP(CPU_Civil!A91,'ISD SEINFRA'!A55:$D$11922,2,0))),))) -> DILUENTE AGUARRAS | D91: INSUMO | E91: =IF(B91="SINAPI",(IFERROR(VLOOKUP(A91,'CompSD SINAPI'!$B$11:$F$9784,3,0),VLOOKUP(CPU_Civil!A91,'ISD SINAPI'!$B$11:$F$4903,3,0))),IF(OR(B91="SICRO",B91="SICRO3"),(IFERROR(VLOOKUP(A91,'COMP SD SICRO'!$A$2:$D$6495,3,0),VLOOKUP(CPU_Civil!A91,'ISD SICRO'!$A$2:$D$2319,3,0))),IF(B91="SEINFRA",(IFERROR(VLOOKUP(A91,'COMPSD SEINFRA'!$B$7:$G$5611,3,0),VLOOKUP(CPU_Civil!A91,'ISD SEINFRA'!A85:$D$11922,3,0))),))) -> L | F91: =IF(B91="SINAPI",(IFERROR(VLOOKUP(A91,'CompSD SINAPI'!$B$11:$F$9784,4,0),VLOOKUP(CPU_Civil!A91,'ISD SINAPI'!$B$11:$F$4903,5,0))),IF(OR(B91="SICRO",B91="SICRO3"),(IFERROR(VLOOKUP(A91,'COMP SD SICRO'!$A$2:$D$6495,4,0),VLOOKUP(CPU_Civil!A91,'ISD SICRO'!$A$2:$D$2319,4,0))),IF(B91="SEINFRA",(IFERROR(VLOOKUP(A91,'COMPSD SEINFRA'!$B$7:$G$5611,4,0),VLOOKUP(CPU_Civil!A91,'ISD SEINFRA'!A54:$D$11922,4,0))),))) -> 21.98 | G91: 1 | H91: 21.98 | J91: =H91*(1-CAPA!$D$13) -> 21.1008
A92: 7311 | B92: SINAPI | C92: =IF(B92="SINAPI",(IFERROR(VLOOKUP(A92,'CompSD SINAPI'!$B$11:$F$9784,2,0),VLOOKUP(CPU_Civil!A92,'ISD SINAPI'!$B$11:$F$4903,2,0))),IF(OR(B92="SICRO",B92="SICRO3"),(IFERROR(VLOOKUP(A92,'COMP SD SICRO'!$A$2:$D$6495,2,0),VLOOKUP(CPU_Civil!A92,'ISD SICRO'!$A$2:$D$2319,2,0))),IF(B92="SEINFRA",(IFERROR(VLOOKUP(A92,'COMPSD SEINFRA'!$B$7:$G$5611,2,0),VLOOKUP(CPU_Civil!A92,'ISD SEINFRA'!A56:$D$11922,2,0))),))) -> TINTA ESMALTE SINTETICO PREMIUM ACETINADO | D92: INSUMO | E92: =IF(B92="SINAPI",(IFERROR(VLOOKUP(A92,'CompSD SINAPI'!$B$11:$F$9784,3,0),VLOOKUP(CPU_Civil!A92,'ISD SINAPI'!$B$11:$F$4903,3,0))),IF(OR(B92="SICRO",B92="SICRO3"),(IFERROR(VLOOKUP(A92,'COMP SD SICRO'!$A$2:$D$6495,3,0),VLOOKUP(CPU_Civil!A92,'ISD SICRO'!$A$2:$D$2319,3,0))),IF(B92="SEINFRA",(IFERROR(VLOOKUP(A92,'COMPSD SEINFRA'!$B$7:$G$5611,3,0),VLOOKUP(CPU_Civil!A92,'ISD SEINFRA'!A86:$D$11922,3,0))),))) -> L | F92: =IF(B92="SINAPI",(IFERROR(VLOOKUP(A92,'CompSD SINAPI'!$B$11:$F$9784,4,0),VLOOKUP(CPU_Civil!A92,'ISD SINAPI'!$B$11:$F$4903,5,0))),IF(OR(B92="SICRO",B92="SICRO3"),(IFERROR(VLOOKUP(A92,'COMP SD SICRO'!$A$2:$D$6495,4,0),VLOOKUP(CPU_Civil!A92,'ISD SICRO'!$A$2:$D$2319,4,0))),IF(B92="SEINFRA",(IFERROR(VLOOKUP(A92,'COMPSD SEINFRA'!$B$7:$G$5611,4,0),VLOOKUP(CPU_Civil!A92,'ISD SEINFRA'!A55:$D$11922,4,0))),))) -> 33 | G92: 0.3546 | H92: 11.7018 | J92: =H92*(1-CAPA!$D$13) -> 11.233728
A93: 2940 | B93: ORSE | C93: Cadeado tetrachave 50 mm | D93: INSUMO | E93: und | F93: 120.63 | G93: 6 | H93: 723.78 | J93: =H93*(1-CAPA!$D$13) -> 694.8288
A94: *** | B94: *** | C94: *** | D94: *** | E94: *** | F94: *** | G94: *** | H94: *** | I94: ***
A95: CPU406b | B95: PROPRIA | C95: Fornecimento e instalação de portão de acesso à caixa de válvulas, c/ tela galvanizada 25x25mm, pintado em azul. Inclusive cadeados. | D95: COMPOSIÇÃO | E95: cj | I95: =SUM(H96:H103) -> 1202.751782 | J95: =SUM(J96:J103) -> 1154.641711
A96: 12470 | B96: ORSE | C96: Portão em barras de ferro vert. quadr. 5/8" c/ 12cm, 6 barras hor. 3/4"x1/4" (2 a 2) e quadro 1"x1/4", inclusive 3 dobradiças, ferrolho porta-cadeado, batedor e chumbadores | D96: COMPOSIÇÃO | E96: m² | F96: 129.93 | G96: =2.1*2.5 -> 5.25 | H96: 682.1325 | J96: =H96*(1-CAPA!$D$13) -> 654.8472
A97: 156 | B97: SINAPI | C97: =IF(B97="SINAPI",(IFERROR(VLOOKUP(A97,'CompSD SINAPI'!$B$11:$F$9784,2,0),VLOOKUP(CPU_Civil!A97,'ISD SINAPI'!$B$11:$F$4903,2,0))),IF(OR(B97="SICRO",B97="SICRO3"),(IFERROR(VLOOKUP(A97,'COMP SD SICRO'!$A$2:$D$6495,2,0),VLOOKUP(CPU_Civil!A97,'ISD SICRO'!$A$2:$D$2319,2,0))),IF(B97="SEINFRA",(IFERROR(VLOOKUP(A97,'COMPSD SEINFRA'!$B$7:$G$5611,2,0),VLOOKUP(CPU_Civil!A97,'ISD SEINFRA'!A61:$D$11922,2,0))),))) -> ADESIVO ESTRUTURAL A BASE DE RESINA EPOXI, BICOMPONENTE, FLUIDO | D97: INSUMO | E97: =IF(B97="SINAPI",(IFERROR(VLOOKUP(A97,'CompSD SINAPI'!$B$11:$F$9784,3,0),VLOOKUP(CPU_Civil!A97,'ISD SINAPI'!$B$11:$F$4903,3,0))),IF(OR(B97="SICRO",B97="SICRO3"),(IFERROR(VLOOKUP(A97,'COMP SD SICRO'!$A$2:$D$6495,3,0),VLOOKUP(CPU_Civil!A97,'ISD SICRO'!$A$2:$D$2319,3,0))),IF(B97="SEINFRA",(IFERROR(VLOOKUP(A97,'COMPSD SEINFRA'!$B$7:$G$5611,3,0),VLOOKUP(CPU_Civil!A97,'ISD SEINFRA'!A91:$D$11922,3,0))),))) -> KG | F97: =IF(B97="SINAPI",(IFERROR(VLOOKUP(A97,'CompSD SINAPI'!$B$11:$F$9784,4,0),VLOOKUP(CPU_Civil!A97,'ISD SINAPI'!$B$11:$F$4903,5,0))),IF(OR(B97="SICRO",B97="SICRO3"),(IFERROR(VLOOKUP(A97,'COMP SD SICRO'!$A$2:$D$6495,4,0),VLOOKUP(CPU_Civil!A97,'ISD SICRO'!$A$2:$D$2319,4,0))),IF(B97="SEINFRA",(IFERROR(VLOOKUP(A97,'COMPSD SEINFRA'!$B$7:$G$5611,4,0),VLOOKUP(CPU_Civil!A97,'ISD SEINFRA'!A60:$D$11922,4,0))),))) -> 66.33 | G97: 1.5 | H97: 99.495 | J97: =H97*(1-CAPA!$D$13) -> 95.5152
A98: 37411 | B98: SINAPI | C98: =IF(B98="SINAPI",(IFERROR(VLOOKUP(A98,'CompSD SINAPI'!$B$11:$F$9784,2,0),VLOOKUP(CPU_Civil!A98,'ISD SINAPI'!$B$11:$F$4903,2,0))),IF(OR(B98="SICRO",B98="SICRO3"),(IFERROR(VLOOKUP(A98,'COMP SD SICRO'!$A$2:$D$6495,2,0),VLOOKUP(CPU_Civil!A98,'ISD SICRO'!$A$2:$D$2319,2,0))),IF(B98="SEINFRA",(IFERROR(VLOOKUP(A98,'COMPSD SEINFRA'!$B$7:$G$5611,2,0),VLOOKUP(CPU_Civil!A98,'ISD SEINFRA'!A62:$D$11922,2,0))),))) -> TELA DE ACO SOLDADA GALVANIZADA/ZINCADA PARA ALVENARIA, FIO D = *1,24 MM, MALHA 25 X 25 MM | D98: INSUMO | E98: =IF(B98="SINAPI",(IFERROR(VLOOKUP(A98,'CompSD SINAPI'!$B$11:$F$9784,3,0),VLOOKUP(CPU_Civil!A98,'ISD SINAPI'!$B$11:$F$4903,3,0))),IF(OR(B98="SICRO",B98="SICRO3"),(IFERROR(VLOOKUP(A98,'COMP SD SICRO'!$A$2:$D$6495,3,0),VLOOKUP(CPU_Civil!A98,'ISD SICRO'!$A$2:$D$2319,3,0))),IF(B98="SEINFRA",(IFERROR(VLOOKUP(A98,'COMPSD SEINFRA'!$B$7:$G$5611,3,0),VLOOKUP(CPU_Civil!A98,'ISD SEINFRA'!A92:$D$11922,3,0))),))) -> M2 | F98: 14.36 | G98: =G96 -> 5.25 | H98: 75.39 | J98: =H98*(1-CAPA!$D$13) -> 72.3744
A99: 3768 | B99: SINAPI | C99: =IF(B99="SINAPI",(IFERROR(VLOOKUP(A99,'CompSD SINAPI'!$B$11:$F$9784,2,0),VLOOKUP(CPU_Civil!A99,'ISD SINAPI'!$B$11:$F$4903,2,0))),IF(OR(B99="SICRO",B99="SICRO3"),(IFERROR(VLOOKUP(A99,'COMP SD SICRO'!$A$2:$D$6495,2,0),VLOOKUP(CPU_Civil!A99,'ISD SICRO'!$A$2:$D$2319,2,0))),IF(B99="SEINFRA",(IFERROR(VLOOKUP(A99,'COMPSD SEINFRA'!$B$7:$G$5611,2,0),VLOOKUP(CPU_Civil!A99,'ISD SEINFRA'!A63:$D$11922,2,0))),))) -> LIXA EM FOLHA PARA FERRO, NUMERO 150 | D99: INSUMO | E99: =IF(B99="SINAPI",(IFERROR(VLOOKUP(A99,'CompSD SINAPI'!$B$11:$F$9784,3,0),VLOOKUP(CPU_Civil!A99,'ISD SINAPI'!$B$11:$F$4903,3,0))),IF(OR(B99="SICRO",B99="SICRO3"),(IFERROR(VLOOKUP(A99,'COMP SD SICRO'!$A$2:$D$6495,3,0),VLOOKUP(CPU_Civil!A99,'ISD SICRO'!$A$2:$D$2319,3,0))),IF(B99="SEINFRA",(IFERROR(VLOOKUP(A99,'COMPSD SEINFRA'!$B$7:$G$5611,3,0),VLOOKUP(CPU_Civil!A99,'ISD SEINFRA'!A93:$D$11922,3,0))),))) -> UN | F99: =IF(B99="SINAPI",(IFERROR(VLOOKUP(A99,'CompSD SINAPI'!$B$11:$F$9784,4,0),VLOOKUP(CPU_Civil!A99,'ISD SINAPI'!$B$11:$F$4903,5,0))),IF(OR(B99="SICRO",B99="SICRO3"),(IFERROR(VLOOKUP(A99,'COMP SD SICRO'!$A$2:$D$6495,4,0),VLOOKUP(CPU_Civil!A99,'ISD SICRO'!$A$2:$D$2319,4,0))),IF(B99="SEINFRA",(IFERROR(VLOOKUP(A99,'COMPSD SEINFRA'!$B$7:$G$5611,4,0),VLOOKUP(CPU_Civil!A99,'ISD SEINFRA'!A62:$D$11922,4,0))),))) -> 2.82 | G99: 4 | H99: 11.28 | J99: =H99*(1-CAPA!$D$13) -> 10.8288
A100: 5318 | B100: SINAPI | C100: =IF(B100="SINAPI",(IFERROR(VLOOKUP(A100,'CompSD SINAPI'!$B$11:$F$9784,2,0),VLOOKUP(CPU_Civil!A100,'ISD SINAPI'!$B$11:$F$4903,2,0))),IF(OR(B100="SICRO",B100="SICRO3"),(IFERROR(VLOOKUP(A100,'COMP SD SICRO'!$A$2:$D$6495,2,0),VLOOKUP(CPU_Civil!A100,'ISD SICRO'!$A$2:$D$2319,2,0))),IF(B100="SEINFRA",(IFERROR(VLOOKUP(A100,'COMPSD SEINFRA'!$B$7:$G$5611,2,0),VLOOKUP(CPU_Civil!A100,'ISD SEINFRA'!A64:$D$11922,2,0))),))) -> DILUENTE AGUARRAS | D100: INSUMO | E100: =IF(B100="SINAPI",(IFERROR(VLOOKUP(A100,'CompSD SINAPI'!$B$11:$F$9784,3,0),VLOOKUP(CPU_Civil!A100,'ISD SINAPI'!$B$11:$F$4903,3,0))),IF(OR(B100="SICRO",B100="SICRO3"),(IFERROR(VLOOKUP(A100,'COMP SD SICRO'!$A$2:$D$6495,3,0),VLOOKUP(CPU_Civil!A100,'ISD SICRO'!$A$2:$D$2319,3,0))),IF(B100="SEINFRA",(IFERROR(VLOOKUP(A100,'COMPSD SEINFRA'!$B$7:$G$5611,3,0),VLOOKUP(CPU_Civil!A100,'ISD SEINFRA'!A94:$D$11922,3,0))),))) -> L | F100: =IF(B100="SINAPI",(IFERROR(VLOOKUP(A100,'CompSD SINAPI'!$B$11:$F$9784,4,0),VLOOKUP(CPU_Civil!A100,'ISD SINAPI'!$B$11:$F$4903,5,0))),IF(OR(B100="SICRO",B100="SICRO3"),(IFERROR(VLOOKUP(A100,'COMP SD SICRO'!$A$2:$D$6495,4,0),VLOOKUP(CPU_Civil!A100,'ISD SICRO'!$A$2:$D$2319,4,0))),IF(B100="SEINFRA",(IFERROR(VLOOKUP(A100,'COMPSD SEINFRA'!$B$7:$G$5611,4,0),VLOOKUP(CPU_Civil!A100,'ISD SEINFRA'!A63:$D$11922,4,0))),))) -> 21.98 | G100: =1.8*0.0255 -> 0.0459 | H100: 1.008882 | J100: =H100*(1-CAPA!$D$13) -> 0.96852672
A101: 7307 | B101: SINAPI | C101: FUNDO ANTICORROSIVO PARA METAIS FERROSOS (ZARCAO) | D101: INSUMO | E101: L | F101: =IF(B101="SINAPI",(IFERROR(VLOOKUP(A101,'CompSD SINAPI'!$B$11:$F$9784,4,0),VLOOKUP(CPU_Civil!A101,'ISD SINAPI'!$B$11:$F$4903,5,0))),IF(OR(B101="SICRO",B101="SICRO3"),(IFERROR(VLOOKUP(A101,'COMP SD SICRO'!$A$2:$D$6495,4,0),VLOOKUP(CPU_Civil!A101,'ISD SICRO'!$A$2:$D$2319,4,0))),IF(B101="SEINFRA",(IFERROR(VLOOKUP(A101,'COMPSD SEINFRA'!$B$7:$G$5611,4,0),VLOOKUP(CPU_Civil!A101,'ISD SEINFRA'!A65:$D$11922,4,0))),))) -> 34.46 | G101: 0.095 | H101: 3.2737 | J101: =H101*(1-CAPA!$D$13) -> 3.142752
A102: 7311 | B102: SINAPI | C102: =IF(B102="SINAPI",(IFERROR(VLOOKUP(A102,'CompSD SINAPI'!$B$11:$F$9784,2,0),VLOOKUP(CPU_Civil!A102,'ISD SINAPI'!$B$11:$F$4903,2,0))),IF(OR(B102="SICRO",B102="SICRO3"),(IFERROR(VLOOKUP(A102,'COMP SD SICRO'!$A$2:$D$6495,2,0),VLOOKUP(CPU_Civil!A102,'ISD SICRO'!$A$2:$D$2319,2,0))),IF(B102="SEINFRA",(IFERROR(VLOOKUP(A102,'COMPSD SEINFRA'!$B$7:$G$5611,2,0),VLOOKUP(CPU_Civil!A102,'ISD SEINFRA'!A65:$D$11922,2,0))),))) -> TINTA ESMALTE SINTETICO PREMIUM ACETINADO | D102: INSUMO | E102: =IF(B102="SINAPI",(IFERROR(VLOOKUP(A102,'CompSD SINAPI'!$B$11:$F$9784,3,0),VLOOKUP(CPU_Civil!A102,'ISD SINAPI'!$B$11:$F$4903,3,0))),IF(OR(B102="SICRO",B102="SICRO3"),(IFERROR(VLOOKUP(A102,'COMP SD SICRO'!$A$2:$D$6495,3,0),VLOOKUP(CPU_Civil!A102,'ISD SICRO'!$A$2:$D$2319,3,0))),IF(B102="SEINFRA",(IFERROR(VLOOKUP(A102,'COMPSD SEINFRA'!$B$7:$G$5611,3,0),VLOOKUP(CPU_Civil!A102,'ISD SEINFRA'!A95:$D$11922,3,0))),))) -> L | F102: =IF(B102="SINAPI",(IFERROR(VLOOKUP(A102,'CompSD SINAPI'!$B$11:$F$9784,4,0),VLOOKUP(CPU_Civil!A102,'ISD SINAPI'!$B$11:$F$4903,5,0))),IF(OR(B102="SICRO",B102="SICRO3"),(IFERROR(VLOOKUP(A102,'COMP SD SICRO'!$A$2:$D$6495,4,0),VLOOKUP(CPU_Civil!A102,'ISD SICRO'!$A$2:$D$2319,4,0))),IF(B102="SEINFRA",(IFERROR(VLOOKUP(A102,'COMPSD SEINFRA'!$B$7:$G$5611,4,0),VLOOKUP(CPU_Civil!A102,'ISD SEINFRA'!A64:$D$11922,4,0))),))) -> 33 | G102: 0.2549 | H102: 8.4117 | J102: =H102*(1-CAPA!$D$13) -> 8.075232
A103: 11395 | B103: ORSE | C103: Cadeado Q 70mm, CRT Tetra Papaiz ou similar | D103: INSUMO | E103: und | F103: 160.88 | G103: 2 | H103: 321.76 | J103: =H103*(1-CAPA!$D$13) -> 308.8896
A104: *** | B104: *** | C104: *** | D104: *** | E104: *** | F104: *** | G104: *** | H104: *** | I104: ***
A105: CPU407 | B105: PROPRIA | C105: Lixamento, limpeza e pintura com tinta alquídica em escadas marinheiro, parapeitos, corrimãos e gradis. | D105: COMPOSIÇÃO | E105: m | I105: =SUM(H106:H112) -> 17.22173 | J105: =SUM(J106:J112) -> 16.5328608
A106: 88310 | B106: SINAPI | C106: =IF(B106="SINAPI",(IFERROR(VLOOKUP(A106,'CompSD SINAPI'!$B$11:$F$9784,2,0),VLOOKUP(CPU_Civil!A106,'ISD SINAPI'!$B$11:$F$4903,2,0))),IF(OR(B106="SICRO",B106="SICRO3"),(IFERROR(VLOOKUP(A106,'COMP SD SICRO'!$A$2:$D$6495,2,0),VLOOKUP(CPU_Civil!A106,'ISD SICRO'!$A$2:$D$2319,2,0))),IF(B106="SEINFRA",(IFERROR(VLOOKUP(A106,'COMPSD SEINFRA'!$B$7:$G$5611,2,0),VLOOKUP(CPU_Civil!A106,'ISD SEINFRA'!A69:$D$11922,2,0))),))) -> PINTOR COM ENCARGOS COMPLEMENTARES | D106: COMPOSIÇÃO | E106: =IF(B106="SINAPI",(IFERROR(VLOOKUP(A106,'CompSD SINAPI'!$B$11:$F$9784,3,0),VLOOKUP(CPU_Civil!A106,'ISD SINAPI'!$B$11:$F$4903,3,0))),IF(OR(B106="SICRO",B106="SICRO3"),(IFERROR(VLOOKUP(A106,'COMP SD SICRO'!$A$2:$D$6495,3,0),VLOOKUP(CPU_Civil!A106,'ISD SICRO'!$A$2:$D$2319,3,0))),IF(B106="SEINFRA",(IFERROR(VLOOKUP(A106,'COMPSD SEINFRA'!$B$7:$G$5611,3,0),VLOOKUP(CPU_Civil!A106,'ISD SEINFRA'!A99:$D$11922,3,0))),))) -> H | F106: =IF(B106="SINAPI",(IFERROR(VLOOKUP(A106,'CompSD SINAPI'!$B$11:$F$9784,4,0),VLOOKUP(CPU_Civil!A106,'ISD SINAPI'!$B$11:$F$4903,5,0))),IF(OR(B106="SICRO",B106="SICRO3"),(IFERROR(VLOOKUP(A106,'COMP SD SICRO'!$A$2:$D$6495,4,0),VLOOKUP(CPU_Civil!A106,'ISD SICRO'!$A$2:$D$2319,4,0))),IF(B106="SEINFRA",(IFERROR(VLOOKUP(A106,'COMPSD SEINFRA'!$B$7:$G$5611,4,0),VLOOKUP(CPU_Civil!A106,'ISD SEINFRA'!A68:$D$11922,4,0))),))) -> 32.97 | G106: 0.14 | H106: 4.6158 | J106: =H106*(1-CAPA!$D$13) -> 4.431168
